Workbook

Sheet MainDisplay
E1: =IF(N32=$N$12,R12,IF(N32=$N$14,R14,IF(N32=$N$16,R16,IF(N32=$N$18,R18,IF(N32=$N$20,R20,IF(N32=$N$22,R22,IF(N32=$N$24,R24,IF(N32=$N$26,R26,IF(N32=$N$28,R28,IF(N32=$N$30,R30)))))))))) -> EP | S1: =Data!C2 -> DD | U1: =Data!D2 -> DSX | V1: =Data!E2 -> PIL | X1: =Data!F2 -> SF6 | Y1: =Data!G2 -> CLE | AA1: =Data!H2 -> HOE | AB1: =Data!I2 -> RBE | AD1: =Data!J2 -> NGE | AE1: =Data!K2 -> TYA | AG1: =Data!L2 -> PLE
B2: 15 | C2: 15 | I2: CQG Correlation Shenzhen 深圳市 Dashboard | AE2: =RTD("cqg.rtd", ,"SystemInfo", "Linetime")+Symbols!L36 -> 43529.03447
C3: 65
A4: =INDIRECT("Data!H"&$B$2) -> 0 | B4: =INDIRECT("Data!J"&$B$2) -> 0 | C4: =INDIRECT("Data!K"&$B$2) -> 0 | D4: =INDIRECT("Data!L"&$B$2) -> 0 | E4: =RTD("cqg.rtd", ,"ContractData",Symbols!B5, "LongDescription",, "T") -> E-Mini S&P 500, Mar 19 | H4: =RTD("cqg.rtd", ,"ContractData",Symbols!B6, "LongDescription",, "T") -> E-mini NASDAQ-100, Mar 19 | K4: =RTD("cqg.rtd", ,"ContractData",Symbols!B7, "LongDescription",, "T") -> E-mini MidCap 400, Mar 19 | N4: =RTD("cqg.rtd", ,"ContractData",Symbols!B8, "LongDescription",, "T") -> Gold (Globex), Apr 19 | Q4: =RTD("cqg.rtd", ,"ContractData",Symbols!B9, "LongDescription",, "T") -> Dollar Index (ICE), Mar 19 | T4: =RTD("cqg.rtd", ,"ContractData",Symbols!B10, "LongDescription",, "T") -> Euro FX (Globex), Mar 19 | W4: =RTD("cqg.rtd", ,"ContractData",Symbols!B11, "LongDescription",, "T") -> Japanese Yen (Globex), Mar 19 | Z4: =RTD("cqg.rtd", ,"ContractData",Symbols!B12, "LongDescription",, "T") -> Australian Dollar (Globex), Mar 19 | AC4: =RTD("cqg.rtd", ,"ContractData",Symbols!B13, "LongDescription",, "T") -> British Pound (Globex), Mar 19 | AF4: =RTD("cqg.rtd", ,"ContractData",Symbols!B14, "LongDescription",, "T") -> Mexican Peso (Globex), Mar 19
A5: =INDIRECT("Data!H"&$B$2+1) -> 0 | B5: =INDIRECT("Data!J"&$B$2+1) -> 0 | C5: =INDIRECT("Data!K"&$B$2+1) -> 0 | D5: =INDIRECT("Data!L"&$B$2+1) -> 0 | E5: =IF(Symbols!C5="B",RTD("cqg.rtd",,"ContractData",Symbols!B5,"LastTrade",,"B"),TEXT(RTD("cqg.rtd",,"ContractData",Symbols!B5,"LastTrade",,"T"),Symbols!D5)) -> 2784.00 | H5: =IF(Symbols!C6="B",RTD("cqg.rtd",,"ContractData",Symbols!B6,"LastTrade",,"B"),TEXT(RTD("cqg.rtd",,"ContractData",Symbols!B6,"LastTrade",,"T"),Symbols!D6)) -> 7108.00 | K5: =IF(Symbols!C7="B",RTD("cqg.rtd",,"ContractData",Symbols!B7,"LastTrade",,"B"),TEXT(RTD("cqg.rtd",,"ContractData",Symbols!B7,"LastTrade",,"T"),Symbols!D7)) -> 1908.30 | N5: =IF(Symbols!C8="B",RTD("cqg.rtd",,"ContractData",Symbols!B8,"LastTrade",,"B"),TEXT(RTD("cqg.rtd",,"ContractData",Symbols!B8,"LastTrade",,"T"),Symbols!D8)) -> 1289.30 | Q5: =IF(Symbols!C9="B",RTD("cqg.rtd",,"ContractData",Symbols!B9,"LastTrade",,"B"),TEXT(RTD("cqg.rtd",,"ContractData",Symbols!B9,"LastTrade",,"T"),Symbols!D9)) -> 96.64 | T5: =IF(Symbols!C10="B",RTD("cqg.rtd",,"ContractData",Symbols!B10,"LastTrade",,"B"),TEXT(RTD("cqg.rtd",,"ContractData",Symbols!B10,"LastTrade",,"T"),Symbols!D10)) -> 1.13380 | W5: =IF(Symbols!C11="B",RTD("cqg.rtd",,"ContractData",Symbols!B11,"LastTrade",,"B"),TEXT(RTD("cqg.rtd",,"ContractData",Symbols!B11,"LastTrade",,"T"),Symbols!D11)) -> .0089610 | Z5: =IF(Symbols!C12="B",RTD("cqg.rtd",,"ContractData",Symbols!B12,"LastTrade",,"B"),TEXT(RTD("cqg.rtd",,"ContractData",Symbols!B12,"LastTrade",,"T"),Symbols!D12)) -> .7085 | AC5: =IF(Symbols!C13="B",RTD("cqg.rtd",,"ContractData",Symbols!B13,"LastTrade",,"B"),TEXT(RTD("cqg.rtd",,"ContractData",Symbols!B13,"LastTrade",,"T"),Symbols!D13)) -> 1.3191 | AF5: =IF(Symbols!C14="B",RTD("cqg.rtd",,"ContractData",Symbols!B14,"LastTrade",,"B"),TEXT(RTD("cqg.rtd",,"ContractData",Symbols!B14,"LastTrade",,"T"),Symbols!D14)) -> .051700
A6: =INDIRECT("Data!H"&$B$2+2) -> 0 | B6: =INDIRECT("Data!J"&$B$2+2) -> 0 | C6: =INDIRECT("Data!K"&$B$2+2) -> 0 | D6: =INDIRECT("Data!L"&$B$2+2) -> 0
A7: =INDIRECT("Data!H"&$B$2+3) -> 0 | B7: =INDIRECT("Data!J"&$B$2+3) -> 0 | C7: =INDIRECT("Data!K"&$B$2+3) -> 0 | D7: =INDIRECT("Data!L"&$B$2+3) -> 0 | E7: H: | F7: =IF(Symbols!C5="B",RTD("cqg.rtd",,"ContractData",Symbols!B5,"High",,"B"),TEXT(RTD("cqg.rtd",,"ContractData",Symbols!B5,"High",,"T"),Symbols!D5)) -> 2819.75 | G7: =IF(Symbols!C5="B",RTD("cqg.rtd",,"ContractData",Symbols!B5,"NetLastQuoteToday",,"B"),IF(RTD("cqg.rtd",,"ContractData",Symbols!B5,"NetLastQuoteToday",,"T")>0,"+"&TEXT(RTD("cqg.rtd",,"ContractData",Symbols!B5,"NetLastQuoteToday",,"T"),Symbols!D5),TEXT(RTD("cqg.rtd",,"ContractData",Symbols!B5,"NetLastQuoteToday",,"T"),Symbols!D5))) -> -21.00 | H7: H: | I7: =IF(Symbols!C6="B",RTD("cqg.rtd",,"ContractData",Symbols!B6,"High",,"B"),TEXT(RTD("cqg.rtd",,"ContractData",Symbols!B6,"High",,"T"),Symbols!D6)) -> 7211.50 | J7: =IF(Symbols!C6="B",RTD("cqg.rtd",,"ContractData",Symbols!B6,"NetLastQuoteToday",,"B"),IF(RTD("cqg.rtd",,"ContractData",Symbols!B6,"NetLastQuoteToday",,"T")>0,"+"&TEXT(RTD("cqg.rtd",,"ContractData",Symbols!B6,"NetLastQuoteToday",,"T"),Symbols!D6),TEXT(RTD("cqg.rtd",,"ContractData",Symbols!B6,"NetLastQuoteToday",,"T"),Symbols!D6))) -> -48.25 | K7: H: | L7: =IF(Symbols!C7="B",RTD("cqg.rtd",,"ContractData",Symbols!B7,"High",,"B"),TEXT(RTD("cqg.rtd",,"ContractData",Symbols!B7,"High",,"T"),Symbols!D7)) -> 1935.10 | M7: =IF(Symbols!C7="B",RTD("cqg.rtd",,"ContractData",Symbols!B7,"NetLastQuoteToday",,"B"),IF(RTD("cqg.rtd",,"ContractData",Symbols!B7,"NetLastQuoteToday",,"T")>0,"+"&TEXT(RTD("cqg.rtd",,"ContractData",Symbols!B7,"NetLastQuoteToday",,"T"),Symbols!D7),TEXT(RTD("cqg.rtd",,"ContractData",Symbols!B7,"NetLastQuoteToday",,"T"),Symbols!D7))) -> -17.00 | N7: H: | O7: =IF(Symbols!C8="B",RTD("cqg.rtd",,"ContractData",Symbols!B8,"High",,"B"),TEXT(RTD("cqg.rtd",,"ContractData",Symbols!B8,"High",,"T"),Symbols!D8)) -> 1298.10 | P7: =IF(Symbols!C8="B",RTD("cqg.rtd",,"ContractData",Symbols!B8,"NetLastQuoteToday",,"B"),IF(RTD("cqg.rtd",,"ContractData",Symbols!B8,"NetLastQuoteToday",,"T")>0,"+"&TEXT(RTD("cqg.rtd",,"ContractData",Symbols!B8,"NetLastQuoteToday",,"T"),Symbols!D8),TEXT(RTD("cqg.rtd",,"ContractData",Symbols!B8,"NetLastQuoteToday",,"T"),Symbols!D8))) -> -9.90 | Q7: H: | R7: =IF(Symbols!C9="B",RTD("cqg.rtd",,"ContractData",Symbols!B9,"High",,"B"),TEXT(RTD("cqg.rtd",,"ContractData",Symbols!B9,"High",,"T"),Symbols!D9)) -> 96.75 | S7: =IF(Symbols!C9="B",RTD("cqg.rtd",,"ContractData",Symbols!B9,"NetLastQuoteToday",,"B"),IF(RTD("cqg.rtd",,"ContractData",Symbols!B9,"NetLastQuoteToday",,"T")>0,"+"&TEXT(RTD("cqg.rtd",,"ContractData",Symbols!B9,"NetLastQuoteToday",,"T"),Symbols!D9),TEXT(RTD("cqg.rtd",,"ContractData",Symbols!B9,"NetLastQuoteToday",,"T"),Symbols!D9))) -> +.19 | T7: H: | U7: =IF(Symbols!C10="B",RTD("cqg.rtd",,"ContractData",Symbols!B10,"High",,"B"),TEXT(RTD("cqg.rtd",,"ContractData",Symbols!B10,"High",,"T"),Symbols!D10)) -> 1.13935 | V7: =IF(Symbols!C10="B",RTD("cqg.rtd",,"ContractData",Symbols!B10,"NetLastQuoteToday",,"B"),IF(RTD("cqg.rtd",,"ContractData",Symbols!B10,"NetLastQuoteToday",,"T")>0,"+"&TEXT(RTD("cqg.rtd",,"ContractData",Symbols!B10,"NetLastQuoteToday",,"T"),Symbols!D10),TEXT(RTD("cqg.rtd",,"ContractData",Symbols!B10,"NetLastQuoteToday",,"T"),Symbols!D10))) -> -.00335 | W7: H: | X7: =IF(Symbols!C8="B",RTD("cqg.rtd",,"ContractData",Symbols!B11,"High",,"B"),TEXT(RTD("cqg.rtd",,"ContractData",Symbols!B11,"High",,"T"),Symbols!D11)) -> .0089630 | Y7: =IF(Symbols!C11="B",RTD("cqg.rtd",,"ContractData",Symbols!B11,"NetLastQuoteToday",,"B"),IF(RTD("cqg.rtd",,"ContractData",Symbols!B11,"NetLastQuoteToday",,"T")>0,"+"&TEXT(RTD("cqg.rtd",,"ContractData",Symbols!B11,"NetLastQuoteToday",,"T"),Symbols!D11),TEXT(RTD("cqg.rtd",,"ContractData",Symbols!B11,"NetLastQuoteToday",,"T"),Symbols!D11))) -> +.0000235 | Z7: H: | AA7: =IF(Symbols!C12="B",RTD("cqg.rtd",,"ContractData",Symbols!B12,"High",,"B"),TEXT(RTD("cqg.rtd",,"ContractData",Symbols!B12,"High",,"T"),Symbols!D12)) -> .7110 | AB7: =IF(Symbols!C12="B",RTD("cqg.rtd",,"ContractData",Symbols!B12,"NetLastQuoteToday",,"B"),IF(RTD("cqg.rtd",,"ContractData",Symbols!B12,"NetLastQuoteToday",,"T")>0,"+"&TEXT(RTD("cqg.rtd",,"ContractData",Symbols!B12,"NetLastQuoteToday",,"T"),Symbols!D12),TEXT(RTD("cqg.rtd",,"ContractData",Symbols!B12,"NetLastQuoteToday",,"T"),Symbols!D12))) -> +.0010 | AC7: H: | AD7: =IF(Symbols!C13="B",RTD("cqg.rtd",,"ContractData",Symbols!B13,"High",,"B"),TEXT(RTD("cqg.rtd",,"ContractData",Symbols!B13,"High",,"T"),Symbols!D13)) -> 1.3264 | AE7: =IF(Symbols!C13="B",RTD("cqg.rtd",,"ContractData",Symbols!B13,"NetLastQuoteToday",,"B"),IF(RTD("cqg.rtd",,"ContractData",Symbols!B13,"NetLastQuoteToday",,"T")>0,"+"&TEXT(RTD("cqg.rtd",,"ContractData",Symbols!B13,"NetLastQuoteToday",,"T"),Symbols!D13),TEXT(RTD("cqg.rtd",,"ContractData",Symbols!B13,"NetLastQuoteToday",,"T"),Symbols!D13))) -> -.0011 | AF7: H: | AG7: =IF(Symbols!C14="B",RTD("cqg.rtd",,"ContractData",Symbols!B14,"High",,"B"),TEXT(RTD("cqg.rtd",,"ContractData",Symbols!B14,"High",,"T"),Symbols!D14)) -> .051780 | AH7: =IF(Symbols!C14="B",RTD("cqg.rtd",,"ContractData",Symbols!B14,"NetLastQuoteToday",,"B"),IF(RTD("cqg.rtd",,"ContractData",Symbols!B14,"NetLastQuoteToday",,"T")>0,"+"&TEXT(RTD("cqg.rtd",,"ContractData",Symbols!B14,"NetLastQuoteToday",,"T"),Symbols!D14),TEXT(RTD("cqg.rtd",,"ContractData",Symbols!B14,"NetLastQuoteToday",,"T"),Symbols!D14))) -> +.000010
A8: =INDIRECT("Data!H"&$B$2+4) -> 0 | B8: =INDIRECT("Data!J"&$B$2+4) -> 0 | C8: =INDIRECT("Data!K"&$B$2+4) -> 0 | D8: =INDIRECT("Data!L"&$B$2+4) -> 0 | E8: L: | F8: =IF(Symbols!C5="B",RTD("cqg.rtd",,"ContractData",Symbols!B5,"Low",,"B"),TEXT(RTD("cqg.rtd",,"ContractData",Symbols!B5,"Low",,"T"),Symbols!D5)) -> 2783.00 | G8: =IFERROR(RTD("cqg.rtd", ,"ContractData",Symbols!B5, "PerCentNetLastQuote",, "T")/100,"") -> -0.007486631016 | H8: L: | I8: =IF(Symbols!C6="B",RTD("cqg.rtd",,"ContractData",Symbols!B6,"Low",,"B"),TEXT(RTD("cqg.rtd",,"ContractData",Symbols!B6,"Low",,"T"),Symbols!D6)) -> 7103.25 | J8: =IFERROR(RTD("cqg.rtd", ,"ContractData",Symbols!B6, "PerCentNetLastQuote",, "T")/100,"") -> -0.006742593628 | K8: L: | L8: =IF(Symbols!C7="B",RTD("cqg.rtd",,"ContractData",Symbols!B7,"Low",,"B"),TEXT(RTD("cqg.rtd",,"ContractData",Symbols!B7,"Low",,"T"),Symbols!D7)) -> 1907.90 | M8: =IFERROR(RTD("cqg.rtd", ,"ContractData",Symbols!B7, "PerCentNetLastQuote",, "T")/100,"") -> -0.00882979276 | N8: L: | O8: =IF(Symbols!C8="B",RTD("cqg.rtd",,"ContractData",Symbols!B8,"Low",,"B"),TEXT(RTD("cqg.rtd",,"ContractData",Symbols!B8,"Low",,"T"),Symbols!D8)) -> 1283.80 | P8: =IFERROR(RTD("cqg.rtd", ,"ContractData",Symbols!B8, "PerCentNetLastQuote",, "T")/100,"") -> -0.007620073892 | Q8: L: | R8: =IF(Symbols!C9="B",RTD("cqg.rtd",,"ContractData",Symbols!B9,"Low",,"B"),TEXT(RTD("cqg.rtd",,"ContractData",Symbols!B9,"Low",,"T"),Symbols!D9)) -> 96.26 | S8: =IFERROR(RTD("cqg.rtd", ,"ContractData",Symbols!B9, "PerCentNetLastQuote",, "T")/100,"") -> 0.001918092276 | T8: L: | U8: =IF(Symbols!C10="B",RTD("cqg.rtd",,"ContractData",Symbols!B10,"Low",,"B"),TEXT(RTD("cqg.rtd",,"ContractData",Symbols!B10,"Low",,"T"),Symbols!D10)) -> 1.13210 | V8: =IFERROR(RTD("cqg.rtd", ,"ContractData",Symbols!B10, "PerCentNetLastQuote",, "T")/100,"") -> -0.002945961395 | W8: L: | X8: =IF(Symbols!C11="B",RTD("cqg.rtd",,"ContractData",Symbols!B11,"Low",,"B"),TEXT(RTD("cqg.rtd",,"ContractData",Symbols!B11,"Low",,"T"),Symbols!D11)) -> .0089365 | Y8: =IFERROR(RTD("cqg.rtd", ,"ContractData",Symbols!B11, "PerCentNetLastQuote",, "T")/100,"") -> 0.00262922354 | Z8: L: | AA8: =IF(Symbols!C12="B",RTD("cqg.rtd",,"ContractData",Symbols!B12,"Low",,"B"),TEXT(RTD("cqg.rtd",,"ContractData",Symbols!B12,"Low",,"T"),Symbols!D12)) -> .7077 | AB8: =IFERROR(RTD("cqg.rtd", ,"ContractData",Symbols!B12, "PerCentNetLastQuote",, "T")/100,"") -> 0.001413427562 | AC8: L: | AD8: =IF(Symbols!C13="B",RTD("cqg.rtd",,"ContractData",Symbols!B13,"Low",,"B"),TEXT(RTD("cqg.rtd",,"ContractData",Symbols!B13,"Low",,"T"),Symbols!D13)) -> 1.3176 | AE8: =IFERROR(RTD("cqg.rtd", ,"ContractData",Symbols!B13, "PerCentNetLastQuote",, "T")/100,"") -> -0.0008332702068 | AF8: L: | AG8: =IF(Symbols!C14="B",RTD("cqg.rtd",,"ContractData",Symbols!B14,"Low",,"B"),TEXT(RTD("cqg.rtd",,"ContractData",Symbols!B14,"Low",,"T"),Symbols!D14)) -> .051480 | AH8: =IFERROR(RTD("cqg.rtd", ,"ContractData",Symbols!B14, "PerCentNetLastQuote",, "T")/100,"") -> 0.0001934610176
A9: =INDIRECT("Data!H"&$B$2+5) -> 0 | B9: =INDIRECT("Data!J"&$B$2+5) -> 0 | C9: =INDIRECT("Data!K"&$B$2+5) -> 0 | D9: =INDIRECT("Data!L"&$B$2+5) -> 0 | E9: =N32 -> E-Mini S&P 500, Mar 19 | N9: Correlations
A10: =INDIRECT("Data!H"&$B$2+6) -> 0 | B10: =INDIRECT("Data!J"&$B$2+6) -> 0 | C10: =INDIRECT("Data!K"&$B$2+6) -> 0 | D10: =INDIRECT("Data!L"&$B$2+6) -> 0 | E10: =TEXT(S32,"#.00")&" Correlation to the "&RTD("cqg.rtd", ,"ContractData",'1'!C2, "LongDescription",, "T") -> .88 Correlation to the DAX Index, Mar 19 | N10: Time Frame | P10: Look Back | U10: =RTD("cqg.rtd", ,"ContractData",Data!D2, "LongDescription",, "T") -> Euro STOXX 50, Mar 19 | X10: =RTD("cqg.rtd", ,"ContractData",Data!F2, "LongDescription",, "T") -> Swiss Franc (Globex), Mar 19 | AA10: =RTD("cqg.rtd", ,"ContractData",Data!H2, "LongDescription",, "T") -> NY Harbor ULSD, Apr 19 | AD10: =RTD("cqg.rtd", ,"ContractData",Data!J2, "LongDescription",, "T") -> Natural Gas (Globex), Apr 19 | AG10: =RTD("cqg.rtd", ,"ContractData",Data!L2, "LongDescription",, "T") -> Platinum (Globex), Apr 19
A11: =INDIRECT("Data!H"&$B$2+7) -> 0 | B11: =INDIRECT("Data!J"&$B$2+7) -> 0 | C11: =INDIRECT("Data!K"&$B$2+7) -> 0 | D11: =INDIRECT("Data!L"&$B$2+7) -> 0 | N11: ADC | P11: 20 | S11: =RTD("cqg.rtd", ,"ContractData",Data!C2, "LongDescription",, "T") -> DAX Index, Mar 19 | V11: =RTD("cqg.rtd", ,"ContractData",Data!E2, "LongDescription",, "T") -> CAC40, Mar 19 | Y11: =RTD("cqg.rtd", ,"ContractData",Data!G2, "LongDescription",, "T") -> Crude Light (Globex), Apr 19 | AB11: =RTD("cqg.rtd", ,"ContractData",Data!I2, "LongDescription",, "T") -> RBOB Gasoline (Globex), Apr 19 | AE11: =RTD("cqg.rtd", ,"ContractData",Data!K2, "LongDescription",, "T") -> 10yr US Treasury Notes (Globex), Jun 19
A12: =INDIRECT("Data!H"&$B$2+8) -> 0 | B12: =INDIRECT("Data!J"&$B$2+8) -> 0 | C12: =INDIRECT("Data!K"&$B$2+8) -> 0 | D12: =INDIRECT("Data!L"&$B$2+8) -> 0 | N12: =RTD("cqg.rtd", ,"ContractData",Symbols!B5, "LongDescription",, "T") -> E-Mini S&P 500, Mar 19 | R12: =Symbols!B5 -> EP | S12: =Data!C3 -> 0.8758639285 | U12: =Data!D3 -> 0.9371686342 | V12: =Data!E3 -> 0.9582080159 | X12: =Data!F3 -> 0.1243293855 | Y12: =Data!G3 -> 0.858080918 | AA12: =Data!H3 -> 0.8959565442 | AB12: =Data!I3 -> 0.8947133106 | AD12: =Data!J3 -> 0.7345125408 | AE12: =Data!K3 -> -0.2939205796 | AG12: =Data!L3 -> 0.776654065
A13: =INDIRECT("Data!H"&$B$2+9) -> 0 | B13: =INDIRECT("Data!J"&$B$2+9) -> 0 | C13: =INDIRECT("Data!K"&$B$2+9) -> 0 | D13: =INDIRECT("Data!L"&$B$2+9) -> 0 | N13: =$N$12 -> E-Mini S&P 500, Mar 19 | S13: =$S$12 -> 0.8758639285 | U13: =$U$12 -> 0.9371686342 | V13: =$V$12 -> 0.9582080159 | X13: =$X$12 -> 0.1243293855 | Y13: =$Y$12 -> 0.858080918 | AA13: =$AA$12 -> 0.8959565442 | AB13: =$AB$12 -> 0.8947133106 | AD13: =$AD$12 -> 0.7345125408 | AE13: =$AE$12 -> -0.2939205796 | AG13: =$AG$12 -> 0.776654065
A14: =INDIRECT("Data!H"&$B$2+10) -> 0 | B14: =INDIRECT("Data!J"&$B$2+10) -> 0 | C14: =INDIRECT("Data!K"&$B$2+10) -> 0 | D14: =INDIRECT("Data!L"&$B$2+10) -> 0 | E14: =TEXT(U32,"#.00")&" Correlation to the "&RTD("cqg.rtd",,"ContractData",'1'!I2,"LongDescription",,"T") -> .94 Correlation to the Euro STOXX 50, Mar 19 | N14: =RTD("cqg.rtd", ,"ContractData",Symbols!B6, "LongDescription",, "T") -> E-mini NASDAQ-100, Mar 19 | R14: =Symbols!B6 -> ENQ | S14: =Data!C4 -> 0.9074300237 | U14: =Data!D4 -> 0.9440856739 | V14: =Data!E4 -> 0.9474994691 | X14: =Data!F4 -> 0.1472577326 | Y14: =Data!G4 -> 0.7748928421 | AA14: =Data!H4 -> 0.8126145061 | AB14: =Data!I4 -> 0.8112969392 | AD14: =Data!J4 -> 0.7859861156 | AE14: =Data!K4 -> -0.367787194 | AG14: =Data!L4 -> 0.7849459598
A15: =INDIRECT("Data!H"&$B$2+11) -> 0 | B15: =INDIRECT("Data!J"&$B$2+11) -> 0 | C15: =INDIRECT("Data!K"&$B$2+11) -> 0 | D15: =INDIRECT("Data!L"&$B$2+11) -> 0 | N15: =$N$14 -> E-mini NASDAQ-100, Mar 19 | S15: =$S$14 -> 0.9074300237 | U15: =$U$14 -> 0.9440856739 | V15: =$V$14 -> 0.9474994691 | X15: =$X$14 -> 0.1472577326 | Y15: =$Y$14 -> 0.7748928421 | AA15: =$AA$14 -> 0.8126145061 | AB15: =$AB$14 -> 0.8112969392 | AD15: =$AD$14 -> 0.7859861156 | AE15: =$AE$14 -> -0.367787194 | AG15: =$AG$14 -> 0.7849459598
A16: =INDIRECT("Data!H"&$B$2+12) -> 0 | B16: =INDIRECT("Data!J"&$B$2+12) -> 0 | C16: =INDIRECT("Data!K"&$B$2+12) -> 0 | D16: =INDIRECT("Data!L"&$B$2+12) -> 0 | N16: =RTD("cqg.rtd", ,"ContractData",Symbols!B7, "LongDescription",, "T") -> E-mini MidCap 400, Mar 19 | R16: =Symbols!B7 -> EMD | S16: =Data!C5 -> 0.766121333 | U16: =Data!D5 -> 0.8478742218 | V16: =Data!E5 -> 0.8849593018 | X16: =Data!F5 -> 0.02336865487 | Y16: =Data!G5 -> 0.8400429601 | AA16: =Data!H5 -> 0.9058856245 | AB16: =Data!I5 -> 0.9025742966 | AD16: =Data!J5 -> 0.5975681169 | AE16: =Data!K5 -> -0.1510722684 | AG16: =Data!L5 -> 0.6481681124
A17: =INDIRECT("Data!H"&$B$2+13) -> 0 | B17: =INDIRECT("Data!J"&$B$2+13) -> 0 | C17: =INDIRECT("Data!K"&$B$2+13) -> 0 | D17: =INDIRECT("Data!L"&$B$2+13) -> 0 | N17: =$N$16 -> E-mini MidCap 400, Mar 19 | S17: =$S$16 -> 0.766121333 | U17: =$U$16 -> 0.8478742218 | V17: =$V$16 -> 0.8849593018 | X17: =$X$16 -> 0.02336865487 | Y17: =$Y$16 -> 0.8400429601 | AA17: =$AA$16 -> 0.9058856245 | AB17: =$AB$16 -> 0.9025742966 | AD17: =$AD$16 -> 0.5975681169 | AE17: =$AE$16 -> -0.1510722684 | AG17: =$AG$16 -> 0.6481681124
A18: =INDIRECT("Data!H"&$B$2+14) -> 0 | B18: =INDIRECT("Data!J"&$B$2+14) -> 0 | C18: =INDIRECT("Data!K"&$B$2+14) -> 0 | D18: =INDIRECT("Data!L"&$B$2+14) -> 0 | N18: =RTD("cqg.rtd", ,"ContractData",Symbols!B8, "LongDescription",, "T") -> Gold (Globex), Apr 19 | R18: =Symbols!B8 -> GCE | S18: =Data!C6 -> 0.04598945966 | U18: =Data!D6 -> 0.02541217044 | V18: =Data!E6 -> 0.06116083156 | X18: =Data!F6 -> 0.1648982521 | Y18: =Data!G6 -> 0.3582707325 | AA18: =Data!H6 -> 0.2678510358 | AB18: =Data!I6 -> 0.309124626 | AD18: =Data!J6 -> -0.2204431065 | AE18: =Data!K6 -> 0.6024895811 | AG18: =Data!L6 -> 0.09838028921
A19: =INDIRECT("Data!H"&$B$2+15) -> 0 | B19: =INDIRECT("Data!J"&$B$2+15) -> 0 | C19: =INDIRECT("Data!K"&$B$2+15) -> 0 | D19: =INDIRECT("Data!L"&$B$2+15) -> 0 | N19: =$N$18 -> Gold (Globex), Apr 19 | S19: =$S$18 -> 0.04598945966 | U19: =$U$18 -> 0.02541217044 | V19: =$V$18 -> 0.06116083156 | X19: =$X$18 -> 0.1648982521 | Y19: =$Y$18 -> 0.3582707325 | AA19: =$AA$18 -> 0.2678510358 | AB19: =$AB$18 -> 0.309124626 | AD19: =$AD$18 -> -0.2204431065 | AE19: =$AE$18 -> 0.6024895811 | AG19: =$AG$18 -> 0.09838028921
A20: =INDIRECT("Data!H"&$B$2+16) -> 0 | B20: =INDIRECT("Data!J"&$B$2+16) -> 0 | C20: =INDIRECT("Data!K"&$B$2+16) -> 0 | D20: =INDIRECT("Data!L"&$B$2+16) -> 0 | E20: =TEXT(V32,"#.00")&" Correlation to the "&RTD("cqg.rtd",,"ContractData",'1'!O2,"LongDescription",,"T") -> .96 Correlation to the CAC40, Mar 19 | N20: =RTD("cqg.rtd", ,"ContractData",Symbols!B9, "LongDescription",, "T") -> Dollar Index (ICE), Mar 19 | R20: =Symbols!B9 -> DXE | S20: =Data!C7 -> -0.4449499846 | U20: =Data!D7 -> -0.2922888092 | V20: =Data!E7 -> -0.2345423678 | X20: =Data!F7 -> -0.7671417489 | Y20: =Data!G7 -> -0.1957470134 | AA20: =Data!H7 -> -0.03968454454 | AB20: =Data!I7 -> -0.09720261055 | AD20: =Data!J7 -> -0.4022695605 | AE20: =Data!K7 -> -0.0824474895 | AG20: =Data!L7 -> -0.6207003577
A21: =INDIRECT("Data!H"&$B$2+17) -> 0 | B21: =INDIRECT("Data!J"&$B$2+17) -> 0 | C21: =INDIRECT("Data!K"&$B$2+17) -> 0 | D21: =INDIRECT("Data!L"&$B$2+17) -> 0 | N21: =$N$20 -> Dollar Index (ICE), Mar 19 | S21: =$S$20 -> -0.4449499846 | U21: =$U$20 -> -0.2922888092 | V21: =$V$20 -> -0.2345423678 | X21: =$X$20 -> -0.7671417489 | Y21: =$Y$20 -> -0.1957470134 | AA21: =$AA$20 -> -0.03968454454 | AB21: =$AB$20 -> -0.09720261055 | AD21: =$AD$20 -> -0.4022695605 | AE21: =$AE$20 -> -0.0824474895 | AG21: =$AG$20 -> -0.6207003577
A22: =INDIRECT("Data!H"&$B$2+18) -> 0 | B22: =INDIRECT("Data!J"&$B$2+18) -> 0 | C22: =INDIRECT("Data!K"&$B$2+18) -> 0 | D22: =INDIRECT("Data!L"&$B$2+18) -> 0 | N22: =RTD("cqg.rtd", ,"ContractData",Symbols!B10, "LongDescription",, "T") -> Euro FX (Globex), Mar 19 | R22: =Symbols!B10 -> EU6 | S22: =Data!C8 -> 0.2185101232 | U22: =Data!D8 -> 0.006232205995 | V22: =Data!E8 -> -0.02173117758 | X22: =Data!F8 -> 0.7668759652 | Y22: =Data!G8 -> 0.07356131826 | AA22: =Data!H8 -> -0.09181623915 | AB22: =Data!I8 -> -0.03596553712 | AD22: =Data!J8 -> 0.3537953203 | AE22: =Data!K8 -> 0.01869481713 | AG22: =Data!L8 -> 0.5136357479
A23: =INDIRECT("Data!H"&$B$2+19) -> 0 | B23: =INDIRECT("Data!J"&$B$2+19) -> 0 | C23: =INDIRECT("Data!K"&$B$2+19) -> 0 | D23: =INDIRECT("Data!L"&$B$2+19) -> 0 | N23: =$N$22 -> Euro FX (Globex), Mar 19 | S23: =$S$22 -> 0.2185101232 | U23: =$U$22 -> 0.006232205995 | V23: =$V$22 -> -0.02173117758 | X23: =$X$22 -> 0.7668759652 | Y23: =$Y$22 -> 0.07356131826 | AA23: =$AA$22 -> -0.09181623915 | AB23: =$AB$22 -> -0.03596553712 | AD23: =$AD$22 -> 0.3537953203 | AE23: =$AE$22 -> 0.01869481713 | AG23: =$AG$22 -> 0.5136357479
A24: =INDIRECT("Data!H"&$B$2+20) -> 0 | B24: =INDIRECT("Data!J"&$B$2+20) -> 0 | C24: =INDIRECT("Data!K"&$B$2+20) -> 0 | D24: =INDIRECT("Data!L"&$B$2+20) -> 0 | N24: =RTD("cqg.rtd", ,"ContractData",Symbols!B11, "LongDescription",, "T") -> Japanese Yen (Globex), Mar 19 | R24: =Symbols!B11 -> JY6 | S24: =Data!C9 -> -0.7363039856 | U24: =Data!D9 -> -0.8441991206 | V24: =Data!E9 -> -0.8522377426 | X24: =Data!F9 -> 0.1203133422 | Y24: =Data!G9 -> -0.6193913031 | AA24: =Data!H9 -> -0.6432096452 | AB24: =Data!I9 -> -0.6347781312 | AD24: =Data!J9 -> -0.7646278533 | AE24: =Data!K9 -> 0.7160922246 | AG24: =Data!L9 -> -0.6554726839
A25: =INDIRECT("Data!H"&$B$2+21) -> 0 | B25: =INDIRECT("Data!J"&$B$2+21) -> 0 | C25: =INDIRECT("Data!K"&$B$2+21) -> 0 | D25: =INDIRECT("Data!L"&$B$2+21) -> 0 | N25: =$N$24 -> Japanese Yen (Globex), Mar 19 | S25: =$S$24 -> -0.7363039856 | U25: =$U$24 -> -0.8441991206 | V25: =$V$24 -> -0.8522377426 | X25: =$X$24 -> 0.1203133422 | Y25: =$Y$24 -> -0.6193913031 | AA25: =$AA$24 -> -0.6432096452 | AB25: =$AB$24 -> -0.6347781312 | AD25: =$AD$24 -> -0.7646278533 | AE25: =$AE$24 -> 0.7160922246 | AG25: =$AG$24 -> -0.6554726839
A26: =INDIRECT("Data!H"&$B$2+22) -> 0 | B26: =INDIRECT("Data!J"&$B$2+22) -> 0 | C26: =INDIRECT("Data!K"&$B$2+22) -> 0 | D26: =INDIRECT("Data!L"&$B$2+22) -> 0 | E26: =TEXT(X32,"#.00")&" Correlation to the "&RTD("cqg.rtd",,"ContractData",'1'!U2,"LongDescription",,"T") -> .12 Correlation to the Swiss Franc (Globex), Mar 19 | N26: =RTD("cqg.rtd", ,"ContractData",Symbols!B12, "LongDescription",, "T") -> Australian Dollar (Globex), Mar 19 | R26: =Symbols!B12 -> DA6 | S26: =Data!C10 -> 0.1817697876 | U26: =Data!D10 -> 0.01065830998 | V26: =Data!E10 -> 0.01072726228 | X26: =Data!F10 -> 0.4425251643 | Y26: =Data!G10 -> 0.2068675685 | AA26: =Data!H10 -> 0.09791828202 | AB26: =Data!I10 -> 0.1372339979 | AD26: =Data!J10 -> 0.03521235382 | AE26: =Data!K10 -> 0.333727093 | AG26: =Data!L10 -> 0.2401853207
A27: =INDIRECT("Data!H"&$B$2+23) -> 0 | B27: =INDIRECT("Data!J"&$B$2+23) -> 0 | C27: =INDIRECT("Data!K"&$B$2+23) -> 0 | D27: =INDIRECT("Data!L"&$B$2+23) -> 0 | N27: =$N$26 -> Australian Dollar (Globex), Mar 19 | S27: =$S$26 -> 0.1817697876 | U27: =$U$26 -> 0.01065830998 | V27: =$V$26 -> 0.01072726228 | X27: =$X$26 -> 0.4425251643 | Y27: =$Y$26 -> 0.2068675685 | AA27: =$AA$26 -> 0.09791828202 | AB27: =$AB$26 -> 0.1372339979 | AD27: =$AD$26 -> 0.03521235382 | AE27: =$AE$26 -> 0.333727093 | AG27: =$AG$26 -> 0.2401853207
A28: =INDIRECT("Data!H"&$B$2+24) -> 0 | B28: =INDIRECT("Data!J"&$B$2+24) -> 0 | C28: =INDIRECT("Data!K"&$B$2+24) -> 0 | D28: =INDIRECT("Data!L"&$B$2+24) -> 0 | N28: =RTD("cqg.rtd", ,"ContractData",Symbols!B13, "LongDescription",, "T") -> British Pound (Globex), Mar 19 | R28: =Symbols!B13 -> BP6 | S28: =Data!C11 -> 0.7755231281 | U28: =Data!D11 -> 0.7540727113 | V28: =Data!E11 -> 0.7554591702 | X28: =Data!F11 -> 0.5523421689 | Y28: =Data!G11 -> 0.6047021271 | AA28: =Data!H11 -> 0.5564550715 | AB28: =Data!I11 -> 0.5976477805 | AD28: =Data!J11 -> 0.8309931208 | AE28: =Data!K11 -> -0.2951940176 | AG28: =Data!L11 -> 0.9447234034
A29: =INDIRECT("Data!H"&$B$2+25) -> 0 | B29: =INDIRECT("Data!J"&$B$2+25) -> 0 | C29: =INDIRECT("Data!K"&$B$2+25) -> 0 | D29: =INDIRECT("Data!L"&$B$2+25) -> 0 | N29: =$N$28 -> British Pound (Globex), Mar 19 | S29: =$S$28 -> 0.7755231281 | U29: =$U$28 -> 0.7540727113 | V29: =$V$28 -> 0.7554591702 | X29: =$X$28 -> 0.5523421689 | Y29: =$Y$28 -> 0.6047021271 | AA29: =$AA$28 -> 0.5564550715 | AB29: =$AB$28 -> 0.5976477805 | AD29: =$AD$28 -> 0.8309931208 | AE29: =$AE$28 -> -0.2951940176 | AG29: =$AG$28 -> 0.9447234034
A30: =INDIRECT("Data!H"&$B$2+26) -> 0 | B30: =INDIRECT("Data!J"&$B$2+26) -> 0 | C30: =INDIRECT("Data!K"&$B$2+26) -> 0 | D30: =INDIRECT("Data!L"&$B$2+26) -> 0 | N30: =RTD("cqg.rtd", ,"ContractData",Symbols!B14, "LongDescription",, "T") -> Mexican Peso (Globex), Mar 19 | R30: =Symbols!B14 -> MX6 | S30: =Data!C12 -> 0.1203954225 | U30: =Data!D12 -> -0.02796377728 | V30: =Data!E12 -> -0.009727939599 | X30: =Data!F12 -> 0.7741131709 | Y30: =Data!G12 -> 0.06652370566 | AA30: =Data!H12 -> -0.05067996905 | AB30: =Data!I12 -> 0.03438452977 | AD30: =Data!J12 -> 0.1380754224 | AE30: =Data!K12 -> 0.4108864717 | AG30: =Data!L12 -> 0.3636112471
A31: =INDIRECT("Data!H"&$B$2+27) -> 0 | B31: =INDIRECT("Data!J"&$B$2+27) -> 0 | C31: =INDIRECT("Data!K"&$B$2+27) -> 0 | D31: =INDIRECT("Data!L"&$B$2+27) -> 0 | N31: =$N$30 -> Mexican Peso (Globex), Mar 19 | S31: =$S$30 -> 0.1203954225 | U31: =$U$30 -> -0.02796377728 | V31: =$V$30 -> -0.009727939599 | X31: =$X$30 -> 0.7741131709 | Y31: =$Y$30 -> 0.06652370566 | AA31: =$AA$30 -> -0.05067996905 | AB31: =$AB$30 -> 0.03438452977 | AD31: =$AD$30 -> 0.1380754224 | AE31: =$AE$30 -> 0.4108864717 | AG31: =$AG$30 -> 0.3636112471
A32: =INDIRECT("Data!H"&$B$2+28) -> 0 | B32: =INDIRECT("Data!J"&$B$2+28) -> 0 | C32: =INDIRECT("Data!K"&$B$2+28) -> 0 | D32: =INDIRECT("Data!L"&$B$2+28) -> 0 | N32: =$N$12 -> E-Mini S&P 500, Mar 19 | S32: =$S$12 -> 0.8758639285 | U32: =$U$12 -> 0.9371686342 | V32: =$V$12 -> 0.9582080159 | X32: =$X$12 -> 0.1243293855 | Y32: =$Y$12 -> 0.858080918 | AA32: =$AA$12 -> 0.8959565442 | AB32: =$AB$12 -> 0.8947133106 | AD32: =$AD$12 -> 0.7345125408 | AE32: =$AE$12 -> -0.2939205796 | AG32: =$AG$12 -> 0.776654065
A33: =INDIRECT("Data!H"&$B$2+29) -> 0 | B33: =INDIRECT("Data!J"&$B$2+29) -> 0 | C33: =INDIRECT("Data!K"&$B$2+29) -> 0 | D33: =INDIRECT("Data!L"&$B$2+29) -> 0 | E33: =TEXT(Y32,"#.00")&" Correlation to the "&RTD("cqg.rtd",,"ContractData",'1'!AA2,"LongDescription",,"T") -> .86 Correlation to the Crude Light (Globex), Apr 19
A34: =INDIRECT("Data!H"&$B$2+30) -> 0 | B34: =INDIRECT("Data!J"&$B$2+30) -> 0 | C34: =INDIRECT("Data!K"&$B$2+30) -> 0 | D34: =INDIRECT("Data!L"&$B$2+30) -> 0 | N34: =" Correlations relative to the "&N32&" City of Shenzhen 深圳市, China" -> Correlations relative to the E-Mini S&P 500, Mar 19 City of Shenzhen 深圳市, China
A35: =INDIRECT("Data!H"&$B$2+31) -> 0 | B35: =INDIRECT("Data!J"&$B$2+31) -> 0 | C35: =INDIRECT("Data!K"&$B$2+31) -> 0 | D35: =INDIRECT("Data!L"&$B$2+31) -> 0
A36: =INDIRECT("Data!H"&$B$2+32) -> 0 | B36: =INDIRECT("Data!J"&$B$2+32) -> 0 | C36: =INDIRECT("Data!K"&$B$2+32) -> 0 | D36: =INDIRECT("Data!L"&$B$2+32) -> 0 | E36: =TEXT(AA32,"#.00")&" Correlation to the "&RTD("cqg.rtd",,"ContractData",'1'!AG2,"LongDescription",,"T") -> .90 Correlation to the NY Harbor ULSD, Apr 19
A37: =INDIRECT("Data!H"&$B$2+33) -> 0 | B37: =INDIRECT("Data!J"&$B$2+33) -> 0 | C37: =INDIRECT("Data!K"&$B$2+33) -> 0 | D37: =INDIRECT("Data!L"&$B$2+33) -> 0
A38: =INDIRECT("Data!H"&$B$2+34) -> 0 | B38: =INDIRECT("Data!J"&$B$2+34) -> 0 | C38: =INDIRECT("Data!K"&$B$2+34) -> 0 | D38: =INDIRECT("Data!L"&$B$2+34) -> 0
A39: =INDIRECT("Data!H"&$B$2+35) -> 0 | B39: =INDIRECT("Data!J"&$B$2+35) -> 0 | C39: =INDIRECT("Data!K"&$B$2+35) -> 0 | D39: =INDIRECT("Data!L"&$B$2+35) -> 0 | E39: =TEXT(AB32,"#.00")&" Correlation to the "&RTD("cqg.rtd",,"ContractData",'1'!AM2,"LongDescription",,"T") -> .89 Correlation to the RBOB Gasoline (Globex), Apr 19
A40: =INDIRECT("Data!H"&$B$2+36) -> 0 | B40: =INDIRECT("Data!J"&$B$2+36) -> 0 | C40: =INDIRECT("Data!K"&$B$2+36) -> 0 | D40: =INDIRECT("Data!L"&$B$2+36) -> 0
A41: =INDIRECT("Data!H"&$B$2+35) -> 0 | B41: =INDIRECT("Data!J"&$B$2+35) -> 0 | C41: =INDIRECT("Data!K"&$B$2+35) -> 0 | D41: =INDIRECT("Data!L"&$B$2+35) -> 0
A42: =INDIRECT("Data!H"&$B$2+38) -> 0 | B42: =INDIRECT("Data!J"&$B$2+38) -> 0 | C42: =INDIRECT("Data!K"&$B$2+38) -> 0 | D42: =INDIRECT("Data!L"&$B$2+38) -> 0 | E42: =TEXT(AD32,"#.00")&" Correlation to the "&RTD("cqg.rtd",,"ContractData",'1'!AS2,"LongDescription",,"T") -> .73 Correlation to the Natural Gas (Globex), Apr 19
A43: =INDIRECT("Data!H"&$B$2+39) -> 0 | B43: =INDIRECT("Data!J"&$B$2+39) -> 0 | C43: =INDIRECT("Data!K"&$B$2+39) -> 0 | D43: =INDIRECT("Data!L"&$B$2+39) -> 0
A44: =INDIRECT("Data!H"&$B$2+40) -> 0 | B44: =INDIRECT("Data!J"&$B$2+40) -> 0 | C44: =INDIRECT("Data!K"&$B$2+40) -> 0 | D44: =INDIRECT("Data!L"&$B$2+40) -> 0
A45: =INDIRECT("Data!H"&$B$2+41) -> 0 | B45: =INDIRECT("Data!J"&$B$2+41) -> 0 | C45: =INDIRECT("Data!K"&$B$2+41) -> 0 | D45: =INDIRECT("Data!L"&$B$2+41) -> 0 | E45: =TEXT(AE32,"#.00")&" Correlation to the "&RTD("cqg.rtd",,"ContractData",'1'!AY2,"LongDescription",,"T") -> -.29 Correlation to the 10yr US Treasury Notes (Globex), Jun 19
A46: =INDIRECT("Data!H"&$B$2+42) -> 0 | B46: =INDIRECT("Data!J"&$B$2+42) -> 0 | C46: =INDIRECT("Data!K"&$B$2+42) -> 0 | D46: =INDIRECT("Data!L"&$B$2+42) -> 0
A47: =INDIRECT("Data!H"&$B$2+43) -> 0 | B47: =INDIRECT("Data!J"&$B$2+43) -> 0 | C47: =INDIRECT("Data!K"&$B$2+43) -> 0 | D47: =INDIRECT("Data!L"&$B$2+43) -> 0
E48: =TEXT(AG32,"#.00")&" Correlation to the "&RTD("cqg.rtd",,"ContractData",'1'!BE2,"LongDescription",,"T") -> .78 Correlation to the Platinum (Globex), Apr 19
A51: =INDIRECT("Data!H"&$B$2+47) -> 0 | B51: =INDIRECT("Data!J"&$B$2+47) -> 0 | C51: =INDIRECT("Data!K"&$B$2+47) -> 0 | D51: =INDIRECT("Data!L"&$B$2+47) -> 0 | E51: =RTD("cqg.rtd", ,"ContractData",Symbols!D3, "LongDescription",, "T") -> DAX Index, Mar 19 | H51: =RTD("cqg.rtd", ,"ContractData",Symbols!E3, "LongDescription",, "T") -> Euro STOXX 50, Mar 19 | K51: =RTD("cqg.rtd", ,"ContractData",Symbols!F3, "LongDescription",, "T") -> CAC40, Mar 19 | N51: =RTD("cqg.rtd", ,"ContractData",Symbols!G3, "LongDescription",, "T") -> Swiss Franc (Globex), Mar 19 | Q51: =RTD("cqg.rtd", ,"ContractData",Symbols!H3, "LongDescription",, "T") -> Crude Light (Globex), Apr 19 | T51: =RTD("cqg.rtd", ,"ContractData",Symbols!I3, "LongDescription",, "T") -> NY Harbor ULSD, Apr 19 | W51: =RTD("cqg.rtd", ,"ContractData",Symbols!J3, "LongDescription",, "T") -> RBOB Gasoline (Globex), Apr 19 | Z51: =RTD("cqg.rtd", ,"ContractData",Symbols!K3, "LongDescription",, "T") -> Natural Gas (Globex), Apr 19 | AC51: =RTD("cqg.rtd", ,"ContractData",Symbols!L3, "LongDescription",, "T") -> 10yr US Treasury Notes (Globex), Jun 19 | AF51: =RTD("cqg.rtd", ,"ContractData",Symbols!M3, "LongDescription",, "T") -> Platinum (Globex), Apr 19
A52: =INDIRECT("Data!H"&$B$2+48) -> 0 | B52: =INDIRECT("Data!J"&$B$2+48) -> 0 | C52: =INDIRECT("Data!K"&$B$2+48) -> 0 | D52: =INDIRECT("Data!L"&$B$2+48) -> 0 | E52: =IF(Symbols!D4="B",RTD("cqg.rtd",,"ContractData",Symbols!D3,"LastTrade",,"B"),TEXT(RTD("cqg.rtd",,"ContractData",Symbols!D3,"LastTrade",,"T"),Symbols!D2)) -> 11562.50 | H52: =IF(Symbols!E4="B",RTD("cqg.rtd",,"ContractData",Symbols!E3,"LastTrade",,"B"),TEXT(RTD("cqg.rtd",,"ContractData",Symbols!E3,"LastTrade",,"T"),Symbols!E2)) -> 3309 | K52: =IF(Symbols!F4="B",RTD("cqg.rtd",,"ContractData",Symbols!F3,"LastTrade",,"B"),TEXT(RTD("cqg.rtd",,"ContractData",Symbols!F3,"LastTrade",,"T"),Symbols!F2)) -> 5274.50 | N52: =IF(Symbols!G4="B",RTD("cqg.rtd",,"ContractData",Symbols!G3,"LastTrade",,"B"),TEXT(RTD("cqg.rtd",,"ContractData",Symbols!G3,"LastTrade",,"T"),Symbols!G2)) -> 1.0014 | Q52: =IF(Symbols!H4="B",RTD("cqg.rtd",,"ContractData",Symbols!H3,"LastTrade",,"B"),TEXT(RTD("cqg.rtd",,"ContractData",Symbols!H3,"LastTrade",,"T"),Symbols!H2)) -> 56.35 | T52: =IF(Symbols!I4="B",RTD("cqg.rtd",,"ContractData",Symbols!I3,"LastTrade",,"B"),TEXT(RTD("cqg.rtd",,"ContractData",Symbols!I3,"LastTrade",,"T"),Symbols!I2)) -> 2.0119 | W52: =IF(Symbols!J4="B",RTD("cqg.rtd",,"ContractData",Symbols!J3,"LastTrade",,"B"),TEXT(RTD("cqg.rtd",,"ContractData",Symbols!J3,"LastTrade",,"T"),Symbols!J2)) -> 1.7443 | Z52: =IF(Symbols!K4="B",RTD("cqg.rtd",,"ContractData",Symbols!K3,"LastTrade",,"B"),TEXT(RTD("cqg.rtd",,"ContractData",Symbols!K3,"LastTrade",,"T"),Symbols!K2)) -> 2.848 | AC52: =IF(Symbols!L4="B",RTD("cqg.rtd",,"ContractData",Symbols!L3,"LastTrade",,"B"),TEXT(RTD("cqg.rtd",,"ContractData",Symbols!L3,"LastTrade",,"T"),Symbols!L2)) -> 121265 | AF52: =IF(Symbols!M4="B",RTD("cqg.rtd",,"ContractData",Symbols!M3,"LastTrade",,"B"),TEXT(RTD("cqg.rtd",,"ContractData",Symbols!M3,"LastTrade",,"T"),Symbols!M2)) -> 840.30
A53: =INDIRECT("Data!H"&$B$2+49) -> 0 | B53: =INDIRECT("Data!J"&$B$2+49) -> 0 | C53: =INDIRECT("Data!K"&$B$2+49) -> 0 | D53: =INDIRECT("Data!L"&$B$2+49) -> 0
E54: H: | F54: =IF(Symbols!D4="B",RTD("cqg.rtd",,"ContractData",Symbols!D3,"High",,"B"),TEXT(RTD("cqg.rtd",,"ContractData",Symbols!D3,"High",,"T"),Symbols!D2)) -> 11678.50 | G54: =IF(Symbols!D4="B",RTD("cqg.rtd",,"ContractData",Symbols!D3,"NetLastQuoteToday",,"B"),IF(RTD("cqg.rtd",,"ContractData",Symbols!D3,"NetLastQuoteToday",,"T")>0,"+"&TEXT(RTD("cqg.rtd",,"ContractData",Symbols!D3,"NetLastQuoteToday",,"T"),Symbols!D2),TEXT(RTD("cqg.rtd",,"ContractData",Symbols!D3,"NetLastQuoteToday",,"T"),Symbols!D2))) -> -36.00 | H54: H: | I54: =IF(Symbols!E4="B",RTD("cqg.rtd",,"ContractData",Symbols!E3,"High",,"B"),TEXT(RTD("cqg.rtd",,"ContractData",Symbols!E3,"High",,"T"),Symbols!E2)) -> 3333 | J54: =IF(Symbols!E4="B",RTD("cqg.rtd",,"ContractData",Symbols!E3,"NetLastQuoteToday",,"B"),IF(RTD("cqg.rtd",,"ContractData",Symbols!E3,"NetLastQuoteToday",,"T")>0,"+"&TEXT(RTD("cqg.rtd",,"ContractData",Symbols!E3,"NetLastQuoteToday",,"T"),Symbols!E2),TEXT(RTD("cqg.rtd",,"ContractData",Symbols!E3,"NetLastQuoteToday",,"T"),Symbols!E2))) -> -3 | K54: H: | L54: =IF(Symbols!F4="B",RTD("cqg.rtd",,"ContractData",Symbols!F3,"High",,"B"),TEXT(RTD("cqg.rtd",,"ContractData",Symbols!F3,"High",,"T"),Symbols!F2)) -> 5309.50 | M54: =IF(Symbols!F4="B",RTD("cqg.rtd",,"ContractData",Symbols!F3,"NetLastQuoteToday",,"B"),IF(RTD("cqg.rtd",,"ContractData",Symbols!F3,"NetLastQuoteToday",,"T")>0,"+"&TEXT(RTD("cqg.rtd",,"ContractData",Symbols!F3,"NetLastQuoteToday",,"T"),Symbols!F2),TEXT(RTD("cqg.rtd",,"ContractData",Symbols!F3,"NetLastQuoteToday",,"T"),Symbols!F2))) -> -5.50 | N54: H: | O54: =IF(Symbols!M4="B",RTD("cqg.rtd",,"ContractData",Symbols!G3,"High",,"B"),TEXT(RTD("cqg.rtd",,"ContractData",Symbols!G3,"High",,"T"),Symbols!G2)) -> 1.0028 | P54: =IF(Symbols!G4="B",RTD("cqg.rtd",,"ContractData",Symbols!G3,"NetLastQuoteToday",,"B"),IF(RTD("cqg.rtd",,"ContractData",Symbols!G3,"NetLastQuoteToday",,"T")>0,"+"&TEXT(RTD("cqg.rtd",,"ContractData",Symbols!G3,"NetLastQuoteToday",,"T"),Symbols!G2),TEXT(RTD("cqg.rtd",,"ContractData",Symbols!G3,"NetLastQuoteToday",,"T"),Symbols!G2))) -> -.0004 | Q54: H: | R54: =IF(Symbols!H4="B",RTD("cqg.rtd",,"ContractData",Symbols!H3,"High",,"B"),TEXT(RTD("cqg.rtd",,"ContractData",Symbols!H3,"High",,"T"),Symbols!H2)) -> 57.00 | S54: =IF(Symbols!H4="B",RTD("cqg.rtd",,"ContractData",Symbols!H3,"NetLastQuoteToday",,"B"),IF(RTD("cqg.rtd",,"ContractData",Symbols!H3,"NetLastQuoteToday",,"T")>0,"+"&TEXT(RTD("cqg.rtd",,"ContractData",Symbols!H3,"NetLastQuoteToday",,"T"),Symbols!H2),TEXT(RTD("cqg.rtd",,"ContractData",Symbols!H3,"NetLastQuoteToday",,"T"),Symbols!H2))) -> +.54 | T54: H: | U54: =IF(Symbols!I4="B",RTD("cqg.rtd",,"ContractData",Symbols!I3,"High",,"B"),TEXT(RTD("cqg.rtd",,"ContractData",Symbols!I3,"High",,"T"),Symbols!I2)) -> 2.0377 | V54: =IF(Symbols!I4="B",RTD("cqg.rtd",,"ContractData",Symbols!I3,"NetLastQuoteToday",,"B"),IF(RTD("cqg.rtd",,"ContractData",Symbols!I3,"NetLastQuoteToday",,"T")>0,"+"&TEXT(RTD("cqg.rtd",,"ContractData",Symbols!I3,"NetLastQuoteToday",,"T"),Symbols!I2),TEXT(RTD("cqg.rtd",,"ContractData",Symbols!I3,"NetLastQuoteToday",,"T"),Symbols!I2))) -> +.0109 | W54: H: | X54: =IF(Symbols!J4="B",RTD("cqg.rtd",,"ContractData",Symbols!J3,"High",,"B"),TEXT(RTD("cqg.rtd",,"ContractData",Symbols!J3,"High",,"T"),Symbols!J2)) -> 1.7660 | Y54: =IF(Symbols!J4="B",RTD("cqg.rtd",,"ContractData",Symbols!J3,"NetLastQuoteToday",,"B"),IF(RTD("cqg.rtd",,"ContractData",Symbols!J3,"NetLastQuoteToday",,"T")>0,"+"&TEXT(RTD("cqg.rtd",,"ContractData",Symbols!J3,"NetLastQuoteToday",,"T"),Symbols!J2),TEXT(RTD("cqg.rtd",,"ContractData",Symbols!J3,"NetLastQuoteToday",,"T"),Symbols!J2))) -> +.0138 | Z54: H: | AA54: =IF(Symbols!K4="B",RTD("cqg.rtd",,"ContractData",Symbols!K3,"High",,"B"),TEXT(RTD("cqg.rtd",,"ContractData",Symbols!K3,"High",,"T"),Symbols!K2)) -> 2.888 | AB54: =IF(Symbols!K4="B",RTD("cqg.rtd",,"ContractData",Symbols!K3,"NetLastQuoteToday",,"B"),IF(RTD("cqg.rtd",,"ContractData",Symbols!K3,"NetLastQuoteToday",,"T")>0,"+"&TEXT(RTD("cqg.rtd",,"ContractData",Symbols!K3,"NetLastQuoteToday",,"T"),Symbols!K2),TEXT(RTD("cqg.rtd",,"ContractData",Symbols!K3,"NetLastQuoteToday",,"T"),Symbols!K2))) -> -.011 | AC54: H: | AD54: =IF(Symbols!L4="B",RTD("cqg.rtd",,"ContractData",Symbols!L3,"High",,"B"),TEXT(RTD("cqg.rtd",,"ContractData",Symbols!L3,"High",,"T"),Symbols!L2)) -> 121270 | AE54: =IF(Symbols!L4="B",RTD("cqg.rtd",,"ContractData",Symbols!L3,"NetLastQuoteToday",,"B"),IF(RTD("cqg.rtd",,"ContractData",Symbols!L3,"NetLastQuoteToday",,"T")>0,"+"&TEXT(RTD("cqg.rtd",,"ContractData",Symbols!L3,"NetLastQuoteToday",,"T"),Symbols!L2),TEXT(RTD("cqg.rtd",,"ContractData",Symbols!L3,"NetLastQuoteToday",,"T"),Symbols!L2))) -> +55 | AF54: H: | AG54: =IF(Symbols!M4="B",RTD("cqg.rtd",,"ContractData",Symbols!M3,"High",,"B"),TEXT(RTD("cqg.rtd",,"ContractData",Symbols!M3,"High",,"T"),Symbols!M2)) -> 866.10 | AH54: =IF(Symbols!M4="B",RTD("cqg.rtd",,"ContractData",Symbols!M3,"NetLastQuoteToday",,"B"),IF(RTD("cqg.rtd",,"ContractData",Symbols!M3,"NetLastQuoteToday",,"T")>0,"+"&TEXT(RTD("cqg.rtd",,"ContractData",Symbols!M3,"NetLastQuoteToday",,"T"),Symbols!M2),TEXT(RTD("cqg.rtd",,"ContractData",Symbols!M3,"NetLastQuoteToday",,"T"),Symbols!M2))) -> -23.50
E55: L: | F55: =IF(Symbols!D4="B",RTD("cqg.rtd",,"ContractData",Symbols!D3,"Low",,"B"),TEXT(RTD("cqg.rtd",,"ContractData",Symbols!D3,"Low",,"T"),Symbols!D2)) -> 11561.50 | G55: =IFERROR(RTD("cqg.rtd", ,"ContractData",Symbols!D3, "PerCentNetLastQuote",, "T")/100,"") -> -0.003103582051 | H55: L: | I55: =IF(Symbols!E4="B",RTD("cqg.rtd",,"ContractData",Symbols!E3,"Low",,"B"),TEXT(RTD("cqg.rtd",,"ContractData",Symbols!E3,"Low",,"T"),Symbols!E2)) -> 3308 | J55: =IFERROR(RTD("cqg.rtd", ,"ContractData",Symbols!E3, "PerCentNetLastQuote",, "T")/100,"") -> -0.0009057971014 | K55: L: | L55: =IF(Symbols!F4="B",RTD("cqg.rtd",,"ContractData",Symbols!F3,"Low",,"B"),TEXT(RTD("cqg.rtd",,"ContractData",Symbols!F3,"Low",,"T"),Symbols!F2)) -> 5274.00 | M55: =IFERROR(RTD("cqg.rtd", ,"ContractData",Symbols!F3, "PerCentNetLastQuote",, "T")/100,"") -> -0.001041666667 | N55: L: | O55: =IF(Symbols!G4="B",RTD("cqg.rtd",,"ContractData",Symbols!G3,"Low",,"B"),TEXT(RTD("cqg.rtd",,"ContractData",Symbols!G3,"Low",,"T"),Symbols!G2)) -> .9993 | P55: =IFERROR(RTD("cqg.rtd", ,"ContractData",Symbols!G3, "PerCentNetLastQuote",, "T")/100,"") -> -0.0003992812937 | Q55: L: | R55: =IF(Symbols!H4="B",RTD("cqg.rtd",,"ContractData",Symbols!H3,"Low",,"B"),TEXT(RTD("cqg.rtd",,"ContractData",Symbols!H3,"Low",,"T"),Symbols!H2)) -> 55.81 | S55: =IFERROR(RTD("cqg.rtd", ,"ContractData",Symbols!H3, "PerCentNetLastQuote",, "T")/100,"") -> 0.009677419355 | T55: L: | U55: =IF(Symbols!I4="B",RTD("cqg.rtd",,"ContractData",Symbols!I3,"Low",,"B"),TEXT(RTD("cqg.rtd",,"ContractData",Symbols!I3,"Low",,"T"),Symbols!I2)) -> 1.9995 | V55: =IFERROR(RTD("cqg.rtd", ,"ContractData",Symbols!I3, "PerCentNetLastQuote",, "T")/100,"") -> 0.005447276362 | W55: L: | X55: =IF(Symbols!J4="B",RTD("cqg.rtd",,"ContractData",Symbols!J3,"Low",,"B"),TEXT(RTD("cqg.rtd",,"ContractData",Symbols!J3,"Low",,"T"),Symbols!J2)) -> 1.7285 | Y55: =IFERROR(RTD("cqg.rtd", ,"ContractData",Symbols!J3, "PerCentNetLastQuote",, "T")/100,"") -> 0.007975495579 | Z55: L: | AA55: =IF(Symbols!K4="B",RTD("cqg.rtd",,"ContractData",Symbols!K3,"Low",,"B"),TEXT(RTD("cqg.rtd",,"ContractData",Symbols!K3,"Low",,"T"),Symbols!K2)) -> 2.821 | AB55: =IFERROR(RTD("cqg.rtd", ,"ContractData",Symbols!K3, "PerCentNetLastQuote",, "T")/100,"") -> -0.003847499126 | AC55: L: | AD55: =IF(Symbols!L4="B",RTD("cqg.rtd",,"ContractData",Symbols!L3,"Low",,"B"),TEXT(RTD("cqg.rtd",,"ContractData",Symbols!L3,"Low",,"T"),Symbols!L2)) -> 121155 | AE55: =IFERROR(RTD("cqg.rtd", ,"ContractData",Symbols!L3, "PerCentNetLastQuote",, "T")/100,"") -> 0.001412973667 | AF55: L: | AG55: =IF(Symbols!M4="B",RTD("cqg.rtd",,"ContractData",Symbols!M3,"Low",,"B"),TEXT(RTD("cqg.rtd",,"ContractData",Symbols!M3,"Low",,"T"),Symbols!M2)) -> 837.20 | AH55: =IFERROR(RTD("cqg.rtd", ,"ContractData",Symbols!M3, "PerCentNetLastQuote",, "T")/100,"") -> -0.02720852148
F56: Copyright © 2018 | J56: Chicago: | L56: =RTD("cqg.rtd", ,"SystemInfo", "Linetime") -> 43528.45113 | O56: Designed by Thom Hartle

Sheet Symbols
D2: =IF(Symbols!D4="B","B",IF(Symbols!D4=0,0,IF(Symbols!D4=1,"#.0",IF(Symbols!D4=2,"#.00",IF(Symbols!D4=3,"#.000",IF(Symbols!D4=4,"#.0000",IF(Symbols!D4=5,"#.00000",IF(Symbols!D4=6,"#.000000",IF(Symbols!D4=7,"#.0000000"))))))))) -> #.00 | E2: =IF(Symbols!E4="B","B",IF(Symbols!E4=0,0,IF(Symbols!E4=1,"#.0",IF(Symbols!E4=2,"#.00",IF(Symbols!E4=3,"#.000",IF(Symbols!E4=4,"#.0000",IF(Symbols!E4=5,"#.00000",IF(Symbols!E4=6,"#.000000",IF(Symbols!E4=7,"#.0000000"))))))))) -> 0 | F2: =IF(Symbols!F4="B","B",IF(Symbols!F4=0,0,IF(Symbols!F4=1,"#.0",IF(Symbols!F4=2,"#.00",IF(Symbols!F4=3,"#.000",IF(Symbols!F4=4,"#.0000",IF(Symbols!F4=5,"#.00000",IF(Symbols!F4=6,"#.000000",IF(Symbols!F4=7,"#.0000000"))))))))) -> #.00 | G2: =IF(Symbols!G4="B","B",IF(Symbols!G4=0,0,IF(Symbols!G4=1,"#.0",IF(Symbols!G4=2,"#.00",IF(Symbols!G4=3,"#.000",IF(Symbols!G4=4,"#.0000",IF(Symbols!G4=5,"#.00000",IF(Symbols!G4=6,"#.000000",IF(Symbols!G4=7,"#.0000000"))))))))) -> #.0000 | H2: =IF(Symbols!H4="B","B",IF(Symbols!H4=0,0,IF(Symbols!H4=1,"#.0",IF(Symbols!H4=2,"#.00",IF(Symbols!H4=3,"#.000",IF(Symbols!H4=4,"#.0000",IF(Symbols!H4=5,"#.00000",IF(Symbols!H4=6,"#.000000",IF(Symbols!H4=7,"#.0000000"))))))))) -> #.00 | I2: =IF(Symbols!I4="B","B",IF(Symbols!I4=0,0,IF(Symbols!I4=1,"#.0",IF(Symbols!I4=2,"#.00",IF(Symbols!I4=3,"#.000",IF(Symbols!I4=4,"#.0000",IF(Symbols!I4=5,"#.00000",IF(Symbols!I4=6,"#.000000",IF(Symbols!I4=7,"#.0000000"))))))))) -> #.0000 | J2: =IF(Symbols!J4="B","B",IF(Symbols!J4=0,0,IF(Symbols!J4=1,"#.0",IF(Symbols!J4=2,"#.00",IF(Symbols!J4=3,"#.000",IF(Symbols!J4=4,"#.0000",IF(Symbols!J4=5,"#.00000",IF(Symbols!J4=6,"#.000000",IF(Symbols!J4=7,"#.0000000"))))))))) -> #.0000 | K2: =IF(Symbols!K4="B","B",IF(Symbols!K4=0,0,IF(Symbols!K4=1,"#.0",IF(Symbols!K4=2,"#.00",IF(Symbols!K4=3,"#.000",IF(Symbols!K4=4,"#.0000",IF(Symbols!K4=5,"#.00000",IF(Symbols!K4=6,"#.000000",IF(Symbols!K4=7,"#.0000000"))))))))) -> #.000 | L2: =IF(Symbols!L4="B","B",IF(Symbols!L4=0,0,IF(Symbols!L4=1,"#.0",IF(Symbols!L4=2,"#.00",IF(Symbols!L4=3,"#.000",IF(Symbols!L4=4,"#.0000",IF(Symbols!L4=5,"#.00000",IF(Symbols!L4=6,"#.000000",IF(Symbols!L4=7,"#.0000000"))))))))) -> B | M2: =IF(Symbols!M4="B","B",IF(Symbols!M4=0,0,IF(Symbols!M4=1,"#.0",IF(Symbols!M4=2,"#.00",IF(Symbols!M4=3,"#.000",IF(Symbols!M4=4,"#.0000",IF(Symbols!M4=5,"#.00000",IF(Symbols!M4=6,"#.000000",IF(Symbols!M4=7,"#.0000000"))))))))) -> #.00 | N2: =IF(Symbols!N4="B","B",IF(Symbols!N4=0,0,IF(Symbols!N4=1,"#.0",IF(Symbols!N4=2,"#.00",IF(Symbols!N4=3,"#.000",IF(Symbols!N4=4,"#.0000",IF(Symbols!N4=5,"#.00000",IF(Symbols!N4=6,"#.000000")))))))) -> 0
B3: Symbols | D3: DD | E3: DSX | F3: PIL | G3: SF6 | H3: CLE | I3: HOE | J3: RBE | K3: NGE | L3: TYA | M3: PLE
C4: Decimals | D4: 2 | E4: 0 | F4: 2 | G4: 4 | H4: 2 | I4: 4 | J4: 4 | K4: 3 | L4: B | M4: 2
B5: EP | C5: 2 | D5: =IF(Symbols!C5="B","B",IF(Symbols!C5=0,0,IF(Symbols!C5=1,"#.0",IF(Symbols!C5=2,"#.00",IF(Symbols!C5=3,"#.000",IF(Symbols!C5=4,"#.0000",IF(Symbols!C5=5,"#.00000",IF(Symbols!C5=6,"#.000000",IF(Symbols!C5=7,"#.0000000"))))))))) -> #.00
B6: ENQ | C6: 2 | D6: =IF(Symbols!C6="B","B",IF(Symbols!C6=0,0,IF(Symbols!C6=1,"#.0",IF(Symbols!C6=2,"#.00",IF(Symbols!C6=3,"#.000",IF(Symbols!C6=4,"#.0000",IF(Symbols!C6=5,"#.00000",IF(Symbols!C6=6,"#.000000",IF(Symbols!C6=7,"#.0000000"))))))))) -> #.00 | E6: Enter in, using all capitals, the symbols in the column to the left for the symbols in the first column of the Correlation matrix. This will also be the top row
B7: EMD | C7: 2 | D7: =IF(Symbols!C7="B","B",IF(Symbols!C7=0,0,IF(Symbols!C7=1,"#.0",IF(Symbols!C7=2,"#.00",IF(Symbols!C7=3,"#.000",IF(Symbols!C7=4,"#.0000",IF(Symbols!C7=5,"#.00000",IF(Symbols!C7=6,"#.000000",IF(Symbols!C7=7,"#.0000000"))))))))) -> #.00 | E7: of market information on the main display. For price formatting, enter in the number of decimals or B for bonds and grains.
B8: GCE | C8: 2 | D8: =IF(Symbols!C8="B","B",IF(Symbols!C8=0,0,IF(Symbols!C8=1,"#.0",IF(Symbols!C8=2,"#.00",IF(Symbols!C8=3,"#.000",IF(Symbols!C8=4,"#.0000",IF(Symbols!C8=5,"#.00000",IF(Symbols!C8=6,"#.000000",IF(Symbols!C8=7,"#.0000000"))))))))) -> #.00
B9: DXE | C9: 2 | D9: =IF(Symbols!C9="B","B",IF(Symbols!C9=0,0,IF(Symbols!C9=1,"#.0",IF(Symbols!C9=2,"#.00",IF(Symbols!C9=3,"#.000",IF(Symbols!C9=4,"#.0000",IF(Symbols!C9=5,"#.00000",IF(Symbols!C9=6,"#.000000",IF(Symbols!C9=7,"#.0000000"))))))))) -> #.00 | E9: Enter in, using all capitals, the symbols in the the top row above for the symbols along the top of the Correlation matrix. This will also be the bottom row
B10: EU6 | C10: 5 | D10: =IF(Symbols!C10="B","B",IF(Symbols!C10=0,0,IF(Symbols!C10=1,"#.0",IF(Symbols!C10=2,"#.00",IF(Symbols!C10=3,"#.000",IF(Symbols!C10=4,"#.0000",IF(Symbols!C10=5,"#.00000",IF(Symbols!C10=6,"#.000000",IF(Symbols!C10=7,"#.0000000"))))))))) -> #.00000 | E10: of market information on the main display. Enter in the number of decimals or B for bonds and grains.
B11: JY6 | C11: 7 | D11: =IF(Symbols!C11="B","B",IF(Symbols!C11=0,0,IF(Symbols!C11=1,"#.0",IF(Symbols!C11=2,"#.00",IF(Symbols!C11=3,"#.000",IF(Symbols!C11=4,"#.0000",IF(Symbols!C11=5,"#.00000",IF(Symbols!C11=6,"#.000000",IF(Symbols!C11=7,"#.0000000"))))))))) -> #.0000000
B12: DA6 | C12: 4 | D12: =IF(Symbols!C12="B","B",IF(Symbols!C12=0,0,IF(Symbols!C12=1,"#.0",IF(Symbols!C12=2,"#.00",IF(Symbols!C12=3,"#.000",IF(Symbols!C12=4,"#.0000",IF(Symbols!C12=5,"#.00000",IF(Symbols!C12=6,"#.000000",IF(Symbols!C12=7,"#.0000000"))))))))) -> #.0000 | E12: Click the "Chart" toolbar button on the Correlation matrix on the main display to change the scattergram chart to display
B13: BP6 | C13: 4 | D13: =IF(Symbols!C13="B","B",IF(Symbols!C13=0,0,IF(Symbols!C13=1,"#.0",IF(Symbols!C13=2,"#.00",IF(Symbols!C13=3,"#.000",IF(Symbols!C13=4,"#.0000",IF(Symbols!C13=5,"#.00000",IF(Symbols!C13=6,"#.000000",IF(Symbols!C13=7,"#.0000000"))))))))) -> #.0000 | E13: that row of correlation values relative to the market in the same row listed in the first column.
B14: MX6 | C14: 6 | D14: =IF(Symbols!C14="B","B",IF(Symbols!C14=0,0,IF(Symbols!C14=1,"#.0",IF(Symbols!C14=2,"#.00",IF(Symbols!C14=3,"#.000",IF(Symbols!C14=4,"#.0000",IF(Symbols!C14=5,"#.00000",IF(Symbols!C14=6,"#.000000",IF(Symbols!C14=7,"#.0000000"))))))))) -> #.000000
E15: Enter in the time frame and look back period for the correlation analysis. Use ADC for daily bars.
E36: Adjust the time displayed on the main display by: | J36: 14 | K36: hours | L36: =J36/24 -> 0.5833333333

Sheet Data (hidden)
A1: Lookback: | B1: =MainDisplay!P11 -> 20
A2: Time Frame: | B2: =MainDisplay!N11 -> ADC | C2: =Symbols!D3 -> DD | D2: =Symbols!E3 -> DSX | E2: =Symbols!F3 -> PIL | F2: =Symbols!G3 -> SF6 | G2: =Symbols!H3 -> CLE | H2: =Symbols!I3 -> HOE | I2: =Symbols!J3 -> RBE | J2: =Symbols!K3 -> NGE | K2: =Symbols!L3 -> TYA | L2: =Symbols!M3 -> PLE
A3: =Symbols!B5 -> EP | C3: =RTD("cqg.rtd",,"StudyData", "Correlation("&$A$3&","&C$2&",Period:="&$B$1&",InputChoice1::=Close,InputChoice2::=Close)", "FG", "", "Close",$B$2, "0", "all","", "","True","T")/100 -> 0.8758639285 | D3: =RTD("cqg.rtd",,"StudyData", "Correlation("&$A$3&","&D$2&",Period:="&$B$1&",InputChoice1:=Close,InputChoice2:=Close)", "FG", "", "Close",$B$2, "0", "all","", "","True","T")/100 -> 0.9371686342 | E3: =RTD("cqg.rtd",,"StudyData", "Correlation("&$A$3&","&E$2&",Period:="&$B$1&",InputChoice1:=Close,InputChoice2:=Close)", "FG", "", "Close",$B$2, "0", "all","", "","True","T")/100 -> 0.9582080159 | F3: =RTD("cqg.rtd",,"StudyData", "Correlation("&$A$3&","&F$2&",Period:="&$B$1&",InputChoice1:=Close,InputChoice2:=Close)", "FG", "", "Close",$B$2, "0", "all","", "","True","T")/100 -> 0.1243293855 | G3: =RTD("cqg.rtd",,"StudyData", "Correlation("&$A$3&","&G$2&",Period:="&$B$1&",InputChoice1:=Close,InputChoice2:=Close)", "FG", "", "Close",$B$2, "0", "all","", "","True","T")/100 -> 0.858080918 | H3: =RTD("cqg.rtd",,"StudyData", "Correlation("&$A$3&","&H$2&",Period:="&$B$1&",InputChoice1:=Close,InputChoice2:=Close)", "FG", "", "Close",$B$2, "0", "all","", "","True","T")/100 -> 0.8959565442 | I3: =RTD("cqg.rtd",,"StudyData", "Correlation("&$A$3&","&I$2&",Period:="&$B$1&",InputChoice1:=Close,InputChoice2:=Close)", "FG", "", "Close",$B$2, "0", "all","", "","True","T")/100 -> 0.8947133106 | J3: =RTD("cqg.rtd",,"StudyData", "Correlation("&$A$3&","&J$2&",Period:="&$B$1&",InputChoice1:=Close,InputChoice2:=Close)", "FG", "", "Close",$B$2, "0", "all","", "","True","T")/100 -> 0.7345125408 | K3: =RTD("cqg.rtd",,"StudyData", "Correlation("&$A$3&","&K$2&",Period:="&$B$1&",InputChoice1:=Close,InputChoice2:=Close)", "FG", "", "Close",$B$2, "0", "all","", "","True","T")/100 -> -0.2939205796 | L3: =RTD("cqg.rtd",,"StudyData", "Correlation("&$A$3&","&L$2&",Period:="&$B$1&",InputChoice1:=Close,InputChoice2:=Close)", "FG", "", "Close",$B$2, "0", "all","", "","True","T")/100 -> 0.776654065
A4: =Symbols!B6 -> ENQ | C4: =RTD("cqg.rtd",,"StudyData", "Correlation("&$A$4&","&C$2&",Period:="&$B$1&",InputChoice1::=Close,InputChoice2::=Close)", "FG", "", "Close",$B$2, "0", "all","", "","True","T")/100 -> 0.9074300237 | D4: =RTD("cqg.rtd",,"StudyData", "Correlation("&$A$4&","&D$2&",Period:="&$B$1&",InputChoice1:=Close,InputChoice2:=Close)", "FG", "", "Close",$B$2, "0", "all","", "","True","T")/100 -> 0.9440856739 | E4: =RTD("cqg.rtd",,"StudyData", "Correlation("&$A$4&","&E$2&",Period:="&$B$1&",InputChoice1:=Close,InputChoice2:=Close)", "FG", "", "Close",$B$2, "0", "all","", "","True","T")/100 -> 0.9474994691 | F4: =RTD("cqg.rtd",,"StudyData", "Correlation("&$A$4&","&F$2&",Period:="&$B$1&",InputChoice1:=Close,InputChoice2:=Close)", "FG", "", "Close",$B$2, "0", "all","", "","True","T")/100 -> 0.1472577326 | G4: =RTD("cqg.rtd",,"StudyData", "Correlation("&$A$4&","&G$2&",Period:="&$B$1&",InputChoice1:=Close,InputChoice2:=Close)", "FG", "", "Close",$B$2, "0", "all","", "","True","T")/100 -> 0.7748928421 | H4: =RTD("cqg.rtd",,"StudyData", "Correlation("&$A$4&","&H$2&",Period:="&$B$1&",InputChoice1:=Close,InputChoice2:=Close)", "FG", "", "Close",$B$2, "0", "all","", "","True","T")/100 -> 0.8126145061 | I4: =RTD("cqg.rtd",,"StudyData", "Correlation("&$A$4&","&I$2&",Period:="&$B$1&",InputChoice1:=Close,InputChoice2:=Close)", "FG", "", "Close",$B$2, "0", "all","", "","True","T")/100 -> 0.8112969392 | J4: =RTD("cqg.rtd",,"StudyData", "Correlation("&$A$4&","&J$2&",Period:="&$B$1&",InputChoice1:=Close,InputChoice2:=Close)", "FG", "", "Close",$B$2, "0", "all","", "","True","T")/100 -> 0.7859861156 | K4: =RTD("cqg.rtd",,"StudyData", "Correlation("&$A$4&","&K$2&",Period:="&$B$1&",InputChoice1:=Close,InputChoice2:=Close)", "FG", "", "Close",$B$2, "0", "all","", "","True","T")/100 -> -0.367787194 | L4: =RTD("cqg.rtd",,"StudyData", "Correlation("&$A$4&","&L$2&",Period:="&$B$1&",InputChoice1:=Close,InputChoice2:=Close)", "FG", "", "Close",$B$2, "0", "all","", "","True","T")/100 -> 0.7849459598
A5: =Symbols!B7 -> EMD | C5: =RTD("cqg.rtd",,"StudyData", "Correlation("&$A$5&","&C$2&",Period:="&$B$1&",InputChoice1:=Close,InputChoice2:=Close)", "FG", "", "Close",$B$2, "0", "all","", "","True","T")/100 -> 0.766121333 | D5: =RTD("cqg.rtd",,"StudyData", "Correlation("&$A$5&","&D$2&",Period:="&$B$1&",InputChoice1:=Close,InputChoice2:=Close)", "FG", "", "Close",$B$2, "0", "all","", "","True","T")/100 -> 0.8478742218 | E5: =RTD("cqg.rtd",,"StudyData", "Correlation("&$A$5&","&E$2&",Period:="&$B$1&",InputChoice1:=Close,InputChoice2:=Close)", "FG", "", "Close",$B$2, "0", "all","", "","True","T")/100 -> 0.8849593018 | F5: =RTD("cqg.rtd",,"StudyData", "Correlation("&$A$5&","&F$2&",Period:="&$B$1&",InputChoice1:=Close,InputChoice2:=Close)", "FG", "", "Close",$B$2, "0", "all","", "","True","T")/100 -> 0.02336865487 | G5: =RTD("cqg.rtd",,"StudyData", "Correlation("&$A$5&","&G$2&",Period:="&$B$1&",InputChoice1:=Close,InputChoice2:=Close)", "FG", "", "Close",$B$2, "0", "all","", "","True","T")/100 -> 0.8400429601 | H5: =RTD("cqg.rtd",,"StudyData", "Correlation("&$A$5&","&H$2&",Period:="&$B$1&",InputChoice1:=Close,InputChoice2:=Close)", "FG", "", "Close",$B$2, "0", "all","", "","True","T")/100 -> 0.9058856245 | I5: =RTD("cqg.rtd",,"StudyData", "Correlation("&$A$5&","&I$2&",Period:="&$B$1&",InputChoice1:=Close,InputChoice2:=Close)", "FG", "", "Close",$B$2, "0", "all","", "","True","T")/100 -> 0.9025742966 | J5: =RTD("cqg.rtd",,"StudyData", "Correlation("&$A$5&","&J$2&",Period:="&$B$1&",InputChoice1:=Close,InputChoice2:=Close)", "FG", "", "Close",$B$2, "0", "all","", "","True","T")/100 -> 0.5975681169 | K5: =RTD("cqg.rtd",,"StudyData", "Correlation("&$A$5&","&K$2&",Period:="&$B$1&",InputChoice1:=Close,InputChoice2:=Close)", "FG", "", "Close",$B$2, "0", "all","", "","True","T")/100 -> -0.1510722684 | L5: =RTD("cqg.rtd",,"StudyData", "Correlation("&$A$5&","&L$2&",Period:="&$B$1&",InputChoice1:=Close,InputChoice2:=Close)", "FG", "", "Close",$B$2, "0", "all","", "","True","T")/100 -> 0.6481681124
A6: =Symbols!B8 -> GCE | C6: =RTD("cqg.rtd",,"StudyData", "Correlation("&$A$6&","&C$2&",Period:="&$B$1&",InputChoice1:=Close,InputChoice2:=Close)", "FG", "", "Close",$B$2, "0", "all","", "","True","T")/100 -> 0.04598945966 | D6: =RTD("cqg.rtd",,"StudyData", "Correlation("&$A$6&","&D$2&",Period:="&$B$1&",InputChoice1:=Close,InputChoice2:=Close)", "FG", "", "Close",$B$2, "0", "all","", "","True","T")/100 -> 0.02541217044 | E6: =RTD("cqg.rtd",,"StudyData", "Correlation("&$A$6&","&E$2&",Period:="&$B$1&",InputChoice1:=Close,InputChoice2:=Close)", "FG", "", "Close",$B$2, "0", "all","", "","True","T")/100 -> 0.06116083156 | F6: =RTD("cqg.rtd",,"StudyData", "Correlation("&$A$6&","&F$2&",Period:="&$B$1&",InputChoice1:=Close,InputChoice2:=Close)", "FG", "", "Close",$B$2, "0", "all","", "","True","T")/100 -> 0.1648982521 | G6: =RTD("cqg.rtd",,"StudyData", "Correlation("&$A$6&","&G$2&",Period:="&$B$1&",InputChoice1:=Close,InputChoice2:=Close)", "FG", "", "Close",$B$2, "0", "all","", "","True","T")/100 -> 0.3582707325 | H6: =RTD("cqg.rtd",,"StudyData", "Correlation("&$A$6&","&H$2&",Period:="&$B$1&",InputChoice1:=Close,InputChoice2:=Close)", "FG", "", "Close",$B$2, "0", "all","", "","True","T")/100 -> 0.2678510358 | I6: =RTD("cqg.rtd",,"StudyData", "Correlation("&$A$6&","&I$2&",Period:="&$B$1&",InputChoice1:=Close,InputChoice2:=Close)", "FG", "", "Close",$B$2, "0", "all","", "","True","T")/100 -> 0.309124626 | J6: =RTD("cqg.rtd",,"StudyData", "Correlation("&$A$6&","&J$2&",Period:="&$B$1&",InputChoice1:=Close,InputChoice2:=Close)", "FG", "", "Close",$B$2, "0", "all","", "","True","T")/100 -> -0.2204431065 | K6: =RTD("cqg.rtd",,"StudyData", "Correlation("&$A$6&","&K$2&",Period:="&$B$1&",InputChoice1:=Close,InputChoice2:=Close)", "FG", "", "Close",$B$2, "0", "all","", "","True","T")/100 -> 0.6024895811 | L6: =RTD("cqg.rtd",,"StudyData", "Correlation("&$A$6&","&L$2&",Period:="&$B$1&",InputChoice1:=Close,InputChoice2:=Close)", "FG", "", "Close",$B$2, "0", "all","", "","True","T")/100 -> 0.09838028921
A7: =Symbols!B9 -> DXE | C7: =RTD("cqg.rtd",,"StudyData", "Correlation("&$A$7&","&C$2&",Period:="&$B$1&",InputChoice1:=Close,InputChoice2:=Close)", "FG", "", "Close",$B$2, "0", "all","", "","True","T")/100 -> -0.4449499846 | D7: =RTD("cqg.rtd",,"StudyData", "Correlation("&$A$7&","&D$2&",Period:="&$B$1&",InputChoice1:=Close,InputChoice2:=Close)", "FG", "", "Close",$B$2, "0", "all","", "","True","T")/100 -> -0.2922888092 | E7: =RTD("cqg.rtd",,"StudyData", "Correlation("&$A$7&","&E$2&",Period:="&$B$1&",InputChoice1:=Close,InputChoice2:=Close)", "FG", "", "Close",$B$2, "0", "all","", "","True","T")/100 -> -0.2345423678 | F7: =RTD("cqg.rtd",,"StudyData", "Correlation("&$A$7&","&F$2&",Period:="&$B$1&",InputChoice1:=Close,InputChoice2:=Close)", "FG", "", "Close",$B$2, "0", "all","", "","True","T")/100 -> -0.7671417489 | G7: =RTD("cqg.rtd",,"StudyData", "Correlation("&$A$7&","&G$2&",Period:="&$B$1&",InputChoice1:=Close,InputChoice2:=Close)", "FG", "", "Close",$B$2, "0", "all","", "","True","T")/100 -> -0.1957470134 | H7: =RTD("cqg.rtd",,"StudyData", "Correlation("&$A$7&","&H$2&",Period:="&$B$1&",InputChoice1:=Close,InputChoice2:=Close)", "FG", "", "Close",$B$2, "0", "all","", "","True","T")/100 -> -0.03968454454 | I7: =RTD("cqg.rtd",,"StudyData", "Correlation("&$A$7&","&I$2&",Period:="&$B$1&",InputChoice1:=Close,InputChoice2:=Close)", "FG", "", "Close",$B$2, "0", "all","", "","True","T")/100 -> -0.09720261055 | J7: =RTD("cqg.rtd",,"StudyData", "Correlation("&$A$7&","&J$2&",Period:="&$B$1&",InputChoice1:=Close,InputChoice2:=Close)", "FG", "", "Close",$B$2, "0", "all","", "","True","T")/100 -> -0.4022695605 | K7: =RTD("cqg.rtd",,"StudyData", "Correlation("&$A$7&","&K$2&",Period:="&$B$1&",InputChoice1:=Close,InputChoice2:=Close)", "FG", "", "Close",$B$2, "0", "all","", "","True","T")/100 -> -0.0824474895 | L7: =RTD("cqg.rtd",,"StudyData", "Correlation("&$A$7&","&L$2&",Period:="&$B$1&",InputChoice1:=Close,InputChoice2:=Close)", "FG", "", "Close",$B$2, "0", "all","", "","True","T")/100 -> -0.6207003577
A8: =Symbols!B10 -> EU6 | C8: =RTD("cqg.rtd",,"StudyData", "Correlation("&$A$8&","&C$2&",Period:="&$B$1&",InputChoice1:=Close,InputChoice2:=Close)", "FG", "", "Close",$B$2, "0", "all","", "","True","T")/100 -> 0.2185101232 | D8: =RTD("cqg.rtd",,"StudyData", "Correlation("&$A$8&","&D$2&",Period:="&$B$1&",InputChoice1:=Close,InputChoice2:=Close)", "FG", "", "Close",$B$2, "0", "all","", "","True","T")/100 -> 0.006232205995 | E8: =RTD("cqg.rtd",,"StudyData", "Correlation("&$A$8&","&E$2&",Period:="&$B$1&",InputChoice1:=Close,InputChoice2:=Close)", "FG", "", "Close",$B$2, "0", "all","", "","True","T")/100 -> -0.02173117758 | F8: =RTD("cqg.rtd",,"StudyData", "Correlation("&$A$8&","&F$2&",Period:="&$B$1&",InputChoice1:=Close,InputChoice2:=Close)", "FG", "", "Close",$B$2, "0", "all","", "","True","T")/100 -> 0.7668759652 | G8: =RTD("cqg.rtd",,"StudyData", "Correlation("&$A$8&","&G$2&",Period:="&$B$1&",InputChoice1:=Close,InputChoice2:=Close)", "FG", "", "Close",$B$2, "0", "all","", "","True","T")/100 -> 0.07356131826 | H8: =RTD("cqg.rtd",,"StudyData", "Correlation("&$A$8&","&H$2&",Period:="&$B$1&",InputChoice1:=Close,InputChoice2:=Close)", "FG", "", "Close",$B$2, "0", "all","", "","True","T")/100 -> -0.09181623915 | I8: =RTD("cqg.rtd",,"StudyData", "Correlation("&$A$8&","&I$2&",Period:="&$B$1&",InputChoice1:=Close,InputChoice2:=Close)", "FG", "", "Close",$B$2, "0", "all","", "","True","T")/100 -> -0.03596553712 | J8: =RTD("cqg.rtd",,"StudyData", "Correlation("&$A$8&","&J$2&",Period:="&$B$1&",InputChoice1:=Close,InputChoice2:=Close)", "FG", "", "Close",$B$2, "0", "all","", "","True","T")/100 -> 0.3537953203 | K8: =RTD("cqg.rtd",,"StudyData", "Correlation("&$A$8&","&K$2&",Period:="&$B$1&",InputChoice1:=Close,InputChoice2:=Close)", "FG", "", "Close",$B$2, "0", "all","", "","True","T")/100 -> 0.01869481713 | L8: =RTD("cqg.rtd",,"StudyData", "Correlation("&$A$8&","&L$2&",Period:="&$B$1&",InputChoice1:=Close,InputChoice2:=Close)", "FG", "", "Close",$B$2, "0", "all","", "","True","T")/100 -> 0.5136357479
A9: =Symbols!B11 -> JY6 | C9: =RTD("cqg.rtd",,"StudyData", "Correlation("&$A$9&","&C$2&",Period:="&$B$1&",InputChoice1:=Close,InputChoice2:=Close)", "FG", "", "Close",$B$2, "0", "all","", "","True","T")/100 -> -0.7363039856 | D9: =RTD("cqg.rtd",,"StudyData", "Correlation("&$A$9&","&D$2&",Period:="&$B$1&",InputChoice1:=Close,InputChoice2:=Close)", "FG", "", "Close",$B$2, "0", "all","", "","True","T")/100 -> -0.8441991206 | E9: =RTD("cqg.rtd",,"StudyData", "Correlation("&$A$9&","&E$2&",Period:="&$B$1&",InputChoice1:=Close,InputChoice2:=Close)", "FG", "", "Close",$B$2, "0", "all","", "","True","T")/100 -> -0.8522377426 | F9: =RTD("cqg.rtd",,"StudyData", "Correlation("&$A$9&","&F$2&",Period:="&$B$1&",InputChoice1:=Close,InputChoice2:=Close)", "FG", "", "Close",$B$2, "0", "all","", "","True","T")/100 -> 0.1203133422 | G9: =RTD("cqg.rtd",,"StudyData", "Correlation("&$A$9&","&G$2&",Period:="&$B$1&",InputChoice1:=Close,InputChoice2:=Close)", "FG", "", "Close",$B$2, "0", "all","", "","True","T")/100 -> -0.6193913031 | H9: =RTD("cqg.rtd",,"StudyData", "Correlation("&$A$9&","&H$2&",Period:="&$B$1&",InputChoice1:=Close,InputChoice2:=Close)", "FG", "", "Close",$B$2, "0", "all","", "","True","T")/100 -> -0.6432096452 | I9: =RTD("cqg.rtd",,"StudyData", "Correlation("&$A$9&","&I$2&",Period:="&$B$1&",InputChoice1:=Close,InputChoice2:=Close)", "FG", "", "Close",$B$2, "0", "all","", "","True","T")/100 -> -0.6347781312 | J9: =RTD("cqg.rtd",,"StudyData", "Correlation("&$A$9&","&J$2&",Period:="&$B$1&",InputChoice1:=Close,InputChoice2:=Close)", "FG", "", "Close",$B$2, "0", "all","", "","True","T")/100 -> -0.7646278533 | K9: =RTD("cqg.rtd",,"StudyData", "Correlation("&$A$9&","&K$2&",Period:="&$B$1&",InputChoice1:=Close,InputChoice2:=Close)", "FG", "", "Close",$B$2, "0", "all","", "","True","T")/100 -> 0.7160922246 | L9: =RTD("cqg.rtd",,"StudyData", "Correlation("&$A$9&","&L$2&",Period:="&$B$1&",InputChoice1:=Close,InputChoice2:=Close)", "FG", "", "Close",$B$2, "0", "all","", "","True","T")/100 -> -0.6554726839
A10: =Symbols!B12 -> DA6 | C10: =RTD("cqg.rtd",,"StudyData", "Correlation("&$A$10&","&C$2&",Period:="&$B$1&",InputChoice1:=Close,InputChoice2:=Close)", "FG", "", "Close",$B$2, "0", "all","", "","True","T")/100 -> 0.1817697876 | D10: =RTD("cqg.rtd",,"StudyData", "Correlation("&$A$10&","&D$2&",Period:="&$B$1&",InputChoice1:=Close,InputChoice2:=Close)", "FG", "", "Close",$B$2, "0", "all","", "","True","T")/100 -> 0.01065830998 | E10: =RTD("cqg.rtd",,"StudyData", "Correlation("&$A$10&","&E$2&",Period:="&$B$1&",InputChoice1:=Close,InputChoice2:=Close)", "FG", "", "Close",$B$2, "0", "all","", "","True","T")/100 -> 0.01072726228 | F10: =RTD("cqg.rtd",,"StudyData", "Correlation("&$A$10&","&F$2&",Period:="&$B$1&",InputChoice1:=Close,InputChoice2:=Close)", "FG", "", "Close",$B$2, "0", "all","", "","True","T")/100 -> 0.4425251643 | G10: =RTD("cqg.rtd",,"StudyData", "Correlation("&$A$10&","&G$2&",Period:="&$B$1&",InputChoice1:=Close,InputChoice2:=Close)", "FG", "", "Close",$B$2, "0", "all","", "","True","T")/100 -> 0.2068675685 | H10: =RTD("cqg.rtd",,"StudyData", "Correlation("&$A$10&","&H$2&",Period:="&$B$1&",InputChoice1:=Close,InputChoice2:=Close)", "FG", "", "Close",$B$2, "0", "all","", "","True","T")/100 -> 0.09791828202 | I10: =RTD("cqg.rtd",,"StudyData", "Correlation("&$A$10&","&I$2&",Period:="&$B$1&",InputChoice1:=Close,InputChoice2:=Close)", "FG", "", "Close",$B$2, "0", "all","", "","True","T")/100 -> 0.1372339979 | J10: =RTD("cqg.rtd",,"StudyData", "Correlation("&$A$10&","&J$2&",Period:="&$B$1&",InputChoice1:=Close,InputChoice2:=Close)", "FG", "", "Close",$B$2, "0", "all","", "","True","T")/100 -> 0.03521235382 | K10: =RTD("cqg.rtd",,"StudyData", "Correlation("&$A$10&","&K$2&",Period:="&$B$1&",InputChoice1:=Close,InputChoice2:=Close)", "FG", "", "Close",$B$2, "0", "all","", "","True","T")/100 -> 0.333727093 | L10: =RTD("cqg.rtd",,"StudyData", "Correlation("&$A$10&","&L$2&",Period:="&$B$1&",InputChoice1:=Close,InputChoice2:=Close)", "FG", "", "Close",$B$2, "0", "all","", "","True","T")/100 -> 0.2401853207
A11: =Symbols!B13 -> BP6 | C11: =RTD("cqg.rtd",,"StudyData", "Correlation("&$A$11&","&C$2&",Period:="&$B$1&",InputChoice1:=Close,InputChoice2:=Close)", "FG", "", "Close",$B$2, "0", "all","", "","True","T")/100 -> 0.7755231281 | D11: =RTD("cqg.rtd",,"StudyData", "Correlation("&$A$11&","&D$2&",Period:="&$B$1&",InputChoice1:=Close,InputChoice2:=Close)", "FG", "", "Close",$B$2, "0", "all","", "","True","T")/100 -> 0.7540727113 | E11: =RTD("cqg.rtd",,"StudyData", "Correlation("&$A$11&","&E$2&",Period:="&$B$1&",InputChoice1:=Close,InputChoice2:=Close)", "FG", "", "Close",$B$2, "0", "all","", "","True","T")/100 -> 0.7554591702 | F11: =RTD("cqg.rtd",,"StudyData", "Correlation("&$A$11&","&F$2&",Period:="&$B$1&",InputChoice1:=Close,InputChoice2:=Close)", "FG", "", "Close",$B$2, "0", "all","", "","True","T")/100 -> 0.5523421689 | G11: =RTD("cqg.rtd",,"StudyData", "Correlation("&$A$11&","&G$2&",Period:="&$B$1&",InputChoice1:=Close,InputChoice2:=Close)", "FG", "", "Close",$B$2, "0", "all","", "","True","T")/100 -> 0.6047021271 | H11: =RTD("cqg.rtd",,"StudyData", "Correlation("&$A$11&","&H$2&",Period:="&$B$1&",InputChoice1:=Close,InputChoice2:=Close)", "FG", "", "Close",$B$2, "0", "all","", "","True","T")/100 -> 0.5564550715 | I11: =RTD("cqg.rtd",,"StudyData", "Correlation("&$A$11&","&I$2&",Period:="&$B$1&",InputChoice1:=Close,InputChoice2:=Close)", "FG", "", "Close",$B$2, "0", "all","", "","True","T")/100 -> 0.5976477805 | J11: =RTD("cqg.rtd",,"StudyData", "Correlation("&$A$11&","&J$2&",Period:="&$B$1&",InputChoice1:=Close,InputChoice2:=Close)", "FG", "", "Close",$B$2, "0", "all","", "","True","T")/100 -> 0.8309931208 | K11: =RTD("cqg.rtd",,"StudyData", "Correlation("&$A$11&","&K$2&",Period:="&$B$1&",InputChoice1:=Close,InputChoice2:=Close)", "FG", "", "Close",$B$2, "0", "all","", "","True","T")/100 -> -0.2951940176 | L11: =RTD("cqg.rtd",,"StudyData", "Correlation("&$A$11&","&L$2&",Period:="&$B$1&",InputChoice1:=Close,InputChoice2:=Close)", "FG", "", "Close",$B$2, "0", "all","", "","True","T")/100 -> 0.9447234034
A12: =Symbols!B14 -> MX6 | C12: =RTD("cqg.rtd",,"StudyData", "Correlation("&$A$12&","&C$2&",Period:="&$B$1&",InputChoice1:=Close,InputChoice2:=Close)", "FG", "", "Close",$B$2, "0", "all","", "","True","T")/100 -> 0.1203954225 | D12: =RTD("cqg.rtd",,"StudyData", "Correlation("&$A$12&","&D$2&",Period:="&$B$1&",InputChoice1:=Close,InputChoice2:=Close)", "FG", "", "Close",$B$2, "0", "all","", "","True","T")/100 -> -0.02796377728 | E12: =RTD("cqg.rtd",,"StudyData", "Correlation("&$A$12&","&E$2&",Period:="&$B$1&",InputChoice1:=Close,InputChoice2:=Close)", "FG", "", "Close",$B$2, "0", "all","", "","True","T")/100 -> -0.009727939599 | F12: =RTD("cqg.rtd",,"StudyData", "Correlation("&$A$12&","&F$2&",Period:="&$B$1&",InputChoice1:=Close,InputChoice2:=Close)", "FG", "", "Close",$B$2, "0", "all","", "","True","T")/100 -> 0.7741131709 | G12: =RTD("cqg.rtd",,"StudyData", "Correlation("&$A$12&","&G$2&",Period:="&$B$1&",InputChoice1:=Close,InputChoice2:=Close)", "FG", "", "Close",$B$2, "0", "all","", "","True","T")/100 -> 0.06652370566 | H12: =RTD("cqg.rtd",,"StudyData", "Correlation("&$A$12&","&H$2&",Period:="&$B$1&",InputChoice1:=Close,InputChoice2:=Close)", "FG", "", "Close",$B$2, "0", "all","", "","True","T")/100 -> -0.05067996905 | I12: =RTD("cqg.rtd",,"StudyData", "Correlation("&$A$12&","&I$2&",Period:="&$B$1&",InputChoice1:=Close,InputChoice2:=Close)", "FG", "", "Close",$B$2, "0", "all","", "","True","T")/100 -> 0.03438452977 | J12: =RTD("cqg.rtd",,"StudyData", "Correlation("&$A$12&","&J$2&",Period:="&$B$1&",InputChoice1:=Close,InputChoice2:=Close)", "FG", "", "Close",$B$2, "0", "all","", "","True","T")/100 -> 0.1380754224 | K12: =RTD("cqg.rtd",,"StudyData", "Correlation("&$A$12&","&K$2&",Period:="&$B$1&",InputChoice1:=Close,InputChoice2:=Close)", "FG", "", "Close",$B$2, "0", "all","", "","True","T")/100 -> 0.4108864717 | L12: =RTD("cqg.rtd",,"StudyData", "Correlation("&$A$12&","&L$2&",Period:="&$B$1&",InputChoice1:=Close,InputChoice2:=Close)", "FG", "", "Close",$B$2, "0", "all","", "","True","T")/100 -> 0.3636112471

Sheet 1 (hidden)
A1: Lookback | B1: =Data!B1 -> 20
A2: TimeFrame | B2: =Data!B2 -> ADC | C2: =Data!C2 -> DD | I2: =Data!D2 -> DSX | O2: =Data!E2 -> PIL | U2: =Data!F2 -> SF6 | AA2: =Data!G2 -> CLE | AG2: =Data!H2 -> HOE | AM2: =Data!I2 -> RBE | AS2: =Data!J2 -> NGE | AY2: =Data!K2 -> TYA | BE2: =Data!L2 -> PLE
A3: Symbol | B3: =MainDisplay!E1 -> EP
A4: 0 | C4: =IFERROR(RTD("cqg.rtd",,"StudyData", "Correlation("&$B$3&","&C$2&",Period:="&$B$1&",InputChoice1:=Close,InputChoice2:=Close)", "FG", "", "Close",$B$2,A4, "all","", "","True","T")/100,"") -> 0.8758639285 | E4: -1 | F4: =FREQUENCY(C4:C104,E4:E104) -> 0 | G4: =IF(AND($C$4>=E4,$C$4<E5),IF(F4=0,1,F4),NA()) ->  | I4: =IFERROR(RTD("cqg.rtd",,"StudyData", "Correlation("&$B$3&","&I$2&",Period:="&$B$1&",InputChoice1:=Close,InputChoice2::=Close)", "FG", "", "Close",$B$2,A4, "all","", "","True","T")/100,"") -> 0.9371686342 | K4: -1 | L4: =FREQUENCY(I4:I104,K4:K104) -> 0 | M4: =IF(AND($I$4>=K4,$I$4<K5),IF(L4=0,1,L4),NA()) ->  | O4: =IFERROR(RTD("cqg.rtd",,"StudyData", "Correlation("&$B$3&","&O$2&",Period:="&$B$1&",InputChoice1:=Close,InputChoice2::=Close)", "FG", "", "Close",$B$2,A4, "all","", "","True","T")/100,"") -> 0.9582080159 | Q4: -1 | R4: =FREQUENCY(O4:O104,Q4:Q104) -> 0 | S4: =IF(AND($O$4>=Q4,$O$4<Q5),IF(R4=0,1,R4),NA()) ->  | U4: =IFERROR(RTD("cqg.rtd",,"StudyData", "Correlation("&$B$3&","&U$2&",Period:="&$B$1&",InputChoice1:=Close,InputChoice2::=Close)", "FG", "", "Close",$B$2,A4, "all","", "","True","T")/100,"") -> 0.1243293855 | W4: -1 | X4: =FREQUENCY(U4:U104,W4:W104) -> 0 | Y4: =IF(AND($U$4>=W4,$U$4<W5),IF(X4=0,1,X4),NA()) ->  | AA4: =IFERROR(RTD("cqg.rtd",,"StudyData", "Correlation("&$B$3&","&AA$2&",Period:="&$B$1&",InputChoice1:=Close,InputChoice2::=Close)", "FG", "", "Close",$B$2,A4, "all","", "","True","T")/100,"") -> 0.858080918 | AC4: -1 | AD4: =FREQUENCY(AA4:AA104,AC4:AC104) -> 0 | AE4: =IF(AND($AA$4>=AC4,$AA$4<AC5),IF(AD4=0,1,AD4),NA()) ->  | AG4: =IFERROR(RTD("cqg.rtd",,"StudyData", "Correlation("&$B$3&","&AG$2&",Period:="&$B$1&",InputChoice1:=Close,InputChoice2::=Close)", "FG", "", "Close",$B$2,A4, "all","", "","True","T")/100,"") -> 0.8959565442 | AI4: -1 | AJ4: =FREQUENCY(AG4:AG104,AI4:AI104) -> 0 | AK4: =IF(AND($AG$4>=AI4,$AG$4<AI5),IF(AJ4=0,1,AJ4),NA()) ->  | AM4: =IFERROR(RTD("cqg.rtd",,"StudyData", "Correlation("&$B$3&","&AM$2&",Period:="&$B$1&",InputChoice1:=Close,InputChoice2::=Close)", "FG", "", "Close",$B$2,A4, "all","", "","True","T")/100,"") -> 0.8947133106 | AO4: -1 | AP4: =FREQUENCY(AM4:AM104,AO4:AO104) -> 0 | AQ4: =IF(AND($AM$4>=AO4,$AM$4<AO5),IF(AP4=0,1,AP4),NA()) ->  | AS4: =IFERROR(RTD("cqg.rtd",,"StudyData", "Correlation("&$B$3&","&AS$2&",Period:="&$B$1&",InputChoice1:=Close,InputChoice2::=Close)", "FG", "", "Close",$B$2,A4, "all","", "","True","T")/100,"") -> 0.7345125408 | AU4: -1 | AV4: =FREQUENCY(AS4:AS104,AU4:AU104) -> 0 | AW4: =IF(AND($AS$4>=AU4,$AS$4<AU5),IF(AV4=0,1,AV4),NA()) ->  | AY4: =IFERROR(RTD("cqg.rtd",,"StudyData", "Correlation("&$B$3&","&AY$2&",Period:="&$B$1&",InputChoice1:=Close,InputChoice2::=Close)", "FG", "", "Close",$B$2,A4, "all","", "","True","T")/100,"") -> -0.2939205796 | BA4: -1 | BB4: =FREQUENCY(AY4:AY104,BA4:BA104) -> 0 | BC4: =IF(AND($AY$4>=BA4,$AY$4<BA5),IF(BB4=0,1,BB4),NA()) ->  | BE4: =IFERROR(RTD("cqg.rtd",,"StudyData", "Correlation("&$B$3&","&BE$2&",Period:="&$B$1&",InputChoice1:=Close,InputChoice2::=Close)", "FG", "", "Close",$B$2,A4, "all","", "","True","T")/100,"") -> 0.776654065 | BG4: -1 | BH4: =FREQUENCY(BE4:BE104,BG4:BG104) -> 0 | BI4: =IF(AND($BE$4>=BG4,$BE$4<BG5),IF(BH4=0,1,BH4),NA()) -> 
A5: =A4-1 -> -1 | C5: =IFERROR(RTD("cqg.rtd",,"StudyData", "Correlation("&$B$3&","&C$2&",Period:="&$B$1&",InputChoice1:=Close,InputChoice2:=Close)", "FG", "", "Close",$B$2,A5, "all","", "","True","T")/100,"") -> 0.881387549 | E5: =E4+0.02 -> -0.98 | F5: 0 | G5: =IF(AND($C$4>=E5,$C$4<E6),IF(F5=0,1,F5),NA()) ->  | I5: =IFERROR(RTD("cqg.rtd",,"StudyData", "Correlation("&$B$3&","&I$2&",Period:="&$B$1&",InputChoice1:=Close,InputChoice2::=Close)", "FG", "", "Close",$B$2,A5, "all","", "","True","T")/100,"") -> 0.952196765 | K5: =K4+0.02 -> -0.98 | L5: 0 | M5: =IF(AND($I$4>=K5,$I$4<K6),IF(L5=0,1,L5),NA()) ->  | O5: =IFERROR(RTD("cqg.rtd",,"StudyData", "Correlation("&$B$3&","&O$2&",Period:="&$B$1&",InputChoice1:=Close,InputChoice2::=Close)", "FG", "", "Close",$B$2,A5, "all","", "","True","T")/100,"") -> 0.9754917037 | Q5: =Q4+0.02 -> -0.98 | R5: 0 | S5: =IF(AND($O$4>=Q5,$O$4<Q6),IF(R5=0,1,R5),NA()) ->  | U5: =IFERROR(RTD("cqg.rtd",,"StudyData", "Correlation("&$B$3&","&U$2&",Period:="&$B$1&",InputChoice1:=Close,InputChoice2::=Close)", "FG", "", "Close",$B$2,A5, "all","", "","True","T")/100,"") -> -0.00915808286 | W5: =W4+0.02 -> -0.98 | X5: 0 | Y5: =IF(AND($U$4>=W5,$U$4<W6),IF(X5=0,1,X5),NA()) ->  | AA5: =IFERROR(RTD("cqg.rtd",,"StudyData", "Correlation("&$B$3&","&AA$2&",Period:="&$B$1&",InputChoice1:=Close,InputChoice2::=Close)", "FG", "", "Close",$B$2,A5, "all","", "","True","T")/100,"") -> 0.7804345099 | AC5: =AC4+0.02 -> -0.98 | AD5: 0 | AE5: =IF(AND($AA$4>=AC5,$AA$4<AC6),IF(AD5=0,1,AD5),NA()) ->  | AG5: =IFERROR(RTD("cqg.rtd",,"StudyData", "Correlation("&$B$3&","&AG$2&",Period:="&$B$1&",InputChoice1:=Close,InputChoice2::=Close)", "FG", "", "Close",$B$2,A5, "all","", "","True","T")/100,"") -> 0.8940054017 | AI5: =AI4+0.02 -> -0.98 | AJ5: 0 | AK5: =IF(AND($AG$4>=AI5,$AG$4<AI6),IF(AJ5=0,1,AJ5),NA()) ->  | AM5: =IFERROR(RTD("cqg.rtd",,"StudyData", "Correlation("&$B$3&","&AM$2&",Period:="&$B$1&",InputChoice1:=Close,InputChoice2::=Close)", "FG", "", "Close",$B$2,A5, "all","", "","True","T")/100,"") -> 0.8956407931 | AO5: =AO4+0.02 -> -0.98 | AP5: 0 | AQ5: =IF(AND($AM$4>=AO5,$AM$4<AO6),IF(AP5=0,1,AP5),NA()) ->  | AS5: =IFERROR(RTD("cqg.rtd",,"StudyData", "Correlation("&$B$3&","&AS$2&",Period:="&$B$1&",InputChoice1:=Close,InputChoice2::=Close)", "FG", "", "Close",$B$2,A5, "all","", "","True","T")/100,"") -> 0.6287173688 | AU5: =AU4+0.02 -> -0.98 | AV5: 0 | AW5: =IF(AND($AS$4>=AU5,$AS$4<AU6),IF(AV5=0,1,AV5),NA()) ->  | AY5: =IFERROR(RTD("cqg.rtd",,"StudyData", "Correlation("&$B$3&","&AY$2&",Period:="&$B$1&",InputChoice1:=Close,InputChoice2::=Close)", "FG", "", "Close",$B$2,A5, "all","", "","True","T")/100,"") -> -0.2191117015 | BA5: =BA4+0.02 -> -0.98 | BB5: 0 | BC5: =IF(AND($AY$4>=BA5,$AY$4<BA6),IF(BB5=0,1,BB5),NA()) ->  | BE5: =IFERROR(RTD("cqg.rtd",,"StudyData", "Correlation("&$B$3&","&BE$2&",Period:="&$B$1&",InputChoice1:=Close,InputChoice2::=Close)", "FG", "", "Close",$B$2,A5, "all","", "","True","T")/100,"") -> 0.7208508935 | BG5: =BG4+0.02 -> -0.98 | BH5: 0 | BI5: =IF(AND($BE$4>=BG5,$BE$4<BG6),IF(BH5=0,1,BH5),NA()) -> 
A6: =A5-1 -> -2 | C6: =IFERROR(RTD("cqg.rtd",,"StudyData", "Correlation("&$B$3&","&C$2&",Period:="&$B$1&",InputChoice1:=Close,InputChoice2:=Close)", "FG", "", "Close",$B$2,A6, "all","", "","True","T")/100,"") -> 0.8505729249 | E6: =E5+0.02 -> -0.96 | F6: 0 | I6: =IFERROR(RTD("cqg.rtd",,"StudyData", "Correlation("&$B$3&","&I$2&",Period:="&$B$1&",InputChoice1:=Close,InputChoice2::=Close)", "FG", "", "Close",$B$2,A6, "all","", "","True","T")/100,"") -> 0.9461949899 | K6: =K5+0.02 -> -0.96 | L6: 0 | O6: =IFERROR(RTD("cqg.rtd",,"StudyData", "Correlation("&$B$3&","&O$2&",Period:="&$B$1&",InputChoice1:=Close,InputChoice2::=Close)", "FG", "", "Close",$B$2,A6, "all","", "","True","T")/100,"") -> 0.9748027032 | Q6: =Q5+0.02 -> -0.96 | R6: 0 | U6: =IFERROR(RTD("cqg.rtd",,"StudyData", "Correlation("&$B$3&","&U$2&",Period:="&$B$1&",InputChoice1:=Close,InputChoice2::=Close)", "FG", "", "Close",$B$2,A6, "all","", "","True","T")/100,"") -> -0.2203054499 | W6: =W5+0.02 -> -0.96 | X6: 0 | AA6: =IFERROR(RTD("cqg.rtd",,"StudyData", "Correlation("&$B$3&","&AA$2&",Period:="&$B$1&",InputChoice1:=Close,InputChoice2::=Close)", "FG", "", "Close",$B$2,A6, "all","", "","True","T")/100,"") -> 0.7984960644 | AC6: =AC5+0.02 -> -0.96 | AD6: 0 | AG6: =IFERROR(RTD("cqg.rtd",,"StudyData", "Correlation("&$B$3&","&AG$2&",Period:="&$B$1&",InputChoice1:=Close,InputChoice2::=Close)", "FG", "", "Close",$B$2,A6, "all","", "","True","T")/100,"") -> 0.9100791218 | AI6: =AI5+0.02 -> -0.96 | AJ6: 0 | AM6: =IFERROR(RTD("cqg.rtd",,"StudyData", "Correlation("&$B$3&","&AM$2&",Period:="&$B$1&",InputChoice1:=Close,InputChoice2::=Close)", "FG", "", "Close",$B$2,A6, "all","", "","True","T")/100,"") -> 0.910591256 | AO6: =AO5+0.02 -> -0.96 | AP6: 0 | AS6: =IFERROR(RTD("cqg.rtd",,"StudyData", "Correlation("&$B$3&","&AS$2&",Period:="&$B$1&",InputChoice1:=Close,InputChoice2::=Close)", "FG", "", "Close",$B$2,A6, "all","", "","True","T")/100,"") -> 0.3740739019 | AU6: =AU5+0.02 -> -0.96 | AV6: 0 | AY6: =IFERROR(RTD("cqg.rtd",,"StudyData", "Correlation("&$B$3&","&AY$2&",Period:="&$B$1&",InputChoice1:=Close,InputChoice2::=Close)", "FG", "", "Close",$B$2,A6, "all","", "","True","T")/100,"") -> -0.1628067602 | BA6: =BA5+0.02 -> -0.96 | BB6: 0 | BE6: =IFERROR(RTD("cqg.rtd",,"StudyData", "Correlation("&$B$3&","&BE$2&",Period:="&$B$1&",InputChoice1:=Close,InputChoice2::=Close)", "FG", "", "Close",$B$2,A6, "all","", "","True","T")/100,"") -> 0.6501511409 | BG6: =BG5+0.02 -> -0.96 | BH6: 0
A7: -3 | C7: =IFERROR(RTD("cqg.rtd",,"StudyData", "Correlation("&$B$3&","&C$2&",Period:="&$B$1&",InputChoice1:=Close,InputChoice2:=Close)", "FG", "", "Close",$B$2,A7, "all","", "","True","T")/100,"") -> 0.8387841862 | E7: -0.94 | F7: 0 | I7: =IFERROR(RTD("cqg.rtd",,"StudyData", "Correlation("&$B$3&","&I$2&",Period:="&$B$1&",InputChoice1:=Close,InputChoice2::=Close)", "FG", "", "Close",$B$2,A7, "all","", "","True","T")/100,"") -> 0.9578552558 | K7: -0.94 | L7: 0 | O7: =IFERROR(RTD("cqg.rtd",,"StudyData", "Correlation("&$B$3&","&O$2&",Period:="&$B$1&",InputChoice1:=Close,InputChoice2::=Close)", "FG", "", "Close",$B$2,A7, "all","", "","True","T")/100,"") -> 0.9815694297 | Q7: -0.94 | R7: 0 | U7: =IFERROR(RTD("cqg.rtd",,"StudyData", "Correlation("&$B$3&","&U$2&",Period:="&$B$1&",InputChoice1:=Close,InputChoice2::=Close)", "FG", "", "Close",$B$2,A7, "all","", "","True","T")/100,"") -> -0.3775224641 | W7: -0.94 | X7: 0 | AA7: =IFERROR(RTD("cqg.rtd",,"StudyData", "Correlation("&$B$3&","&AA$2&",Period:="&$B$1&",InputChoice1:=Close,InputChoice2::=Close)", "FG", "", "Close",$B$2,A7, "all","", "","True","T")/100,"") -> 0.7496172362 | AC7: -0.94 | AD7: 0 | AG7: =IFERROR(RTD("cqg.rtd",,"StudyData", "Correlation("&$B$3&","&AG$2&",Period:="&$B$1&",InputChoice1:=Close,InputChoice2::=Close)", "FG", "", "Close",$B$2,A7, "all","", "","True","T")/100,"") -> 0.9004303848 | AI7: -0.94 | AJ7: 0 | AM7: =IFERROR(RTD("cqg.rtd",,"StudyData", "Correlation("&$B$3&","&AM$2&",Period:="&$B$1&",InputChoice1:=Close,InputChoice2::=Close)", "FG", "", "Close",$B$2,A7, "all","", "","True","T")/100,"") -> 0.908941734 | AO7: -0.94 | AP7: 0 | AS7: =IFERROR(RTD("cqg.rtd",,"StudyData", "Correlation("&$B$3&","&AS$2&",Period:="&$B$1&",InputChoice1:=Close,InputChoice2::=Close)", "FG", "", "Close",$B$2,A7, "all","", "","True","T")/100,"") -> 0.0771244147 | AU7: -0.94 | AV7: 0 | AY7: =IFERROR(RTD("cqg.rtd",,"StudyData", "Correlation("&$B$3&","&AY$2&",Period:="&$B$1&",InputChoice1:=Close,InputChoice2::=Close)", "FG", "", "Close",$B$2,A7, "all","", "","True","T")/100,"") -> -0.05133191628 | BA7: -0.94 | BB7: 0 | BE7: =IFERROR(RTD("cqg.rtd",,"StudyData", "Correlation("&$B$3&","&BE$2&",Period:="&$B$1&",InputChoice1:=Close,InputChoice2::=Close)", "FG", "", "Close",$B$2,A7, "all","", "","True","T")/100,"") -> 0.5945030498 | BG7: -0.94 | BH7: 0
A8: -4 | C8: =IFERROR(RTD("cqg.rtd",,"StudyData", "Correlation("&$B$3&","&C$2&",Period:="&$B$1&",InputChoice1:=Close,InputChoice2:=Close)", "FG", "", "Close",$B$2,A8, "all","", "","True","T")/100,"") -> 0.794735934 | E8: -0.92 | F8: 0 | I8: =IFERROR(RTD("cqg.rtd",,"StudyData", "Correlation("&$B$3&","&I$2&",Period:="&$B$1&",InputChoice1:=Close,InputChoice2::=Close)", "FG", "", "Close",$B$2,A8, "all","", "","True","T")/100,"") -> 0.9507200627 | K8: -0.92 | L8: 0 | O8: =IFERROR(RTD("cqg.rtd",,"StudyData", "Correlation("&$B$3&","&O$2&",Period:="&$B$1&",InputChoice1:=Close,InputChoice2::=Close)", "FG", "", "Close",$B$2,A8, "all","", "","True","T")/100,"") -> 0.9762354381 | Q8: -0.92 | R8: 0 | U8: =IFERROR(RTD("cqg.rtd",,"StudyData", "Correlation("&$B$3&","&U$2&",Period:="&$B$1&",InputChoice1:=Close,InputChoice2::=Close)", "FG", "", "Close",$B$2,A8, "all","", "","True","T")/100,"") -> -0.492198881 | W8: -0.92 | X8: 0 | AA8: =IFERROR(RTD("cqg.rtd",,"StudyData", "Correlation("&$B$3&","&AA$2&",Period:="&$B$1&",InputChoice1:=Close,InputChoice2::=Close)", "FG", "", "Close",$B$2,A8, "all","", "","True","T")/100,"") -> 0.7056683254 | AC8: -0.92 | AD8: 0 | AG8: =IFERROR(RTD("cqg.rtd",,"StudyData", "Correlation("&$B$3&","&AG$2&",Period:="&$B$1&",InputChoice1:=Close,InputChoice2::=Close)", "FG", "", "Close",$B$2,A8, "all","", "","True","T")/100,"") -> 0.8478859933 | AI8: -0.92 | AJ8: 0 | AM8: =IFERROR(RTD("cqg.rtd",,"StudyData", "Correlation("&$B$3&","&AM$2&",Period:="&$B$1&",InputChoice1:=Close,InputChoice2::=Close)", "FG", "", "Close",$B$2,A8, "all","", "","True","T")/100,"") -> 0.8948016791 | AO8: -0.92 | AP8: 0 | AS8: =IFERROR(RTD("cqg.rtd",,"StudyData", "Correlation("&$B$3&","&AS$2&",Period:="&$B$1&",InputChoice1:=Close,InputChoice2::=Close)", "FG", "", "Close",$B$2,A8, "all","", "","True","T")/100,"") -> -0.2807498175 | AU8: -0.92 | AV8: 0 | AY8: =IFERROR(RTD("cqg.rtd",,"StudyData", "Correlation("&$B$3&","&AY$2&",Period:="&$B$1&",InputChoice1:=Close,InputChoice2::=Close)", "FG", "", "Close",$B$2,A8, "all","", "","True","T")/100,"") -> 0.1652625062 | BA8: -0.92 | BB8: 0 | BE8: =IFERROR(RTD("cqg.rtd",,"StudyData", "Correlation("&$B$3&","&BE$2&",Period:="&$B$1&",InputChoice1:=Close,InputChoice2::=Close)", "FG", "", "Close",$B$2,A8, "all","", "","True","T")/100,"") -> 0.4596299219 | BG8: -0.92 | BH8: 0
A9: -5 | C9: =IFERROR(RTD("cqg.rtd",,"StudyData", "Correlation("&$B$3&","&C$2&",Period:="&$B$1&",InputChoice1:=Close,InputChoice2:=Close)", "FG", "", "Close",$B$2,A9, "all","", "","True","T")/100,"") -> 0.6609671472 | E9: -0.9 | F9: 0 | I9: =IFERROR(RTD("cqg.rtd",,"StudyData", "Correlation("&$B$3&","&I$2&",Period:="&$B$1&",InputChoice1:=Close,InputChoice2::=Close)", "FG", "", "Close",$B$2,A9, "all","", "","True","T")/100,"") -> 0.9152186458 | K9: -0.9 | L9: 0 | O9: =IFERROR(RTD("cqg.rtd",,"StudyData", "Correlation("&$B$3&","&O$2&",Period:="&$B$1&",InputChoice1:=Close,InputChoice2::=Close)", "FG", "", "Close",$B$2,A9, "all","", "","True","T")/100,"") -> 0.965718307 | Q9: -0.9 | R9: 0 | U9: =IFERROR(RTD("cqg.rtd",,"StudyData", "Correlation("&$B$3&","&U$2&",Period:="&$B$1&",InputChoice1:=Close,InputChoice2::=Close)", "FG", "", "Close",$B$2,A9, "all","", "","True","T")/100,"") -> -0.6190136408 | W9: -0.9 | X9: 0 | AA9: =IFERROR(RTD("cqg.rtd",,"StudyData", "Correlation("&$B$3&","&AA$2&",Period:="&$B$1&",InputChoice1:=Close,InputChoice2::=Close)", "FG", "", "Close",$B$2,A9, "all","", "","True","T")/100,"") -> 0.7565747344 | AC9: -0.9 | AD9: 0 | AG9: =IFERROR(RTD("cqg.rtd",,"StudyData", "Correlation("&$B$3&","&AG$2&",Period:="&$B$1&",InputChoice1:=Close,InputChoice2::=Close)", "FG", "", "Close",$B$2,A9, "all","", "","True","T")/100,"") -> 0.8667599803 | AI9: -0.9 | AJ9: 0 | AM9: =IFERROR(RTD("cqg.rtd",,"StudyData", "Correlation("&$B$3&","&AM$2&",Period:="&$B$1&",InputChoice1:=Close,InputChoice2::=Close)", "FG", "", "Close",$B$2,A9, "all","", "","True","T")/100,"") -> 0.9024419773 | AO9: -0.9 | AP9: 0 | AS9: =IFERROR(RTD("cqg.rtd",,"StudyData", "Correlation("&$B$3&","&AS$2&",Period:="&$B$1&",InputChoice1:=Close,InputChoice2::=Close)", "FG", "", "Close",$B$2,A9, "all","", "","True","T")/100,"") -> -0.4779621922 | AU9: -0.9 | AV9: 0 | AY9: =IFERROR(RTD("cqg.rtd",,"StudyData", "Correlation("&$B$3&","&AY$2&",Period:="&$B$1&",InputChoice1:=Close,InputChoice2::=Close)", "FG", "", "Close",$B$2,A9, "all","", "","True","T")/100,"") -> 0.2995948795 | BA9: -0.9 | BB9: 2 | BE9: =IFERROR(RTD("cqg.rtd",,"StudyData", "Correlation("&$B$3&","&BE$2&",Period:="&$B$1&",InputChoice1:=Close,InputChoice2::=Close)", "FG", "", "Close",$B$2,A9, "all","", "","True","T")/100,"") -> 0.340911699 | BG9: -0.9 | BH9: 0
A10: -6 | C10: =IFERROR(RTD("cqg.rtd",,"StudyData", "Correlation("&$B$3&","&C$2&",Period:="&$B$1&",InputChoice1:=Close,InputChoice2:=Close)", "FG", "", "Close",$B$2,A10, "all","", "","True","T")/100,"") -> 0.542978853 | E10: -0.88 | F10: 0 | I10: =IFERROR(RTD("cqg.rtd",,"StudyData", "Correlation("&$B$3&","&I$2&",Period:="&$B$1&",InputChoice1:=Close,InputChoice2::=Close)", "FG", "", "Close",$B$2,A10, "all","", "","True","T")/100,"") -> 0.9095093618 | K10: -0.88 | L10: 0 | O10: =IFERROR(RTD("cqg.rtd",,"StudyData", "Correlation("&$B$3&","&O$2&",Period:="&$B$1&",InputChoice1:=Close,InputChoice2::=Close)", "FG", "", "Close",$B$2,A10, "all","", "","True","T")/100,"") -> 0.9686311136 | Q10: -0.88 | R10: 0 | U10: =IFERROR(RTD("cqg.rtd",,"StudyData", "Correlation("&$B$3&","&U$2&",Period:="&$B$1&",InputChoice1:=Close,InputChoice2::=Close)", "FG", "", "Close",$B$2,A10, "all","", "","True","T")/100,"") -> -0.7240606877 | W10: -0.88 | X10: 0 | AA10: =IFERROR(RTD("cqg.rtd",,"StudyData", "Correlation("&$B$3&","&AA$2&",Period:="&$B$1&",InputChoice1:=Close,InputChoice2::=Close)", "FG", "", "Close",$B$2,A10, "all","", "","True","T")/100,"") -> 0.7542830566 | AC10: -0.88 | AD10: 0 | AG10: =IFERROR(RTD("cqg.rtd",,"StudyData", "Correlation("&$B$3&","&AG$2&",Period:="&$B$1&",InputChoice1:=Close,InputChoice2::=Close)", "FG", "", "Close",$B$2,A10, "all","", "","True","T")/100,"") -> 0.8730109779 | AI10: -0.88 | AJ10: 0 | AM10: =IFERROR(RTD("cqg.rtd",,"StudyData", "Correlation("&$B$3&","&AM$2&",Period:="&$B$1&",InputChoice1:=Close,InputChoice2::=Close)", "FG", "", "Close",$B$2,A10, "all","", "","True","T")/100,"") -> 0.9048886609 | AO10: -0.88 | AP10: 0 | AS10: =IFERROR(RTD("cqg.rtd",,"StudyData", "Correlation("&$B$3&","&AS$2&",Period:="&$B$1&",InputChoice1:=Close,InputChoice2::=Close)", "FG", "", "Close",$B$2,A10, "all","", "","True","T")/100,"") -> -0.6367459803 | AU10: -0.88 | AV10: 0 | AY10: =IFERROR(RTD("cqg.rtd",,"StudyData", "Correlation("&$B$3&","&AY$2&",Period:="&$B$1&",InputChoice1:=Close,InputChoice2::=Close)", "FG", "", "Close",$B$2,A10, "all","", "","True","T")/100,"") -> 0.414685187 | BA10: -0.88 | BB10: 4 | BE10: =IFERROR(RTD("cqg.rtd",,"StudyData", "Correlation("&$B$3&","&BE$2&",Period:="&$B$1&",InputChoice1:=Close,InputChoice2::=Close)", "FG", "", "Close",$B$2,A10, "all","", "","True","T")/100,"") -> 0.1775565176 | BG10: -0.88 | BH10: 0
A11: -7 | C11: =IFERROR(RTD("cqg.rtd",,"StudyData", "Correlation("&$B$3&","&C$2&",Period:="&$B$1&",InputChoice1:=Close,InputChoice2:=Close)", "FG", "", "Close",$B$2,A11, "all","", "","True","T")/100,"") -> 0.4041375058 | E11: -0.86 | F11: 0 | I11: =IFERROR(RTD("cqg.rtd",,"StudyData", "Correlation("&$B$3&","&I$2&",Period:="&$B$1&",InputChoice1:=Close,InputChoice2::=Close)", "FG", "", "Close",$B$2,A11, "all","", "","True","T")/100,"") -> 0.8943180556 | K11: -0.86 | L11: 0 | O11: =IFERROR(RTD("cqg.rtd",,"StudyData", "Correlation("&$B$3&","&O$2&",Period:="&$B$1&",InputChoice1:=Close,InputChoice2::=Close)", "FG", "", "Close",$B$2,A11, "all","", "","True","T")/100,"") -> 0.9689841254 | Q11: -0.86 | R11: 0 | U11: =IFERROR(RTD("cqg.rtd",,"StudyData", "Correlation("&$B$3&","&U$2&",Period:="&$B$1&",InputChoice1:=Close,InputChoice2::=Close)", "FG", "", "Close",$B$2,A11, "all","", "","True","T")/100,"") -> -0.7805728548 | W11: -0.86 | X11: 0 | AA11: =IFERROR(RTD("cqg.rtd",,"StudyData", "Correlation("&$B$3&","&AA$2&",Period:="&$B$1&",InputChoice1:=Close,InputChoice2::=Close)", "FG", "", "Close",$B$2,A11, "all","", "","True","T")/100,"") -> 0.7105833371 | AC11: -0.86 | AD11: 0 | AG11: =IFERROR(RTD("cqg.rtd",,"StudyData", "Correlation("&$B$3&","&AG$2&",Period:="&$B$1&",InputChoice1:=Close,InputChoice2::=Close)", "FG", "", "Close",$B$2,A11, "all","", "","True","T")/100,"") -> 0.8421769823 | AI11: -0.86 | AJ11: 0 | AM11: =IFERROR(RTD("cqg.rtd",,"StudyData", "Correlation("&$B$3&","&AM$2&",Period:="&$B$1&",InputChoice1:=Close,InputChoice2::=Close)", "FG", "", "Close",$B$2,A11, "all","", "","True","T")/100,"") -> 0.8675837234 | AO11: -0.86 | AP11: 0 | AS11: =IFERROR(RTD("cqg.rtd",,"StudyData", "Correlation("&$B$3&","&AS$2&",Period:="&$B$1&",InputChoice1:=Close,InputChoice2::=Close)", "FG", "", "Close",$B$2,A11, "all","", "","True","T")/100,"") -> -0.7388204743 | AU11: -0.86 | AV11: 0 | AY11: =IFERROR(RTD("cqg.rtd",,"StudyData", "Correlation("&$B$3&","&AY$2&",Period:="&$B$1&",InputChoice1:=Close,InputChoice2::=Close)", "FG", "", "Close",$B$2,A11, "all","", "","True","T")/100,"") -> 0.430815793 | BA11: -0.86 | BB11: 3 | BE11: =IFERROR(RTD("cqg.rtd",,"StudyData", "Correlation("&$B$3&","&BE$2&",Period:="&$B$1&",InputChoice1:=Close,InputChoice2::=Close)", "FG", "", "Close",$B$2,A11, "all","", "","True","T")/100,"") -> 0.05496791843 | BG11: -0.86 | BH11: 0
A12: -8 | C12: =IFERROR(RTD("cqg.rtd",,"StudyData", "Correlation("&$B$3&","&C$2&",Period:="&$B$1&",InputChoice1:=Close,InputChoice2:=Close)", "FG", "", "Close",$B$2,A12, "all","", "","True","T")/100,"") -> 0.3582612703 | E12: -0.84 | F12: 0 | I12: =IFERROR(RTD("cqg.rtd",,"StudyData", "Correlation("&$B$3&","&I$2&",Period:="&$B$1&",InputChoice1:=Close,InputChoice2::=Close)", "FG", "", "Close",$B$2,A12, "all","", "","True","T")/100,"") -> 0.904809217 | K12: -0.84 | L12: 0 | O12: =IFERROR(RTD("cqg.rtd",,"StudyData", "Correlation("&$B$3&","&O$2&",Period:="&$B$1&",InputChoice1:=Close,InputChoice2::=Close)", "FG", "", "Close",$B$2,A12, "all","", "","True","T")/100,"") -> 0.9754723064 | Q12: -0.84 | R12: 0 | U12: =IFERROR(RTD("cqg.rtd",,"StudyData", "Correlation("&$B$3&","&U$2&",Period:="&$B$1&",InputChoice1:=Close,InputChoice2::=Close)", "FG", "", "Close",$B$2,A12, "all","", "","True","T")/100,"") -> -0.7772493955 | W12: -0.84 | X12: 2 | AA12: =IFERROR(RTD("cqg.rtd",,"StudyData", "Correlation("&$B$3&","&AA$2&",Period:="&$B$1&",InputChoice1:=Close,InputChoice2::=Close)", "FG", "", "Close",$B$2,A12, "all","", "","True","T")/100,"") -> 0.6993887296 | AC12: -0.84 | AD12: 0 | AG12: =IFERROR(RTD("cqg.rtd",,"StudyData", "Correlation("&$B$3&","&AG$2&",Period:="&$B$1&",InputChoice1:=Close,InputChoice2::=Close)", "FG", "", "Close",$B$2,A12, "all","", "","True","T")/100,"") -> 0.8301375375 | AI12: -0.84 | AJ12: 0 | AM12: =IFERROR(RTD("cqg.rtd",,"StudyData", "Correlation("&$B$3&","&AM$2&",Period:="&$B$1&",InputChoice1:=Close,InputChoice2::=Close)", "FG", "", "Close",$B$2,A12, "all","", "","True","T")/100,"") -> 0.8519283966 | AO12: -0.84 | AP12: 0 | AS12: =IFERROR(RTD("cqg.rtd",,"StudyData", "Correlation("&$B$3&","&AS$2&",Period:="&$B$1&",InputChoice1:=Close,InputChoice2::=Close)", "FG", "", "Close",$B$2,A12, "all","", "","True","T")/100,"") -> -0.7732554015 | AU12: -0.84 | AV12: 0 | AY12: =IFERROR(RTD("cqg.rtd",,"StudyData", "Correlation("&$B$3&","&AY$2&",Period:="&$B$1&",InputChoice1:=Close,InputChoice2::=Close)", "FG", "", "Close",$B$2,A12, "all","", "","True","T")/100,"") -> 0.5447137875 | BA12: -0.84 | BB12: 3 | BE12: =IFERROR(RTD("cqg.rtd",,"StudyData", "Correlation("&$B$3&","&BE$2&",Period:="&$B$1&",InputChoice1:=Close,InputChoice2::=Close)", "FG", "", "Close",$B$2,A12, "all","", "","True","T")/100,"") -> 0.05970748508 | BG12: -0.84 | BH12: 0
A13: -9 | C13: =IFERROR(RTD("cqg.rtd",,"StudyData", "Correlation("&$B$3&","&C$2&",Period:="&$B$1&",InputChoice1:=Close,InputChoice2:=Close)", "FG", "", "Close",$B$2,A13, "all","", "","True","T")/100,"") -> 0.311197309 | E13: -0.82 | F13: 0 | I13: =IFERROR(RTD("cqg.rtd",,"StudyData", "Correlation("&$B$3&","&I$2&",Period:="&$B$1&",InputChoice1:=Close,InputChoice2::=Close)", "FG", "", "Close",$B$2,A13, "all","", "","True","T")/100,"") -> 0.906675841 | K13: -0.82 | L13: 0 | O13: =IFERROR(RTD("cqg.rtd",,"StudyData", "Correlation("&$B$3&","&O$2&",Period:="&$B$1&",InputChoice1:=Close,InputChoice2::=Close)", "FG", "", "Close",$B$2,A13, "all","", "","True","T")/100,"") -> 0.9730632102 | Q13: -0.82 | R13: 0 | U13: =IFERROR(RTD("cqg.rtd",,"StudyData", "Correlation("&$B$3&","&U$2&",Period:="&$B$1&",InputChoice1:=Close,InputChoice2::=Close)", "FG", "", "Close",$B$2,A13, "all","", "","True","T")/100,"") -> -0.8210794579 | W13: -0.82 | X13: 7 | AA13: =IFERROR(RTD("cqg.rtd",,"StudyData", "Correlation("&$B$3&","&AA$2&",Period:="&$B$1&",InputChoice1:=Close,InputChoice2::=Close)", "FG", "", "Close",$B$2,A13, "all","", "","True","T")/100,"") -> 0.6401318252 | AC13: -0.82 | AD13: 0 | AG13: =IFERROR(RTD("cqg.rtd",,"StudyData", "Correlation("&$B$3&","&AG$2&",Period:="&$B$1&",InputChoice1:=Close,InputChoice2::=Close)", "FG", "", "Close",$B$2,A13, "all","", "","True","T")/100,"") -> 0.7787228548 | AI13: -0.82 | AJ13: 0 | AM13: =IFERROR(RTD("cqg.rtd",,"StudyData", "Correlation("&$B$3&","&AM$2&",Period:="&$B$1&",InputChoice1:=Close,InputChoice2::=Close)", "FG", "", "Close",$B$2,A13, "all","", "","True","T")/100,"") -> 0.8024816756 | AO13: -0.82 | AP13: 0 | AS13: =IFERROR(RTD("cqg.rtd",,"StudyData", "Correlation("&$B$3&","&AS$2&",Period:="&$B$1&",InputChoice1:=Close,InputChoice2::=Close)", "FG", "", "Close",$B$2,A13, "all","", "","True","T")/100,"") -> -0.8037419329 | AU13: -0.82 | AV13: 1 | AY13: =IFERROR(RTD("cqg.rtd",,"StudyData", "Correlation("&$B$3&","&AY$2&",Period:="&$B$1&",InputChoice1:=Close,InputChoice2::=Close)", "FG", "", "Close",$B$2,A13, "all","", "","True","T")/100,"") -> 0.566567072 | BA13: -0.82 | BB13: 7 | BE13: =IFERROR(RTD("cqg.rtd",,"StudyData", "Correlation("&$B$3&","&BE$2&",Period:="&$B$1&",InputChoice1:=Close,InputChoice2::=Close)", "FG", "", "Close",$B$2,A13, "all","", "","True","T")/100,"") -> -0.00309148419 | BG13: -0.82 | BH13: 0
A14: -10 | C14: =IFERROR(RTD("cqg.rtd",,"StudyData", "Correlation("&$B$3&","&C$2&",Period:="&$B$1&",InputChoice1:=Close,InputChoice2:=Close)", "FG", "", "Close",$B$2,A14, "all","", "","True","T")/100,"") -> 0.2850139619 | E14: -0.8 | F14: 0 | I14: =IFERROR(RTD("cqg.rtd",,"StudyData", "Correlation("&$B$3&","&I$2&",Period:="&$B$1&",InputChoice1:=Close,InputChoice2::=Close)", "FG", "", "Close",$B$2,A14, "all","", "","True","T")/100,"") -> 0.9066943588 | K14: -0.8 | L14: 0 | O14: =IFERROR(RTD("cqg.rtd",,"StudyData", "Correlation("&$B$3&","&O$2&",Period:="&$B$1&",InputChoice1:=Close,InputChoice2::=Close)", "FG", "", "Close",$B$2,A14, "all","", "","True","T")/100,"") -> 0.9696996857 | Q14: -0.8 | R14: 0 | U14: =IFERROR(RTD("cqg.rtd",,"StudyData", "Correlation("&$B$3&","&U$2&",Period:="&$B$1&",InputChoice1:=Close,InputChoice2::=Close)", "FG", "", "Close",$B$2,A14, "all","", "","True","T")/100,"") -> -0.8339722162 | W14: -0.8 | X14: 3 | AA14: =IFERROR(RTD("cqg.rtd",,"StudyData", "Correlation("&$B$3&","&AA$2&",Period:="&$B$1&",InputChoice1:=Close,InputChoice2::=Close)", "FG", "", "Close",$B$2,A14, "all","", "","True","T")/100,"") -> 0.5361950501 | AC14: -0.8 | AD14: 0 | AG14: =IFERROR(RTD("cqg.rtd",,"StudyData", "Correlation("&$B$3&","&AG$2&",Period:="&$B$1&",InputChoice1:=Close,InputChoice2::=Close)", "FG", "", "Close",$B$2,A14, "all","", "","True","T")/100,"") -> 0.7254122064 | AI14: -0.8 | AJ14: 0 | AM14: =IFERROR(RTD("cqg.rtd",,"StudyData", "Correlation("&$B$3&","&AM$2&",Period:="&$B$1&",InputChoice1:=Close,InputChoice2::=Close)", "FG", "", "Close",$B$2,A14, "all","", "","True","T")/100,"") -> 0.7213741009 | AO14: -0.8 | AP14: 0 | AS14: =IFERROR(RTD("cqg.rtd",,"StudyData", "Correlation("&$B$3&","&AS$2&",Period:="&$B$1&",InputChoice1:=Close,InputChoice2::=Close)", "FG", "", "Close",$B$2,A14, "all","", "","True","T")/100,"") -> -0.6940207574 | AU14: -0.8 | AV14: 1 | AY14: =IFERROR(RTD("cqg.rtd",,"StudyData", "Correlation("&$B$3&","&AY$2&",Period:="&$B$1&",InputChoice1:=Close,InputChoice2::=Close)", "FG", "", "Close",$B$2,A14, "all","", "","True","T")/100,"") -> 0.5265173038 | BA14: -0.8 | BB14: 4 | BE14: =IFERROR(RTD("cqg.rtd",,"StudyData", "Correlation("&$B$3&","&BE$2&",Period:="&$B$1&",InputChoice1:=Close,InputChoice2::=Close)", "FG", "", "Close",$B$2,A14, "all","", "","True","T")/100,"") -> -0.09251880439 | BG14: -0.8 | BH14: 0
A15: -11 | C15: =IFERROR(RTD("cqg.rtd",,"StudyData", "Correlation("&$B$3&","&C$2&",Period:="&$B$1&",InputChoice1:=Close,InputChoice2:=Close)", "FG", "", "Close",$B$2,A15, "all","", "","True","T")/100,"") -> 0.2141867751 | E15: -0.78 | F15: 0 | I15: =IFERROR(RTD("cqg.rtd",,"StudyData", "Correlation("&$B$3&","&I$2&",Period:="&$B$1&",InputChoice1:=Close,InputChoice2::=Close)", "FG", "", "Close",$B$2,A15, "all","", "","True","T")/100,"") -> 0.8838801742 | K15: -0.78 | L15: 0 | O15: =IFERROR(RTD("cqg.rtd",,"StudyData", "Correlation("&$B$3&","&O$2&",Period:="&$B$1&",InputChoice1:=Close,InputChoice2::=Close)", "FG", "", "Close",$B$2,A15, "all","", "","True","T")/100,"") -> 0.9545932682 | Q15: -0.78 | R15: 0 | U15: =IFERROR(RTD("cqg.rtd",,"StudyData", "Correlation("&$B$3&","&U$2&",Period:="&$B$1&",InputChoice1:=Close,InputChoice2::=Close)", "FG", "", "Close",$B$2,A15, "all","", "","True","T")/100,"") -> -0.8234307619 | W15: -0.78 | X15: 2 | AA15: =IFERROR(RTD("cqg.rtd",,"StudyData", "Correlation("&$B$3&","&AA$2&",Period:="&$B$1&",InputChoice1:=Close,InputChoice2::=Close)", "FG", "", "Close",$B$2,A15, "all","", "","True","T")/100,"") -> 0.4638498789 | AC15: -0.78 | AD15: 0 | AG15: =IFERROR(RTD("cqg.rtd",,"StudyData", "Correlation("&$B$3&","&AG$2&",Period:="&$B$1&",InputChoice1:=Close,InputChoice2::=Close)", "FG", "", "Close",$B$2,A15, "all","", "","True","T")/100,"") -> 0.6781186979 | AI15: -0.78 | AJ15: 0 | AM15: =IFERROR(RTD("cqg.rtd",,"StudyData", "Correlation("&$B$3&","&AM$2&",Period:="&$B$1&",InputChoice1:=Close,InputChoice2::=Close)", "FG", "", "Close",$B$2,A15, "all","", "","True","T")/100,"") -> 0.5677937876 | AO15: -0.78 | AP15: 0 | AS15: =IFERROR(RTD("cqg.rtd",,"StudyData", "Correlation("&$B$3&","&AS$2&",Period:="&$B$1&",InputChoice1:=Close,InputChoice2::=Close)", "FG", "", "Close",$B$2,A15, "all","", "","True","T")/100,"") -> -0.7267998927 | AU15: -0.78 | AV15: 0 | AY15: =IFERROR(RTD("cqg.rtd",,"StudyData", "Correlation("&$B$3&","&AY$2&",Period:="&$B$1&",InputChoice1:=Close,InputChoice2::=Close)", "FG", "", "Close",$B$2,A15, "all","", "","True","T")/100,"") -> 0.554890127 | BA15: -0.78 | BB15: 2 | BE15: =IFERROR(RTD("cqg.rtd",,"StudyData", "Correlation("&$B$3&","&BE$2&",Period:="&$B$1&",InputChoice1:=Close,InputChoice2::=Close)", "FG", "", "Close",$B$2,A15, "all","", "","True","T")/100,"") -> -0.1297530286 | BG15: -0.78 | BH15: 0
A16: -12 | C16: =IFERROR(RTD("cqg.rtd",,"StudyData", "Correlation("&$B$3&","&C$2&",Period:="&$B$1&",InputChoice1:=Close,InputChoice2:=Close)", "FG", "", "Close",$B$2,A16, "all","", "","True","T")/100,"") -> 0.07215252774 | E16: -0.76 | F16: 0 | I16: =IFERROR(RTD("cqg.rtd",,"StudyData", "Correlation("&$B$3&","&I$2&",Period:="&$B$1&",InputChoice1:=Close,InputChoice2::=Close)", "FG", "", "Close",$B$2,A16, "all","", "","True","T")/100,"") -> 0.8562604836 | K16: -0.76 | L16: 0 | O16: =IFERROR(RTD("cqg.rtd",,"StudyData", "Correlation("&$B$3&","&O$2&",Period:="&$B$1&",InputChoice1:=Close,InputChoice2::=Close)", "FG", "", "Close",$B$2,A16, "all","", "","True","T")/100,"") -> 0.9350166576 | Q16: -0.76 | R16: 0 | U16: =IFERROR(RTD("cqg.rtd",,"StudyData", "Correlation("&$B$3&","&U$2&",Period:="&$B$1&",InputChoice1:=Close,InputChoice2::=Close)", "FG", "", "Close",$B$2,A16, "all","", "","True","T")/100,"") -> -0.8084575674 | W16: -0.76 | X16: 2 | AA16: =IFERROR(RTD("cqg.rtd",,"StudyData", "Correlation("&$B$3&","&AA$2&",Period:="&$B$1&",InputChoice1:=Close,InputChoice2::=Close)", "FG", "", "Close",$B$2,A16, "all","", "","True","T")/100,"") -> 0.4565624713 | AC16: -0.76 | AD16: 0 | AG16: =IFERROR(RTD("cqg.rtd",,"StudyData", "Correlation("&$B$3&","&AG$2&",Period:="&$B$1&",InputChoice1:=Close,InputChoice2::=Close)", "FG", "", "Close",$B$2,A16, "all","", "","True","T")/100,"") -> 0.641599278 | AI16: -0.76 | AJ16: 0 | AM16: =IFERROR(RTD("cqg.rtd",,"StudyData", "Correlation("&$B$3&","&AM$2&",Period:="&$B$1&",InputChoice1:=Close,InputChoice2::=Close)", "FG", "", "Close",$B$2,A16, "all","", "","True","T")/100,"") -> 0.4339027218 | AO16: -0.76 | AP16: 0 | AS16: =IFERROR(RTD("cqg.rtd",,"StudyData", "Correlation("&$B$3&","&AS$2&",Period:="&$B$1&",InputChoice1:=Close,InputChoice2::=Close)", "FG", "", "Close",$B$2,A16, "all","", "","True","T")/100,"") -> -0.7514608086 | AU16: -0.76 | AV16: 3 | AY16: =IFERROR(RTD("cqg.rtd",,"StudyData", "Correlation("&$B$3&","&AY$2&",Period:="&$B$1&",InputChoice1:=Close,InputChoice2::=Close)", "FG", "", "Close",$B$2,A16, "all","", "","True","T")/100,"") -> 0.5062080996 | BA16: -0.76 | BB16: 1 | BE16: =IFERROR(RTD("cqg.rtd",,"StudyData", "Correlation("&$B$3&","&BE$2&",Period:="&$B$1&",InputChoice1:=Close,InputChoice2::=Close)", "FG", "", "Close",$B$2,A16, "all","", "","True","T")/100,"") -> -0.03496525329 | BG16: -0.76 | BH16: 0
A17: -13 | C17: =IFERROR(RTD("cqg.rtd",,"StudyData", "Correlation("&$B$3&","&C$2&",Period:="&$B$1&",InputChoice1:=Close,InputChoice2:=Close)", "FG", "", "Close",$B$2,A17, "all","", "","True","T")/100,"") -> 0.238440878 | E17: -0.74 | F17: 0 | I17: =IFERROR(RTD("cqg.rtd",,"StudyData", "Correlation("&$B$3&","&I$2&",Period:="&$B$1&",InputChoice1:=Close,InputChoice2::=Close)", "FG", "", "Close",$B$2,A17, "all","", "","True","T")/100,"") -> 0.8450913091 | K17: -0.74 | L17: 0 | O17: =IFERROR(RTD("cqg.rtd",,"StudyData", "Correlation("&$B$3&","&O$2&",Period:="&$B$1&",InputChoice1:=Close,InputChoice2::=Close)", "FG", "", "Close",$B$2,A17, "all","", "","True","T")/100,"") -> 0.93375217 | Q17: -0.74 | R17: 0 | U17: =IFERROR(RTD("cqg.rtd",,"StudyData", "Correlation("&$B$3&","&U$2&",Period:="&$B$1&",InputChoice1:=Close,InputChoice2::=Close)", "FG", "", "Close",$B$2,A17, "all","", "","True","T")/100,"") -> -0.7882925455 | W17: -0.74 | X17: 1 | AA17: =IFERROR(RTD("cqg.rtd",,"StudyData", "Correlation("&$B$3&","&AA$2&",Period:="&$B$1&",InputChoice1:=Close,InputChoice2::=Close)", "FG", "", "Close",$B$2,A17, "all","", "","True","T")/100,"") -> 0.4825891116 | AC17: -0.74 | AD17: 0 | AG17: =IFERROR(RTD("cqg.rtd",,"StudyData", "Correlation("&$B$3&","&AG$2&",Period:="&$B$1&",InputChoice1:=Close,InputChoice2::=Close)", "FG", "", "Close",$B$2,A17, "all","", "","True","T")/100,"") -> 0.6228017689 | AI17: -0.74 | AJ17: 0 | AM17: =IFERROR(RTD("cqg.rtd",,"StudyData", "Correlation("&$B$3&","&AM$2&",Period:="&$B$1&",InputChoice1:=Close,InputChoice2::=Close)", "FG", "", "Close",$B$2,A17, "all","", "","True","T")/100,"") -> 0.3021064152 | AO17: -0.74 | AP17: 0 | AS17: =IFERROR(RTD("cqg.rtd",,"StudyData", "Correlation("&$B$3&","&AS$2&",Period:="&$B$1&",InputChoice1:=Close,InputChoice2::=Close)", "FG", "", "Close",$B$2,A17, "all","", "","True","T")/100,"") -> -0.7741229084 | AU17: -0.74 | AV17: 1 | AY17: =IFERROR(RTD("cqg.rtd",,"StudyData", "Correlation("&$B$3&","&AY$2&",Period:="&$B$1&",InputChoice1:=Close,InputChoice2::=Close)", "FG", "", "Close",$B$2,A17, "all","", "","True","T")/100,"") -> 0.4935098765 | BA17: -0.74 | BB17: 2 | BE17: =IFERROR(RTD("cqg.rtd",,"StudyData", "Correlation("&$B$3&","&BE$2&",Period:="&$B$1&",InputChoice1:=Close,InputChoice2::=Close)", "FG", "", "Close",$B$2,A17, "all","", "","True","T")/100,"") -> 0.1372973927 | BG17: -0.74 | BH17: 0
A18: -14 | C18: =IFERROR(RTD("cqg.rtd",,"StudyData", "Correlation("&$B$3&","&C$2&",Period:="&$B$1&",InputChoice1:=Close,InputChoice2:=Close)", "FG", "", "Close",$B$2,A18, "all","", "","True","T")/100,"") -> 0.3128454642 | E18: -0.72 | F18: 0 | I18: =IFERROR(RTD("cqg.rtd",,"StudyData", "Correlation("&$B$3&","&I$2&",Period:="&$B$1&",InputChoice1:=Close,InputChoice2::=Close)", "FG", "", "Close",$B$2,A18, "all","", "","True","T")/100,"") -> 0.8280449046 | K18: -0.72 | L18: 0 | O18: =IFERROR(RTD("cqg.rtd",,"StudyData", "Correlation("&$B$3&","&O$2&",Period:="&$B$1&",InputChoice1:=Close,InputChoice2::=Close)", "FG", "", "Close",$B$2,A18, "all","", "","True","T")/100,"") -> 0.9365329025 | Q18: -0.72 | R18: 0 | U18: =IFERROR(RTD("cqg.rtd",,"StudyData", "Correlation("&$B$3&","&U$2&",Period:="&$B$1&",InputChoice1:=Close,InputChoice2::=Close)", "FG", "", "Close",$B$2,A18, "all","", "","True","T")/100,"") -> -0.7633603524 | W18: -0.72 | X18: 1 | AA18: =IFERROR(RTD("cqg.rtd",,"StudyData", "Correlation("&$B$3&","&AA$2&",Period:="&$B$1&",InputChoice1:=Close,InputChoice2::=Close)", "FG", "", "Close",$B$2,A18, "all","", "","True","T")/100,"") -> 0.6524801164 | AC18: -0.72 | AD18: 0 | AG18: =IFERROR(RTD("cqg.rtd",,"StudyData", "Correlation("&$B$3&","&AG$2&",Period:="&$B$1&",InputChoice1:=Close,InputChoice2::=Close)", "FG", "", "Close",$B$2,A18, "all","", "","True","T")/100,"") -> 0.6898134744 | AI18: -0.72 | AJ18: 0 | AM18: =IFERROR(RTD("cqg.rtd",,"StudyData", "Correlation("&$B$3&","&AM$2&",Period:="&$B$1&",InputChoice1:=Close,InputChoice2::=Close)", "FG", "", "Close",$B$2,A18, "all","", "","True","T")/100,"") -> 0.3890405153 | AO18: -0.72 | AP18: 0 | AS18: =IFERROR(RTD("cqg.rtd",,"StudyData", "Correlation("&$B$3&","&AS$2&",Period:="&$B$1&",InputChoice1:=Close,InputChoice2::=Close)", "FG", "", "Close",$B$2,A18, "all","", "","True","T")/100,"") -> -0.8203781444 | AU18: -0.72 | AV18: 2 | AY18: =IFERROR(RTD("cqg.rtd",,"StudyData", "Correlation("&$B$3&","&AY$2&",Period:="&$B$1&",InputChoice1:=Close,InputChoice2::=Close)", "FG", "", "Close",$B$2,A18, "all","", "","True","T")/100,"") -> 0.4120358637 | BA18: -0.72 | BB18: 1 | BE18: =IFERROR(RTD("cqg.rtd",,"StudyData", "Correlation("&$B$3&","&BE$2&",Period:="&$B$1&",InputChoice1:=Close,InputChoice2::=Close)", "FG", "", "Close",$B$2,A18, "all","", "","True","T")/100,"") -> 0.3394580136 | BG18: -0.72 | BH18: 0
A19: -15 | C19: =IFERROR(RTD("cqg.rtd",,"StudyData", "Correlation("&$B$3&","&C$2&",Period:="&$B$1&",InputChoice1:=Close,InputChoice2:=Close)", "FG", "", "Close",$B$2,A19, "all","", "","True","T")/100,"") -> 0.4155661739 | E19: -0.7 | F19: 0 | I19: =IFERROR(RTD("cqg.rtd",,"StudyData", "Correlation("&$B$3&","&I$2&",Period:="&$B$1&",InputChoice1:=Close,InputChoice2::=Close)", "FG", "", "Close",$B$2,A19, "all","", "","True","T")/100,"") -> 0.8362830308 | K19: -0.7 | L19: 0 | O19: =IFERROR(RTD("cqg.rtd",,"StudyData", "Correlation("&$B$3&","&O$2&",Period:="&$B$1&",InputChoice1:=Close,InputChoice2::=Close)", "FG", "", "Close",$B$2,A19, "all","", "","True","T")/100,"") -> 0.9409765608 | Q19: -0.7 | R19: 0 | U19: =IFERROR(RTD("cqg.rtd",,"StudyData", "Correlation("&$B$3&","&U$2&",Period:="&$B$1&",InputChoice1:=Close,InputChoice2::=Close)", "FG", "", "Close",$B$2,A19, "all","", "","True","T")/100,"") -> -0.7547282311 | W19: -0.7 | X19: 0 | AA19: =IFERROR(RTD("cqg.rtd",,"StudyData", "Correlation("&$B$3&","&AA$2&",Period:="&$B$1&",InputChoice1:=Close,InputChoice2::=Close)", "FG", "", "Close",$B$2,A19, "all","", "","True","T")/100,"") -> 0.7426523004 | AC19: -0.7 | AD19: 0 | AG19: =IFERROR(RTD("cqg.rtd",,"StudyData", "Correlation("&$B$3&","&AG$2&",Period:="&$B$1&",InputChoice1:=Close,InputChoice2::=Close)", "FG", "", "Close",$B$2,A19, "all","", "","True","T")/100,"") -> 0.7025688676 | AI19: -0.7 | AJ19: 0 | AM19: =IFERROR(RTD("cqg.rtd",,"StudyData", "Correlation("&$B$3&","&AM$2&",Period:="&$B$1&",InputChoice1:=Close,InputChoice2::=Close)", "FG", "", "Close",$B$2,A19, "all","", "","True","T")/100,"") -> 0.3721609247 | AO19: -0.7 | AP19: 0 | AS19: =IFERROR(RTD("cqg.rtd",,"StudyData", "Correlation("&$B$3&","&AS$2&",Period:="&$B$1&",InputChoice1:=Close,InputChoice2::=Close)", "FG", "", "Close",$B$2,A19, "all","", "","True","T")/100,"") -> -0.7756221807 | AU19: -0.7 | AV19: 0 | AY19: =IFERROR(RTD("cqg.rtd",,"StudyData", "Correlation("&$B$3&","&AY$2&",Period:="&$B$1&",InputChoice1:=Close,InputChoice2::=Close)", "FG", "", "Close",$B$2,A19, "all","", "","True","T")/100,"") -> 0.3237419461 | BA19: -0.7 | BB19: 5 | BE19: =IFERROR(RTD("cqg.rtd",,"StudyData", "Correlation("&$B$3&","&BE$2&",Period:="&$B$1&",InputChoice1:=Close,InputChoice2::=Close)", "FG", "", "Close",$B$2,A19, "all","", "","True","T")/100,"") -> 0.4093759245 | BG19: -0.7 | BH19: 0
A20: -16 | C20: =IFERROR(RTD("cqg.rtd",,"StudyData", "Correlation("&$B$3&","&C$2&",Period:="&$B$1&",InputChoice1:=Close,InputChoice2:=Close)", "FG", "", "Close",$B$2,A20, "all","", "","True","T")/100,"") -> 0.5380531377 | E20: -0.68 | F20: 0 | I20: =IFERROR(RTD("cqg.rtd",,"StudyData", "Correlation("&$B$3&","&I$2&",Period:="&$B$1&",InputChoice1:=Close,InputChoice2::=Close)", "FG", "", "Close",$B$2,A20, "all","", "","True","T")/100,"") -> 0.8537607701 | K20: -0.68 | L20: 0 | O20: =IFERROR(RTD("cqg.rtd",,"StudyData", "Correlation("&$B$3&","&O$2&",Period:="&$B$1&",InputChoice1:=Close,InputChoice2::=Close)", "FG", "", "Close",$B$2,A20, "all","", "","True","T")/100,"") -> 0.9452053667 | Q20: -0.68 | R20: 0 | U20: =IFERROR(RTD("cqg.rtd",,"StudyData", "Correlation("&$B$3&","&U$2&",Period:="&$B$1&",InputChoice1:=Close,InputChoice2::=Close)", "FG", "", "Close",$B$2,A20, "all","", "","True","T")/100,"") -> -0.8041260054 | W20: -0.68 | X20: 0 | AA20: =IFERROR(RTD("cqg.rtd",,"StudyData", "Correlation("&$B$3&","&AA$2&",Period:="&$B$1&",InputChoice1:=Close,InputChoice2::=Close)", "FG", "", "Close",$B$2,A20, "all","", "","True","T")/100,"") -> 0.7661350556 | AC20: -0.68 | AD20: 0 | AG20: =IFERROR(RTD("cqg.rtd",,"StudyData", "Correlation("&$B$3&","&AG$2&",Period:="&$B$1&",InputChoice1:=Close,InputChoice2::=Close)", "FG", "", "Close",$B$2,A20, "all","", "","True","T")/100,"") -> 0.6060033137 | AI20: -0.68 | AJ20: 0 | AM20: =IFERROR(RTD("cqg.rtd",,"StudyData", "Correlation("&$B$3&","&AM$2&",Period:="&$B$1&",InputChoice1:=Close,InputChoice2::=Close)", "FG", "", "Close",$B$2,A20, "all","", "","True","T")/100,"") -> 0.2407245775 | AO20: -0.68 | AP20: 0 | AS20: =IFERROR(RTD("cqg.rtd",,"StudyData", "Correlation("&$B$3&","&AS$2&",Period:="&$B$1&",InputChoice1:=Close,InputChoice2::=Close)", "FG", "", "Close",$B$2,A20, "all","", "","True","T")/100,"") -> -0.6966794228 | AU20: -0.68 | AV20: 2 | AY20: =IFERROR(RTD("cqg.rtd",,"StudyData", "Correlation("&$B$3&","&AY$2&",Period:="&$B$1&",InputChoice1:=Close,InputChoice2::=Close)", "FG", "", "Close",$B$2,A20, "all","", "","True","T")/100,"") -> 0.2613370813 | BA20: -0.68 | BB20: 0 | BE20: =IFERROR(RTD("cqg.rtd",,"StudyData", "Correlation("&$B$3&","&BE$2&",Period:="&$B$1&",InputChoice1:=Close,InputChoice2::=Close)", "FG", "", "Close",$B$2,A20, "all","", "","True","T")/100,"") -> 0.3251726661 | BG20: -0.68 | BH20: 0
A21: -17 | C21: =IFERROR(RTD("cqg.rtd",,"StudyData", "Correlation("&$B$3&","&C$2&",Period:="&$B$1&",InputChoice1:=Close,InputChoice2:=Close)", "FG", "", "Close",$B$2,A21, "all","", "","True","T")/100,"") -> 0.7262690349 | E21: -0.66 | F21: 0 | I21: =IFERROR(RTD("cqg.rtd",,"StudyData", "Correlation("&$B$3&","&I$2&",Period:="&$B$1&",InputChoice1:=Close,InputChoice2::=Close)", "FG", "", "Close",$B$2,A21, "all","", "","True","T")/100,"") -> 0.8911356993 | K21: -0.66 | L21: 0 | O21: =IFERROR(RTD("cqg.rtd",,"StudyData", "Correlation("&$B$3&","&O$2&",Period:="&$B$1&",InputChoice1:=Close,InputChoice2::=Close)", "FG", "", "Close",$B$2,A21, "all","", "","True","T")/100,"") -> 0.9496196075 | Q21: -0.66 | R21: 0 | U21: =IFERROR(RTD("cqg.rtd",,"StudyData", "Correlation("&$B$3&","&U$2&",Period:="&$B$1&",InputChoice1:=Close,InputChoice2::=Close)", "FG", "", "Close",$B$2,A21, "all","", "","True","T")/100,"") -> -0.8329806842 | W21: -0.66 | X21: 0 | AA21: =IFERROR(RTD("cqg.rtd",,"StudyData", "Correlation("&$B$3&","&AA$2&",Period:="&$B$1&",InputChoice1:=Close,InputChoice2::=Close)", "FG", "", "Close",$B$2,A21, "all","", "","True","T")/100,"") -> 0.8082088018 | AC21: -0.66 | AD21: 0 | AG21: =IFERROR(RTD("cqg.rtd",,"StudyData", "Correlation("&$B$3&","&AG$2&",Period:="&$B$1&",InputChoice1:=Close,InputChoice2::=Close)", "FG", "", "Close",$B$2,A21, "all","", "","True","T")/100,"") -> 0.5994218294 | AI21: -0.66 | AJ21: 0 | AM21: =IFERROR(RTD("cqg.rtd",,"StudyData", "Correlation("&$B$3&","&AM$2&",Period:="&$B$1&",InputChoice1:=Close,InputChoice2::=Close)", "FG", "", "Close",$B$2,A21, "all","", "","True","T")/100,"") -> 0.1545133155 | AO21: -0.66 | AP21: 0 | AS21: =IFERROR(RTD("cqg.rtd",,"StudyData", "Correlation("&$B$3&","&AS$2&",Period:="&$B$1&",InputChoice1:=Close,InputChoice2::=Close)", "FG", "", "Close",$B$2,A21, "all","", "","True","T")/100,"") -> -0.6056920506 | AU21: -0.66 | AV21: 0 | AY21: =IFERROR(RTD("cqg.rtd",,"StudyData", "Correlation("&$B$3&","&AY$2&",Period:="&$B$1&",InputChoice1:=Close,InputChoice2::=Close)", "FG", "", "Close",$B$2,A21, "all","", "","True","T")/100,"") -> 0.1852260352 | BA21: -0.66 | BB21: 0 | BE21: =IFERROR(RTD("cqg.rtd",,"StudyData", "Correlation("&$B$3&","&BE$2&",Period:="&$B$1&",InputChoice1:=Close,InputChoice2::=Close)", "FG", "", "Close",$B$2,A21, "all","", "","True","T")/100,"") -> 0.3047408438 | BG21: -0.66 | BH21: 0
A22: -18 | C22: =IFERROR(RTD("cqg.rtd",,"StudyData", "Correlation("&$B$3&","&C$2&",Period:="&$B$1&",InputChoice1:=Close,InputChoice2:=Close)", "FG", "", "Close",$B$2,A22, "all","", "","True","T")/100,"") -> 0.80194985 | E22: -0.64 | F22: 0 | I22: =IFERROR(RTD("cqg.rtd",,"StudyData", "Correlation("&$B$3&","&I$2&",Period:="&$B$1&",InputChoice1:=Close,InputChoice2::=Close)", "FG", "", "Close",$B$2,A22, "all","", "","True","T")/100,"") -> 0.9005894355 | K22: -0.64 | L22: 0 | O22: =IFERROR(RTD("cqg.rtd",,"StudyData", "Correlation("&$B$3&","&O$2&",Period:="&$B$1&",InputChoice1:=Close,InputChoice2::=Close)", "FG", "", "Close",$B$2,A22, "all","", "","True","T")/100,"") -> 0.9432796008 | Q22: -0.64 | R22: 0 | U22: =IFERROR(RTD("cqg.rtd",,"StudyData", "Correlation("&$B$3&","&U$2&",Period:="&$B$1&",InputChoice1:=Close,InputChoice2::=Close)", "FG", "", "Close",$B$2,A22, "all","", "","True","T")/100,"") -> -0.8481524977 | W22: -0.64 | X22: 1 | AA22: =IFERROR(RTD("cqg.rtd",,"StudyData", "Correlation("&$B$3&","&AA$2&",Period:="&$B$1&",InputChoice1:=Close,InputChoice2::=Close)", "FG", "", "Close",$B$2,A22, "all","", "","True","T")/100,"") -> 0.8227042313 | AC22: -0.64 | AD22: 0 | AG22: =IFERROR(RTD("cqg.rtd",,"StudyData", "Correlation("&$B$3&","&AG$2&",Period:="&$B$1&",InputChoice1:=Close,InputChoice2::=Close)", "FG", "", "Close",$B$2,A22, "all","", "","True","T")/100,"") -> 0.6171691467 | AI22: -0.64 | AJ22: 0 | AM22: =IFERROR(RTD("cqg.rtd",,"StudyData", "Correlation("&$B$3&","&AM$2&",Period:="&$B$1&",InputChoice1:=Close,InputChoice2::=Close)", "FG", "", "Close",$B$2,A22, "all","", "","True","T")/100,"") -> 0.1243549598 | AO22: -0.64 | AP22: 0 | AS22: =IFERROR(RTD("cqg.rtd",,"StudyData", "Correlation("&$B$3&","&AS$2&",Period:="&$B$1&",InputChoice1:=Close,InputChoice2::=Close)", "FG", "", "Close",$B$2,A22, "all","", "","True","T")/100,"") -> -0.4805179462 | AU22: -0.64 | AV22: 0 | AY22: =IFERROR(RTD("cqg.rtd",,"StudyData", "Correlation("&$B$3&","&AY$2&",Period:="&$B$1&",InputChoice1:=Close,InputChoice2::=Close)", "FG", "", "Close",$B$2,A22, "all","", "","True","T")/100,"") -> 0.1383489353 | BA22: -0.64 | BB22: 0 | BE22: =IFERROR(RTD("cqg.rtd",,"StudyData", "Correlation("&$B$3&","&BE$2&",Period:="&$B$1&",InputChoice1:=Close,InputChoice2::=Close)", "FG", "", "Close",$B$2,A22, "all","", "","True","T")/100,"") -> 0.234591297 | BG22: -0.64 | BH22: 1
A23: -19 | C23: =IFERROR(RTD("cqg.rtd",,"StudyData", "Correlation("&$B$3&","&C$2&",Period:="&$B$1&",InputChoice1:=Close,InputChoice2:=Close)", "FG", "", "Close",$B$2,A23, "all","", "","True","T")/100,"") -> 0.7934934965 | E23: -0.62 | F23: 0 | I23: =IFERROR(RTD("cqg.rtd",,"StudyData", "Correlation("&$B$3&","&I$2&",Period:="&$B$1&",InputChoice1:=Close,InputChoice2::=Close)", "FG", "", "Close",$B$2,A23, "all","", "","True","T")/100,"") -> 0.8903078568 | K23: -0.62 | L23: 0 | O23: =IFERROR(RTD("cqg.rtd",,"StudyData", "Correlation("&$B$3&","&O$2&",Period:="&$B$1&",InputChoice1:=Close,InputChoice2::=Close)", "FG", "", "Close",$B$2,A23, "all","", "","True","T")/100,"") -> 0.927477222 | Q23: -0.62 | R23: 0 | U23: =IFERROR(RTD("cqg.rtd",,"StudyData", "Correlation("&$B$3&","&U$2&",Period:="&$B$1&",InputChoice1:=Close,InputChoice2::=Close)", "FG", "", "Close",$B$2,A23, "all","", "","True","T")/100,"") -> -0.8388154645 | W23: -0.62 | X23: 0 | AA23: =IFERROR(RTD("cqg.rtd",,"StudyData", "Correlation("&$B$3&","&AA$2&",Period:="&$B$1&",InputChoice1:=Close,InputChoice2::=Close)", "FG", "", "Close",$B$2,A23, "all","", "","True","T")/100,"") -> 0.8697108189 | AC23: -0.62 | AD23: 0 | AG23: =IFERROR(RTD("cqg.rtd",,"StudyData", "Correlation("&$B$3&","&AG$2&",Period:="&$B$1&",InputChoice1:=Close,InputChoice2::=Close)", "FG", "", "Close",$B$2,A23, "all","", "","True","T")/100,"") -> 0.6852827548 | AI23: -0.62 | AJ23: 0 | AM23: =IFERROR(RTD("cqg.rtd",,"StudyData", "Correlation("&$B$3&","&AM$2&",Period:="&$B$1&",InputChoice1:=Close,InputChoice2::=Close)", "FG", "", "Close",$B$2,A23, "all","", "","True","T")/100,"") -> 0.2338400495 | AO23: -0.62 | AP23: 0 | AS23: =IFERROR(RTD("cqg.rtd",,"StudyData", "Correlation("&$B$3&","&AS$2&",Period:="&$B$1&",InputChoice1:=Close,InputChoice2::=Close)", "FG", "", "Close",$B$2,A23, "all","", "","True","T")/100,"") -> -0.2984847391 | AU23: -0.62 | AV23: 2 | AY23: =IFERROR(RTD("cqg.rtd",,"StudyData", "Correlation("&$B$3&","&AY$2&",Period:="&$B$1&",InputChoice1:=Close,InputChoice2::=Close)", "FG", "", "Close",$B$2,A23, "all","", "","True","T")/100,"") -> -0.01535559178 | BA23: -0.62 | BB23: 2 | BE23: =IFERROR(RTD("cqg.rtd",,"StudyData", "Correlation("&$B$3&","&BE$2&",Period:="&$B$1&",InputChoice1:=Close,InputChoice2::=Close)", "FG", "", "Close",$B$2,A23, "all","", "","True","T")/100,"") -> 0.07682903018 | BG23: -0.62 | BH23: 1
A24: -20 | C24: =IFERROR(RTD("cqg.rtd",,"StudyData", "Correlation("&$B$3&","&C$2&",Period:="&$B$1&",InputChoice1:=Close,InputChoice2:=Close)", "FG", "", "Close",$B$2,A24, "all","", "","True","T")/100,"") -> 0.7644178844 | E24: -0.6 | F24: 0 | I24: =IFERROR(RTD("cqg.rtd",,"StudyData", "Correlation("&$B$3&","&I$2&",Period:="&$B$1&",InputChoice1:=Close,InputChoice2::=Close)", "FG", "", "Close",$B$2,A24, "all","", "","True","T")/100,"") -> 0.864647621 | K24: -0.6 | L24: 0 | O24: =IFERROR(RTD("cqg.rtd",,"StudyData", "Correlation("&$B$3&","&O$2&",Period:="&$B$1&",InputChoice1:=Close,InputChoice2::=Close)", "FG", "", "Close",$B$2,A24, "all","", "","True","T")/100,"") -> 0.9115884871 | Q24: -0.6 | R24: 0 | U24: =IFERROR(RTD("cqg.rtd",,"StudyData", "Correlation("&$B$3&","&U$2&",Period:="&$B$1&",InputChoice1:=Close,InputChoice2::=Close)", "FG", "", "Close",$B$2,A24, "all","", "","True","T")/100,"") -> -0.8085846741 | W24: -0.6 | X24: 2 | AA24: =IFERROR(RTD("cqg.rtd",,"StudyData", "Correlation("&$B$3&","&AA$2&",Period:="&$B$1&",InputChoice1:=Close,InputChoice2::=Close)", "FG", "", "Close",$B$2,A24, "all","", "","True","T")/100,"") -> 0.8920666937 | AC24: -0.6 | AD24: 0 | AG24: =IFERROR(RTD("cqg.rtd",,"StudyData", "Correlation("&$B$3&","&AG$2&",Period:="&$B$1&",InputChoice1:=Close,InputChoice2::=Close)", "FG", "", "Close",$B$2,A24, "all","", "","True","T")/100,"") -> 0.7484971244 | AI24: -0.6 | AJ24: 0 | AM24: =IFERROR(RTD("cqg.rtd",,"StudyData", "Correlation("&$B$3&","&AM$2&",Period:="&$B$1&",InputChoice1:=Close,InputChoice2::=Close)", "FG", "", "Close",$B$2,A24, "all","", "","True","T")/100,"") -> 0.2906439768 | AO24: -0.6 | AP24: 0 | AS24: =IFERROR(RTD("cqg.rtd",,"StudyData", "Correlation("&$B$3&","&AS$2&",Period:="&$B$1&",InputChoice1:=Close,InputChoice2::=Close)", "FG", "", "Close",$B$2,A24, "all","", "","True","T")/100,"") -> -0.1240616361 | AU24: -0.6 | AV24: 1 | AY24: =IFERROR(RTD("cqg.rtd",,"StudyData", "Correlation("&$B$3&","&AY$2&",Period:="&$B$1&",InputChoice1:=Close,InputChoice2::=Close)", "FG", "", "Close",$B$2,A24, "all","", "","True","T")/100,"") -> -0.1848522032 | BA24: -0.6 | BB24: 2 | BE24: =IFERROR(RTD("cqg.rtd",,"StudyData", "Correlation("&$B$3&","&BE$2&",Period:="&$B$1&",InputChoice1:=Close,InputChoice2::=Close)", "FG", "", "Close",$B$2,A24, "all","", "","True","T")/100,"") -> -0.1380620659 | BG24: -0.6 | BH24: 1
A25: -21 | C25: =IFERROR(RTD("cqg.rtd",,"StudyData", "Correlation("&$B$3&","&C$2&",Period:="&$B$1&",InputChoice1:=Close,InputChoice2:=Close)", "FG", "", "Close",$B$2,A25, "all","", "","True","T")/100,"") -> 0.8159605648 | E25: -0.58 | F25: 0 | I25: =IFERROR(RTD("cqg.rtd",,"StudyData", "Correlation("&$B$3&","&I$2&",Period:="&$B$1&",InputChoice1:=Close,InputChoice2::=Close)", "FG", "", "Close",$B$2,A25, "all","", "","True","T")/100,"") -> 0.8698958391 | K25: =K24+0.02 -> -0.58 | L25: 0 | O25: =IFERROR(RTD("cqg.rtd",,"StudyData", "Correlation("&$B$3&","&O$2&",Period:="&$B$1&",InputChoice1:=Close,InputChoice2::=Close)", "FG", "", "Close",$B$2,A25, "all","", "","True","T")/100,"") -> 0.9092284383 | Q25: -0.58 | R25: 0 | U25: =IFERROR(RTD("cqg.rtd",,"StudyData", "Correlation("&$B$3&","&U$2&",Period:="&$B$1&",InputChoice1:=Close,InputChoice2::=Close)", "FG", "", "Close",$B$2,A25, "all","", "","True","T")/100,"") -> -0.8243982521 | W25: -0.58 | X25: 2 | AA25: =IFERROR(RTD("cqg.rtd",,"StudyData", "Correlation("&$B$3&","&AA$2&",Period:="&$B$1&",InputChoice1:=Close,InputChoice2::=Close)", "FG", "", "Close",$B$2,A25, "all","", "","True","T")/100,"") -> 0.9124174499 | AC25: -0.58 | AD25: 0 | AG25: =IFERROR(RTD("cqg.rtd",,"StudyData", "Correlation("&$B$3&","&AG$2&",Period:="&$B$1&",InputChoice1:=Close,InputChoice2::=Close)", "FG", "", "Close",$B$2,A25, "all","", "","True","T")/100,"") -> 0.8298394648 | AI25: -0.58 | AJ25: 0 | AM25: =IFERROR(RTD("cqg.rtd",,"StudyData", "Correlation("&$B$3&","&AM$2&",Period:="&$B$1&",InputChoice1:=Close,InputChoice2::=Close)", "FG", "", "Close",$B$2,A25, "all","", "","True","T")/100,"") -> 0.3382603822 | AO25: -0.58 | AP25: 0 | AS25: =IFERROR(RTD("cqg.rtd",,"StudyData", "Correlation("&$B$3&","&AS$2&",Period:="&$B$1&",InputChoice1:=Close,InputChoice2::=Close)", "FG", "", "Close",$B$2,A25, "all","", "","True","T")/100,"") -> 0.1188407314 | AU25: -0.58 | AV25: 3 | AY25: =IFERROR(RTD("cqg.rtd",,"StudyData", "Correlation("&$B$3&","&AY$2&",Period:="&$B$1&",InputChoice1:=Close,InputChoice2::=Close)", "FG", "", "Close",$B$2,A25, "all","", "","True","T")/100,"") -> -0.6034141927 | BA25: -0.58 | BB25: 1 | BE25: =IFERROR(RTD("cqg.rtd",,"StudyData", "Correlation("&$B$3&","&BE$2&",Period:="&$B$1&",InputChoice1:=Close,InputChoice2::=Close)", "FG", "", "Close",$B$2,A25, "all","", "","True","T")/100,"") -> -0.01900027201 | BG25: -0.58 | BH25: 1
A26: -22 | C26: =IFERROR(RTD("cqg.rtd",,"StudyData", "Correlation("&$B$3&","&C$2&",Period:="&$B$1&",InputChoice1:=Close,InputChoice2:=Close)", "FG", "", "Close",$B$2,A26, "all","", "","True","T")/100,"") -> 0.8495477721 | E26: -0.56 | F26: 0 | I26: =IFERROR(RTD("cqg.rtd",,"StudyData", "Correlation("&$B$3&","&I$2&",Period:="&$B$1&",InputChoice1:=Close,InputChoice2::=Close)", "FG", "", "Close",$B$2,A26, "all","", "","True","T")/100,"") -> 0.8718779894 | K26: -0.56 | L26: 0 | O26: =IFERROR(RTD("cqg.rtd",,"StudyData", "Correlation("&$B$3&","&O$2&",Period:="&$B$1&",InputChoice1:=Close,InputChoice2::=Close)", "FG", "", "Close",$B$2,A26, "all","", "","True","T")/100,"") -> 0.8939425656 | Q26: -0.56 | R26: 0 | U26: =IFERROR(RTD("cqg.rtd",,"StudyData", "Correlation("&$B$3&","&U$2&",Period:="&$B$1&",InputChoice1:=Close,InputChoice2::=Close)", "FG", "", "Close",$B$2,A26, "all","", "","True","T")/100,"") -> -0.8566358642 | W26: -0.56 | X26: 3 | AA26: =IFERROR(RTD("cqg.rtd",,"StudyData", "Correlation("&$B$3&","&AA$2&",Period:="&$B$1&",InputChoice1:=Close,InputChoice2::=Close)", "FG", "", "Close",$B$2,A26, "all","", "","True","T")/100,"") -> 0.9216887271 | AC26: -0.56 | AD26: 0 | AG26: =IFERROR(RTD("cqg.rtd",,"StudyData", "Correlation("&$B$3&","&AG$2&",Period:="&$B$1&",InputChoice1:=Close,InputChoice2::=Close)", "FG", "", "Close",$B$2,A26, "all","", "","True","T")/100,"") -> 0.8618161587 | AI26: -0.56 | AJ26: 0 | AM26: =IFERROR(RTD("cqg.rtd",,"StudyData", "Correlation("&$B$3&","&AM$2&",Period:="&$B$1&",InputChoice1:=Close,InputChoice2::=Close)", "FG", "", "Close",$B$2,A26, "all","", "","True","T")/100,"") -> 0.5199378823 | AO26: -0.56 | AP26: 0 | AS26: =IFERROR(RTD("cqg.rtd",,"StudyData", "Correlation("&$B$3&","&AS$2&",Period:="&$B$1&",InputChoice1:=Close,InputChoice2::=Close)", "FG", "", "Close",$B$2,A26, "all","", "","True","T")/100,"") -> 0.2717328002 | AU26: -0.56 | AV26: 2 | AY26: =IFERROR(RTD("cqg.rtd",,"StudyData", "Correlation("&$B$3&","&AY$2&",Period:="&$B$1&",InputChoice1:=Close,InputChoice2::=Close)", "FG", "", "Close",$B$2,A26, "all","", "","True","T")/100,"") -> -0.8411130055 | BA26: -0.56 | BB26: 0 | BE26: =IFERROR(RTD("cqg.rtd",,"StudyData", "Correlation("&$B$3&","&BE$2&",Period:="&$B$1&",InputChoice1:=Close,InputChoice2::=Close)", "FG", "", "Close",$B$2,A26, "all","", "","True","T")/100,"") -> -0.06140546986 | BG26: -0.56 | BH26: 1
A27: -23 | C27: =IFERROR(RTD("cqg.rtd",,"StudyData", "Correlation("&$B$3&","&C$2&",Period:="&$B$1&",InputChoice1:=Close,InputChoice2:=Close)", "FG", "", "Close",$B$2,A27, "all","", "","True","T")/100,"") -> 0.8763735703 | E27: -0.54 | F27: 0 | I27: =IFERROR(RTD("cqg.rtd",,"StudyData", "Correlation("&$B$3&","&I$2&",Period:="&$B$1&",InputChoice1:=Close,InputChoice2::=Close)", "FG", "", "Close",$B$2,A27, "all","", "","True","T")/100,"") -> 0.8613501647 | K27: -0.54 | L27: 0 | O27: =IFERROR(RTD("cqg.rtd",,"StudyData", "Correlation("&$B$3&","&O$2&",Period:="&$B$1&",InputChoice1:=Close,InputChoice2::=Close)", "FG", "", "Close",$B$2,A27, "all","", "","True","T")/100,"") -> 0.9158303854 | Q27: -0.54 | R27: 0 | U27: =IFERROR(RTD("cqg.rtd",,"StudyData", "Correlation("&$B$3&","&U$2&",Period:="&$B$1&",InputChoice1:=Close,InputChoice2::=Close)", "FG", "", "Close",$B$2,A27, "all","", "","True","T")/100,"") -> -0.8236154451 | W27: -0.54 | X27: 2 | AA27: =IFERROR(RTD("cqg.rtd",,"StudyData", "Correlation("&$B$3&","&AA$2&",Period:="&$B$1&",InputChoice1:=Close,InputChoice2::=Close)", "FG", "", "Close",$B$2,A27, "all","", "","True","T")/100,"") -> 0.9143991957 | AC27: -0.54 | AD27: 0 | AG27: =IFERROR(RTD("cqg.rtd",,"StudyData", "Correlation("&$B$3&","&AG$2&",Period:="&$B$1&",InputChoice1:=Close,InputChoice2::=Close)", "FG", "", "Close",$B$2,A27, "all","", "","True","T")/100,"") -> 0.8690298142 | AI27: -0.54 | AJ27: 0 | AM27: =IFERROR(RTD("cqg.rtd",,"StudyData", "Correlation("&$B$3&","&AM$2&",Period:="&$B$1&",InputChoice1:=Close,InputChoice2::=Close)", "FG", "", "Close",$B$2,A27, "all","", "","True","T")/100,"") -> 0.6135752755 | AO27: -0.54 | AP27: 0 | AS27: =IFERROR(RTD("cqg.rtd",,"StudyData", "Correlation("&$B$3&","&AS$2&",Period:="&$B$1&",InputChoice1:=Close,InputChoice2::=Close)", "FG", "", "Close",$B$2,A27, "all","", "","True","T")/100,"") -> 0.3982431034 | AU27: -0.54 | AV27: 3 | AY27: =IFERROR(RTD("cqg.rtd",,"StudyData", "Correlation("&$B$3&","&AY$2&",Period:="&$B$1&",InputChoice1:=Close,InputChoice2::=Close)", "FG", "", "Close",$B$2,A27, "all","", "","True","T")/100,"") -> -0.9041287611 | BA27: -0.54 | BB27: 2 | BE27: =IFERROR(RTD("cqg.rtd",,"StudyData", "Correlation("&$B$3&","&BE$2&",Period:="&$B$1&",InputChoice1:=Close,InputChoice2::=Close)", "FG", "", "Close",$B$2,A27, "all","", "","True","T")/100,"") -> -0.0185911218 | BG27: -0.54 | BH27: 2
A28: -24 | C28: =IFERROR(RTD("cqg.rtd",,"StudyData", "Correlation("&$B$3&","&C$2&",Period:="&$B$1&",InputChoice1:=Close,InputChoice2:=Close)", "FG", "", "Close",$B$2,A28, "all","", "","True","T")/100,"") -> 0.9214607622 | E28: -0.52 | F28: 0 | I28: =IFERROR(RTD("cqg.rtd",,"StudyData", "Correlation("&$B$3&","&I$2&",Period:="&$B$1&",InputChoice1:=Close,InputChoice2::=Close)", "FG", "", "Close",$B$2,A28, "all","", "","True","T")/100,"") -> 0.9013848344 | K28: -0.52 | L28: 0 | O28: =IFERROR(RTD("cqg.rtd",,"StudyData", "Correlation("&$B$3&","&O$2&",Period:="&$B$1&",InputChoice1:=Close,InputChoice2::=Close)", "FG", "", "Close",$B$2,A28, "all","", "","True","T")/100,"") -> 0.9251529548 | Q28: -0.52 | R28: 0 | U28: =IFERROR(RTD("cqg.rtd",,"StudyData", "Correlation("&$B$3&","&U$2&",Period:="&$B$1&",InputChoice1:=Close,InputChoice2::=Close)", "FG", "", "Close",$B$2,A28, "all","", "","True","T")/100,"") -> -0.6434347457 | W28: -0.52 | X28: 3 | AA28: =IFERROR(RTD("cqg.rtd",,"StudyData", "Correlation("&$B$3&","&AA$2&",Period:="&$B$1&",InputChoice1:=Close,InputChoice2::=Close)", "FG", "", "Close",$B$2,A28, "all","", "","True","T")/100,"") -> 0.9229445589 | AC28: -0.52 | AD28: 0 | AG28: =IFERROR(RTD("cqg.rtd",,"StudyData", "Correlation("&$B$3&","&AG$2&",Period:="&$B$1&",InputChoice1:=Close,InputChoice2::=Close)", "FG", "", "Close",$B$2,A28, "all","", "","True","T")/100,"") -> 0.8812535456 | AI28: -0.52 | AJ28: 0 | AM28: =IFERROR(RTD("cqg.rtd",,"StudyData", "Correlation("&$B$3&","&AM$2&",Period:="&$B$1&",InputChoice1:=Close,InputChoice2::=Close)", "FG", "", "Close",$B$2,A28, "all","", "","True","T")/100,"") -> 0.7099644412 | AO28: -0.52 | AP28: 0 | AS28: =IFERROR(RTD("cqg.rtd",,"StudyData", "Correlation("&$B$3&","&AS$2&",Period:="&$B$1&",InputChoice1:=Close,InputChoice2::=Close)", "FG", "", "Close",$B$2,A28, "all","", "","True","T")/100,"") -> 0.3317596522 | AU28: -0.52 | AV28: 3 | AY28: =IFERROR(RTD("cqg.rtd",,"StudyData", "Correlation("&$B$3&","&AY$2&",Period:="&$B$1&",InputChoice1:=Close,InputChoice2::=Close)", "FG", "", "Close",$B$2,A28, "all","", "","True","T")/100,"") -> -0.8056764131 | BA28: -0.52 | BB28: 0 | BE28: =IFERROR(RTD("cqg.rtd",,"StudyData", "Correlation("&$B$3&","&BE$2&",Period:="&$B$1&",InputChoice1:=Close,InputChoice2::=Close)", "FG", "", "Close",$B$2,A28, "all","", "","True","T")/100,"") -> 0.06562311335 | BG28: -0.52 | BH28: 0
A29: -25 | C29: =IFERROR(RTD("cqg.rtd",,"StudyData", "Correlation("&$B$3&","&C$2&",Period:="&$B$1&",InputChoice1:=Close,InputChoice2:=Close)", "FG", "", "Close",$B$2,A29, "all","", "","True","T")/100,"") -> 0.9383009332 | E29: -0.5 | F29: 0 | I29: =IFERROR(RTD("cqg.rtd",,"StudyData", "Correlation("&$B$3&","&I$2&",Period:="&$B$1&",InputChoice1:=Close,InputChoice2::=Close)", "FG", "", "Close",$B$2,A29, "all","", "","True","T")/100,"") -> 0.9262288517 | K29: -0.5 | L29: 0 | O29: =IFERROR(RTD("cqg.rtd",,"StudyData", "Correlation("&$B$3&","&O$2&",Period:="&$B$1&",InputChoice1:=Close,InputChoice2::=Close)", "FG", "", "Close",$B$2,A29, "all","", "","True","T")/100,"") -> 0.9432707595 | Q29: -0.5 | R29: 0 | U29: =IFERROR(RTD("cqg.rtd",,"StudyData", "Correlation("&$B$3&","&U$2&",Period:="&$B$1&",InputChoice1:=Close,InputChoice2::=Close)", "FG", "", "Close",$B$2,A29, "all","", "","True","T")/100,"") -> -0.5891837297 | W29: -0.5 | X29: 4 | AA29: =IFERROR(RTD("cqg.rtd",,"StudyData", "Correlation("&$B$3&","&AA$2&",Period:="&$B$1&",InputChoice1:=Close,InputChoice2::=Close)", "FG", "", "Close",$B$2,A29, "all","", "","True","T")/100,"") -> 0.928568237 | AC29: -0.5 | AD29: 0 | AG29: =IFERROR(RTD("cqg.rtd",,"StudyData", "Correlation("&$B$3&","&AG$2&",Period:="&$B$1&",InputChoice1:=Close,InputChoice2::=Close)", "FG", "", "Close",$B$2,A29, "all","", "","True","T")/100,"") -> 0.9050877474 | AI29: -0.5 | AJ29: 0 | AM29: =IFERROR(RTD("cqg.rtd",,"StudyData", "Correlation("&$B$3&","&AM$2&",Period:="&$B$1&",InputChoice1:=Close,InputChoice2::=Close)", "FG", "", "Close",$B$2,A29, "all","", "","True","T")/100,"") -> 0.8140194274 | AO29: -0.5 | AP29: 0 | AS29: =IFERROR(RTD("cqg.rtd",,"StudyData", "Correlation("&$B$3&","&AS$2&",Period:="&$B$1&",InputChoice1:=Close,InputChoice2::=Close)", "FG", "", "Close",$B$2,A29, "all","", "","True","T")/100,"") -> 0.2240123869 | AU29: -0.5 | AV29: 1 | AY29: =IFERROR(RTD("cqg.rtd",,"StudyData", "Correlation("&$B$3&","&AY$2&",Period:="&$B$1&",InputChoice1:=Close,InputChoice2::=Close)", "FG", "", "Close",$B$2,A29, "all","", "","True","T")/100,"") -> -0.7020990714 | BA29: -0.5 | BB29: 2 | BE29: =IFERROR(RTD("cqg.rtd",,"StudyData", "Correlation("&$B$3&","&BE$2&",Period:="&$B$1&",InputChoice1:=Close,InputChoice2::=Close)", "FG", "", "Close",$B$2,A29, "all","", "","True","T")/100,"") -> 0.08987570379 | BG29: -0.5 | BH29: 0
A30: -26 | C30: =IFERROR(RTD("cqg.rtd",,"StudyData", "Correlation("&$B$3&","&C$2&",Period:="&$B$1&",InputChoice1:=Close,InputChoice2:=Close)", "FG", "", "Close",$B$2,A30, "all","", "","True","T")/100,"") -> 0.9515726912 | E30: -0.48 | F30: 0 | I30: =IFERROR(RTD("cqg.rtd",,"StudyData", "Correlation("&$B$3&","&I$2&",Period:="&$B$1&",InputChoice1:=Close,InputChoice2::=Close)", "FG", "", "Close",$B$2,A30, "all","", "","True","T")/100,"") -> 0.939066162 | K30: -0.48 | L30: 0 | O30: =IFERROR(RTD("cqg.rtd",,"StudyData", "Correlation("&$B$3&","&O$2&",Period:="&$B$1&",InputChoice1:=Close,InputChoice2::=Close)", "FG", "", "Close",$B$2,A30, "all","", "","True","T")/100,"") -> 0.9551861825 | Q30: -0.48 | R30: 0 | U30: =IFERROR(RTD("cqg.rtd",,"StudyData", "Correlation("&$B$3&","&U$2&",Period:="&$B$1&",InputChoice1:=Close,InputChoice2::=Close)", "FG", "", "Close",$B$2,A30, "all","", "","True","T")/100,"") -> -0.6091058955 | W30: -0.48 | X30: 5 | AA30: =IFERROR(RTD("cqg.rtd",,"StudyData", "Correlation("&$B$3&","&AA$2&",Period:="&$B$1&",InputChoice1:=Close,InputChoice2::=Close)", "FG", "", "Close",$B$2,A30, "all","", "","True","T")/100,"") -> 0.9295722217 | AC30: -0.48 | AD30: 0 | AG30: =IFERROR(RTD("cqg.rtd",,"StudyData", "Correlation("&$B$3&","&AG$2&",Period:="&$B$1&",InputChoice1:=Close,InputChoice2::=Close)", "FG", "", "Close",$B$2,A30, "all","", "","True","T")/100,"") -> 0.9084927693 | AI30: -0.48 | AJ30: 0 | AM30: =IFERROR(RTD("cqg.rtd",,"StudyData", "Correlation("&$B$3&","&AM$2&",Period:="&$B$1&",InputChoice1:=Close,InputChoice2::=Close)", "FG", "", "Close",$B$2,A30, "all","", "","True","T")/100,"") -> 0.8462832054 | AO30: -0.48 | AP30: 0 | AS30: =IFERROR(RTD("cqg.rtd",,"StudyData", "Correlation("&$B$3&","&AS$2&",Period:="&$B$1&",InputChoice1:=Close,InputChoice2::=Close)", "FG", "", "Close",$B$2,A30, "all","", "","True","T")/100,"") -> 0.1173044153 | AU30: -0.48 | AV30: 1 | AY30: =IFERROR(RTD("cqg.rtd",,"StudyData", "Correlation("&$B$3&","&AY$2&",Period:="&$B$1&",InputChoice1:=Close,InputChoice2::=Close)", "FG", "", "Close",$B$2,A30, "all","", "","True","T")/100,"") -> -0.4406692321 | BA30: -0.48 | BB30: 2 | BE30: =IFERROR(RTD("cqg.rtd",,"StudyData", "Correlation("&$B$3&","&BE$2&",Period:="&$B$1&",InputChoice1:=Close,InputChoice2::=Close)", "FG", "", "Close",$B$2,A30, "all","", "","True","T")/100,"") -> 0.05114996832 | BG30: -0.48 | BH30: 1
A31: -27 | C31: =IFERROR(RTD("cqg.rtd",,"StudyData", "Correlation("&$B$3&","&C$2&",Period:="&$B$1&",InputChoice1:=Close,InputChoice2:=Close)", "FG", "", "Close",$B$2,A31, "all","", "","True","T")/100,"") -> 0.9501993181 | E31: -0.46 | F31: 0 | I31: =IFERROR(RTD("cqg.rtd",,"StudyData", "Correlation("&$B$3&","&I$2&",Period:="&$B$1&",InputChoice1:=Close,InputChoice2::=Close)", "FG", "", "Close",$B$2,A31, "all","", "","True","T")/100,"") -> 0.9362558372 | K31: -0.46 | L31: 0 | O31: =IFERROR(RTD("cqg.rtd",,"StudyData", "Correlation("&$B$3&","&O$2&",Period:="&$B$1&",InputChoice1:=Close,InputChoice2::=Close)", "FG", "", "Close",$B$2,A31, "all","", "","True","T")/100,"") -> 0.9574300488 | Q31: -0.46 | R31: 0 | U31: =IFERROR(RTD("cqg.rtd",,"StudyData", "Correlation("&$B$3&","&U$2&",Period:="&$B$1&",InputChoice1:=Close,InputChoice2::=Close)", "FG", "", "Close",$B$2,A31, "all","", "","True","T")/100,"") -> -0.5919687137 | W31: -0.46 | X31: 2 | AA31: =IFERROR(RTD("cqg.rtd",,"StudyData", "Correlation("&$B$3&","&AA$2&",Period:="&$B$1&",InputChoice1:=Close,InputChoice2::=Close)", "FG", "", "Close",$B$2,A31, "all","", "","True","T")/100,"") -> 0.932734684 | AC31: -0.46 | AD31: 0 | AG31: =IFERROR(RTD("cqg.rtd",,"StudyData", "Correlation("&$B$3&","&AG$2&",Period:="&$B$1&",InputChoice1:=Close,InputChoice2::=Close)", "FG", "", "Close",$B$2,A31, "all","", "","True","T")/100,"") -> 0.8892845707 | AI31: -0.46 | AJ31: 0 | AM31: =IFERROR(RTD("cqg.rtd",,"StudyData", "Correlation("&$B$3&","&AM$2&",Period:="&$B$1&",InputChoice1:=Close,InputChoice2::=Close)", "FG", "", "Close",$B$2,A31, "all","", "","True","T")/100,"") -> 0.8940801443 | AO31: -0.46 | AP31: 1 | AS31: =IFERROR(RTD("cqg.rtd",,"StudyData", "Correlation("&$B$3&","&AS$2&",Period:="&$B$1&",InputChoice1:=Close,InputChoice2::=Close)", "FG", "", "Close",$B$2,A31, "all","", "","True","T")/100,"") -> -0.02455128743 | AU31: -0.46 | AV31: 2 | AY31: =IFERROR(RTD("cqg.rtd",,"StudyData", "Correlation("&$B$3&","&AY$2&",Period:="&$B$1&",InputChoice1:=Close,InputChoice2::=Close)", "FG", "", "Close",$B$2,A31, "all","", "","True","T")/100,"") -> -0.223091271 | BA31: -0.46 | BB31: 3 | BE31: =IFERROR(RTD("cqg.rtd",,"StudyData", "Correlation("&$B$3&","&BE$2&",Period:="&$B$1&",InputChoice1:=Close,InputChoice2::=Close)", "FG", "", "Close",$B$2,A31, "all","", "","True","T")/100,"") -> 0.2172667246 | BG31: -0.46 | BH31: 0
A32: -28 | C32: =IFERROR(RTD("cqg.rtd",,"StudyData", "Correlation("&$B$3&","&C$2&",Period:="&$B$1&",InputChoice1:=Close,InputChoice2:=Close)", "FG", "", "Close",$B$2,A32, "all","", "","True","T")/100,"") -> 0.9074206177 | E32: -0.44 | F32: 0 | I32: =IFERROR(RTD("cqg.rtd",,"StudyData", "Correlation("&$B$3&","&I$2&",Period:="&$B$1&",InputChoice1:=Close,InputChoice2::=Close)", "FG", "", "Close",$B$2,A32, "all","", "","True","T")/100,"") -> 0.9073365581 | K32: -0.44 | L32: 0 | O32: =IFERROR(RTD("cqg.rtd",,"StudyData", "Correlation("&$B$3&","&O$2&",Period:="&$B$1&",InputChoice1:=Close,InputChoice2::=Close)", "FG", "", "Close",$B$2,A32, "all","", "","True","T")/100,"") -> 0.9396590302 | Q32: -0.44 | R32: 0 | U32: =IFERROR(RTD("cqg.rtd",,"StudyData", "Correlation("&$B$3&","&U$2&",Period:="&$B$1&",InputChoice1:=Close,InputChoice2::=Close)", "FG", "", "Close",$B$2,A32, "all","", "","True","T")/100,"") -> -0.5785643595 | W32: -0.44 | X32: 6 | AA32: =IFERROR(RTD("cqg.rtd",,"StudyData", "Correlation("&$B$3&","&AA$2&",Period:="&$B$1&",InputChoice1:=Close,InputChoice2::=Close)", "FG", "", "Close",$B$2,A32, "all","", "","True","T")/100,"") -> 0.9274061633 | AC32: -0.44 | AD32: 0 | AG32: =IFERROR(RTD("cqg.rtd",,"StudyData", "Correlation("&$B$3&","&AG$2&",Period:="&$B$1&",InputChoice1:=Close,InputChoice2::=Close)", "FG", "", "Close",$B$2,A32, "all","", "","True","T")/100,"") -> 0.8746622035 | AI32: -0.44 | AJ32: 0 | AM32: =IFERROR(RTD("cqg.rtd",,"StudyData", "Correlation("&$B$3&","&AM$2&",Period:="&$B$1&",InputChoice1:=Close,InputChoice2::=Close)", "FG", "", "Close",$B$2,A32, "all","", "","True","T")/100,"") -> 0.9007508484 | AO32: -0.44 | AP32: 0 | AS32: =IFERROR(RTD("cqg.rtd",,"StudyData", "Correlation("&$B$3&","&AS$2&",Period:="&$B$1&",InputChoice1:=Close,InputChoice2::=Close)", "FG", "", "Close",$B$2,A32, "all","", "","True","T")/100,"") -> -0.1433240689 | AU32: -0.44 | AV32: 2 | AY32: =IFERROR(RTD("cqg.rtd",,"StudyData", "Correlation("&$B$3&","&AY$2&",Period:="&$B$1&",InputChoice1:=Close,InputChoice2::=Close)", "FG", "", "Close",$B$2,A32, "all","", "","True","T")/100,"") -> -0.02686510635 | BA32: -0.44 | BB32: 2 | BE32: =IFERROR(RTD("cqg.rtd",,"StudyData", "Correlation("&$B$3&","&BE$2&",Period:="&$B$1&",InputChoice1:=Close,InputChoice2::=Close)", "FG", "", "Close",$B$2,A32, "all","", "","True","T")/100,"") -> 0.3570800729 | BG32: -0.44 | BH32: 0
A33: -29 | C33: =IFERROR(RTD("cqg.rtd",,"StudyData", "Correlation("&$B$3&","&C$2&",Period:="&$B$1&",InputChoice1:=Close,InputChoice2:=Close)", "FG", "", "Close",$B$2,A33, "all","", "","True","T")/100,"") -> 0.9071058215 | E33: -0.42 | F33: 0 | I33: =IFERROR(RTD("cqg.rtd",,"StudyData", "Correlation("&$B$3&","&I$2&",Period:="&$B$1&",InputChoice1:=Close,InputChoice2::=Close)", "FG", "", "Close",$B$2,A33, "all","", "","True","T")/100,"") -> 0.9070898318 | K33: -0.42 | L33: 0 | O33: =IFERROR(RTD("cqg.rtd",,"StudyData", "Correlation("&$B$3&","&O$2&",Period:="&$B$1&",InputChoice1:=Close,InputChoice2::=Close)", "FG", "", "Close",$B$2,A33, "all","", "","True","T")/100,"") -> 0.9426200758 | Q33: -0.42 | R33: 0 | U33: =IFERROR(RTD("cqg.rtd",,"StudyData", "Correlation("&$B$3&","&U$2&",Period:="&$B$1&",InputChoice1:=Close,InputChoice2::=Close)", "FG", "", "Close",$B$2,A33, "all","", "","True","T")/100,"") -> -0.4405790308 | W33: -0.42 | X33: 1 | AA33: =IFERROR(RTD("cqg.rtd",,"StudyData", "Correlation("&$B$3&","&AA$2&",Period:="&$B$1&",InputChoice1:=Close,InputChoice2::=Close)", "FG", "", "Close",$B$2,A33, "all","", "","True","T")/100,"") -> 0.9213341485 | AC33: -0.42 | AD33: 0 | AG33: =IFERROR(RTD("cqg.rtd",,"StudyData", "Correlation("&$B$3&","&AG$2&",Period:="&$B$1&",InputChoice1:=Close,InputChoice2::=Close)", "FG", "", "Close",$B$2,A33, "all","", "","True","T")/100,"") -> 0.8599602077 | AI33: -0.42 | AJ33: 0 | AM33: =IFERROR(RTD("cqg.rtd",,"StudyData", "Correlation("&$B$3&","&AM$2&",Period:="&$B$1&",InputChoice1:=Close,InputChoice2::=Close)", "FG", "", "Close",$B$2,A33, "all","", "","True","T")/100,"") -> 0.8991242529 | AO33: -0.42 | AP33: 0 | AS33: =IFERROR(RTD("cqg.rtd",,"StudyData", "Correlation("&$B$3&","&AS$2&",Period:="&$B$1&",InputChoice1:=Close,InputChoice2::=Close)", "FG", "", "Close",$B$2,A33, "all","", "","True","T")/100,"") -> -0.2205514666 | AU33: -0.42 | AV33: 1 | AY33: =IFERROR(RTD("cqg.rtd",,"StudyData", "Correlation("&$B$3&","&AY$2&",Period:="&$B$1&",InputChoice1:=Close,InputChoice2::=Close)", "FG", "", "Close",$B$2,A33, "all","", "","True","T")/100,"") -> 0.1038241378 | BA33: -0.42 | BB33: 1 | BE33: =IFERROR(RTD("cqg.rtd",,"StudyData", "Correlation("&$B$3&","&BE$2&",Period:="&$B$1&",InputChoice1:=Close,InputChoice2::=Close)", "FG", "", "Close",$B$2,A33, "all","", "","True","T")/100,"") -> 0.5279523968 | BG33: -0.42 | BH33: 1
A34: -30 | C34: =IFERROR(RTD("cqg.rtd",,"StudyData", "Correlation("&$B$3&","&C$2&",Period:="&$B$1&",InputChoice1:=Close,InputChoice2:=Close)", "FG", "", "Close",$B$2,A34, "all","", "","True","T")/100,"") -> 0.8916291415 | E34: -0.4 | F34: 0 | I34: =IFERROR(RTD("cqg.rtd",,"StudyData", "Correlation("&$B$3&","&I$2&",Period:="&$B$1&",InputChoice1:=Close,InputChoice2::=Close)", "FG", "", "Close",$B$2,A34, "all","", "","True","T")/100,"") -> 0.8789949141 | K34: -0.4 | L34: 0 | O34: =IFERROR(RTD("cqg.rtd",,"StudyData", "Correlation("&$B$3&","&O$2&",Period:="&$B$1&",InputChoice1:=Close,InputChoice2::=Close)", "FG", "", "Close",$B$2,A34, "all","", "","True","T")/100,"") -> 0.9448448648 | Q34: -0.4 | R34: 0 | U34: =IFERROR(RTD("cqg.rtd",,"StudyData", "Correlation("&$B$3&","&U$2&",Period:="&$B$1&",InputChoice1:=Close,InputChoice2::=Close)", "FG", "", "Close",$B$2,A34, "all","", "","True","T")/100,"") -> -0.3429950225 | W34: -0.4 | X34: 1 | AA34: =IFERROR(RTD("cqg.rtd",,"StudyData", "Correlation("&$B$3&","&AA$2&",Period:="&$B$1&",InputChoice1:=Close,InputChoice2::=Close)", "FG", "", "Close",$B$2,A34, "all","", "","True","T")/100,"") -> 0.9085171974 | AC34: -0.4 | AD34: 0 | AG34: =IFERROR(RTD("cqg.rtd",,"StudyData", "Correlation("&$B$3&","&AG$2&",Period:="&$B$1&",InputChoice1:=Close,InputChoice2::=Close)", "FG", "", "Close",$B$2,A34, "all","", "","True","T")/100,"") -> 0.8433877495 | AI34: -0.4 | AJ34: 0 | AM34: =IFERROR(RTD("cqg.rtd",,"StudyData", "Correlation("&$B$3&","&AM$2&",Period:="&$B$1&",InputChoice1:=Close,InputChoice2::=Close)", "FG", "", "Close",$B$2,A34, "all","", "","True","T")/100,"") -> 0.8813266458 | AO34: -0.4 | AP34: 1 | AS34: =IFERROR(RTD("cqg.rtd",,"StudyData", "Correlation("&$B$3&","&AS$2&",Period:="&$B$1&",InputChoice1:=Close,InputChoice2::=Close)", "FG", "", "Close",$B$2,A34, "all","", "","True","T")/100,"") -> -0.3278907993 | AU34: -0.4 | AV34: 1 | AY34: =IFERROR(RTD("cqg.rtd",,"StudyData", "Correlation("&$B$3&","&AY$2&",Period:="&$B$1&",InputChoice1:=Close,InputChoice2::=Close)", "FG", "", "Close",$B$2,A34, "all","", "","True","T")/100,"") -> 0.2526866223 | BA34: -0.4 | BB34: 0 | BE34: =IFERROR(RTD("cqg.rtd",,"StudyData", "Correlation("&$B$3&","&BE$2&",Period:="&$B$1&",InputChoice1:=Close,InputChoice2::=Close)", "FG", "", "Close",$B$2,A34, "all","", "","True","T")/100,"") -> 0.633277952 | BG34: -0.4 | BH34: 0
A35: -31 | C35: =IFERROR(RTD("cqg.rtd",,"StudyData", "Correlation("&$B$3&","&C$2&",Period:="&$B$1&",InputChoice1:=Close,InputChoice2:=Close)", "FG", "", "Close",$B$2,A35, "all","", "","True","T")/100,"") -> 0.8742431842 | E35: -0.38 | F35: 0 | I35: =IFERROR(RTD("cqg.rtd",,"StudyData", "Correlation("&$B$3&","&I$2&",Period:="&$B$1&",InputChoice1:=Close,InputChoice2::=Close)", "FG", "", "Close",$B$2,A35, "all","", "","True","T")/100,"") -> 0.8576740546 | K35: -0.38 | L35: 0 | O35: =IFERROR(RTD("cqg.rtd",,"StudyData", "Correlation("&$B$3&","&O$2&",Period:="&$B$1&",InputChoice1:=Close,InputChoice2::=Close)", "FG", "", "Close",$B$2,A35, "all","", "","True","T")/100,"") -> 0.9350568194 | Q35: -0.38 | R35: 0 | U35: =IFERROR(RTD("cqg.rtd",,"StudyData", "Correlation("&$B$3&","&U$2&",Period:="&$B$1&",InputChoice1:=Close,InputChoice2::=Close)", "FG", "", "Close",$B$2,A35, "all","", "","True","T")/100,"") -> -0.03457910951 | W35: -0.38 | X35: 1 | AA35: =IFERROR(RTD("cqg.rtd",,"StudyData", "Correlation("&$B$3&","&AA$2&",Period:="&$B$1&",InputChoice1:=Close,InputChoice2::=Close)", "FG", "", "Close",$B$2,A35, "all","", "","True","T")/100,"") -> 0.8994959894 | AC35: -0.38 | AD35: 1 | AG35: =IFERROR(RTD("cqg.rtd",,"StudyData", "Correlation("&$B$3&","&AG$2&",Period:="&$B$1&",InputChoice1:=Close,InputChoice2::=Close)", "FG", "", "Close",$B$2,A35, "all","", "","True","T")/100,"") -> 0.8239951594 | AI35: -0.38 | AJ35: 0 | AM35: =IFERROR(RTD("cqg.rtd",,"StudyData", "Correlation("&$B$3&","&AM$2&",Period:="&$B$1&",InputChoice1:=Close,InputChoice2::=Close)", "FG", "", "Close",$B$2,A35, "all","", "","True","T")/100,"") -> 0.8542052446 | AO35: -0.38 | AP35: 0 | AS35: =IFERROR(RTD("cqg.rtd",,"StudyData", "Correlation("&$B$3&","&AS$2&",Period:="&$B$1&",InputChoice1:=Close,InputChoice2::=Close)", "FG", "", "Close",$B$2,A35, "all","", "","True","T")/100,"") -> -0.3821466587 | AU35: -0.38 | AV35: 1 | AY35: =IFERROR(RTD("cqg.rtd",,"StudyData", "Correlation("&$B$3&","&AY$2&",Period:="&$B$1&",InputChoice1:=Close,InputChoice2::=Close)", "FG", "", "Close",$B$2,A35, "all","", "","True","T")/100,"") -> 0.3049711269 | BA35: -0.38 | BB35: 3 | BE35: =IFERROR(RTD("cqg.rtd",,"StudyData", "Correlation("&$B$3&","&BE$2&",Period:="&$B$1&",InputChoice1:=Close,InputChoice2::=Close)", "FG", "", "Close",$B$2,A35, "all","", "","True","T")/100,"") -> 0.6427930996 | BG35: -0.38 | BH35: 1
A36: -32 | C36: =IFERROR(RTD("cqg.rtd",,"StudyData", "Correlation("&$B$3&","&C$2&",Period:="&$B$1&",InputChoice1:=Close,InputChoice2:=Close)", "FG", "", "Close",$B$2,A36, "all","", "","True","T")/100,"") -> 0.8440937865 | E36: -0.36 | F36: 0 | I36: =IFERROR(RTD("cqg.rtd",,"StudyData", "Correlation("&$B$3&","&I$2&",Period:="&$B$1&",InputChoice1:=Close,InputChoice2::=Close)", "FG", "", "Close",$B$2,A36, "all","", "","True","T")/100,"") -> 0.8303388874 | K36: -0.36 | L36: 0 | O36: =IFERROR(RTD("cqg.rtd",,"StudyData", "Correlation("&$B$3&","&O$2&",Period:="&$B$1&",InputChoice1:=Close,InputChoice2::=Close)", "FG", "", "Close",$B$2,A36, "all","", "","True","T")/100,"") -> 0.9229915206 | Q36: -0.36 | R36: 0 | U36: =IFERROR(RTD("cqg.rtd",,"StudyData", "Correlation("&$B$3&","&U$2&",Period:="&$B$1&",InputChoice1:=Close,InputChoice2::=Close)", "FG", "", "Close",$B$2,A36, "all","", "","True","T")/100,"") -> 0.1684028636 | W36: -0.36 | X36: 2 | AA36: =IFERROR(RTD("cqg.rtd",,"StudyData", "Correlation("&$B$3&","&AA$2&",Period:="&$B$1&",InputChoice1:=Close,InputChoice2::=Close)", "FG", "", "Close",$B$2,A36, "all","", "","True","T")/100,"") -> 0.8721968192 | AC36: -0.36 | AD36: 1 | AG36: =IFERROR(RTD("cqg.rtd",,"StudyData", "Correlation("&$B$3&","&AG$2&",Period:="&$B$1&",InputChoice1:=Close,InputChoice2::=Close)", "FG", "", "Close",$B$2,A36, "all","", "","True","T")/100,"") -> 0.7930013282 | AI36: -0.36 | AJ36: 0 | AM36: =IFERROR(RTD("cqg.rtd",,"StudyData", "Correlation("&$B$3&","&AM$2&",Period:="&$B$1&",InputChoice1:=Close,InputChoice2::=Close)", "FG", "", "Close",$B$2,A36, "all","", "","True","T")/100,"") -> 0.8327244851 | AO36: -0.36 | AP36: 0 | AS36: =IFERROR(RTD("cqg.rtd",,"StudyData", "Correlation("&$B$3&","&AS$2&",Period:="&$B$1&",InputChoice1:=Close,InputChoice2::=Close)", "FG", "", "Close",$B$2,A36, "all","", "","True","T")/100,"") -> -0.36785819 | AU36: -0.36 | AV36: 3 | AY36: =IFERROR(RTD("cqg.rtd",,"StudyData", "Correlation("&$B$3&","&AY$2&",Period:="&$B$1&",InputChoice1:=Close,InputChoice2::=Close)", "FG", "", "Close",$B$2,A36, "all","", "","True","T")/100,"") -> 0.269249373 | BA36: -0.36 | BB36: 2 | BE36: =IFERROR(RTD("cqg.rtd",,"StudyData", "Correlation("&$B$3&","&BE$2&",Period:="&$B$1&",InputChoice1:=Close,InputChoice2::=Close)", "FG", "", "Close",$B$2,A36, "all","", "","True","T")/100,"") -> 0.6519362904 | BG36: -0.36 | BH36: 1
A37: -33 | C37: =IFERROR(RTD("cqg.rtd",,"StudyData", "Correlation("&$B$3&","&C$2&",Period:="&$B$1&",InputChoice1:=Close,InputChoice2:=Close)", "FG", "", "Close",$B$2,A37, "all","", "","True","T")/100,"") -> 0.8394657061 | E37: -0.34 | F37: 0 | I37: =IFERROR(RTD("cqg.rtd",,"StudyData", "Correlation("&$B$3&","&I$2&",Period:="&$B$1&",InputChoice1:=Close,InputChoice2::=Close)", "FG", "", "Close",$B$2,A37, "all","", "","True","T")/100,"") -> 0.8540955601 | K37: -0.34 | L37: 0 | O37: =IFERROR(RTD("cqg.rtd",,"StudyData", "Correlation("&$B$3&","&O$2&",Period:="&$B$1&",InputChoice1:=Close,InputChoice2::=Close)", "FG", "", "Close",$B$2,A37, "all","", "","True","T")/100,"") -> 0.9131962688 | Q37: -0.34 | R37: 0 | U37: =IFERROR(RTD("cqg.rtd",,"StudyData", "Correlation("&$B$3&","&U$2&",Period:="&$B$1&",InputChoice1:=Close,InputChoice2::=Close)", "FG", "", "Close",$B$2,A37, "all","", "","True","T")/100,"") -> 0.3298118913 | W37: -0.34 | X37: 3 | AA37: =IFERROR(RTD("cqg.rtd",,"StudyData", "Correlation("&$B$3&","&AA$2&",Period:="&$B$1&",InputChoice1:=Close,InputChoice2::=Close)", "FG", "", "Close",$B$2,A37, "all","", "","True","T")/100,"") -> 0.8607345316 | AC37: -0.34 | AD37: 0 | AG37: =IFERROR(RTD("cqg.rtd",,"StudyData", "Correlation("&$B$3&","&AG$2&",Period:="&$B$1&",InputChoice1:=Close,InputChoice2::=Close)", "FG", "", "Close",$B$2,A37, "all","", "","True","T")/100,"") -> 0.7766056585 | AI37: -0.34 | AJ37: 0 | AM37: =IFERROR(RTD("cqg.rtd",,"StudyData", "Correlation("&$B$3&","&AM$2&",Period:="&$B$1&",InputChoice1:=Close,InputChoice2::=Close)", "FG", "", "Close",$B$2,A37, "all","", "","True","T")/100,"") -> 0.816661924 | AO37: -0.34 | AP37: 0 | AS37: =IFERROR(RTD("cqg.rtd",,"StudyData", "Correlation("&$B$3&","&AS$2&",Period:="&$B$1&",InputChoice1:=Close,InputChoice2::=Close)", "FG", "", "Close",$B$2,A37, "all","", "","True","T")/100,"") -> -0.4072681679 | AU37: -0.34 | AV37: 1 | AY37: =IFERROR(RTD("cqg.rtd",,"StudyData", "Correlation("&$B$3&","&AY$2&",Period:="&$B$1&",InputChoice1:=Close,InputChoice2::=Close)", "FG", "", "Close",$B$2,A37, "all","", "","True","T")/100,"") -> 0.1694598485 | BA37: -0.34 | BB37: 0 | BE37: =IFERROR(RTD("cqg.rtd",,"StudyData", "Correlation("&$B$3&","&BE$2&",Period:="&$B$1&",InputChoice1:=Close,InputChoice2::=Close)", "FG", "", "Close",$B$2,A37, "all","", "","True","T")/100,"") -> 0.7054665448 | BG37: -0.34 | BH37: 1
A38: -34 | C38: =IFERROR(RTD("cqg.rtd",,"StudyData", "Correlation("&$B$3&","&C$2&",Period:="&$B$1&",InputChoice1:=Close,InputChoice2:=Close)", "FG", "", "Close",$B$2,A38, "all","", "","True","T")/100,"") -> 0.8409819366 | E38: -0.32 | F38: 0 | I38: =IFERROR(RTD("cqg.rtd",,"StudyData", "Correlation("&$B$3&","&I$2&",Period:="&$B$1&",InputChoice1:=Close,InputChoice2::=Close)", "FG", "", "Close",$B$2,A38, "all","", "","True","T")/100,"") -> 0.8675690257 | K38: -0.32 | L38: 0 | O38: =IFERROR(RTD("cqg.rtd",,"StudyData", "Correlation("&$B$3&","&O$2&",Period:="&$B$1&",InputChoice1:=Close,InputChoice2::=Close)", "FG", "", "Close",$B$2,A38, "all","", "","True","T")/100,"") -> 0.906028689 | Q38: -0.32 | R38: 0 | U38: =IFERROR(RTD("cqg.rtd",,"StudyData", "Correlation("&$B$3&","&U$2&",Period:="&$B$1&",InputChoice1:=Close,InputChoice2::=Close)", "FG", "", "Close",$B$2,A38, "all","", "","True","T")/100,"") -> 0.4058754584 | W38: -0.32 | X38: 2 | AA38: =IFERROR(RTD("cqg.rtd",,"StudyData", "Correlation("&$B$3&","&AA$2&",Period:="&$B$1&",InputChoice1:=Close,InputChoice2::=Close)", "FG", "", "Close",$B$2,A38, "all","", "","True","T")/100,"") -> 0.8668220295 | AC38: -0.32 | AD38: 0 | AG38: =IFERROR(RTD("cqg.rtd",,"StudyData", "Correlation("&$B$3&","&AG$2&",Period:="&$B$1&",InputChoice1:=Close,InputChoice2::=Close)", "FG", "", "Close",$B$2,A38, "all","", "","True","T")/100,"") -> 0.7745396826 | AI38: -0.32 | AJ38: 0 | AM38: =IFERROR(RTD("cqg.rtd",,"StudyData", "Correlation("&$B$3&","&AM$2&",Period:="&$B$1&",InputChoice1:=Close,InputChoice2::=Close)", "FG", "", "Close",$B$2,A38, "all","", "","True","T")/100,"") -> 0.84014358 | AO38: -0.32 | AP38: 0 | AS38: =IFERROR(RTD("cqg.rtd",,"StudyData", "Correlation("&$B$3&","&AS$2&",Period:="&$B$1&",InputChoice1:=Close,InputChoice2::=Close)", "FG", "", "Close",$B$2,A38, "all","", "","True","T")/100,"") -> -0.3277507628 | AU38: -0.32 | AV38: 2 | AY38: =IFERROR(RTD("cqg.rtd",,"StudyData", "Correlation("&$B$3&","&AY$2&",Period:="&$B$1&",InputChoice1:=Close,InputChoice2::=Close)", "FG", "", "Close",$B$2,A38, "all","", "","True","T")/100,"") -> -0.007743666074 | BA38: -0.32 | BB38: 0 | BE38: =IFERROR(RTD("cqg.rtd",,"StudyData", "Correlation("&$B$3&","&BE$2&",Period:="&$B$1&",InputChoice1:=Close,InputChoice2::=Close)", "FG", "", "Close",$B$2,A38, "all","", "","True","T")/100,"") -> 0.582237429 | BG38: -0.32 | BH38: 2
A39: -35 | C39: =IFERROR(RTD("cqg.rtd",,"StudyData", "Correlation("&$B$3&","&C$2&",Period:="&$B$1&",InputChoice1:=Close,InputChoice2:=Close)", "FG", "", "Close",$B$2,A39, "all","", "","True","T")/100,"") -> 0.8172917833 | E39: -0.3 | F39: 0 | I39: =IFERROR(RTD("cqg.rtd",,"StudyData", "Correlation("&$B$3&","&I$2&",Period:="&$B$1&",InputChoice1:=Close,InputChoice2::=Close)", "FG", "", "Close",$B$2,A39, "all","", "","True","T")/100,"") -> 0.8453962967 | K39: -0.3 | L39: 0 | O39: =IFERROR(RTD("cqg.rtd",,"StudyData", "Correlation("&$B$3&","&O$2&",Period:="&$B$1&",InputChoice1:=Close,InputChoice2::=Close)", "FG", "", "Close",$B$2,A39, "all","", "","True","T")/100,"") -> 0.9080300648 | Q39: -0.3 | R39: 0 | U39: =IFERROR(RTD("cqg.rtd",,"StudyData", "Correlation("&$B$3&","&U$2&",Period:="&$B$1&",InputChoice1:=Close,InputChoice2::=Close)", "FG", "", "Close",$B$2,A39, "all","", "","True","T")/100,"") -> 0.2918788429 | W39: -0.3 | X39: 1 | AA39: =IFERROR(RTD("cqg.rtd",,"StudyData", "Correlation("&$B$3&","&AA$2&",Period:="&$B$1&",InputChoice1:=Close,InputChoice2::=Close)", "FG", "", "Close",$B$2,A39, "all","", "","True","T")/100,"") -> 0.8795014568 | AC39: -0.3 | AD39: 0 | AG39: =IFERROR(RTD("cqg.rtd",,"StudyData", "Correlation("&$B$3&","&AG$2&",Period:="&$B$1&",InputChoice1:=Close,InputChoice2::=Close)", "FG", "", "Close",$B$2,A39, "all","", "","True","T")/100,"") -> 0.7819883712 | AI39: -0.3 | AJ39: 0 | AM39: =IFERROR(RTD("cqg.rtd",,"StudyData", "Correlation("&$B$3&","&AM$2&",Period:="&$B$1&",InputChoice1:=Close,InputChoice2::=Close)", "FG", "", "Close",$B$2,A39, "all","", "","True","T")/100,"") -> 0.8629315434 | AO39: -0.3 | AP39: 0 | AS39: =IFERROR(RTD("cqg.rtd",,"StudyData", "Correlation("&$B$3&","&AS$2&",Period:="&$B$1&",InputChoice1:=Close,InputChoice2::=Close)", "FG", "", "Close",$B$2,A39, "all","", "","True","T")/100,"") -> -0.04586105113 | AU39: -0.3 | AV39: 0 | AY39: =IFERROR(RTD("cqg.rtd",,"StudyData", "Correlation("&$B$3&","&AY$2&",Period:="&$B$1&",InputChoice1:=Close,InputChoice2::=Close)", "FG", "", "Close",$B$2,A39, "all","", "","True","T")/100,"") -> -0.221278863 | BA39: -0.3 | BB39: 0 | BC39: 1 | BE39: =IFERROR(RTD("cqg.rtd",,"StudyData", "Correlation("&$B$3&","&BE$2&",Period:="&$B$1&",InputChoice1:=Close,InputChoice2::=Close)", "FG", "", "Close",$B$2,A39, "all","", "","True","T")/100,"") -> 0.4742102956 | BG39: -0.3 | BH39: 1
A40: -36 | C40: =IFERROR(RTD("cqg.rtd",,"StudyData", "Correlation("&$B$3&","&C$2&",Period:="&$B$1&",InputChoice1:=Close,InputChoice2:=Close)", "FG", "", "Close",$B$2,A40, "all","", "","True","T")/100,"") -> 0.6981848184 | E40: -0.28 | F40: 0 | I40: =IFERROR(RTD("cqg.rtd",,"StudyData", "Correlation("&$B$3&","&I$2&",Period:="&$B$1&",InputChoice1:=Close,InputChoice2::=Close)", "FG", "", "Close",$B$2,A40, "all","", "","True","T")/100,"") -> 0.7415068377 | K40: -0.28 | L40: 0 | O40: =IFERROR(RTD("cqg.rtd",,"StudyData", "Correlation("&$B$3&","&O$2&",Period:="&$B$1&",InputChoice1:=Close,InputChoice2::=Close)", "FG", "", "Close",$B$2,A40, "all","", "","True","T")/100,"") -> 0.922563291 | Q40: -0.28 | R40: 0 | U40: =IFERROR(RTD("cqg.rtd",,"StudyData", "Correlation("&$B$3&","&U$2&",Period:="&$B$1&",InputChoice1:=Close,InputChoice2::=Close)", "FG", "", "Close",$B$2,A40, "all","", "","True","T")/100,"") -> 0.1560486128 | W40: -0.28 | X40: 0 | AA40: =IFERROR(RTD("cqg.rtd",,"StudyData", "Correlation("&$B$3&","&AA$2&",Period:="&$B$1&",InputChoice1:=Close,InputChoice2::=Close)", "FG", "", "Close",$B$2,A40, "all","", "","True","T")/100,"") -> 0.8849433909 | AC40: -0.28 | AD40: 0 | AG40: =IFERROR(RTD("cqg.rtd",,"StudyData", "Correlation("&$B$3&","&AG$2&",Period:="&$B$1&",InputChoice1:=Close,InputChoice2::=Close)", "FG", "", "Close",$B$2,A40, "all","", "","True","T")/100,"") -> 0.7900140186 | AI40: -0.28 | AJ40: 2 | AM40: =IFERROR(RTD("cqg.rtd",,"StudyData", "Correlation("&$B$3&","&AM$2&",Period:="&$B$1&",InputChoice1:=Close,InputChoice2::=Close)", "FG", "", "Close",$B$2,A40, "all","", "","True","T")/100,"") -> 0.8566758847 | AO40: -0.28 | AP40: 2 | AS40: =IFERROR(RTD("cqg.rtd",,"StudyData", "Correlation("&$B$3&","&AS$2&",Period:="&$B$1&",InputChoice1:=Close,InputChoice2::=Close)", "FG", "", "Close",$B$2,A40, "all","", "","True","T")/100,"") -> 0.1849075092 | AU40: -0.28 | AV40: 2 | AY40: =IFERROR(RTD("cqg.rtd",,"StudyData", "Correlation("&$B$3&","&AY$2&",Period:="&$B$1&",InputChoice1:=Close,InputChoice2::=Close)", "FG", "", "Close",$B$2,A40, "all","", "","True","T")/100,"") -> -0.365822193 | BA40: -0.28 | BB40: 1 | BE40: =IFERROR(RTD("cqg.rtd",,"StudyData", "Correlation("&$B$3&","&BE$2&",Period:="&$B$1&",InputChoice1:=Close,InputChoice2::=Close)", "FG", "", "Close",$B$2,A40, "all","", "","True","T")/100,"") -> 0.4410318658 | BG40: -0.28 | BH40: 0
A41: -37 | C41: =IFERROR(RTD("cqg.rtd",,"StudyData", "Correlation("&$B$3&","&C$2&",Period:="&$B$1&",InputChoice1:=Close,InputChoice2:=Close)", "FG", "", "Close",$B$2,A41, "all","", "","True","T")/100,"") -> 0.6935649324 | E41: -0.26 | F41: 0 | I41: =IFERROR(RTD("cqg.rtd",,"StudyData", "Correlation("&$B$3&","&I$2&",Period:="&$B$1&",InputChoice1:=Close,InputChoice2::=Close)", "FG", "", "Close",$B$2,A41, "all","", "","True","T")/100,"") -> 0.7347995688 | K41: -0.26 | L41: 0 | O41: =IFERROR(RTD("cqg.rtd",,"StudyData", "Correlation("&$B$3&","&O$2&",Period:="&$B$1&",InputChoice1:=Close,InputChoice2::=Close)", "FG", "", "Close",$B$2,A41, "all","", "","True","T")/100,"") -> 0.9356450976 | Q41: -0.26 | R41: 0 | U41: =IFERROR(RTD("cqg.rtd",,"StudyData", "Correlation("&$B$3&","&U$2&",Period:="&$B$1&",InputChoice1:=Close,InputChoice2::=Close)", "FG", "", "Close",$B$2,A41, "all","", "","True","T")/100,"") -> 0.07331700753 | W41: -0.26 | X41: 0 | AA41: =IFERROR(RTD("cqg.rtd",,"StudyData", "Correlation("&$B$3&","&AA$2&",Period:="&$B$1&",InputChoice1:=Close,InputChoice2::=Close)", "FG", "", "Close",$B$2,A41, "all","", "","True","T")/100,"") -> 0.9075400131 | AC41: -0.26 | AD41: 1 | AG41: =IFERROR(RTD("cqg.rtd",,"StudyData", "Correlation("&$B$3&","&AG$2&",Period:="&$B$1&",InputChoice1:=Close,InputChoice2::=Close)", "FG", "", "Close",$B$2,A41, "all","", "","True","T")/100,"") -> 0.8120048283 | AI41: -0.26 | AJ41: 0 | AM41: =IFERROR(RTD("cqg.rtd",,"StudyData", "Correlation("&$B$3&","&AM$2&",Period:="&$B$1&",InputChoice1:=Close,InputChoice2::=Close)", "FG", "", "Close",$B$2,A41, "all","", "","True","T")/100,"") -> 0.8732289944 | AO41: -0.26 | AP41: 0 | AS41: =IFERROR(RTD("cqg.rtd",,"StudyData", "Correlation("&$B$3&","&AS$2&",Period:="&$B$1&",InputChoice1:=Close,InputChoice2::=Close)", "FG", "", "Close",$B$2,A41, "all","", "","True","T")/100,"") -> 0.3769203271 | AU41: -0.26 | AV41: 2 | AY41: =IFERROR(RTD("cqg.rtd",,"StudyData", "Correlation("&$B$3&","&AY$2&",Period:="&$B$1&",InputChoice1:=Close,InputChoice2::=Close)", "FG", "", "Close",$B$2,A41, "all","", "","True","T")/100,"") -> -0.4542057207 | BA41: -0.26 | BB41: 0 | BE41: =IFERROR(RTD("cqg.rtd",,"StudyData", "Correlation("&$B$3&","&BE$2&",Period:="&$B$1&",InputChoice1:=Close,InputChoice2::=Close)", "FG", "", "Close",$B$2,A41, "all","", "","True","T")/100,"") -> 0.2587944687 | BG41: -0.26 | BH41: 0
A42: -38 | C42: =IFERROR(RTD("cqg.rtd",,"StudyData", "Correlation("&$B$3&","&C$2&",Period:="&$B$1&",InputChoice1:=Close,InputChoice2:=Close)", "FG", "", "Close",$B$2,A42, "all","", "","True","T")/100,"") -> 0.694830874 | E42: -0.24 | F42: 0 | I42: =IFERROR(RTD("cqg.rtd",,"StudyData", "Correlation("&$B$3&","&I$2&",Period:="&$B$1&",InputChoice1:=Close,InputChoice2::=Close)", "FG", "", "Close",$B$2,A42, "all","", "","True","T")/100,"") -> 0.7308972989 | K42: -0.24 | L42: 0 | O42: =IFERROR(RTD("cqg.rtd",,"StudyData", "Correlation("&$B$3&","&O$2&",Period:="&$B$1&",InputChoice1:=Close,InputChoice2::=Close)", "FG", "", "Close",$B$2,A42, "all","", "","True","T")/100,"") -> 0.9308624985 | Q42: -0.24 | R42: 0 | U42: =IFERROR(RTD("cqg.rtd",,"StudyData", "Correlation("&$B$3&","&U$2&",Period:="&$B$1&",InputChoice1:=Close,InputChoice2::=Close)", "FG", "", "Close",$B$2,A42, "all","", "","True","T")/100,"") -> 0.006546052441 | W42: -0.24 | X42: 1 | AA42: =IFERROR(RTD("cqg.rtd",,"StudyData", "Correlation("&$B$3&","&AA$2&",Period:="&$B$1&",InputChoice1:=Close,InputChoice2::=Close)", "FG", "", "Close",$B$2,A42, "all","", "","True","T")/100,"") -> 0.9132119289 | AC42: -0.24 | AD42: 0 | AG42: =IFERROR(RTD("cqg.rtd",,"StudyData", "Correlation("&$B$3&","&AG$2&",Period:="&$B$1&",InputChoice1:=Close,InputChoice2::=Close)", "FG", "", "Close",$B$2,A42, "all","", "","True","T")/100,"") -> 0.8246190764 | AI42: -0.24 | AJ42: 1 | AM42: =IFERROR(RTD("cqg.rtd",,"StudyData", "Correlation("&$B$3&","&AM$2&",Period:="&$B$1&",InputChoice1:=Close,InputChoice2::=Close)", "FG", "", "Close",$B$2,A42, "all","", "","True","T")/100,"") -> 0.8801137325 | AO42: -0.24 | AP42: 0 | AS42: =IFERROR(RTD("cqg.rtd",,"StudyData", "Correlation("&$B$3&","&AS$2&",Period:="&$B$1&",InputChoice1:=Close,InputChoice2::=Close)", "FG", "", "Close",$B$2,A42, "all","", "","True","T")/100,"") -> 0.5277273132 | AU42: -0.24 | AV42: 1 | AY42: =IFERROR(RTD("cqg.rtd",,"StudyData", "Correlation("&$B$3&","&AY$2&",Period:="&$B$1&",InputChoice1:=Close,InputChoice2::=Close)", "FG", "", "Close",$B$2,A42, "all","", "","True","T")/100,"") -> -0.5094747382 | BA42: -0.24 | BB42: 0 | BE42: =IFERROR(RTD("cqg.rtd",,"StudyData", "Correlation("&$B$3&","&BE$2&",Period:="&$B$1&",InputChoice1:=Close,InputChoice2::=Close)", "FG", "", "Close",$B$2,A42, "all","", "","True","T")/100,"") -> 0.08159649299 | BG42: -0.24 | BH42: 2
A43: -39 | C43: =IFERROR(RTD("cqg.rtd",,"StudyData", "Correlation("&$B$3&","&C$2&",Period:="&$B$1&",InputChoice1:=Close,InputChoice2:=Close)", "FG", "", "Close",$B$2,A43, "all","", "","True","T")/100,"") -> 0.6709465494 | E43: -0.22 | F43: 0 | I43: =IFERROR(RTD("cqg.rtd",,"StudyData", "Correlation("&$B$3&","&I$2&",Period:="&$B$1&",InputChoice1:=Close,InputChoice2::=Close)", "FG", "", "Close",$B$2,A43, "all","", "","True","T")/100,"") -> 0.6641025962 | K43: -0.22 | L43: 0 | O43: =IFERROR(RTD("cqg.rtd",,"StudyData", "Correlation("&$B$3&","&O$2&",Period:="&$B$1&",InputChoice1:=Close,InputChoice2::=Close)", "FG", "", "Close",$B$2,A43, "all","", "","True","T")/100,"") -> 0.913513065 | Q43: -0.22 | R43: 0 | U43: =IFERROR(RTD("cqg.rtd",,"StudyData", "Correlation("&$B$3&","&U$2&",Period:="&$B$1&",InputChoice1:=Close,InputChoice2::=Close)", "FG", "", "Close",$B$2,A43, "all","", "","True","T")/100,"") -> -0.07725527362 | W43: -0.22 | X43: 1 | AA43: =IFERROR(RTD("cqg.rtd",,"StudyData", "Correlation("&$B$3&","&AA$2&",Period:="&$B$1&",InputChoice1:=Close,InputChoice2::=Close)", "FG", "", "Close",$B$2,A43, "all","", "","True","T")/100,"") -> 0.9191745049 | AC43: -0.22 | AD43: 0 | AG43: =IFERROR(RTD("cqg.rtd",,"StudyData", "Correlation("&$B$3&","&AG$2&",Period:="&$B$1&",InputChoice1:=Close,InputChoice2::=Close)", "FG", "", "Close",$B$2,A43, "all","", "","True","T")/100,"") -> 0.8399582466 | AI43: -0.22 | AJ43: 0 | AM43: =IFERROR(RTD("cqg.rtd",,"StudyData", "Correlation("&$B$3&","&AM$2&",Period:="&$B$1&",InputChoice1:=Close,InputChoice2::=Close)", "FG", "", "Close",$B$2,A43, "all","", "","True","T")/100,"") -> 0.8895484654 | AO43: -0.22 | AP43: 0 | AS43: =IFERROR(RTD("cqg.rtd",,"StudyData", "Correlation("&$B$3&","&AS$2&",Period:="&$B$1&",InputChoice1:=Close,InputChoice2::=Close)", "FG", "", "Close",$B$2,A43, "all","", "","True","T")/100,"") -> 0.6275394367 | AU43: -0.22 | AV43: 1 | AY43: =IFERROR(RTD("cqg.rtd",,"StudyData", "Correlation("&$B$3&","&AY$2&",Period:="&$B$1&",InputChoice1:=Close,InputChoice2::=Close)", "FG", "", "Close",$B$2,A43, "all","", "","True","T")/100,"") -> -0.5575730197 | BA43: -0.22 | BB43: 2 | BE43: =IFERROR(RTD("cqg.rtd",,"StudyData", "Correlation("&$B$3&","&BE$2&",Period:="&$B$1&",InputChoice1:=Close,InputChoice2::=Close)", "FG", "", "Close",$B$2,A43, "all","", "","True","T")/100,"") -> 0.01123121058 | BG43: -0.22 | BH43: 0
A44: -40 | C44: =IFERROR(RTD("cqg.rtd",,"StudyData", "Correlation("&$B$3&","&C$2&",Period:="&$B$1&",InputChoice1:=Close,InputChoice2:=Close)", "FG", "", "Close",$B$2,A44, "all","", "","True","T")/100,"") -> 0.7274076136 | E44: -0.2 | F44: 0 | I44: =IFERROR(RTD("cqg.rtd",,"StudyData", "Correlation("&$B$3&","&I$2&",Period:="&$B$1&",InputChoice1:=Close,InputChoice2::=Close)", "FG", "", "Close",$B$2,A44, "all","", "","True","T")/100,"") -> 0.7220999485 | K44: -0.2 | L44: 0 | O44: =IFERROR(RTD("cqg.rtd",,"StudyData", "Correlation("&$B$3&","&O$2&",Period:="&$B$1&",InputChoice1:=Close,InputChoice2::=Close)", "FG", "", "Close",$B$2,A44, "all","", "","True","T")/100,"") -> 0.9077716788 | Q44: -0.2 | R44: 0 | U44: =IFERROR(RTD("cqg.rtd",,"StudyData", "Correlation("&$B$3&","&U$2&",Period:="&$B$1&",InputChoice1:=Close,InputChoice2::=Close)", "FG", "", "Close",$B$2,A44, "all","", "","True","T")/100,"") -> -0.09120369737 | W44: -0.2 | X44: 1 | AA44: =IFERROR(RTD("cqg.rtd",,"StudyData", "Correlation("&$B$3&","&AA$2&",Period:="&$B$1&",InputChoice1:=Close,InputChoice2::=Close)", "FG", "", "Close",$B$2,A44, "all","", "","True","T")/100,"") -> 0.9200405234 | AC44: -0.2 | AD44: 1 | AG44: =IFERROR(RTD("cqg.rtd",,"StudyData", "Correlation("&$B$3&","&AG$2&",Period:="&$B$1&",InputChoice1:=Close,InputChoice2::=Close)", "FG", "", "Close",$B$2,A44, "all","", "","True","T")/100,"") -> 0.8491999182 | AI44: -0.2 | AJ44: 1 | AM44: =IFERROR(RTD("cqg.rtd",,"StudyData", "Correlation("&$B$3&","&AM$2&",Period:="&$B$1&",InputChoice1:=Close,InputChoice2::=Close)", "FG", "", "Close",$B$2,A44, "all","", "","True","T")/100,"") -> 0.8869962973 | AO44: -0.2 | AP44: 1 | AS44: =IFERROR(RTD("cqg.rtd",,"StudyData", "Correlation("&$B$3&","&AS$2&",Period:="&$B$1&",InputChoice1:=Close,InputChoice2::=Close)", "FG", "", "Close",$B$2,A44, "all","", "","True","T")/100,"") -> 0.6927097686 | AU44: -0.2 | AV44: 0 | AY44: =IFERROR(RTD("cqg.rtd",,"StudyData", "Correlation("&$B$3&","&AY$2&",Period:="&$B$1&",InputChoice1:=Close,InputChoice2::=Close)", "FG", "", "Close",$B$2,A44, "all","", "","True","T")/100,"") -> -0.6217651422 | BA44: -0.2 | BB44: 1 | BE44: =IFERROR(RTD("cqg.rtd",,"StudyData", "Correlation("&$B$3&","&BE$2&",Period:="&$B$1&",InputChoice1:=Close,InputChoice2::=Close)", "FG", "", "Close",$B$2,A44, "all","", "","True","T")/100,"") -> -0.05095293376 | BG44: -0.2 | BH44: 0
A45: -41 | C45: =IFERROR(RTD("cqg.rtd",,"StudyData", "Correlation("&$B$3&","&C$2&",Period:="&$B$1&",InputChoice1:=Close,InputChoice2:=Close)", "FG", "", "Close",$B$2,A45, "all","", "","True","T")/100,"") -> 0.7513992932 | E45: -0.18 | F45: 0 | I45: =IFERROR(RTD("cqg.rtd",,"StudyData", "Correlation("&$B$3&","&I$2&",Period:="&$B$1&",InputChoice1:=Close,InputChoice2::=Close)", "FG", "", "Close",$B$2,A45, "all","", "","True","T")/100,"") -> 0.7527574926 | K45: -0.18 | L45: 0 | O45: =IFERROR(RTD("cqg.rtd",,"StudyData", "Correlation("&$B$3&","&O$2&",Period:="&$B$1&",InputChoice1:=Close,InputChoice2::=Close)", "FG", "", "Close",$B$2,A45, "all","", "","True","T")/100,"") -> 0.9155530304 | Q45: -0.18 | R45: 0 | U45: =IFERROR(RTD("cqg.rtd",,"StudyData", "Correlation("&$B$3&","&U$2&",Period:="&$B$1&",InputChoice1:=Close,InputChoice2::=Close)", "FG", "", "Close",$B$2,A45, "all","", "","True","T")/100,"") -> -0.1555420866 | W45: -0.18 | X45: 0 | AA45: =IFERROR(RTD("cqg.rtd",,"StudyData", "Correlation("&$B$3&","&AA$2&",Period:="&$B$1&",InputChoice1:=Close,InputChoice2::=Close)", "FG", "", "Close",$B$2,A45, "all","", "","True","T")/100,"") -> 0.9350228189 | AC45: -0.18 | AD45: 1 | AG45: =IFERROR(RTD("cqg.rtd",,"StudyData", "Correlation("&$B$3&","&AG$2&",Period:="&$B$1&",InputChoice1:=Close,InputChoice2::=Close)", "FG", "", "Close",$B$2,A45, "all","", "","True","T")/100,"") -> 0.8705248813 | AI45: -0.18 | AJ45: 1 | AM45: =IFERROR(RTD("cqg.rtd",,"StudyData", "Correlation("&$B$3&","&AM$2&",Period:="&$B$1&",InputChoice1:=Close,InputChoice2::=Close)", "FG", "", "Close",$B$2,A45, "all","", "","True","T")/100,"") -> 0.9029854425 | AO45: -0.18 | AP45: 0 | AS45: =IFERROR(RTD("cqg.rtd",,"StudyData", "Correlation("&$B$3&","&AS$2&",Period:="&$B$1&",InputChoice1:=Close,InputChoice2::=Close)", "FG", "", "Close",$B$2,A45, "all","", "","True","T")/100,"") -> 0.7140151605 | AU45: -0.18 | AV45: 0 | AY45: =IFERROR(RTD("cqg.rtd",,"StudyData", "Correlation("&$B$3&","&AY$2&",Period:="&$B$1&",InputChoice1:=Close,InputChoice2::=Close)", "FG", "", "Close",$B$2,A45, "all","", "","True","T")/100,"") -> -0.7012600196 | BA45: -0.18 | BB45: 1 | BE45: =IFERROR(RTD("cqg.rtd",,"StudyData", "Correlation("&$B$3&","&BE$2&",Period:="&$B$1&",InputChoice1:=Close,InputChoice2::=Close)", "FG", "", "Close",$B$2,A45, "all","", "","True","T")/100,"") -> 0.07713374937 | BG45: -0.18 | BH45: 0
A46: -42 | C46: =IFERROR(RTD("cqg.rtd",,"StudyData", "Correlation("&$B$3&","&C$2&",Period:="&$B$1&",InputChoice1:=Close,InputChoice2:=Close)", "FG", "", "Close",$B$2,A46, "all","", "","True","T")/100,"") -> 0.8160155949 | E46: -0.16 | F46: 0 | I46: =IFERROR(RTD("cqg.rtd",,"StudyData", "Correlation("&$B$3&","&I$2&",Period:="&$B$1&",InputChoice1:=Close,InputChoice2::=Close)", "FG", "", "Close",$B$2,A46, "all","", "","True","T")/100,"") -> 0.8139007837 | K46: -0.16 | L46: 0 | O46: =IFERROR(RTD("cqg.rtd",,"StudyData", "Correlation("&$B$3&","&O$2&",Period:="&$B$1&",InputChoice1:=Close,InputChoice2::=Close)", "FG", "", "Close",$B$2,A46, "all","", "","True","T")/100,"") -> 0.924663207 | Q46: -0.16 | R46: 0 | U46: =IFERROR(RTD("cqg.rtd",,"StudyData", "Correlation("&$B$3&","&U$2&",Period:="&$B$1&",InputChoice1:=Close,InputChoice2::=Close)", "FG", "", "Close",$B$2,A46, "all","", "","True","T")/100,"") -> -0.2589931613 | W46: -0.16 | X46: 0 | AA46: =IFERROR(RTD("cqg.rtd",,"StudyData", "Correlation("&$B$3&","&AA$2&",Period:="&$B$1&",InputChoice1:=Close,InputChoice2::=Close)", "FG", "", "Close",$B$2,A46, "all","", "","True","T")/100,"") -> 0.9419000027 | AC46: -0.16 | AD46: 1 | AG46: =IFERROR(RTD("cqg.rtd",,"StudyData", "Correlation("&$B$3&","&AG$2&",Period:="&$B$1&",InputChoice1:=Close,InputChoice2::=Close)", "FG", "", "Close",$B$2,A46, "all","", "","True","T")/100,"") -> 0.8889612477 | AI46: -0.16 | AJ46: 0 | AM46: =IFERROR(RTD("cqg.rtd",,"StudyData", "Correlation("&$B$3&","&AM$2&",Period:="&$B$1&",InputChoice1:=Close,InputChoice2::=Close)", "FG", "", "Close",$B$2,A46, "all","", "","True","T")/100,"") -> 0.9040553006 | AO46: -0.16 | AP46: 0 | AS46: =IFERROR(RTD("cqg.rtd",,"StudyData", "Correlation("&$B$3&","&AS$2&",Period:="&$B$1&",InputChoice1:=Close,InputChoice2::=Close)", "FG", "", "Close",$B$2,A46, "all","", "","True","T")/100,"") -> 0.7711722099 | AU46: -0.16 | AV46: 1 | AY46: =IFERROR(RTD("cqg.rtd",,"StudyData", "Correlation("&$B$3&","&AY$2&",Period:="&$B$1&",InputChoice1:=Close,InputChoice2::=Close)", "FG", "", "Close",$B$2,A46, "all","", "","True","T")/100,"") -> -0.8151161161 | BA46: -0.16 | BB46: 1 | BE46: =IFERROR(RTD("cqg.rtd",,"StudyData", "Correlation("&$B$3&","&BE$2&",Period:="&$B$1&",InputChoice1:=Close,InputChoice2::=Close)", "FG", "", "Close",$B$2,A46, "all","", "","True","T")/100,"") -> 0.2053055495 | BG46: -0.16 | BH46: 0
A47: -43 | C47: =IFERROR(RTD("cqg.rtd",,"StudyData", "Correlation("&$B$3&","&C$2&",Period:="&$B$1&",InputChoice1:=Close,InputChoice2:=Close)", "FG", "", "Close",$B$2,A47, "all","", "","True","T")/100,"") -> 0.8195213926 | E47: -0.14 | F47: 0 | I47: =IFERROR(RTD("cqg.rtd",,"StudyData", "Correlation("&$B$3&","&I$2&",Period:="&$B$1&",InputChoice1:=Close,InputChoice2::=Close)", "FG", "", "Close",$B$2,A47, "all","", "","True","T")/100,"") -> 0.8159125415 | K47: -0.14 | L47: 0 | O47: =IFERROR(RTD("cqg.rtd",,"StudyData", "Correlation("&$B$3&","&O$2&",Period:="&$B$1&",InputChoice1:=Close,InputChoice2::=Close)", "FG", "", "Close",$B$2,A47, "all","", "","True","T")/100,"") -> 0.930358803 | Q47: -0.14 | R47: 0 | U47: =IFERROR(RTD("cqg.rtd",,"StudyData", "Correlation("&$B$3&","&U$2&",Period:="&$B$1&",InputChoice1:=Close,InputChoice2::=Close)", "FG", "", "Close",$B$2,A47, "all","", "","True","T")/100,"") -> -0.3194400353 | W47: -0.14 | X47: 2 | AA47: =IFERROR(RTD("cqg.rtd",,"StudyData", "Correlation("&$B$3&","&AA$2&",Period:="&$B$1&",InputChoice1:=Close,InputChoice2::=Close)", "FG", "", "Close",$B$2,A47, "all","", "","True","T")/100,"") -> 0.9366157966 | AC47: -0.14 | AD47: 0 | AG47: =IFERROR(RTD("cqg.rtd",,"StudyData", "Correlation("&$B$3&","&AG$2&",Period:="&$B$1&",InputChoice1:=Close,InputChoice2::=Close)", "FG", "", "Close",$B$2,A47, "all","", "","True","T")/100,"") -> 0.8958029096 | AI47: -0.14 | AJ47: 1 | AM47: =IFERROR(RTD("cqg.rtd",,"StudyData", "Correlation("&$B$3&","&AM$2&",Period:="&$B$1&",InputChoice1:=Close,InputChoice2::=Close)", "FG", "", "Close",$B$2,A47, "all","", "","True","T")/100,"") -> 0.8741795264 | AO47: -0.14 | AP47: 0 | AS47: =IFERROR(RTD("cqg.rtd",,"StudyData", "Correlation("&$B$3&","&AS$2&",Period:="&$B$1&",InputChoice1:=Close,InputChoice2::=Close)", "FG", "", "Close",$B$2,A47, "all","", "","True","T")/100,"") -> 0.8161490909 | AU47: -0.14 | AV47: 2 | AY47: =IFERROR(RTD("cqg.rtd",,"StudyData", "Correlation("&$B$3&","&AY$2&",Period:="&$B$1&",InputChoice1:=Close,InputChoice2::=Close)", "FG", "", "Close",$B$2,A47, "all","", "","True","T")/100,"") -> -0.8855253989 | BA47: -0.14 | BB47: 0 | BE47: =IFERROR(RTD("cqg.rtd",,"StudyData", "Correlation("&$B$3&","&BE$2&",Period:="&$B$1&",InputChoice1:=Close,InputChoice2::=Close)", "FG", "", "Close",$B$2,A47, "all","", "","True","T")/100,"") -> 0.3864646175 | BG47: -0.14 | BH47: 0
A48: -44 | C48: =IFERROR(RTD("cqg.rtd",,"StudyData", "Correlation("&$B$3&","&C$2&",Period:="&$B$1&",InputChoice1:=Close,InputChoice2:=Close)", "FG", "", "Close",$B$2,A48, "all","", "","True","T")/100,"") -> 0.8279043244 | E48: -0.12 | F48: 0 | I48: =IFERROR(RTD("cqg.rtd",,"StudyData", "Correlation("&$B$3&","&I$2&",Period:="&$B$1&",InputChoice1:=Close,InputChoice2::=Close)", "FG", "", "Close",$B$2,A48, "all","", "","True","T")/100,"") -> 0.8233773204 | K48: -0.12 | L48: 0 | O48: =IFERROR(RTD("cqg.rtd",,"StudyData", "Correlation("&$B$3&","&O$2&",Period:="&$B$1&",InputChoice1:=Close,InputChoice2::=Close)", "FG", "", "Close",$B$2,A48, "all","", "","True","T")/100,"") -> 0.9397489159 | Q48: -0.12 | R48: 0 | U48: =IFERROR(RTD("cqg.rtd",,"StudyData", "Correlation("&$B$3&","&U$2&",Period:="&$B$1&",InputChoice1:=Close,InputChoice2::=Close)", "FG", "", "Close",$B$2,A48, "all","", "","True","T")/100,"") -> -0.4228020069 | W48: -0.12 | X48: 0 | AA48: =IFERROR(RTD("cqg.rtd",,"StudyData", "Correlation("&$B$3&","&AA$2&",Period:="&$B$1&",InputChoice1:=Close,InputChoice2::=Close)", "FG", "", "Close",$B$2,A48, "all","", "","True","T")/100,"") -> 0.9166462305 | AC48: -0.12 | AD48: 0 | AG48: =IFERROR(RTD("cqg.rtd",,"StudyData", "Correlation("&$B$3&","&AG$2&",Period:="&$B$1&",InputChoice1:=Close,InputChoice2::=Close)", "FG", "", "Close",$B$2,A48, "all","", "","True","T")/100,"") -> 0.882173371 | AI48: -0.12 | AJ48: 1 | AM48: =IFERROR(RTD("cqg.rtd",,"StudyData", "Correlation("&$B$3&","&AM$2&",Period:="&$B$1&",InputChoice1:=Close,InputChoice2::=Close)", "FG", "", "Close",$B$2,A48, "all","", "","True","T")/100,"") -> 0.8345317768 | AO48: -0.12 | AP48: 1 | AS48: =IFERROR(RTD("cqg.rtd",,"StudyData", "Correlation("&$B$3&","&AS$2&",Period:="&$B$1&",InputChoice1:=Close,InputChoice2::=Close)", "FG", "", "Close",$B$2,A48, "all","", "","True","T")/100,"") -> 0.8415840052 | AU48: -0.12 | AV48: 1 | AY48: =IFERROR(RTD("cqg.rtd",,"StudyData", "Correlation("&$B$3&","&AY$2&",Period:="&$B$1&",InputChoice1:=Close,InputChoice2::=Close)", "FG", "", "Close",$B$2,A48, "all","", "","True","T")/100,"") -> -0.897373624 | BA48: -0.12 | BB48: 0 | BE48: =IFERROR(RTD("cqg.rtd",,"StudyData", "Correlation("&$B$3&","&BE$2&",Period:="&$B$1&",InputChoice1:=Close,InputChoice2::=Close)", "FG", "", "Close",$B$2,A48, "all","", "","True","T")/100,"") -> 0.3993646628 | BG48: -0.12 | BH48: 2
A49: -45 | C49: =IFERROR(RTD("cqg.rtd",,"StudyData", "Correlation("&$B$3&","&C$2&",Period:="&$B$1&",InputChoice1:=Close,InputChoice2:=Close)", "FG", "", "Close",$B$2,A49, "all","", "","True","T")/100,"") -> 0.8286729183 | E49: -0.1 | F49: 0 | I49: =IFERROR(RTD("cqg.rtd",,"StudyData", "Correlation("&$B$3&","&I$2&",Period:="&$B$1&",InputChoice1:=Close,InputChoice2::=Close)", "FG", "", "Close",$B$2,A49, "all","", "","True","T")/100,"") -> 0.8205387235 | K49: -0.1 | L49: 0 | O49: =IFERROR(RTD("cqg.rtd",,"StudyData", "Correlation("&$B$3&","&O$2&",Period:="&$B$1&",InputChoice1:=Close,InputChoice2::=Close)", "FG", "", "Close",$B$2,A49, "all","", "","True","T")/100,"") -> 0.945095198 | Q49: -0.1 | R49: 0 | U49: =IFERROR(RTD("cqg.rtd",,"StudyData", "Correlation("&$B$3&","&U$2&",Period:="&$B$1&",InputChoice1:=Close,InputChoice2::=Close)", "FG", "", "Close",$B$2,A49, "all","", "","True","T")/100,"") -> -0.4735452712 | W49: -0.1 | X49: 0 | AA49: =IFERROR(RTD("cqg.rtd",,"StudyData", "Correlation("&$B$3&","&AA$2&",Period:="&$B$1&",InputChoice1:=Close,InputChoice2::=Close)", "FG", "", "Close",$B$2,A49, "all","", "","True","T")/100,"") -> 0.9179549071 | AC49: -0.1 | AD49: 0 | AG49: =IFERROR(RTD("cqg.rtd",,"StudyData", "Correlation("&$B$3&","&AG$2&",Period:="&$B$1&",InputChoice1:=Close,InputChoice2::=Close)", "FG", "", "Close",$B$2,A49, "all","", "","True","T")/100,"") -> 0.8871873385 | AI49: -0.1 | AJ49: 1 | AM49: =IFERROR(RTD("cqg.rtd",,"StudyData", "Correlation("&$B$3&","&AM$2&",Period:="&$B$1&",InputChoice1:=Close,InputChoice2::=Close)", "FG", "", "Close",$B$2,A49, "all","", "","True","T")/100,"") -> 0.8325416643 | AO49: -0.1 | AP49: 0 | AS49: =IFERROR(RTD("cqg.rtd",,"StudyData", "Correlation("&$B$3&","&AS$2&",Period:="&$B$1&",InputChoice1:=Close,InputChoice2::=Close)", "FG", "", "Close",$B$2,A49, "all","", "","True","T")/100,"") -> 0.8509902549 | AU49: -0.1 | AV49: 0 | AY49: =IFERROR(RTD("cqg.rtd",,"StudyData", "Correlation("&$B$3&","&AY$2&",Period:="&$B$1&",InputChoice1:=Close,InputChoice2::=Close)", "FG", "", "Close",$B$2,A49, "all","", "","True","T")/100,"") -> -0.9052057466 | BA49: -0.1 | BB49: 0 | BE49: =IFERROR(RTD("cqg.rtd",,"StudyData", "Correlation("&$B$3&","&BE$2&",Period:="&$B$1&",InputChoice1:=Close,InputChoice2::=Close)", "FG", "", "Close",$B$2,A49, "all","", "","True","T")/100,"") -> 0.4812211988 | BG49: -0.1 | BH49: 0
A50: -46 | C50: =IFERROR(RTD("cqg.rtd",,"StudyData", "Correlation("&$B$3&","&C$2&",Period:="&$B$1&",InputChoice1:=Close,InputChoice2:=Close)", "FG", "", "Close",$B$2,A50, "all","", "","True","T")/100,"") -> 0.8017881974 | E50: -0.08 | F50: 0 | I50: =IFERROR(RTD("cqg.rtd",,"StudyData", "Correlation("&$B$3&","&I$2&",Period:="&$B$1&",InputChoice1:=Close,InputChoice2::=Close)", "FG", "", "Close",$B$2,A50, "all","", "","True","T")/100,"") -> 0.8024851836 | K50: -0.08 | L50: 0 | O50: =IFERROR(RTD("cqg.rtd",,"StudyData", "Correlation("&$B$3&","&O$2&",Period:="&$B$1&",InputChoice1:=Close,InputChoice2::=Close)", "FG", "", "Close",$B$2,A50, "all","", "","True","T")/100,"") -> 0.9457404938 | Q50: -0.08 | R50: 0 | U50: =IFERROR(RTD("cqg.rtd",,"StudyData", "Correlation("&$B$3&","&U$2&",Period:="&$B$1&",InputChoice1:=Close,InputChoice2::=Close)", "FG", "", "Close",$B$2,A50, "all","", "","True","T")/100,"") -> -0.4515144939 | W50: -0.08 | X50: 1 | AA50: =IFERROR(RTD("cqg.rtd",,"StudyData", "Correlation("&$B$3&","&AA$2&",Period:="&$B$1&",InputChoice1:=Close,InputChoice2::=Close)", "FG", "", "Close",$B$2,A50, "all","", "","True","T")/100,"") -> 0.8934257826 | AC50: -0.08 | AD50: 0 | AG50: =IFERROR(RTD("cqg.rtd",,"StudyData", "Correlation("&$B$3&","&AG$2&",Period:="&$B$1&",InputChoice1:=Close,InputChoice2::=Close)", "FG", "", "Close",$B$2,A50, "all","", "","True","T")/100,"") -> 0.8640421929 | AI50: -0.08 | AJ50: 1 | AM50: =IFERROR(RTD("cqg.rtd",,"StudyData", "Correlation("&$B$3&","&AM$2&",Period:="&$B$1&",InputChoice1:=Close,InputChoice2::=Close)", "FG", "", "Close",$B$2,A50, "all","", "","True","T")/100,"") -> 0.7737446079 | AO50: -0.08 | AP50: 1 | AS50: =IFERROR(RTD("cqg.rtd",,"StudyData", "Correlation("&$B$3&","&AS$2&",Period:="&$B$1&",InputChoice1:=Close,InputChoice2::=Close)", "FG", "", "Close",$B$2,A50, "all","", "","True","T")/100,"") -> 0.8526405985 | AU50: -0.08 | AV50: 0 | AY50: =IFERROR(RTD("cqg.rtd",,"StudyData", "Correlation("&$B$3&","&AY$2&",Period:="&$B$1&",InputChoice1:=Close,InputChoice2::=Close)", "FG", "", "Close",$B$2,A50, "all","", "","True","T")/100,"") -> -0.8685051845 | BA50: -0.08 | BB50: 1 | BE50: =IFERROR(RTD("cqg.rtd",,"StudyData", "Correlation("&$B$3&","&BE$2&",Period:="&$B$1&",InputChoice1:=Close,InputChoice2::=Close)", "FG", "", "Close",$B$2,A50, "all","", "","True","T")/100,"") -> 0.5526112837 | BG50: -0.08 | BH50: 1
A51: -47 | C51: =IFERROR(RTD("cqg.rtd",,"StudyData", "Correlation("&$B$3&","&C$2&",Period:="&$B$1&",InputChoice1:=Close,InputChoice2:=Close)", "FG", "", "Close",$B$2,A51, "all","", "","True","T")/100,"") -> 0.7795819858 | E51: -0.06 | F51: 0 | I51: =IFERROR(RTD("cqg.rtd",,"StudyData", "Correlation("&$B$3&","&I$2&",Period:="&$B$1&",InputChoice1:=Close,InputChoice2::=Close)", "FG", "", "Close",$B$2,A51, "all","", "","True","T")/100,"") -> 0.7666811966 | K51: -0.06 | L51: 0 | O51: =IFERROR(RTD("cqg.rtd",,"StudyData", "Correlation("&$B$3&","&O$2&",Period:="&$B$1&",InputChoice1:=Close,InputChoice2::=Close)", "FG", "", "Close",$B$2,A51, "all","", "","True","T")/100,"") -> 0.9463766297 | Q51: -0.06 | R51: 0 | U51: =IFERROR(RTD("cqg.rtd",,"StudyData", "Correlation("&$B$3&","&U$2&",Period:="&$B$1&",InputChoice1:=Close,InputChoice2::=Close)", "FG", "", "Close",$B$2,A51, "all","", "","True","T")/100,"") -> -0.3596553667 | W51: -0.06 | X51: 1 | AA51: =IFERROR(RTD("cqg.rtd",,"StudyData", "Correlation("&$B$3&","&AA$2&",Period:="&$B$1&",InputChoice1:=Close,InputChoice2::=Close)", "FG", "", "Close",$B$2,A51, "all","", "","True","T")/100,"") -> 0.8229146976 | AC51: -0.06 | AD51: 3 | AG51: =IFERROR(RTD("cqg.rtd",,"StudyData", "Correlation("&$B$3&","&AG$2&",Period:="&$B$1&",InputChoice1:=Close,InputChoice2::=Close)", "FG", "", "Close",$B$2,A51, "all","", "","True","T")/100,"") -> 0.7638644632 | AI51: -0.06 | AJ51: 3 | AM51: =IFERROR(RTD("cqg.rtd",,"StudyData", "Correlation("&$B$3&","&AM$2&",Period:="&$B$1&",InputChoice1:=Close,InputChoice2::=Close)", "FG", "", "Close",$B$2,A51, "all","", "","True","T")/100,"") -> 0.6035898842 | AO51: -0.06 | AP51: 1 | AS51: =IFERROR(RTD("cqg.rtd",,"StudyData", "Correlation("&$B$3&","&AS$2&",Period:="&$B$1&",InputChoice1:=Close,InputChoice2::=Close)", "FG", "", "Close",$B$2,A51, "all","", "","True","T")/100,"") -> 0.8312798557 | AU51: -0.06 | AV51: 0 | AY51: =IFERROR(RTD("cqg.rtd",,"StudyData", "Correlation("&$B$3&","&AY$2&",Period:="&$B$1&",InputChoice1:=Close,InputChoice2::=Close)", "FG", "", "Close",$B$2,A51, "all","", "","True","T")/100,"") -> -0.7606938004 | BA51: -0.06 | BB51: 0 | BE51: =IFERROR(RTD("cqg.rtd",,"StudyData", "Correlation("&$B$3&","&BE$2&",Period:="&$B$1&",InputChoice1:=Close,InputChoice2::=Close)", "FG", "", "Close",$B$2,A51, "all","", "","True","T")/100,"") -> 0.4367006872 | BG51: -0.06 | BH51: 2
A52: -48 | C52: =IFERROR(RTD("cqg.rtd",,"StudyData", "Correlation("&$B$3&","&C$2&",Period:="&$B$1&",InputChoice1:=Close,InputChoice2:=Close)", "FG", "", "Close",$B$2,A52, "all","", "","True","T")/100,"") -> 0.7267642754 | E52: -0.04 | F52: 0 | I52: =IFERROR(RTD("cqg.rtd",,"StudyData", "Correlation("&$B$3&","&I$2&",Period:="&$B$1&",InputChoice1:=Close,InputChoice2::=Close)", "FG", "", "Close",$B$2,A52, "all","", "","True","T")/100,"") -> 0.7095756592 | K52: -0.04 | L52: 0 | O52: =IFERROR(RTD("cqg.rtd",,"StudyData", "Correlation("&$B$3&","&O$2&",Period:="&$B$1&",InputChoice1:=Close,InputChoice2::=Close)", "FG", "", "Close",$B$2,A52, "all","", "","True","T")/100,"") -> 0.9236497259 | Q52: -0.04 | R52: 0 | U52: =IFERROR(RTD("cqg.rtd",,"StudyData", "Correlation("&$B$3&","&U$2&",Period:="&$B$1&",InputChoice1:=Close,InputChoice2::=Close)", "FG", "", "Close",$B$2,A52, "all","", "","True","T")/100,"") -> -0.4488007114 | W52: -0.04 | X52: 1 | AA52: =IFERROR(RTD("cqg.rtd",,"StudyData", "Correlation("&$B$3&","&AA$2&",Period:="&$B$1&",InputChoice1:=Close,InputChoice2::=Close)", "FG", "", "Close",$B$2,A52, "all","", "","True","T")/100,"") -> 0.7556084447 | AC52: -0.04 | AD52: 0 | AG52: =IFERROR(RTD("cqg.rtd",,"StudyData", "Correlation("&$B$3&","&AG$2&",Period:="&$B$1&",InputChoice1:=Close,InputChoice2::=Close)", "FG", "", "Close",$B$2,A52, "all","", "","True","T")/100,"") -> 0.6588073173 | AI52: -0.04 | AJ52: 1 | AM52: =IFERROR(RTD("cqg.rtd",,"StudyData", "Correlation("&$B$3&","&AM$2&",Period:="&$B$1&",InputChoice1:=Close,InputChoice2::=Close)", "FG", "", "Close",$B$2,A52, "all","", "","True","T")/100,"") -> 0.4581311857 | AO52: -0.04 | AP52: 0 | AS52: =IFERROR(RTD("cqg.rtd",,"StudyData", "Correlation("&$B$3&","&AS$2&",Period:="&$B$1&",InputChoice1:=Close,InputChoice2::=Close)", "FG", "", "Close",$B$2,A52, "all","", "","True","T")/100,"") -> 0.8448632913 | AU52: -0.04 | AV52: 3 | AY52: =IFERROR(RTD("cqg.rtd",,"StudyData", "Correlation("&$B$3&","&AY$2&",Period:="&$B$1&",InputChoice1:=Close,InputChoice2::=Close)", "FG", "", "Close",$B$2,A52, "all","", "","True","T")/100,"") -> -0.7147074725 | BA52: -0.04 | BB52: 2 | BE52: =IFERROR(RTD("cqg.rtd",,"StudyData", "Correlation("&$B$3&","&BE$2&",Period:="&$B$1&",InputChoice1:=Close,InputChoice2::=Close)", "FG", "", "Close",$B$2,A52, "all","", "","True","T")/100,"") -> 0.3331968286 | BG52: -0.04 | BH52: 2
A53: -49 | C53: =IFERROR(RTD("cqg.rtd",,"StudyData", "Correlation("&$B$3&","&C$2&",Period:="&$B$1&",InputChoice1:=Close,InputChoice2:=Close)", "FG", "", "Close",$B$2,A53, "all","", "","True","T")/100,"") -> 0.7234526501 | E53: -0.02 | F53: 0 | I53: =IFERROR(RTD("cqg.rtd",,"StudyData", "Correlation("&$B$3&","&I$2&",Period:="&$B$1&",InputChoice1:=Close,InputChoice2::=Close)", "FG", "", "Close",$B$2,A53, "all","", "","True","T")/100,"") -> 0.7113524989 | K53: -0.02 | L53: 0 | O53: =IFERROR(RTD("cqg.rtd",,"StudyData", "Correlation("&$B$3&","&O$2&",Period:="&$B$1&",InputChoice1:=Close,InputChoice2::=Close)", "FG", "", "Close",$B$2,A53, "all","", "","True","T")/100,"") -> 0.9005109586 | Q53: -0.02 | R53: 0 | U53: =IFERROR(RTD("cqg.rtd",,"StudyData", "Correlation("&$B$3&","&U$2&",Period:="&$B$1&",InputChoice1:=Close,InputChoice2::=Close)", "FG", "", "Close",$B$2,A53, "all","", "","True","T")/100,"") -> -0.3442502365 | W53: -0.02 | X53: 1 | AA53: =IFERROR(RTD("cqg.rtd",,"StudyData", "Correlation("&$B$3&","&AA$2&",Period:="&$B$1&",InputChoice1:=Close,InputChoice2::=Close)", "FG", "", "Close",$B$2,A53, "all","", "","True","T")/100,"") -> 0.5933081742 | AC53: -0.02 | AD53: 0 | AG53: =IFERROR(RTD("cqg.rtd",,"StudyData", "Correlation("&$B$3&","&AG$2&",Period:="&$B$1&",InputChoice1:=Close,InputChoice2::=Close)", "FG", "", "Close",$B$2,A53, "all","", "","True","T")/100,"") -> 0.4208649578 | AI53: -0.02 | AJ53: 1 | AM53: =IFERROR(RTD("cqg.rtd",,"StudyData", "Correlation("&$B$3&","&AM$2&",Period:="&$B$1&",InputChoice1:=Close,InputChoice2::=Close)", "FG", "", "Close",$B$2,A53, "all","", "","True","T")/100,"") -> 0.2231164781 | AO53: -0.02 | AP53: 0 | AS53: =IFERROR(RTD("cqg.rtd",,"StudyData", "Correlation("&$B$3&","&AS$2&",Period:="&$B$1&",InputChoice1:=Close,InputChoice2::=Close)", "FG", "", "Close",$B$2,A53, "all","", "","True","T")/100,"") -> 0.7905960199 | AU53: -0.02 | AV53: 2 | AY53: =IFERROR(RTD("cqg.rtd",,"StudyData", "Correlation("&$B$3&","&AY$2&",Period:="&$B$1&",InputChoice1:=Close,InputChoice2::=Close)", "FG", "", "Close",$B$2,A53, "all","", "","True","T")/100,"") -> -0.6375901002 | BA53: -0.02 | BB53: 1 | BE53: =IFERROR(RTD("cqg.rtd",,"StudyData", "Correlation("&$B$3&","&BE$2&",Period:="&$B$1&",InputChoice1:=Close,InputChoice2::=Close)", "FG", "", "Close",$B$2,A53, "all","", "","True","T")/100,"") -> 0.2684537413 | BG53: -0.02 | BH53: 2
A54: -50 | C54: =IFERROR(RTD("cqg.rtd",,"StudyData", "Correlation("&$B$3&","&C$2&",Period:="&$B$1&",InputChoice1:=Close,InputChoice2:=Close)", "FG", "", "Close",$B$2,A54, "all","", "","True","T")/100,"") -> 0.6793620136 | E54: 6.175615574e-16 | F54: 0 | I54: =IFERROR(RTD("cqg.rtd",,"StudyData", "Correlation("&$B$3&","&I$2&",Period:="&$B$1&",InputChoice1:=Close,InputChoice2::=Close)", "FG", "", "Close",$B$2,A54, "all","", "","True","T")/100,"") -> 0.6694827227 | K54: 6.175615574e-16 | L54: 0 | O54: =IFERROR(RTD("cqg.rtd",,"StudyData", "Correlation("&$B$3&","&O$2&",Period:="&$B$1&",InputChoice1:=Close,InputChoice2::=Close)", "FG", "", "Close",$B$2,A54, "all","", "","True","T")/100,"") -> 0.8674724977 | Q54: 6.175615574e-16 | R54: 0 | U54: =IFERROR(RTD("cqg.rtd",,"StudyData", "Correlation("&$B$3&","&U$2&",Period:="&$B$1&",InputChoice1:=Close,InputChoice2::=Close)", "FG", "", "Close",$B$2,A54, "all","", "","True","T")/100,"") -> -0.4880588038 | W54: 6.175615574e-16 | X54: 1 | AA54: =IFERROR(RTD("cqg.rtd",,"StudyData", "Correlation("&$B$3&","&AA$2&",Period:="&$B$1&",InputChoice1:=Close,InputChoice2::=Close)", "FG", "", "Close",$B$2,A54, "all","", "","True","T")/100,"") -> 0.4399854617 | AC54: 6.175615574e-16 | AD54: 1 | AG54: =IFERROR(RTD("cqg.rtd",,"StudyData", "Correlation("&$B$3&","&AG$2&",Period:="&$B$1&",InputChoice1:=Close,InputChoice2::=Close)", "FG", "", "Close",$B$2,A54, "all","", "","True","T")/100,"") -> 0.2229135131 | AI54: 6.175615574e-16 | AJ54: 0 | AM54: =IFERROR(RTD("cqg.rtd",,"StudyData", "Correlation("&$B$3&","&AM$2&",Period:="&$B$1&",InputChoice1:=Close,InputChoice2::=Close)", "FG", "", "Close",$B$2,A54, "all","", "","True","T")/100,"") -> 0.08387830766 | AO54: 6.175615574e-16 | AP54: 3 | AS54: =IFERROR(RTD("cqg.rtd",,"StudyData", "Correlation("&$B$3&","&AS$2&",Period:="&$B$1&",InputChoice1:=Close,InputChoice2::=Close)", "FG", "", "Close",$B$2,A54, "all","", "","True","T")/100,"") -> 0.7078007939 | AU54: 6.175615574e-16 | AV54: 0 | AY54: =IFERROR(RTD("cqg.rtd",,"StudyData", "Correlation("&$B$3&","&AY$2&",Period:="&$B$1&",InputChoice1:=Close,InputChoice2::=Close)", "FG", "", "Close",$B$2,A54, "all","", "","True","T")/100,"") -> -0.5565075795 | BA54: 6.175615574e-16 | BB54: 2 | BE54: =IFERROR(RTD("cqg.rtd",,"StudyData", "Correlation("&$B$3&","&BE$2&",Period:="&$B$1&",InputChoice1:=Close,InputChoice2::=Close)", "FG", "", "Close",$B$2,A54, "all","", "","True","T")/100,"") -> 0.1841996286 | BG54: 6.175615574e-16 | BH54: 4
A55: -51 | C55: =IFERROR(RTD("cqg.rtd",,"StudyData", "Correlation("&$B$3&","&C$2&",Period:="&$B$1&",InputChoice1:=Close,InputChoice2:=Close)", "FG", "", "Close",$B$2,A55, "all","", "","True","T")/100,"") -> 0.6487518101 | E55: 0.02 | F55: 0 | I55: =IFERROR(RTD("cqg.rtd",,"StudyData", "Correlation("&$B$3&","&I$2&",Period:="&$B$1&",InputChoice1:=Close,InputChoice2::=Close)", "FG", "", "Close",$B$2,A55, "all","", "","True","T")/100,"") -> 0.655343655 | K55: 0.02 | L55: 0 | O55: =IFERROR(RTD("cqg.rtd",,"StudyData", "Correlation("&$B$3&","&O$2&",Period:="&$B$1&",InputChoice1:=Close,InputChoice2::=Close)", "FG", "", "Close",$B$2,A55, "all","", "","True","T")/100,"") -> 0.8242789915 | Q55: 0.02 | R55: 0 | U55: =IFERROR(RTD("cqg.rtd",,"StudyData", "Correlation("&$B$3&","&U$2&",Period:="&$B$1&",InputChoice1:=Close,InputChoice2::=Close)", "FG", "", "Close",$B$2,A55, "all","", "","True","T")/100,"") -> -0.3374868031 | W55: 0.02 | X55: 1 | AA55: =IFERROR(RTD("cqg.rtd",,"StudyData", "Correlation("&$B$3&","&AA$2&",Period:="&$B$1&",InputChoice1:=Close,InputChoice2::=Close)", "FG", "", "Close",$B$2,A55, "all","", "","True","T")/100,"") -> 0.1757088993 | AC55: 0.02 | AD55: 0 | AG55: =IFERROR(RTD("cqg.rtd",,"StudyData", "Correlation("&$B$3&","&AG$2&",Period:="&$B$1&",InputChoice1:=Close,InputChoice2::=Close)", "FG", "", "Close",$B$2,A55, "all","", "","True","T")/100,"") -> 0.03345173941 | AI55: 0.02 | AJ55: 1 | AM55: =IFERROR(RTD("cqg.rtd",,"StudyData", "Correlation("&$B$3&","&AM$2&",Period:="&$B$1&",InputChoice1:=Close,InputChoice2::=Close)", "FG", "", "Close",$B$2,A55, "all","", "","True","T")/100,"") -> -0.07932420381 | AO55: 0.02 | AP55: 0 | AS55: =IFERROR(RTD("cqg.rtd",,"StudyData", "Correlation("&$B$3&","&AS$2&",Period:="&$B$1&",InputChoice1:=Close,InputChoice2::=Close)", "FG", "", "Close",$B$2,A55, "all","", "","True","T")/100,"") -> 0.6432735691 | AU55: 0.02 | AV55: 1 | AY55: =IFERROR(RTD("cqg.rtd",,"StudyData", "Correlation("&$B$3&","&AY$2&",Period:="&$B$1&",InputChoice1:=Close,InputChoice2::=Close)", "FG", "", "Close",$B$2,A55, "all","", "","True","T")/100,"") -> -0.5076332716 | BA55: 0.02 | BB55: 0 | BE55: =IFERROR(RTD("cqg.rtd",,"StudyData", "Correlation("&$B$3&","&BE$2&",Period:="&$B$1&",InputChoice1:=Close,InputChoice2::=Close)", "FG", "", "Close",$B$2,A55, "all","", "","True","T")/100,"") -> 0.1498906527 | BG55: 0.02 | BH55: 1
A56: -52 | C56: =IFERROR(RTD("cqg.rtd",,"StudyData", "Correlation("&$B$3&","&C$2&",Period:="&$B$1&",InputChoice1:=Close,InputChoice2:=Close)", "FG", "", "Close",$B$2,A56, "all","", "","True","T")/100,"") -> 0.6284635671 | E56: 0.04 | F56: 0 | I56: =IFERROR(RTD("cqg.rtd",,"StudyData", "Correlation("&$B$3&","&I$2&",Period:="&$B$1&",InputChoice1:=Close,InputChoice2::=Close)", "FG", "", "Close",$B$2,A56, "all","", "","True","T")/100,"") -> 0.6532162699 | K56: 0.04 | L56: 0 | O56: =IFERROR(RTD("cqg.rtd",,"StudyData", "Correlation("&$B$3&","&O$2&",Period:="&$B$1&",InputChoice1:=Close,InputChoice2::=Close)", "FG", "", "Close",$B$2,A56, "all","", "","True","T")/100,"") -> 0.7927602318 | Q56: 0.04 | R56: 0 | U56: =IFERROR(RTD("cqg.rtd",,"StudyData", "Correlation("&$B$3&","&U$2&",Period:="&$B$1&",InputChoice1:=Close,InputChoice2::=Close)", "FG", "", "Close",$B$2,A56, "all","", "","True","T")/100,"") -> -0.3965489608 | W56: 0.04 | X56: 0 | AA56: =IFERROR(RTD("cqg.rtd",,"StudyData", "Correlation("&$B$3&","&AA$2&",Period:="&$B$1&",InputChoice1:=Close,InputChoice2::=Close)", "FG", "", "Close",$B$2,A56, "all","", "","True","T")/100,"") -> 0.1676725165 | AC56: 0.04 | AD56: 1 | AG56: =IFERROR(RTD("cqg.rtd",,"StudyData", "Correlation("&$B$3&","&AG$2&",Period:="&$B$1&",InputChoice1:=Close,InputChoice2::=Close)", "FG", "", "Close",$B$2,A56, "all","", "","True","T")/100,"") -> 0.08114563729 | AI56: 0.04 | AJ56: 1 | AM56: =IFERROR(RTD("cqg.rtd",,"StudyData", "Correlation("&$B$3&","&AM$2&",Period:="&$B$1&",InputChoice1:=Close,InputChoice2::=Close)", "FG", "", "Close",$B$2,A56, "all","", "","True","T")/100,"") -> -0.000836195434 | AO56: 0.04 | AP56: 0 | AS56: =IFERROR(RTD("cqg.rtd",,"StudyData", "Correlation("&$B$3&","&AS$2&",Period:="&$B$1&",InputChoice1:=Close,InputChoice2::=Close)", "FG", "", "Close",$B$2,A56, "all","", "","True","T")/100,"") -> 0.4298632764 | AU56: 0.04 | AV56: 0 | AY56: =IFERROR(RTD("cqg.rtd",,"StudyData", "Correlation("&$B$3&","&AY$2&",Period:="&$B$1&",InputChoice1:=Close,InputChoice2::=Close)", "FG", "", "Close",$B$2,A56, "all","", "","True","T")/100,"") -> -0.4619172628 | BA56: 0.04 | BB56: 0 | BE56: =IFERROR(RTD("cqg.rtd",,"StudyData", "Correlation("&$B$3&","&BE$2&",Period:="&$B$1&",InputChoice1:=Close,InputChoice2::=Close)", "FG", "", "Close",$B$2,A56, "all","", "","True","T")/100,"") -> 0.1456907559 | BG56: 0.04 | BH56: 0
A57: -53 | C57: =IFERROR(RTD("cqg.rtd",,"StudyData", "Correlation("&$B$3&","&C$2&",Period:="&$B$1&",InputChoice1:=Close,InputChoice2:=Close)", "FG", "", "Close",$B$2,A57, "all","", "","True","T")/100,"") -> 0.6383412778 | E57: 0.06 | F57: 0 | I57: =IFERROR(RTD("cqg.rtd",,"StudyData", "Correlation("&$B$3&","&I$2&",Period:="&$B$1&",InputChoice1:=Close,InputChoice2::=Close)", "FG", "", "Close",$B$2,A57, "all","", "","True","T")/100,"") -> 0.6705412018 | K57: 0.06 | L57: 0 | O57: =IFERROR(RTD("cqg.rtd",,"StudyData", "Correlation("&$B$3&","&O$2&",Period:="&$B$1&",InputChoice1:=Close,InputChoice2::=Close)", "FG", "", "Close",$B$2,A57, "all","", "","True","T")/100,"") -> 0.7522591307 | Q57: 0.06 | R57: 0 | U57: =IFERROR(RTD("cqg.rtd",,"StudyData", "Correlation("&$B$3&","&U$2&",Period:="&$B$1&",InputChoice1:=Close,InputChoice2::=Close)", "FG", "", "Close",$B$2,A57, "all","", "","True","T")/100,"") -> -0.4042043405 | W57: 0.06 | X57: 1 | AA57: =IFERROR(RTD("cqg.rtd",,"StudyData", "Correlation("&$B$3&","&AA$2&",Period:="&$B$1&",InputChoice1:=Close,InputChoice2::=Close)", "FG", "", "Close",$B$2,A57, "all","", "","True","T")/100,"") -> 0.2013439407 | AC57: 0.06 | AD57: 0 | AG57: =IFERROR(RTD("cqg.rtd",,"StudyData", "Correlation("&$B$3&","&AG$2&",Period:="&$B$1&",InputChoice1:=Close,InputChoice2::=Close)", "FG", "", "Close",$B$2,A57, "all","", "","True","T")/100,"") -> 0.1197948113 | AI57: 0.06 | AJ57: 1 | AM57: =IFERROR(RTD("cqg.rtd",,"StudyData", "Correlation("&$B$3&","&AM$2&",Period:="&$B$1&",InputChoice1:=Close,InputChoice2::=Close)", "FG", "", "Close",$B$2,A57, "all","", "","True","T")/100,"") -> 0.06056189363 | AO57: 0.06 | AP57: 0 | AS57: =IFERROR(RTD("cqg.rtd",,"StudyData", "Correlation("&$B$3&","&AS$2&",Period:="&$B$1&",InputChoice1:=Close,InputChoice2::=Close)", "FG", "", "Close",$B$2,A57, "all","", "","True","T")/100,"") -> 0.1476477875 | AU57: 0.06 | AV57: 0 | AY57: =IFERROR(RTD("cqg.rtd",,"StudyData", "Correlation("&$B$3&","&AY$2&",Period:="&$B$1&",InputChoice1:=Close,InputChoice2::=Close)", "FG", "", "Close",$B$2,A57, "all","", "","True","T")/100,"") -> -0.3959620392 | BA57: 0.06 | BB57: 0 | BE57: =IFERROR(RTD("cqg.rtd",,"StudyData", "Correlation("&$B$3&","&BE$2&",Period:="&$B$1&",InputChoice1:=Close,InputChoice2::=Close)", "FG", "", "Close",$B$2,A57, "all","", "","True","T")/100,"") -> 0.09278444062 | BG57: 0.06 | BH57: 5
A58: -54 | C58: =IFERROR(RTD("cqg.rtd",,"StudyData", "Correlation("&$B$3&","&C$2&",Period:="&$B$1&",InputChoice1:=Close,InputChoice2:=Close)", "FG", "", "Close",$B$2,A58, "all","", "","True","T")/100,"") -> 0.6436828135 | E58: 0.08 | F58: 1 | I58: =IFERROR(RTD("cqg.rtd",,"StudyData", "Correlation("&$B$3&","&I$2&",Period:="&$B$1&",InputChoice1:=Close,InputChoice2::=Close)", "FG", "", "Close",$B$2,A58, "all","", "","True","T")/100,"") -> 0.6851943717 | K58: 0.08 | L58: 0 | O58: =IFERROR(RTD("cqg.rtd",,"StudyData", "Correlation("&$B$3&","&O$2&",Period:="&$B$1&",InputChoice1:=Close,InputChoice2::=Close)", "FG", "", "Close",$B$2,A58, "all","", "","True","T")/100,"") -> 0.7480855191 | Q58: 0.08 | R58: 0 | U58: =IFERROR(RTD("cqg.rtd",,"StudyData", "Correlation("&$B$3&","&U$2&",Period:="&$B$1&",InputChoice1:=Close,InputChoice2::=Close)", "FG", "", "Close",$B$2,A58, "all","", "","True","T")/100,"") -> -0.365574414 | W58: 0.08 | X58: 1 | AA58: =IFERROR(RTD("cqg.rtd",,"StudyData", "Correlation("&$B$3&","&AA$2&",Period:="&$B$1&",InputChoice1:=Close,InputChoice2::=Close)", "FG", "", "Close",$B$2,A58, "all","", "","True","T")/100,"") -> 0.199400413 | AC58: 0.08 | AD58: 1 | AG58: =IFERROR(RTD("cqg.rtd",,"StudyData", "Correlation("&$B$3&","&AG$2&",Period:="&$B$1&",InputChoice1:=Close,InputChoice2::=Close)", "FG", "", "Close",$B$2,A58, "all","", "","True","T")/100,"") -> 0.1061243669 | AI58: 0.08 | AJ58: 0 | AM58: =IFERROR(RTD("cqg.rtd",,"StudyData", "Correlation("&$B$3&","&AM$2&",Period:="&$B$1&",InputChoice1:=Close,InputChoice2::=Close)", "FG", "", "Close",$B$2,A58, "all","", "","True","T")/100,"") -> 0.09020036551 | AO58: 0.08 | AP58: 1 | AS58: =IFERROR(RTD("cqg.rtd",,"StudyData", "Correlation("&$B$3&","&AS$2&",Period:="&$B$1&",InputChoice1:=Close,InputChoice2::=Close)", "FG", "", "Close",$B$2,A58, "all","", "","True","T")/100,"") -> 0.07979061943 | AU58: 0.08 | AV58: 2 | AY58: =IFERROR(RTD("cqg.rtd",,"StudyData", "Correlation("&$B$3&","&AY$2&",Period:="&$B$1&",InputChoice1:=Close,InputChoice2::=Close)", "FG", "", "Close",$B$2,A58, "all","", "","True","T")/100,"") -> -0.3950206469 | BA58: 0.08 | BB58: 1 | BE58: =IFERROR(RTD("cqg.rtd",,"StudyData", "Correlation("&$B$3&","&BE$2&",Period:="&$B$1&",InputChoice1:=Close,InputChoice2::=Close)", "FG", "", "Close",$B$2,A58, "all","", "","True","T")/100,"") -> 0.05442407612 | BG58: 0.08 | BH58: 3
A59: -55 | C59: =IFERROR(RTD("cqg.rtd",,"StudyData", "Correlation("&$B$3&","&C$2&",Period:="&$B$1&",InputChoice1:=Close,InputChoice2:=Close)", "FG", "", "Close",$B$2,A59, "all","", "","True","T")/100,"") -> 0.6104793586 | E59: 0.1 | F59: 0 | I59: =IFERROR(RTD("cqg.rtd",,"StudyData", "Correlation("&$B$3&","&I$2&",Period:="&$B$1&",InputChoice1:=Close,InputChoice2::=Close)", "FG", "", "Close",$B$2,A59, "all","", "","True","T")/100,"") -> 0.6510472479 | K59: 0.1 | L59: 0 | O59: =IFERROR(RTD("cqg.rtd",,"StudyData", "Correlation("&$B$3&","&O$2&",Period:="&$B$1&",InputChoice1:=Close,InputChoice2::=Close)", "FG", "", "Close",$B$2,A59, "all","", "","True","T")/100,"") -> 0.7548736843 | Q59: 0.1 | R59: 0 | U59: =IFERROR(RTD("cqg.rtd",,"StudyData", "Correlation("&$B$3&","&U$2&",Period:="&$B$1&",InputChoice1:=Close,InputChoice2::=Close)", "FG", "", "Close",$B$2,A59, "all","", "","True","T")/100,"") -> -0.5656557811 | W59: 0.1 | X59: 0 | AA59: =IFERROR(RTD("cqg.rtd",,"StudyData", "Correlation("&$B$3&","&AA$2&",Period:="&$B$1&",InputChoice1:=Close,InputChoice2::=Close)", "FG", "", "Close",$B$2,A59, "all","", "","True","T")/100,"") -> 0.2044296791 | AC59: 0.1 | AD59: 1 | AG59: =IFERROR(RTD("cqg.rtd",,"StudyData", "Correlation("&$B$3&","&AG$2&",Period:="&$B$1&",InputChoice1:=Close,InputChoice2::=Close)", "FG", "", "Close",$B$2,A59, "all","", "","True","T")/100,"") -> 0.1198717543 | AI59: 0.1 | AJ59: 1 | AM59: =IFERROR(RTD("cqg.rtd",,"StudyData", "Correlation("&$B$3&","&AM$2&",Period:="&$B$1&",InputChoice1:=Close,InputChoice2::=Close)", "FG", "", "Close",$B$2,A59, "all","", "","True","T")/100,"") -> 0.1023981243 | AO59: 0.1 | AP59: 3 | AS59: =IFERROR(RTD("cqg.rtd",,"StudyData", "Correlation("&$B$3&","&AS$2&",Period:="&$B$1&",InputChoice1:=Close,InputChoice2::=Close)", "FG", "", "Close",$B$2,A59, "all","", "","True","T")/100,"") -> -0.05258331537 | AU59: 0.1 | AV59: 0 | AY59: =IFERROR(RTD("cqg.rtd",,"StudyData", "Correlation("&$B$3&","&AY$2&",Period:="&$B$1&",InputChoice1:=Close,InputChoice2::=Close)", "FG", "", "Close",$B$2,A59, "all","", "","True","T")/100,"") -> -0.3887025865 | BA59: 0.1 | BB59: 0 | BE59: =IFERROR(RTD("cqg.rtd",,"StudyData", "Correlation("&$B$3&","&BE$2&",Period:="&$B$1&",InputChoice1:=Close,InputChoice2::=Close)", "FG", "", "Close",$B$2,A59, "all","", "","True","T")/100,"") -> 0.05470742711 | BG59: 0.1 | BH59: 4
A60: -56 | C60: =IFERROR(RTD("cqg.rtd",,"StudyData", "Correlation("&$B$3&","&C$2&",Period:="&$B$1&",InputChoice1:=Close,InputChoice2:=Close)", "FG", "", "Close",$B$2,A60, "all","", "","True","T")/100,"") -> 0.5570571962 | E60: 0.12 | F60: 0 | I60: =IFERROR(RTD("cqg.rtd",,"StudyData", "Correlation("&$B$3&","&I$2&",Period:="&$B$1&",InputChoice1:=Close,InputChoice2::=Close)", "FG", "", "Close",$B$2,A60, "all","", "","True","T")/100,"") -> 0.6110083125 | K60: 0.12 | L60: 0 | O60: =IFERROR(RTD("cqg.rtd",,"StudyData", "Correlation("&$B$3&","&O$2&",Period:="&$B$1&",InputChoice1:=Close,InputChoice2::=Close)", "FG", "", "Close",$B$2,A60, "all","", "","True","T")/100,"") -> 0.7278135386 | Q60: 0.12 | R60: 0 | U60: =IFERROR(RTD("cqg.rtd",,"StudyData", "Correlation("&$B$3&","&U$2&",Period:="&$B$1&",InputChoice1:=Close,InputChoice2::=Close)", "FG", "", "Close",$B$2,A60, "all","", "","True","T")/100,"") -> -0.5785251334 | W60: 0.12 | X60: 0 | Y60: 1 | AA60: =IFERROR(RTD("cqg.rtd",,"StudyData", "Correlation("&$B$3&","&AA$2&",Period:="&$B$1&",InputChoice1:=Close,InputChoice2::=Close)", "FG", "", "Close",$B$2,A60, "all","", "","True","T")/100,"") -> 0.2189918076 | AC60: 0.12 | AD60: 0 | AG60: =IFERROR(RTD("cqg.rtd",,"StudyData", "Correlation("&$B$3&","&AG$2&",Period:="&$B$1&",InputChoice1:=Close,InputChoice2::=Close)", "FG", "", "Close",$B$2,A60, "all","", "","True","T")/100,"") -> 0.1253877247 | AI60: 0.12 | AJ60: 3 | AM60: =IFERROR(RTD("cqg.rtd",,"StudyData", "Correlation("&$B$3&","&AM$2&",Period:="&$B$1&",InputChoice1:=Close,InputChoice2::=Close)", "FG", "", "Close",$B$2,A60, "all","", "","True","T")/100,"") -> 0.1413712903 | AO60: 0.12 | AP60: 1 | AS60: =IFERROR(RTD("cqg.rtd",,"StudyData", "Correlation("&$B$3&","&AS$2&",Period:="&$B$1&",InputChoice1:=Close,InputChoice2::=Close)", "FG", "", "Close",$B$2,A60, "all","", "","True","T")/100,"") -> -0.1400940099 | AU60: 0.12 | AV60: 4 | AY60: =IFERROR(RTD("cqg.rtd",,"StudyData", "Correlation("&$B$3&","&AY$2&",Period:="&$B$1&",InputChoice1:=Close,InputChoice2::=Close)", "FG", "", "Close",$B$2,A60, "all","", "","True","T")/100,"") -> -0.4227424664 | BA60: 0.12 | BB60: 1 | BE60: =IFERROR(RTD("cqg.rtd",,"StudyData", "Correlation("&$B$3&","&BE$2&",Period:="&$B$1&",InputChoice1:=Close,InputChoice2::=Close)", "FG", "", "Close",$B$2,A60, "all","", "","True","T")/100,"") -> -0.01843131945 | BG60: 0.12 | BH60: 2
A61: -57 | C61: =IFERROR(RTD("cqg.rtd",,"StudyData", "Correlation("&$B$3&","&C$2&",Period:="&$B$1&",InputChoice1:=Close,InputChoice2:=Close)", "FG", "", "Close",$B$2,A61, "all","", "","True","T")/100,"") -> 0.5379268921 | E61: 0.14 | F61: 0 | I61: =IFERROR(RTD("cqg.rtd",,"StudyData", "Correlation("&$B$3&","&I$2&",Period:="&$B$1&",InputChoice1:=Close,InputChoice2::=Close)", "FG", "", "Close",$B$2,A61, "all","", "","True","T")/100,"") -> 0.5971208259 | K61: 0.14 | L61: 0 | O61: =IFERROR(RTD("cqg.rtd",,"StudyData", "Correlation("&$B$3&","&O$2&",Period:="&$B$1&",InputChoice1:=Close,InputChoice2::=Close)", "FG", "", "Close",$B$2,A61, "all","", "","True","T")/100,"") -> 0.7137072611 | Q61: 0.14 | R61: 0 | U61: =IFERROR(RTD("cqg.rtd",,"StudyData", "Correlation("&$B$3&","&U$2&",Period:="&$B$1&",InputChoice1:=Close,InputChoice2::=Close)", "FG", "", "Close",$B$2,A61, "all","", "","True","T")/100,"") -> -0.5295931966 | W61: 0.14 | X61: 1 | AA61: =IFERROR(RTD("cqg.rtd",,"StudyData", "Correlation("&$B$3&","&AA$2&",Period:="&$B$1&",InputChoice1:=Close,InputChoice2::=Close)", "FG", "", "Close",$B$2,A61, "all","", "","True","T")/100,"") -> 0.3103100315 | AC61: 0.14 | AD61: 0 | AG61: =IFERROR(RTD("cqg.rtd",,"StudyData", "Correlation("&$B$3&","&AG$2&",Period:="&$B$1&",InputChoice1:=Close,InputChoice2::=Close)", "FG", "", "Close",$B$2,A61, "all","", "","True","T")/100,"") -> 0.2102271966 | AI61: 0.14 | AJ61: 1 | AM61: =IFERROR(RTD("cqg.rtd",,"StudyData", "Correlation("&$B$3&","&AM$2&",Period:="&$B$1&",InputChoice1:=Close,InputChoice2::=Close)", "FG", "", "Close",$B$2,A61, "all","", "","True","T")/100,"") -> 0.2246766782 | AO61: 0.14 | AP61: 2 | AS61: =IFERROR(RTD("cqg.rtd",,"StudyData", "Correlation("&$B$3&","&AS$2&",Period:="&$B$1&",InputChoice1:=Close,InputChoice2::=Close)", "FG", "", "Close",$B$2,A61, "all","", "","True","T")/100,"") -> -0.2780100241 | AU61: 0.14 | AV61: 1 | AY61: =IFERROR(RTD("cqg.rtd",,"StudyData", "Correlation("&$B$3&","&AY$2&",Period:="&$B$1&",InputChoice1:=Close,InputChoice2::=Close)", "FG", "", "Close",$B$2,A61, "all","", "","True","T")/100,"") -> -0.4728129685 | BA61: 0.14 | BB61: 1 | BE61: =IFERROR(RTD("cqg.rtd",,"StudyData", "Correlation("&$B$3&","&BE$2&",Period:="&$B$1&",InputChoice1:=Close,InputChoice2::=Close)", "FG", "", "Close",$B$2,A61, "all","", "","True","T")/100,"") -> -0.05284643412 | BG61: 0.14 | BH61: 2
A62: -58 | C62: =IFERROR(RTD("cqg.rtd",,"StudyData", "Correlation("&$B$3&","&C$2&",Period:="&$B$1&",InputChoice1:=Close,InputChoice2:=Close)", "FG", "", "Close",$B$2,A62, "all","", "","True","T")/100,"") -> 0.74472003 | E62: 0.16 | F62: 0 | I62: =IFERROR(RTD("cqg.rtd",,"StudyData", "Correlation("&$B$3&","&I$2&",Period:="&$B$1&",InputChoice1:=Close,InputChoice2::=Close)", "FG", "", "Close",$B$2,A62, "all","", "","True","T")/100,"") -> 0.8030801692 | K62: 0.16 | L62: 0 | O62: =IFERROR(RTD("cqg.rtd",,"StudyData", "Correlation("&$B$3&","&O$2&",Period:="&$B$1&",InputChoice1:=Close,InputChoice2::=Close)", "FG", "", "Close",$B$2,A62, "all","", "","True","T")/100,"") -> 0.7030212214 | Q62: 0.16 | R62: 0 | U62: =IFERROR(RTD("cqg.rtd",,"StudyData", "Correlation("&$B$3&","&U$2&",Period:="&$B$1&",InputChoice1:=Close,InputChoice2::=Close)", "FG", "", "Close",$B$2,A62, "all","", "","True","T")/100,"") -> -0.5145752976 | W62: 0.16 | X62: 1 | AA62: =IFERROR(RTD("cqg.rtd",,"StudyData", "Correlation("&$B$3&","&AA$2&",Period:="&$B$1&",InputChoice1:=Close,InputChoice2::=Close)", "FG", "", "Close",$B$2,A62, "all","", "","True","T")/100,"") -> 0.4324859998 | AC62: 0.16 | AD62: 1 | AG62: =IFERROR(RTD("cqg.rtd",,"StudyData", "Correlation("&$B$3&","&AG$2&",Period:="&$B$1&",InputChoice1:=Close,InputChoice2::=Close)", "FG", "", "Close",$B$2,A62, "all","", "","True","T")/100,"") -> 0.3064903169 | AI62: 0.16 | AJ62: 1 | AM62: =IFERROR(RTD("cqg.rtd",,"StudyData", "Correlation("&$B$3&","&AM$2&",Period:="&$B$1&",InputChoice1:=Close,InputChoice2::=Close)", "FG", "", "Close",$B$2,A62, "all","", "","True","T")/100,"") -> 0.3818942421 | AO62: 0.16 | AP62: 3 | AS62: =IFERROR(RTD("cqg.rtd",,"StudyData", "Correlation("&$B$3&","&AS$2&",Period:="&$B$1&",InputChoice1:=Close,InputChoice2::=Close)", "FG", "", "Close",$B$2,A62, "all","", "","True","T")/100,"") -> -0.4417545495 | AU62: 0.16 | AV62: 1 | AY62: =IFERROR(RTD("cqg.rtd",,"StudyData", "Correlation("&$B$3&","&AY$2&",Period:="&$B$1&",InputChoice1:=Close,InputChoice2::=Close)", "FG", "", "Close",$B$2,A62, "all","", "","True","T")/100,"") -> -0.4662689087 | BA62: 0.16 | BB62: 0 | BE62: =IFERROR(RTD("cqg.rtd",,"StudyData", "Correlation("&$B$3&","&BE$2&",Period:="&$B$1&",InputChoice1:=Close,InputChoice2::=Close)", "FG", "", "Close",$B$2,A62, "all","", "","True","T")/100,"") -> -0.02108740375 | BG62: 0.16 | BH62: 3
A63: -59 | C63: =IFERROR(RTD("cqg.rtd",,"StudyData", "Correlation("&$B$3&","&C$2&",Period:="&$B$1&",InputChoice1:=Close,InputChoice2:=Close)", "FG", "", "Close",$B$2,A63, "all","", "","True","T")/100,"") -> 0.7961937112 | E63: 0.18 | F63: 0 | I63: =IFERROR(RTD("cqg.rtd",,"StudyData", "Correlation("&$B$3&","&I$2&",Period:="&$B$1&",InputChoice1:=Close,InputChoice2::=Close)", "FG", "", "Close",$B$2,A63, "all","", "","True","T")/100,"") -> 0.8390444952 | K63: 0.18 | L63: 0 | O63: =IFERROR(RTD("cqg.rtd",,"StudyData", "Correlation("&$B$3&","&O$2&",Period:="&$B$1&",InputChoice1:=Close,InputChoice2::=Close)", "FG", "", "Close",$B$2,A63, "all","", "","True","T")/100,"") -> 0.7125876175 | Q63: 0.18 | R63: 0 | U63: =IFERROR(RTD("cqg.rtd",,"StudyData", "Correlation("&$B$3&","&U$2&",Period:="&$B$1&",InputChoice1:=Close,InputChoice2::=Close)", "FG", "", "Close",$B$2,A63, "all","", "","True","T")/100,"") -> -0.4717306157 | W63: 0.18 | X63: 2 | AA63: =IFERROR(RTD("cqg.rtd",,"StudyData", "Correlation("&$B$3&","&AA$2&",Period:="&$B$1&",InputChoice1:=Close,InputChoice2::=Close)", "FG", "", "Close",$B$2,A63, "all","", "","True","T")/100,"") -> 0.5255625173 | AC63: 0.18 | AD63: 3 | AG63: =IFERROR(RTD("cqg.rtd",,"StudyData", "Correlation("&$B$3&","&AG$2&",Period:="&$B$1&",InputChoice1:=Close,InputChoice2::=Close)", "FG", "", "Close",$B$2,A63, "all","", "","True","T")/100,"") -> 0.4180126352 | AI63: 0.18 | AJ63: 0 | AM63: =IFERROR(RTD("cqg.rtd",,"StudyData", "Correlation("&$B$3&","&AM$2&",Period:="&$B$1&",InputChoice1:=Close,InputChoice2::=Close)", "FG", "", "Close",$B$2,A63, "all","", "","True","T")/100,"") -> 0.4650039238 | AO63: 0.18 | AP63: 1 | AS63: =IFERROR(RTD("cqg.rtd",,"StudyData", "Correlation("&$B$3&","&AS$2&",Period:="&$B$1&",InputChoice1:=Close,InputChoice2::=Close)", "FG", "", "Close",$B$2,A63, "all","", "","True","T")/100,"") -> -0.5494995814 | AU63: 0.18 | AV63: 1 | AY63: =IFERROR(RTD("cqg.rtd",,"StudyData", "Correlation("&$B$3&","&AY$2&",Period:="&$B$1&",InputChoice1:=Close,InputChoice2::=Close)", "FG", "", "Close",$B$2,A63, "all","", "","True","T")/100,"") -> -0.4814959048 | BA63: 0.18 | BB63: 2 | BE63: =IFERROR(RTD("cqg.rtd",,"StudyData", "Correlation("&$B$3&","&BE$2&",Period:="&$B$1&",InputChoice1:=Close,InputChoice2::=Close)", "FG", "", "Close",$B$2,A63, "all","", "","True","T")/100,"") -> 0.1100892644 | BG63: 0.18 | BH63: 1
A64: -60 | C64: =IFERROR(RTD("cqg.rtd",,"StudyData", "Correlation("&$B$3&","&C$2&",Period:="&$B$1&",InputChoice1:=Close,InputChoice2:=Close)", "FG", "", "Close",$B$2,A64, "all","", "","True","T")/100,"") -> 0.8014677977 | E64: 0.2 | F64: 0 | I64: =IFERROR(RTD("cqg.rtd",,"StudyData", "Correlation("&$B$3&","&I$2&",Period:="&$B$1&",InputChoice1:=Close,InputChoice2::=Close)", "FG", "", "Close",$B$2,A64, "all","", "","True","T")/100,"") -> 0.8508311692 | K64: 0.2 | L64: 0 | O64: =IFERROR(RTD("cqg.rtd",,"StudyData", "Correlation("&$B$3&","&O$2&",Period:="&$B$1&",InputChoice1:=Close,InputChoice2::=Close)", "FG", "", "Close",$B$2,A64, "all","", "","True","T")/100,"") -> 0.8328281449 | Q64: 0.2 | R64: 0 | U64: =IFERROR(RTD("cqg.rtd",,"StudyData", "Correlation("&$B$3&","&U$2&",Period:="&$B$1&",InputChoice1:=Close,InputChoice2::=Close)", "FG", "", "Close",$B$2,A64, "all","", "","True","T")/100,"") -> -0.4498315877 | W64: 0.2 | X64: 1 | AA64: =IFERROR(RTD("cqg.rtd",,"StudyData", "Correlation("&$B$3&","&AA$2&",Period:="&$B$1&",InputChoice1:=Close,InputChoice2::=Close)", "FG", "", "Close",$B$2,A64, "all","", "","True","T")/100,"") -> 0.5305969944 | AC64: 0.2 | AD64: 1 | AG64: =IFERROR(RTD("cqg.rtd",,"StudyData", "Correlation("&$B$3&","&AG$2&",Period:="&$B$1&",InputChoice1:=Close,InputChoice2::=Close)", "FG", "", "Close",$B$2,A64, "all","", "","True","T")/100,"") -> 0.4317256794 | AI64: 0.2 | AJ64: 2 | AM64: =IFERROR(RTD("cqg.rtd",,"StudyData", "Correlation("&$B$3&","&AM$2&",Period:="&$B$1&",InputChoice1:=Close,InputChoice2::=Close)", "FG", "", "Close",$B$2,A64, "all","", "","True","T")/100,"") -> 0.4744501982 | AO64: 0.2 | AP64: 0 | AS64: =IFERROR(RTD("cqg.rtd",,"StudyData", "Correlation("&$B$3&","&AS$2&",Period:="&$B$1&",InputChoice1:=Close,InputChoice2::=Close)", "FG", "", "Close",$B$2,A64, "all","", "","True","T")/100,"") -> -0.5549478122 | AU64: 0.2 | AV64: 1 | AY64: =IFERROR(RTD("cqg.rtd",,"StudyData", "Correlation("&$B$3&","&AY$2&",Period:="&$B$1&",InputChoice1:=Close,InputChoice2::=Close)", "FG", "", "Close",$B$2,A64, "all","", "","True","T")/100,"") -> -0.4824556001 | BA64: 0.2 | BB64: 2 | BE64: =IFERROR(RTD("cqg.rtd",,"StudyData", "Correlation("&$B$3&","&BE$2&",Period:="&$B$1&",InputChoice1:=Close,InputChoice2::=Close)", "FG", "", "Close",$B$2,A64, "all","", "","True","T")/100,"") -> 0.1254745495 | BG64: 0.2 | BH64: 1
A65: -61 | C65: =IFERROR(RTD("cqg.rtd",,"StudyData", "Correlation("&$B$3&","&C$2&",Period:="&$B$1&",InputChoice1:=Close,InputChoice2:=Close)", "FG", "", "Close",$B$2,A65, "all","", "","True","T")/100,"") -> 0.7837652298 | E65: 0.22 | F65: 1 | I65: =IFERROR(RTD("cqg.rtd",,"StudyData", "Correlation("&$B$3&","&I$2&",Period:="&$B$1&",InputChoice1:=Close,InputChoice2::=Close)", "FG", "", "Close",$B$2,A65, "all","", "","True","T")/100,"") -> 0.8381085804 | K65: 0.22 | L65: 0 | O65: =IFERROR(RTD("cqg.rtd",,"StudyData", "Correlation("&$B$3&","&O$2&",Period:="&$B$1&",InputChoice1:=Close,InputChoice2::=Close)", "FG", "", "Close",$B$2,A65, "all","", "","True","T")/100,"") -> 0.8775064677 | Q65: 0.22 | R65: 0 | U65: =IFERROR(RTD("cqg.rtd",,"StudyData", "Correlation("&$B$3&","&U$2&",Period:="&$B$1&",InputChoice1:=Close,InputChoice2::=Close)", "FG", "", "Close",$B$2,A65, "all","", "","True","T")/100,"") -> -0.5120303332 | W65: 0.22 | X65: 0 | AA65: =IFERROR(RTD("cqg.rtd",,"StudyData", "Correlation("&$B$3&","&AA$2&",Period:="&$B$1&",InputChoice1:=Close,InputChoice2::=Close)", "FG", "", "Close",$B$2,A65, "all","", "","True","T")/100,"") -> 0.5026083325 | AC65: 0.22 | AD65: 4 | AG65: =IFERROR(RTD("cqg.rtd",,"StudyData", "Correlation("&$B$3&","&AG$2&",Period:="&$B$1&",InputChoice1:=Close,InputChoice2::=Close)", "FG", "", "Close",$B$2,A65, "all","", "","True","T")/100,"") -> 0.4196241278 | AI65: 0.22 | AJ65: 1 | AM65: =IFERROR(RTD("cqg.rtd",,"StudyData", "Correlation("&$B$3&","&AM$2&",Period:="&$B$1&",InputChoice1:=Close,InputChoice2::=Close)", "FG", "", "Close",$B$2,A65, "all","", "","True","T")/100,"") -> 0.4542735175 | AO65: 0.22 | AP65: 0 | AS65: =IFERROR(RTD("cqg.rtd",,"StudyData", "Correlation("&$B$3&","&AS$2&",Period:="&$B$1&",InputChoice1:=Close,InputChoice2::=Close)", "FG", "", "Close",$B$2,A65, "all","", "","True","T")/100,"") -> -0.5355952618 | AU65: 0.22 | AV65: 0 | AY65: =IFERROR(RTD("cqg.rtd",,"StudyData", "Correlation("&$B$3&","&AY$2&",Period:="&$B$1&",InputChoice1:=Close,InputChoice2::=Close)", "FG", "", "Close",$B$2,A65, "all","", "","True","T")/100,"") -> -0.6087901808 | BA65: 0.22 | BB65: 0 | BE65: =IFERROR(RTD("cqg.rtd",,"StudyData", "Correlation("&$B$3&","&BE$2&",Period:="&$B$1&",InputChoice1:=Close,InputChoice2::=Close)", "FG", "", "Close",$B$2,A65, "all","", "","True","T")/100,"") -> 0.1039559193 | BG65: 0.22 | BH65: 2
A66: -62 | C66: =IFERROR(RTD("cqg.rtd",,"StudyData", "Correlation("&$B$3&","&C$2&",Period:="&$B$1&",InputChoice1:=Close,InputChoice2:=Close)", "FG", "", "Close",$B$2,A66, "all","", "","True","T")/100,"") -> 0.8063567909 | E66: 0.24 | F66: 1 | I66: =IFERROR(RTD("cqg.rtd",,"StudyData", "Correlation("&$B$3&","&I$2&",Period:="&$B$1&",InputChoice1:=Close,InputChoice2::=Close)", "FG", "", "Close",$B$2,A66, "all","", "","True","T")/100,"") -> 0.8559239674 | K66: 0.24 | L66: 0 | O66: =IFERROR(RTD("cqg.rtd",,"StudyData", "Correlation("&$B$3&","&O$2&",Period:="&$B$1&",InputChoice1:=Close,InputChoice2::=Close)", "FG", "", "Close",$B$2,A66, "all","", "","True","T")/100,"") -> 0.8977688662 | Q66: 0.24 | R66: 0 | U66: =IFERROR(RTD("cqg.rtd",,"StudyData", "Correlation("&$B$3&","&U$2&",Period:="&$B$1&",InputChoice1:=Close,InputChoice2::=Close)", "FG", "", "Close",$B$2,A66, "all","", "","True","T")/100,"") -> -0.449917418 | W66: 0.24 | X66: 0 | AA66: =IFERROR(RTD("cqg.rtd",,"StudyData", "Correlation("&$B$3&","&AA$2&",Period:="&$B$1&",InputChoice1:=Close,InputChoice2::=Close)", "FG", "", "Close",$B$2,A66, "all","", "","True","T")/100,"") -> 0.5431380012 | AC66: 0.24 | AD66: 1 | AG66: =IFERROR(RTD("cqg.rtd",,"StudyData", "Correlation("&$B$3&","&AG$2&",Period:="&$B$1&",InputChoice1:=Close,InputChoice2::=Close)", "FG", "", "Close",$B$2,A66, "all","", "","True","T")/100,"") -> 0.5053321312 | AI66: 0.24 | AJ66: 1 | AM66: =IFERROR(RTD("cqg.rtd",,"StudyData", "Correlation("&$B$3&","&AM$2&",Period:="&$B$1&",InputChoice1:=Close,InputChoice2::=Close)", "FG", "", "Close",$B$2,A66, "all","", "","True","T")/100,"") -> 0.5126492432 | AO66: 0.24 | AP66: 4 | AS66: =IFERROR(RTD("cqg.rtd",,"StudyData", "Correlation("&$B$3&","&AS$2&",Period:="&$B$1&",InputChoice1:=Close,InputChoice2::=Close)", "FG", "", "Close",$B$2,A66, "all","", "","True","T")/100,"") -> -0.5241976595 | AU66: 0.24 | AV66: 2 | AY66: =IFERROR(RTD("cqg.rtd",,"StudyData", "Correlation("&$B$3&","&AY$2&",Period:="&$B$1&",InputChoice1:=Close,InputChoice2::=Close)", "FG", "", "Close",$B$2,A66, "all","", "","True","T")/100,"") -> -0.7035023804 | BA66: 0.24 | BB66: 0 | BE66: =IFERROR(RTD("cqg.rtd",,"StudyData", "Correlation("&$B$3&","&BE$2&",Period:="&$B$1&",InputChoice1:=Close,InputChoice2::=Close)", "FG", "", "Close",$B$2,A66, "all","", "","True","T")/100,"") -> 0.2326077696 | BG66: 0.24 | BH66: 2
A67: -63 | C67: =IFERROR(RTD("cqg.rtd",,"StudyData", "Correlation("&$B$3&","&C$2&",Period:="&$B$1&",InputChoice1:=Close,InputChoice2:=Close)", "FG", "", "Close",$B$2,A67, "all","", "","True","T")/100,"") -> 0.8244766428 | E67: 0.26 | F67: 0 | I67: =IFERROR(RTD("cqg.rtd",,"StudyData", "Correlation("&$B$3&","&I$2&",Period:="&$B$1&",InputChoice1:=Close,InputChoice2::=Close)", "FG", "", "Close",$B$2,A67, "all","", "","True","T")/100,"") -> 0.8680120799 | K67: 0.26 | L67: 0 | O67: =IFERROR(RTD("cqg.rtd",,"StudyData", "Correlation("&$B$3&","&O$2&",Period:="&$B$1&",InputChoice1:=Close,InputChoice2::=Close)", "FG", "", "Close",$B$2,A67, "all","", "","True","T")/100,"") -> 0.9019522045 | Q67: 0.26 | R67: 0 | U67: =IFERROR(RTD("cqg.rtd",,"StudyData", "Correlation("&$B$3&","&U$2&",Period:="&$B$1&",InputChoice1:=Close,InputChoice2::=Close)", "FG", "", "Close",$B$2,A67, "all","", "","True","T")/100,"") -> -0.453580879 | W67: 0.26 | X67: 1 | AA67: =IFERROR(RTD("cqg.rtd",,"StudyData", "Correlation("&$B$3&","&AA$2&",Period:="&$B$1&",InputChoice1:=Close,InputChoice2::=Close)", "FG", "", "Close",$B$2,A67, "all","", "","True","T")/100,"") -> 0.6075445227 | AC67: 0.26 | AD67: 0 | AG67: =IFERROR(RTD("cqg.rtd",,"StudyData", "Correlation("&$B$3&","&AG$2&",Period:="&$B$1&",InputChoice1:=Close,InputChoice2::=Close)", "FG", "", "Close",$B$2,A67, "all","", "","True","T")/100,"") -> 0.6049597826 | AI67: 0.26 | AJ67: 0 | AM67: =IFERROR(RTD("cqg.rtd",,"StudyData", "Correlation("&$B$3&","&AM$2&",Period:="&$B$1&",InputChoice1:=Close,InputChoice2::=Close)", "FG", "", "Close",$B$2,A67, "all","", "","True","T")/100,"") -> 0.581340206 | AO67: 0.26 | AP67: 1 | AS67: =IFERROR(RTD("cqg.rtd",,"StudyData", "Correlation("&$B$3&","&AS$2&",Period:="&$B$1&",InputChoice1:=Close,InputChoice2::=Close)", "FG", "", "Close",$B$2,A67, "all","", "","True","T")/100,"") -> -0.5606544186 | AU67: 0.26 | AV67: 0 | AY67: =IFERROR(RTD("cqg.rtd",,"StudyData", "Correlation("&$B$3&","&AY$2&",Period:="&$B$1&",InputChoice1:=Close,InputChoice2::=Close)", "FG", "", "Close",$B$2,A67, "all","", "","True","T")/100,"") -> -0.7599064915 | BA67: 0.26 | BB67: 1 | BE67: =IFERROR(RTD("cqg.rtd",,"StudyData", "Correlation("&$B$3&","&BE$2&",Period:="&$B$1&",InputChoice1:=Close,InputChoice2::=Close)", "FG", "", "Close",$B$2,A67, "all","", "","True","T")/100,"") -> 0.4088693017 | BG67: 0.26 | BH67: 1
A68: -64 | C68: =IFERROR(RTD("cqg.rtd",,"StudyData", "Correlation("&$B$3&","&C$2&",Period:="&$B$1&",InputChoice1:=Close,InputChoice2:=Close)", "FG", "", "Close",$B$2,A68, "all","", "","True","T")/100,"") -> 0.8334472722 | E68: 0.28 | F68: 0 | I68: =IFERROR(RTD("cqg.rtd",,"StudyData", "Correlation("&$B$3&","&I$2&",Period:="&$B$1&",InputChoice1:=Close,InputChoice2::=Close)", "FG", "", "Close",$B$2,A68, "all","", "","True","T")/100,"") -> 0.8855195683 | K68: 0.28 | L68: 0 | O68: =IFERROR(RTD("cqg.rtd",,"StudyData", "Correlation("&$B$3&","&O$2&",Period:="&$B$1&",InputChoice1:=Close,InputChoice2::=Close)", "FG", "", "Close",$B$2,A68, "all","", "","True","T")/100,"") -> 0.9025734515 | Q68: 0.28 | R68: 0 | U68: =IFERROR(RTD("cqg.rtd",,"StudyData", "Correlation("&$B$3&","&U$2&",Period:="&$B$1&",InputChoice1:=Close,InputChoice2::=Close)", "FG", "", "Close",$B$2,A68, "all","", "","True","T")/100,"") -> -0.4816989684 | W68: 0.28 | X68: 0 | AA68: =IFERROR(RTD("cqg.rtd",,"StudyData", "Correlation("&$B$3&","&AA$2&",Period:="&$B$1&",InputChoice1:=Close,InputChoice2::=Close)", "FG", "", "Close",$B$2,A68, "all","", "","True","T")/100,"") -> 0.6010993835 | AC68: 0.28 | AD68: 0 | AG68: =IFERROR(RTD("cqg.rtd",,"StudyData", "Correlation("&$B$3&","&AG$2&",Period:="&$B$1&",InputChoice1:=Close,InputChoice2::=Close)", "FG", "", "Close",$B$2,A68, "all","", "","True","T")/100,"") -> 0.6485784334 | AI68: 0.28 | AJ68: 0 | AM68: =IFERROR(RTD("cqg.rtd",,"StudyData", "Correlation("&$B$3&","&AM$2&",Period:="&$B$1&",InputChoice1:=Close,InputChoice2::=Close)", "FG", "", "Close",$B$2,A68, "all","", "","True","T")/100,"") -> 0.5728374746 | AO68: 0.28 | AP68: 0 | AS68: =IFERROR(RTD("cqg.rtd",,"StudyData", "Correlation("&$B$3&","&AS$2&",Period:="&$B$1&",InputChoice1:=Close,InputChoice2::=Close)", "FG", "", "Close",$B$2,A68, "all","", "","True","T")/100,"") -> -0.5570859438 | AU68: 0.28 | AV68: 1 | AY68: =IFERROR(RTD("cqg.rtd",,"StudyData", "Correlation("&$B$3&","&AY$2&",Period:="&$B$1&",InputChoice1:=Close,InputChoice2::=Close)", "FG", "", "Close",$B$2,A68, "all","", "","True","T")/100,"") -> -0.8298308176 | BA68: 0.28 | BB68: 2 | BE68: =IFERROR(RTD("cqg.rtd",,"StudyData", "Correlation("&$B$3&","&BE$2&",Period:="&$B$1&",InputChoice1:=Close,InputChoice2::=Close)", "FG", "", "Close",$B$2,A68, "all","", "","True","T")/100,"") -> 0.5081901222 | BG68: 0.28 | BH68: 1
A69: -65 | C69: =IFERROR(RTD("cqg.rtd",,"StudyData", "Correlation("&$B$3&","&C$2&",Period:="&$B$1&",InputChoice1:=Close,InputChoice2:=Close)", "FG", "", "Close",$B$2,A69, "all","", "","True","T")/100,"") -> 0.8345411329 | E69: 0.3 | F69: 1 | G69: =IF(AND($C$4>=E69,$C$4<E70),IF(F69=0,1,F69),NA()) ->  | I69: =IFERROR(RTD("cqg.rtd",,"StudyData", "Correlation("&$B$3&","&I$2&",Period:="&$B$1&",InputChoice1:=Close,InputChoice2::=Close)", "FG", "", "Close",$B$2,A69, "all","", "","True","T")/100,"") -> 0.8827461076 | K69: 0.3 | L69: 0 | M69: =IF(AND($I$4>=K69,$I$4<K70),IF(L69=0,1,L69),NA()) ->  | O69: =IFERROR(RTD("cqg.rtd",,"StudyData", "Correlation("&$B$3&","&O$2&",Period:="&$B$1&",InputChoice1:=Close,InputChoice2::=Close)", "FG", "", "Close",$B$2,A69, "all","", "","True","T")/100,"") -> 0.9188036579 | Q69: 0.3 | R69: 0 | S69: =IF(AND($O$4>=Q69,$O$4<Q70),IF(R69=0,1,R69),NA()) ->  | U69: =IFERROR(RTD("cqg.rtd",,"StudyData", "Correlation("&$B$3&","&U$2&",Period:="&$B$1&",InputChoice1:=Close,InputChoice2::=Close)", "FG", "", "Close",$B$2,A69, "all","", "","True","T")/100,"") -> -0.4836476455 | W69: 0.3 | X69: 1 | Y69: =IF(AND($U$4>=W69,$U$4<W70),IF(X69=0,1,X69),NA()) ->  | AA69: =IFERROR(RTD("cqg.rtd",,"StudyData", "Correlation("&$B$3&","&AA$2&",Period:="&$B$1&",InputChoice1:=Close,InputChoice2::=Close)", "FG", "", "Close",$B$2,A69, "all","", "","True","T")/100,"") -> 0.5727033025 | AC69: 0.3 | AD69: 1 | AE69: =IF(AND($AA$4>=AC69,$AA$4<AC70),IF(AD69=0,1,AD69),NA()) ->  | AG69: =IFERROR(RTD("cqg.rtd",,"StudyData", "Correlation("&$B$3&","&AG$2&",Period:="&$B$1&",InputChoice1:=Close,InputChoice2::=Close)", "FG", "", "Close",$B$2,A69, "all","", "","True","T")/100,"") -> 0.6781883652 | AI69: 0.3 | AJ69: 0 | AK69: =IF(AND($AG$4>=AI69,$AG$4<AI70),IF(AJ69=0,1,AJ69),NA()) ->  | AM69: =IFERROR(RTD("cqg.rtd",,"StudyData", "Correlation("&$B$3&","&AM$2&",Period:="&$B$1&",InputChoice1:=Close,InputChoice2::=Close)", "FG", "", "Close",$B$2,A69, "all","", "","True","T")/100,"") -> 0.5350594739 | AO69: 0.3 | AP69: 1 | AQ69: =IF(AND($AM$4>=AO69,$AM$4<AO70),IF(AP69=0,1,AP69),NA()) ->  | AS69: =IFERROR(RTD("cqg.rtd",,"StudyData", "Correlation("&$B$3&","&AS$2&",Period:="&$B$1&",InputChoice1:=Close,InputChoice2::=Close)", "FG", "", "Close",$B$2,A69, "all","", "","True","T")/100,"") -> -0.5246451513 | AU69: 0.3 | AV69: 0 | AW69: =IF(AND($AS$4>=AU69,$AS$4<AU70),IF(AV69=0,1,AV69),NA()) ->  | AY69: =IFERROR(RTD("cqg.rtd",,"StudyData", "Correlation("&$B$3&","&AY$2&",Period:="&$B$1&",InputChoice1:=Close,InputChoice2::=Close)", "FG", "", "Close",$B$2,A69, "all","", "","True","T")/100,"") -> -0.822270806 | BA69: 0.3 | BB69: 2 | BC69: =IF(AND($AY$4>=BA69,$AY$4<BA70),IF(BB69=0,1,BB69),NA()) ->  | BE69: =IFERROR(RTD("cqg.rtd",,"StudyData", "Correlation("&$B$3&","&BE$2&",Period:="&$B$1&",InputChoice1:=Close,InputChoice2::=Close)", "FG", "", "Close",$B$2,A69, "all","", "","True","T")/100,"") -> 0.6179416813 | BG69: 0.3 | BH69: 0 | BI69: =IF(AND($BE$4>=BG69,$BE$4<BG70),IF(BH69=0,1,BH69),NA()) -> 
A70: =A69-1 -> -66 | C70: =IFERROR(RTD("cqg.rtd",,"StudyData", "Correlation("&$B$3&","&C$2&",Period:="&$B$1&",InputChoice1:=Close,InputChoice2:=Close)", "FG", "", "Close",$B$2,A70, "all","", "","True","T")/100,"") -> 0.8259210046 | E70: =E69+0.02 -> 0.32 | F70: 2 | I70: =IFERROR(RTD("cqg.rtd",,"StudyData", "Correlation("&$B$3&","&I$2&",Period:="&$B$1&",InputChoice1:=Close,InputChoice2::=Close)", "FG", "", "Close",$B$2,A70, "all","", "","True","T")/100,"") -> 0.8897804676 | K70: =K69+0.02 -> 0.32 | L70: 0 | O70: =IFERROR(RTD("cqg.rtd",,"StudyData", "Correlation("&$B$3&","&O$2&",Period:="&$B$1&",InputChoice1:=Close,InputChoice2::=Close)", "FG", "", "Close",$B$2,A70, "all","", "","True","T")/100,"") -> 0.9217547333 | Q70: =Q69+0.02 -> 0.32 | R70: 0 | U70: =IFERROR(RTD("cqg.rtd",,"StudyData", "Correlation("&$B$3&","&U$2&",Period:="&$B$1&",InputChoice1:=Close,InputChoice2::=Close)", "FG", "", "Close",$B$2,A70, "all","", "","True","T")/100,"") -> -0.50849292 | W70: =W69+0.02 -> 0.32 | X70: 0 | AA70: =IFERROR(RTD("cqg.rtd",,"StudyData", "Correlation("&$B$3&","&AA$2&",Period:="&$B$1&",InputChoice1:=Close,InputChoice2::=Close)", "FG", "", "Close",$B$2,A70, "all","", "","True","T")/100,"") -> 0.3700920084 | AC70: =AC69+0.02 -> 0.32 | AD70: 1 | AG70: =IFERROR(RTD("cqg.rtd",,"StudyData", "Correlation("&$B$3&","&AG$2&",Period:="&$B$1&",InputChoice1:=Close,InputChoice2::=Close)", "FG", "", "Close",$B$2,A70, "all","", "","True","T")/100,"") -> 0.5035853422 | AI70: =AI69+0.02 -> 0.32 | AJ70: 1 | AM70: =IFERROR(RTD("cqg.rtd",,"StudyData", "Correlation("&$B$3&","&AM$2&",Period:="&$B$1&",InputChoice1:=Close,InputChoice2::=Close)", "FG", "", "Close",$B$2,A70, "all","", "","True","T")/100,"") -> 0.3172080471 | AO70: =AO69+0.02 -> 0.32 | AP70: 2 | AS70: =IFERROR(RTD("cqg.rtd",,"StudyData", "Correlation("&$B$3&","&AS$2&",Period:="&$B$1&",InputChoice1:=Close,InputChoice2::=Close)", "FG", "", "Close",$B$2,A70, "all","", "","True","T")/100,"") -> -0.3696909651 | AU70: =AU69+0.02 -> 0.32 | AV70: 0 | AY70: =IFERROR(RTD("cqg.rtd",,"StudyData", "Correlation("&$B$3&","&AY$2&",Period:="&$B$1&",InputChoice1:=Close,InputChoice2::=Close)", "FG", "", "Close",$B$2,A70, "all","", "","True","T")/100,"") -> -0.8207817289 | BA70: =BA69+0.02 -> 0.32 | BB70: 1 | BE70: =IFERROR(RTD("cqg.rtd",,"StudyData", "Correlation("&$B$3&","&BE$2&",Period:="&$B$1&",InputChoice1:=Close,InputChoice2::=Close)", "FG", "", "Close",$B$2,A70, "all","", "","True","T")/100,"") -> 0.6403575214 | BG70: =BG69+0.02 -> 0.32 | BH70: 2
A71: -67 | C71: =IFERROR(RTD("cqg.rtd",,"StudyData", "Correlation("&$B$3&","&C$2&",Period:="&$B$1&",InputChoice1:=Close,InputChoice2:=Close)", "FG", "", "Close",$B$2,A71, "all","", "","True","T")/100,"") -> 0.8133719841 | E71: 0.34 | F71: 0 | I71: =IFERROR(RTD("cqg.rtd",,"StudyData", "Correlation("&$B$3&","&I$2&",Period:="&$B$1&",InputChoice1:=Close,InputChoice2::=Close)", "FG", "", "Close",$B$2,A71, "all","", "","True","T")/100,"") -> 0.8689131688 | K71: 0.34 | L71: 0 | O71: =IFERROR(RTD("cqg.rtd",,"StudyData", "Correlation("&$B$3&","&O$2&",Period:="&$B$1&",InputChoice1:=Close,InputChoice2::=Close)", "FG", "", "Close",$B$2,A71, "all","", "","True","T")/100,"") -> 0.9206515209 | Q71: 0.34 | R71: 0 | U71: =IFERROR(RTD("cqg.rtd",,"StudyData", "Correlation("&$B$3&","&U$2&",Period:="&$B$1&",InputChoice1:=Close,InputChoice2::=Close)", "FG", "", "Close",$B$2,A71, "all","", "","True","T")/100,"") -> -0.5560302618 | W71: 0.34 | X71: 1 | AA71: =IFERROR(RTD("cqg.rtd",,"StudyData", "Correlation("&$B$3&","&AA$2&",Period:="&$B$1&",InputChoice1:=Close,InputChoice2::=Close)", "FG", "", "Close",$B$2,A71, "all","", "","True","T")/100,"") -> 0.2201178054 | AC71: 0.34 | AD71: 0 | AG71: =IFERROR(RTD("cqg.rtd",,"StudyData", "Correlation("&$B$3&","&AG$2&",Period:="&$B$1&",InputChoice1:=Close,InputChoice2::=Close)", "FG", "", "Close",$B$2,A71, "all","", "","True","T")/100,"") -> 0.3625780573 | AI71: 0.34 | AJ71: 1 | AM71: =IFERROR(RTD("cqg.rtd",,"StudyData", "Correlation("&$B$3&","&AM$2&",Period:="&$B$1&",InputChoice1:=Close,InputChoice2::=Close)", "FG", "", "Close",$B$2,A71, "all","", "","True","T")/100,"") -> 0.1693371347 | AO71: 0.34 | AP71: 1 | AS71: =IFERROR(RTD("cqg.rtd",,"StudyData", "Correlation("&$B$3&","&AS$2&",Period:="&$B$1&",InputChoice1:=Close,InputChoice2::=Close)", "FG", "", "Close",$B$2,A71, "all","", "","True","T")/100,"") -> -0.2763166517 | AU71: 0.34 | AV71: 1 | AY71: =IFERROR(RTD("cqg.rtd",,"StudyData", "Correlation("&$B$3&","&AY$2&",Period:="&$B$1&",InputChoice1:=Close,InputChoice2::=Close)", "FG", "", "Close",$B$2,A71, "all","", "","True","T")/100,"") -> -0.7871544571 | BA71: 0.34 | BB71: 2 | BE71: =IFERROR(RTD("cqg.rtd",,"StudyData", "Correlation("&$B$3&","&BE$2&",Period:="&$B$1&",InputChoice1:=Close,InputChoice2::=Close)", "FG", "", "Close",$B$2,A71, "all","", "","True","T")/100,"") -> 0.6568903011 | BG71: 0.34 | BH71: 3
A72: -68 | C72: =IFERROR(RTD("cqg.rtd",,"StudyData", "Correlation("&$B$3&","&C$2&",Period:="&$B$1&",InputChoice1:=Close,InputChoice2:=Close)", "FG", "", "Close",$B$2,A72, "all","", "","True","T")/100,"") -> 0.7941257078 | E72: 0.36 | F72: 1 | I72: =IFERROR(RTD("cqg.rtd",,"StudyData", "Correlation("&$B$3&","&I$2&",Period:="&$B$1&",InputChoice1:=Close,InputChoice2::=Close)", "FG", "", "Close",$B$2,A72, "all","", "","True","T")/100,"") -> 0.8571472558 | K72: 0.36 | L72: 0 | O72: =IFERROR(RTD("cqg.rtd",,"StudyData", "Correlation("&$B$3&","&O$2&",Period:="&$B$1&",InputChoice1:=Close,InputChoice2::=Close)", "FG", "", "Close",$B$2,A72, "all","", "","True","T")/100,"") -> 0.926923285 | Q72: 0.36 | R72: 0 | U72: =IFERROR(RTD("cqg.rtd",,"StudyData", "Correlation("&$B$3&","&U$2&",Period:="&$B$1&",InputChoice1:=Close,InputChoice2::=Close)", "FG", "", "Close",$B$2,A72, "all","", "","True","T")/100,"") -> -0.529317604 | W72: 0.36 | X72: 0 | AA72: =IFERROR(RTD("cqg.rtd",,"StudyData", "Correlation("&$B$3&","&AA$2&",Period:="&$B$1&",InputChoice1:=Close,InputChoice2::=Close)", "FG", "", "Close",$B$2,A72, "all","", "","True","T")/100,"") -> -0.003169992701 | AC72: 0.36 | AD72: 0 | AG72: =IFERROR(RTD("cqg.rtd",,"StudyData", "Correlation("&$B$3&","&AG$2&",Period:="&$B$1&",InputChoice1:=Close,InputChoice2::=Close)", "FG", "", "Close",$B$2,A72, "all","", "","True","T")/100,"") -> 0.1430707103 | AI72: 0.36 | AJ72: 0 | AM72: =IFERROR(RTD("cqg.rtd",,"StudyData", "Correlation("&$B$3&","&AM$2&",Period:="&$B$1&",InputChoice1:=Close,InputChoice2::=Close)", "FG", "", "Close",$B$2,A72, "all","", "","True","T")/100,"") -> -0.08076691704 | AO72: 0.36 | AP72: 0 | AS72: =IFERROR(RTD("cqg.rtd",,"StudyData", "Correlation("&$B$3&","&AS$2&",Period:="&$B$1&",InputChoice1:=Close,InputChoice2::=Close)", "FG", "", "Close",$B$2,A72, "all","", "","True","T")/100,"") -> -0.1768236666 | AU72: 0.36 | AV72: 1 | AY72: =IFERROR(RTD("cqg.rtd",,"StudyData", "Correlation("&$B$3&","&AY$2&",Period:="&$B$1&",InputChoice1:=Close,InputChoice2::=Close)", "FG", "", "Close",$B$2,A72, "all","", "","True","T")/100,"") -> -0.7427794875 | BA72: 0.36 | BB72: 5 | BE72: =IFERROR(RTD("cqg.rtd",,"StudyData", "Correlation("&$B$3&","&BE$2&",Period:="&$B$1&",InputChoice1:=Close,InputChoice2::=Close)", "FG", "", "Close",$B$2,A72, "all","", "","True","T")/100,"") -> 0.6701806726 | BG72: 0.36 | BH72: 2
A73: -69 | C73: =IFERROR(RTD("cqg.rtd",,"StudyData", "Correlation("&$B$3&","&C$2&",Period:="&$B$1&",InputChoice1:=Close,InputChoice2:=Close)", "FG", "", "Close",$B$2,A73, "all","", "","True","T")/100,"") -> 0.8016288622 | E73: 0.38 | F73: 0 | I73: =IFERROR(RTD("cqg.rtd",,"StudyData", "Correlation("&$B$3&","&I$2&",Period:="&$B$1&",InputChoice1:=Close,InputChoice2::=Close)", "FG", "", "Close",$B$2,A73, "all","", "","True","T")/100,"") -> 0.8650654406 | K73: 0.38 | L73: 0 | O73: =IFERROR(RTD("cqg.rtd",,"StudyData", "Correlation("&$B$3&","&O$2&",Period:="&$B$1&",InputChoice1:=Close,InputChoice2::=Close)", "FG", "", "Close",$B$2,A73, "all","", "","True","T")/100,"") -> 0.9200130955 | Q73: 0.38 | R73: 0 | U73: =IFERROR(RTD("cqg.rtd",,"StudyData", "Correlation("&$B$3&","&U$2&",Period:="&$B$1&",InputChoice1:=Close,InputChoice2::=Close)", "FG", "", "Close",$B$2,A73, "all","", "","True","T")/100,"") -> -0.5297660443 | W73: 0.38 | X73: 0 | AA73: =IFERROR(RTD("cqg.rtd",,"StudyData", "Correlation("&$B$3&","&AA$2&",Period:="&$B$1&",InputChoice1:=Close,InputChoice2::=Close)", "FG", "", "Close",$B$2,A73, "all","", "","True","T")/100,"") -> -0.1927847742 | AC73: 0.38 | AD73: 1 | AG73: =IFERROR(RTD("cqg.rtd",,"StudyData", "Correlation("&$B$3&","&AG$2&",Period:="&$B$1&",InputChoice1:=Close,InputChoice2::=Close)", "FG", "", "Close",$B$2,A73, "all","", "","True","T")/100,"") -> -0.0675504761 | AI73: 0.38 | AJ73: 1 | AM73: =IFERROR(RTD("cqg.rtd",,"StudyData", "Correlation("&$B$3&","&AM$2&",Period:="&$B$1&",InputChoice1:=Close,InputChoice2::=Close)", "FG", "", "Close",$B$2,A73, "all","", "","True","T")/100,"") -> -0.2878718092 | AO73: 0.38 | AP73: 1 | AS73: =IFERROR(RTD("cqg.rtd",,"StudyData", "Correlation("&$B$3&","&AS$2&",Period:="&$B$1&",InputChoice1:=Close,InputChoice2::=Close)", "FG", "", "Close",$B$2,A73, "all","", "","True","T")/100,"") -> -0.02512516518 | AU73: 0.38 | AV73: 5 | AY73: =IFERROR(RTD("cqg.rtd",,"StudyData", "Correlation("&$B$3&","&AY$2&",Period:="&$B$1&",InputChoice1:=Close,InputChoice2::=Close)", "FG", "", "Close",$B$2,A73, "all","", "","True","T")/100,"") -> -0.700141286 | BA73: 0.38 | BB73: 2 | BE73: =IFERROR(RTD("cqg.rtd",,"StudyData", "Correlation("&$B$3&","&BE$2&",Period:="&$B$1&",InputChoice1:=Close,InputChoice2::=Close)", "FG", "", "Close",$B$2,A73, "all","", "","True","T")/100,"") -> 0.7265044225 | BG73: 0.38 | BH73: 1
A74: -70 | C74: =IFERROR(RTD("cqg.rtd",,"StudyData", "Correlation("&$B$3&","&C$2&",Period:="&$B$1&",InputChoice1:=Close,InputChoice2:=Close)", "FG", "", "Close",$B$2,A74, "all","", "","True","T")/100,"") -> 0.7204242385 | E74: 0.4 | F74: 0 | I74: =IFERROR(RTD("cqg.rtd",,"StudyData", "Correlation("&$B$3&","&I$2&",Period:="&$B$1&",InputChoice1:=Close,InputChoice2::=Close)", "FG", "", "Close",$B$2,A74, "all","", "","True","T")/100,"") -> 0.7699030473 | K74: 0.4 | L74: 0 | O74: =IFERROR(RTD("cqg.rtd",,"StudyData", "Correlation("&$B$3&","&O$2&",Period:="&$B$1&",InputChoice1:=Close,InputChoice2::=Close)", "FG", "", "Close",$B$2,A74, "all","", "","True","T")/100,"") -> 0.9127858136 | Q74: 0.4 | R74: 0 | U74: =IFERROR(RTD("cqg.rtd",,"StudyData", "Correlation("&$B$3&","&U$2&",Period:="&$B$1&",InputChoice1:=Close,InputChoice2::=Close)", "FG", "", "Close",$B$2,A74, "all","", "","True","T")/100,"") -> -0.5417299535 | W74: 0.4 | X74: 1 | AA74: =IFERROR(RTD("cqg.rtd",,"StudyData", "Correlation("&$B$3&","&AA$2&",Period:="&$B$1&",InputChoice1:=Close,InputChoice2::=Close)", "FG", "", "Close",$B$2,A74, "all","", "","True","T")/100,"") -> -0.3913270048 | AC74: 0.4 | AD74: 1 | AG74: =IFERROR(RTD("cqg.rtd",,"StudyData", "Correlation("&$B$3&","&AG$2&",Period:="&$B$1&",InputChoice1:=Close,InputChoice2::=Close)", "FG", "", "Close",$B$2,A74, "all","", "","True","T")/100,"") -> -0.2974380235 | AI74: 0.4 | AJ74: 0 | AM74: =IFERROR(RTD("cqg.rtd",,"StudyData", "Correlation("&$B$3&","&AM$2&",Period:="&$B$1&",InputChoice1:=Close,InputChoice2::=Close)", "FG", "", "Close",$B$2,A74, "all","", "","True","T")/100,"") -> -0.4638553172 | AO74: 0.4 | AP74: 2 | AS74: =IFERROR(RTD("cqg.rtd",,"StudyData", "Correlation("&$B$3&","&AS$2&",Period:="&$B$1&",InputChoice1:=Close,InputChoice2::=Close)", "FG", "", "Close",$B$2,A74, "all","", "","True","T")/100,"") -> 0.1106610551 | AU74: 0.4 | AV74: 2 | AY74: =IFERROR(RTD("cqg.rtd",,"StudyData", "Correlation("&$B$3&","&AY$2&",Period:="&$B$1&",InputChoice1:=Close,InputChoice2::=Close)", "FG", "", "Close",$B$2,A74, "all","", "","True","T")/100,"") -> -0.7200289045 | BA74: 0.4 | BB74: 0 | BE74: =IFERROR(RTD("cqg.rtd",,"StudyData", "Correlation("&$B$3&","&BE$2&",Period:="&$B$1&",InputChoice1:=Close,InputChoice2::=Close)", "FG", "", "Close",$B$2,A74, "all","", "","True","T")/100,"") -> 0.7165853906 | BG74: 0.4 | BH74: 4
A75: -71 | C75: =IFERROR(RTD("cqg.rtd",,"StudyData", "Correlation("&$B$3&","&C$2&",Period:="&$B$1&",InputChoice1:=Close,InputChoice2:=Close)", "FG", "", "Close",$B$2,A75, "all","", "","True","T")/100,"") -> 0.72262754 | E75: 0.42 | F75: 2 | I75: =IFERROR(RTD("cqg.rtd",,"StudyData", "Correlation("&$B$3&","&I$2&",Period:="&$B$1&",InputChoice1:=Close,InputChoice2::=Close)", "FG", "", "Close",$B$2,A75, "all","", "","True","T")/100,"") -> 0.7554595699 | K75: 0.42 | L75: 0 | O75: =IFERROR(RTD("cqg.rtd",,"StudyData", "Correlation("&$B$3&","&O$2&",Period:="&$B$1&",InputChoice1:=Close,InputChoice2::=Close)", "FG", "", "Close",$B$2,A75, "all","", "","True","T")/100,"") -> 0.8947209181 | Q75: 0.42 | R75: 0 | U75: =IFERROR(RTD("cqg.rtd",,"StudyData", "Correlation("&$B$3&","&U$2&",Period:="&$B$1&",InputChoice1:=Close,InputChoice2::=Close)", "FG", "", "Close",$B$2,A75, "all","", "","True","T")/100,"") -> -0.5023076464 | W75: 0.42 | X75: 1 | AA75: =IFERROR(RTD("cqg.rtd",,"StudyData", "Correlation("&$B$3&","&AA$2&",Period:="&$B$1&",InputChoice1:=Close,InputChoice2::=Close)", "FG", "", "Close",$B$2,A75, "all","", "","True","T")/100,"") -> -0.3704683179 | AC75: 0.42 | AD75: 0 | AG75: =IFERROR(RTD("cqg.rtd",,"StudyData", "Correlation("&$B$3&","&AG$2&",Period:="&$B$1&",InputChoice1:=Close,InputChoice2::=Close)", "FG", "", "Close",$B$2,A75, "all","", "","True","T")/100,"") -> -0.2862371055 | AI75: 0.42 | AJ75: 3 | AM75: =IFERROR(RTD("cqg.rtd",,"StudyData", "Correlation("&$B$3&","&AM$2&",Period:="&$B$1&",InputChoice1:=Close,InputChoice2::=Close)", "FG", "", "Close",$B$2,A75, "all","", "","True","T")/100,"") -> -0.4053971241 | AO75: 0.42 | AP75: 0 | AS75: =IFERROR(RTD("cqg.rtd",,"StudyData", "Correlation("&$B$3&","&AS$2&",Period:="&$B$1&",InputChoice1:=Close,InputChoice2::=Close)", "FG", "", "Close",$B$2,A75, "all","", "","True","T")/100,"") -> 0.1791607248 | AU75: 0.42 | AV75: 0 | AY75: =IFERROR(RTD("cqg.rtd",,"StudyData", "Correlation("&$B$3&","&AY$2&",Period:="&$B$1&",InputChoice1:=Close,InputChoice2::=Close)", "FG", "", "Close",$B$2,A75, "all","", "","True","T")/100,"") -> -0.8406535128 | BA75: 0.42 | BB75: 2 | BE75: =IFERROR(RTD("cqg.rtd",,"StudyData", "Correlation("&$B$3&","&BE$2&",Period:="&$B$1&",InputChoice1:=Close,InputChoice2::=Close)", "FG", "", "Close",$B$2,A75, "all","", "","True","T")/100,"") -> 0.6342091626 | BG75: 0.42 | BH75: 2
A76: -72 | C76: =IFERROR(RTD("cqg.rtd",,"StudyData", "Correlation("&$B$3&","&C$2&",Period:="&$B$1&",InputChoice1:=Close,InputChoice2:=Close)", "FG", "", "Close",$B$2,A76, "all","", "","True","T")/100,"") -> 0.7468453779 | E76: 0.44 | F76: 0 | I76: =IFERROR(RTD("cqg.rtd",,"StudyData", "Correlation("&$B$3&","&I$2&",Period:="&$B$1&",InputChoice1:=Close,InputChoice2::=Close)", "FG", "", "Close",$B$2,A76, "all","", "","True","T")/100,"") -> 0.7650375282 | K76: 0.44 | L76: 0 | O76: =IFERROR(RTD("cqg.rtd",,"StudyData", "Correlation("&$B$3&","&O$2&",Period:="&$B$1&",InputChoice1:=Close,InputChoice2::=Close)", "FG", "", "Close",$B$2,A76, "all","", "","True","T")/100,"") -> 0.8549444818 | Q76: 0.44 | R76: 0 | U76: =IFERROR(RTD("cqg.rtd",,"StudyData", "Correlation("&$B$3&","&U$2&",Period:="&$B$1&",InputChoice1:=Close,InputChoice2::=Close)", "FG", "", "Close",$B$2,A76, "all","", "","True","T")/100,"") -> -0.4860488792 | W76: 0.44 | X76: 0 | AA76: =IFERROR(RTD("cqg.rtd",,"StudyData", "Correlation("&$B$3&","&AA$2&",Period:="&$B$1&",InputChoice1:=Close,InputChoice2::=Close)", "FG", "", "Close",$B$2,A76, "all","", "","True","T")/100,"") -> -0.2768275882 | AC76: 0.44 | AD76: 3 | AG76: =IFERROR(RTD("cqg.rtd",,"StudyData", "Correlation("&$B$3&","&AG$2&",Period:="&$B$1&",InputChoice1:=Close,InputChoice2::=Close)", "FG", "", "Close",$B$2,A76, "all","", "","True","T")/100,"") -> -0.2058918265 | AI76: 0.44 | AJ76: 2 | AM76: =IFERROR(RTD("cqg.rtd",,"StudyData", "Correlation("&$B$3&","&AM$2&",Period:="&$B$1&",InputChoice1:=Close,InputChoice2::=Close)", "FG", "", "Close",$B$2,A76, "all","", "","True","T")/100,"") -> -0.2858782415 | AO76: 0.44 | AP76: 2 | AS76: =IFERROR(RTD("cqg.rtd",,"StudyData", "Correlation("&$B$3&","&AS$2&",Period:="&$B$1&",InputChoice1:=Close,InputChoice2::=Close)", "FG", "", "Close",$B$2,A76, "all","", "","True","T")/100,"") -> 0.1345899815 | AU76: 0.44 | AV76: 2 | AY76: =IFERROR(RTD("cqg.rtd",,"StudyData", "Correlation("&$B$3&","&AY$2&",Period:="&$B$1&",InputChoice1:=Close,InputChoice2::=Close)", "FG", "", "Close",$B$2,A76, "all","", "","True","T")/100,"") -> -0.8825159587 | BA76: 0.44 | BB76: 1 | BE76: =IFERROR(RTD("cqg.rtd",,"StudyData", "Correlation("&$B$3&","&BE$2&",Period:="&$B$1&",InputChoice1:=Close,InputChoice2::=Close)", "FG", "", "Close",$B$2,A76, "all","", "","True","T")/100,"") -> 0.585478169 | BG76: 0.44 | BH76: 2
A77: -73 | C77: =IFERROR(RTD("cqg.rtd",,"StudyData", "Correlation("&$B$3&","&C$2&",Period:="&$B$1&",InputChoice1:=Close,InputChoice2:=Close)", "FG", "", "Close",$B$2,A77, "all","", "","True","T")/100,"") -> 0.7671998895 | E77: 0.46 | F77: 0 | I77: =IFERROR(RTD("cqg.rtd",,"StudyData", "Correlation("&$B$3&","&I$2&",Period:="&$B$1&",InputChoice1:=Close,InputChoice2::=Close)", "FG", "", "Close",$B$2,A77, "all","", "","True","T")/100,"") -> 0.768617349 | K77: 0.46 | L77: 0 | O77: =IFERROR(RTD("cqg.rtd",,"StudyData", "Correlation("&$B$3&","&O$2&",Period:="&$B$1&",InputChoice1:=Close,InputChoice2::=Close)", "FG", "", "Close",$B$2,A77, "all","", "","True","T")/100,"") -> 0.8493776723 | Q77: 0.46 | R77: 0 | U77: =IFERROR(RTD("cqg.rtd",,"StudyData", "Correlation("&$B$3&","&U$2&",Period:="&$B$1&",InputChoice1:=Close,InputChoice2::=Close)", "FG", "", "Close",$B$2,A77, "all","", "","True","T")/100,"") -> -0.3280344424 | W77: 0.46 | X77: 0 | AA77: =IFERROR(RTD("cqg.rtd",,"StudyData", "Correlation("&$B$3&","&AA$2&",Period:="&$B$1&",InputChoice1:=Close,InputChoice2::=Close)", "FG", "", "Close",$B$2,A77, "all","", "","True","T")/100,"") -> -0.2162814646 | AC77: 0.46 | AD77: 1 | AG77: =IFERROR(RTD("cqg.rtd",,"StudyData", "Correlation("&$B$3&","&AG$2&",Period:="&$B$1&",InputChoice1:=Close,InputChoice2::=Close)", "FG", "", "Close",$B$2,A77, "all","", "","True","T")/100,"") -> -0.1537538233 | AI77: 0.46 | AJ77: 0 | AM77: =IFERROR(RTD("cqg.rtd",,"StudyData", "Correlation("&$B$3&","&AM$2&",Period:="&$B$1&",InputChoice1:=Close,InputChoice2::=Close)", "FG", "", "Close",$B$2,A77, "all","", "","True","T")/100,"") -> -0.2101383709 | AO77: 0.46 | AP77: 2 | AS77: =IFERROR(RTD("cqg.rtd",,"StudyData", "Correlation("&$B$3&","&AS$2&",Period:="&$B$1&",InputChoice1:=Close,InputChoice2::=Close)", "FG", "", "Close",$B$2,A77, "all","", "","True","T")/100,"") -> 0.1015683469 | AU77: 0.46 | AV77: 0 | AY77: =IFERROR(RTD("cqg.rtd",,"StudyData", "Correlation("&$B$3&","&AY$2&",Period:="&$B$1&",InputChoice1:=Close,InputChoice2::=Close)", "FG", "", "Close",$B$2,A77, "all","", "","True","T")/100,"") -> -0.8716490076 | BA77: 0.46 | BB77: 1 | BE77: =IFERROR(RTD("cqg.rtd",,"StudyData", "Correlation("&$B$3&","&BE$2&",Period:="&$B$1&",InputChoice1:=Close,InputChoice2::=Close)", "FG", "", "Close",$B$2,A77, "all","", "","True","T")/100,"") -> 0.5187409455 | BG77: 0.46 | BH77: 2
A78: -74 | C78: =IFERROR(RTD("cqg.rtd",,"StudyData", "Correlation("&$B$3&","&C$2&",Period:="&$B$1&",InputChoice1:=Close,InputChoice2:=Close)", "FG", "", "Close",$B$2,A78, "all","", "","True","T")/100,"") -> 0.8080383463 | E78: 0.48 | F78: 0 | I78: =IFERROR(RTD("cqg.rtd",,"StudyData", "Correlation("&$B$3&","&I$2&",Period:="&$B$1&",InputChoice1:=Close,InputChoice2::=Close)", "FG", "", "Close",$B$2,A78, "all","", "","True","T")/100,"") -> 0.8149706437 | K78: 0.48 | L78: 0 | O78: =IFERROR(RTD("cqg.rtd",,"StudyData", "Correlation("&$B$3&","&O$2&",Period:="&$B$1&",InputChoice1:=Close,InputChoice2::=Close)", "FG", "", "Close",$B$2,A78, "all","", "","True","T")/100,"") -> 0.8556335402 | Q78: 0.48 | R78: 0 | U78: =IFERROR(RTD("cqg.rtd",,"StudyData", "Correlation("&$B$3&","&U$2&",Period:="&$B$1&",InputChoice1:=Close,InputChoice2::=Close)", "FG", "", "Close",$B$2,A78, "all","", "","True","T")/100,"") -> -0.2103359231 | W78: 0.48 | X78: 0 | AA78: =IFERROR(RTD("cqg.rtd",,"StudyData", "Correlation("&$B$3&","&AA$2&",Period:="&$B$1&",InputChoice1:=Close,InputChoice2::=Close)", "FG", "", "Close",$B$2,A78, "all","", "","True","T")/100,"") -> -0.1753792222 | AC78: 0.48 | AD78: 1 | AG78: =IFERROR(RTD("cqg.rtd",,"StudyData", "Correlation("&$B$3&","&AG$2&",Period:="&$B$1&",InputChoice1:=Close,InputChoice2::=Close)", "FG", "", "Close",$B$2,A78, "all","", "","True","T")/100,"") -> -0.1181689264 | AI78: 0.48 | AJ78: 0 | AM78: =IFERROR(RTD("cqg.rtd",,"StudyData", "Correlation("&$B$3&","&AM$2&",Period:="&$B$1&",InputChoice1:=Close,InputChoice2::=Close)", "FG", "", "Close",$B$2,A78, "all","", "","True","T")/100,"") -> -0.1336439513 | AO78: 0.48 | AP78: 2 | AS78: =IFERROR(RTD("cqg.rtd",,"StudyData", "Correlation("&$B$3&","&AS$2&",Period:="&$B$1&",InputChoice1:=Close,InputChoice2::=Close)", "FG", "", "Close",$B$2,A78, "all","", "","True","T")/100,"") -> 0.3447313597 | AU78: 0.48 | AV78: 1 | AY78: =IFERROR(RTD("cqg.rtd",,"StudyData", "Correlation("&$B$3&","&AY$2&",Period:="&$B$1&",InputChoice1:=Close,InputChoice2::=Close)", "FG", "", "Close",$B$2,A78, "all","", "","True","T")/100,"") -> -0.8401689783 | BA78: 0.48 | BB78: 0 | BE78: =IFERROR(RTD("cqg.rtd",,"StudyData", "Correlation("&$B$3&","&BE$2&",Period:="&$B$1&",InputChoice1:=Close,InputChoice2::=Close)", "FG", "", "Close",$B$2,A78, "all","", "","True","T")/100,"") -> 0.4296383564 | BG78: 0.48 | BH78: 1
A79: -75 | C79: =IFERROR(RTD("cqg.rtd",,"StudyData", "Correlation("&$B$3&","&C$2&",Period:="&$B$1&",InputChoice1:=Close,InputChoice2:=Close)", "FG", "", "Close",$B$2,A79, "all","", "","True","T")/100,"") -> 0.8367004109 | E79: 0.5 | F79: 0 | I79: =IFERROR(RTD("cqg.rtd",,"StudyData", "Correlation("&$B$3&","&I$2&",Period:="&$B$1&",InputChoice1:=Close,InputChoice2::=Close)", "FG", "", "Close",$B$2,A79, "all","", "","True","T")/100,"") -> 0.8616842367 | K79: 0.5 | L79: 0 | O79: =IFERROR(RTD("cqg.rtd",,"StudyData", "Correlation("&$B$3&","&O$2&",Period:="&$B$1&",InputChoice1:=Close,InputChoice2::=Close)", "FG", "", "Close",$B$2,A79, "all","", "","True","T")/100,"") -> 0.8570675468 | Q79: 0.5 | R79: 0 | U79: =IFERROR(RTD("cqg.rtd",,"StudyData", "Correlation("&$B$3&","&U$2&",Period:="&$B$1&",InputChoice1:=Close,InputChoice2::=Close)", "FG", "", "Close",$B$2,A79, "all","", "","True","T")/100,"") -> -0.1409462847 | W79: 0.5 | X79: 2 | AA79: =IFERROR(RTD("cqg.rtd",,"StudyData", "Correlation("&$B$3&","&AA$2&",Period:="&$B$1&",InputChoice1:=Close,InputChoice2::=Close)", "FG", "", "Close",$B$2,A79, "all","", "","True","T")/100,"") -> -0.06082779414 | AC79: 0.5 | AD79: 1 | AG79: =IFERROR(RTD("cqg.rtd",,"StudyData", "Correlation("&$B$3&","&AG$2&",Period:="&$B$1&",InputChoice1:=Close,InputChoice2::=Close)", "FG", "", "Close",$B$2,A79, "all","", "","True","T")/100,"") -> -0.02863737706 | AI79: 0.5 | AJ79: 0 | AM79: =IFERROR(RTD("cqg.rtd",,"StudyData", "Correlation("&$B$3&","&AM$2&",Period:="&$B$1&",InputChoice1:=Close,InputChoice2::=Close)", "FG", "", "Close",$B$2,A79, "all","", "","True","T")/100,"") -> -0.003236299281 | AO79: 0.5 | AP79: 1 | AS79: =IFERROR(RTD("cqg.rtd",,"StudyData", "Correlation("&$B$3&","&AS$2&",Period:="&$B$1&",InputChoice1:=Close,InputChoice2::=Close)", "FG", "", "Close",$B$2,A79, "all","", "","True","T")/100,"") -> 0.4391194883 | AU79: 0.5 | AV79: 1 | AY79: =IFERROR(RTD("cqg.rtd",,"StudyData", "Correlation("&$B$3&","&AY$2&",Period:="&$B$1&",InputChoice1:=Close,InputChoice2::=Close)", "FG", "", "Close",$B$2,A79, "all","", "","True","T")/100,"") -> -0.8384265858 | BA79: 0.5 | BB79: 1 | BE79: =IFERROR(RTD("cqg.rtd",,"StudyData", "Correlation("&$B$3&","&BE$2&",Period:="&$B$1&",InputChoice1:=Close,InputChoice2::=Close)", "FG", "", "Close",$B$2,A79, "all","", "","True","T")/100,"") -> 0.3966323876 | BG79: 0.5 | BH79: 1
A80: -76 | C80: =IFERROR(RTD("cqg.rtd",,"StudyData", "Correlation("&$B$3&","&C$2&",Period:="&$B$1&",InputChoice1:=Close,InputChoice2:=Close)", "FG", "", "Close",$B$2,A80, "all","", "","True","T")/100,"") -> 0.8279361584 | E80: 0.52 | F80: 0 | I80: =IFERROR(RTD("cqg.rtd",,"StudyData", "Correlation("&$B$3&","&I$2&",Period:="&$B$1&",InputChoice1:=Close,InputChoice2::=Close)", "FG", "", "Close",$B$2,A80, "all","", "","True","T")/100,"") -> 0.8616156736 | K80: 0.52 | L80: 0 | O80: =IFERROR(RTD("cqg.rtd",,"StudyData", "Correlation("&$B$3&","&O$2&",Period:="&$B$1&",InputChoice1:=Close,InputChoice2::=Close)", "FG", "", "Close",$B$2,A80, "all","", "","True","T")/100,"") -> 0.8874542362 | Q80: 0.52 | R80: 0 | U80: =IFERROR(RTD("cqg.rtd",,"StudyData", "Correlation("&$B$3&","&U$2&",Period:="&$B$1&",InputChoice1:=Close,InputChoice2::=Close)", "FG", "", "Close",$B$2,A80, "all","", "","True","T")/100,"") -> -0.05353072515 | W80: 0.52 | X80: 0 | AA80: =IFERROR(RTD("cqg.rtd",,"StudyData", "Correlation("&$B$3&","&AA$2&",Period:="&$B$1&",InputChoice1:=Close,InputChoice2::=Close)", "FG", "", "Close",$B$2,A80, "all","", "","True","T")/100,"") -> -0.07309613855 | AC80: 0.52 | AD80: 1 | AG80: =IFERROR(RTD("cqg.rtd",,"StudyData", "Correlation("&$B$3&","&AG$2&",Period:="&$B$1&",InputChoice1:=Close,InputChoice2::=Close)", "FG", "", "Close",$B$2,A80, "all","", "","True","T")/100,"") -> -0.04465496667 | AI80: 0.52 | AJ80: 2 | AM80: =IFERROR(RTD("cqg.rtd",,"StudyData", "Correlation("&$B$3&","&AM$2&",Period:="&$B$1&",InputChoice1:=Close,InputChoice2::=Close)", "FG", "", "Close",$B$2,A80, "all","", "","True","T")/100,"") -> -0.0134761954 | AO80: 0.52 | AP80: 2 | AS80: =IFERROR(RTD("cqg.rtd",,"StudyData", "Correlation("&$B$3&","&AS$2&",Period:="&$B$1&",InputChoice1:=Close,InputChoice2::=Close)", "FG", "", "Close",$B$2,A80, "all","", "","True","T")/100,"") -> 0.5575131381 | AU80: 0.52 | AV80: 0 | AY80: =IFERROR(RTD("cqg.rtd",,"StudyData", "Correlation("&$B$3&","&AY$2&",Period:="&$B$1&",InputChoice1:=Close,InputChoice2::=Close)", "FG", "", "Close",$B$2,A80, "all","", "","True","T")/100,"") -> -0.8270115579 | BA80: 0.52 | BB80: 1 | BE80: =IFERROR(RTD("cqg.rtd",,"StudyData", "Correlation("&$B$3&","&BE$2&",Period:="&$B$1&",InputChoice1:=Close,InputChoice2::=Close)", "FG", "", "Close",$B$2,A80, "all","", "","True","T")/100,"") -> 0.3944868698 | BG80: 0.52 | BH80: 2
A81: -77 | C81: =IFERROR(RTD("cqg.rtd",,"StudyData", "Correlation("&$B$3&","&C$2&",Period:="&$B$1&",InputChoice1:=Close,InputChoice2:=Close)", "FG", "", "Close",$B$2,A81, "all","", "","True","T")/100,"") -> 0.828800822 | E81: 0.54 | F81: 2 | I81: =IFERROR(RTD("cqg.rtd",,"StudyData", "Correlation("&$B$3&","&I$2&",Period:="&$B$1&",InputChoice1:=Close,InputChoice2::=Close)", "FG", "", "Close",$B$2,A81, "all","", "","True","T")/100,"") -> 0.848915211 | K81: 0.54 | L81: 0 | O81: =IFERROR(RTD("cqg.rtd",,"StudyData", "Correlation("&$B$3&","&O$2&",Period:="&$B$1&",InputChoice1:=Close,InputChoice2::=Close)", "FG", "", "Close",$B$2,A81, "all","", "","True","T")/100,"") -> 0.9023573163 | Q81: 0.54 | R81: 0 | U81: =IFERROR(RTD("cqg.rtd",,"StudyData", "Correlation("&$B$3&","&U$2&",Period:="&$B$1&",InputChoice1:=Close,InputChoice2::=Close)", "FG", "", "Close",$B$2,A81, "all","", "","True","T")/100,"") -> 0.05533689602 | W81: 0.54 | X81: 2 | AA81: =IFERROR(RTD("cqg.rtd",,"StudyData", "Correlation("&$B$3&","&AA$2&",Period:="&$B$1&",InputChoice1:=Close,InputChoice2::=Close)", "FG", "", "Close",$B$2,A81, "all","", "","True","T")/100,"") -> 0.02865371803 | AC81: 0.54 | AD81: 3 | AG81: =IFERROR(RTD("cqg.rtd",,"StudyData", "Correlation("&$B$3&","&AG$2&",Period:="&$B$1&",InputChoice1:=Close,InputChoice2::=Close)", "FG", "", "Close",$B$2,A81, "all","", "","True","T")/100,"") -> 0.0422768674 | AI81: 0.54 | AJ81: 1 | AM81: =IFERROR(RTD("cqg.rtd",,"StudyData", "Correlation("&$B$3&","&AM$2&",Period:="&$B$1&",InputChoice1:=Close,InputChoice2::=Close)", "FG", "", "Close",$B$2,A81, "all","", "","True","T")/100,"") -> 0.08521108204 | AO81: 0.54 | AP81: 1 | AS81: =IFERROR(RTD("cqg.rtd",,"StudyData", "Correlation("&$B$3&","&AS$2&",Period:="&$B$1&",InputChoice1:=Close,InputChoice2::=Close)", "FG", "", "Close",$B$2,A81, "all","", "","True","T")/100,"") -> 0.5394577663 | AU81: 0.54 | AV81: 2 | AY81: =IFERROR(RTD("cqg.rtd",,"StudyData", "Correlation("&$B$3&","&AY$2&",Period:="&$B$1&",InputChoice1:=Close,InputChoice2::=Close)", "FG", "", "Close",$B$2,A81, "all","", "","True","T")/100,"") -> -0.805745146 | BA81: 0.54 | BB81: 1 | BE81: =IFERROR(RTD("cqg.rtd",,"StudyData", "Correlation("&$B$3&","&BE$2&",Period:="&$B$1&",InputChoice1:=Close,InputChoice2::=Close)", "FG", "", "Close",$B$2,A81, "all","", "","True","T")/100,"") -> 0.3681518672 | BG81: 0.54 | BH81: 1
A82: -78 | C82: =IFERROR(RTD("cqg.rtd",,"StudyData", "Correlation("&$B$3&","&C$2&",Period:="&$B$1&",InputChoice1:=Close,InputChoice2:=Close)", "FG", "", "Close",$B$2,A82, "all","", "","True","T")/100,"") -> 0.848788698 | E82: 0.56 | F82: 2 | I82: =IFERROR(RTD("cqg.rtd",,"StudyData", "Correlation("&$B$3&","&I$2&",Period:="&$B$1&",InputChoice1:=Close,InputChoice2::=Close)", "FG", "", "Close",$B$2,A82, "all","", "","True","T")/100,"") -> 0.8387773175 | K82: 0.56 | L82: 0 | O82: =IFERROR(RTD("cqg.rtd",,"StudyData", "Correlation("&$B$3&","&O$2&",Period:="&$B$1&",InputChoice1:=Close,InputChoice2::=Close)", "FG", "", "Close",$B$2,A82, "all","", "","True","T")/100,"") -> 0.9021796915 | Q82: 0.56 | R82: 0 | U82: =IFERROR(RTD("cqg.rtd",,"StudyData", "Correlation("&$B$3&","&U$2&",Period:="&$B$1&",InputChoice1:=Close,InputChoice2::=Close)", "FG", "", "Close",$B$2,A82, "all","", "","True","T")/100,"") -> 0.1995297395 | W82: 0.56 | X82: 3 | AA82: =IFERROR(RTD("cqg.rtd",,"StudyData", "Correlation("&$B$3&","&AA$2&",Period:="&$B$1&",InputChoice1:=Close,InputChoice2::=Close)", "FG", "", "Close",$B$2,A82, "all","", "","True","T")/100,"") -> 0.1769277818 | AC82: 0.56 | AD82: 2 | AG82: =IFERROR(RTD("cqg.rtd",,"StudyData", "Correlation("&$B$3&","&AG$2&",Period:="&$B$1&",InputChoice1:=Close,InputChoice2::=Close)", "FG", "", "Close",$B$2,A82, "all","", "","True","T")/100,"") -> 0.1902943849 | AI82: 0.56 | AJ82: 0 | AM82: =IFERROR(RTD("cqg.rtd",,"StudyData", "Correlation("&$B$3&","&AM$2&",Period:="&$B$1&",InputChoice1:=Close,InputChoice2::=Close)", "FG", "", "Close",$B$2,A82, "all","", "","True","T")/100,"") -> 0.2258956518 | AO82: 0.56 | AP82: 0 | AS82: =IFERROR(RTD("cqg.rtd",,"StudyData", "Correlation("&$B$3&","&AS$2&",Period:="&$B$1&",InputChoice1:=Close,InputChoice2::=Close)", "FG", "", "Close",$B$2,A82, "all","", "","True","T")/100,"") -> 0.4767616295 | AU82: 0.56 | AV82: 1 | AY82: =IFERROR(RTD("cqg.rtd",,"StudyData", "Correlation("&$B$3&","&AY$2&",Period:="&$B$1&",InputChoice1:=Close,InputChoice2::=Close)", "FG", "", "Close",$B$2,A82, "all","", "","True","T")/100,"") -> -0.7970616606 | BA82: 0.56 | BB82: 2 | BE82: =IFERROR(RTD("cqg.rtd",,"StudyData", "Correlation("&$B$3&","&BE$2&",Period:="&$B$1&",InputChoice1:=Close,InputChoice2::=Close)", "FG", "", "Close",$B$2,A82, "all","", "","True","T")/100,"") -> 0.3031361883 | BG82: 0.56 | BH82: 1
A83: -79 | C83: =IFERROR(RTD("cqg.rtd",,"StudyData", "Correlation("&$B$3&","&C$2&",Period:="&$B$1&",InputChoice1:=Close,InputChoice2:=Close)", "FG", "", "Close",$B$2,A83, "all","", "","True","T")/100,"") -> 0.8661184358 | E83: 0.58 | F83: 0 | I83: =IFERROR(RTD("cqg.rtd",,"StudyData", "Correlation("&$B$3&","&I$2&",Period:="&$B$1&",InputChoice1:=Close,InputChoice2::=Close)", "FG", "", "Close",$B$2,A83, "all","", "","True","T")/100,"") -> 0.8152367489 | K83: 0.58 | L83: 0 | O83: =IFERROR(RTD("cqg.rtd",,"StudyData", "Correlation("&$B$3&","&O$2&",Period:="&$B$1&",InputChoice1:=Close,InputChoice2::=Close)", "FG", "", "Close",$B$2,A83, "all","", "","True","T")/100,"") -> 0.9017335613 | Q83: 0.58 | R83: 0 | U83: =IFERROR(RTD("cqg.rtd",,"StudyData", "Correlation("&$B$3&","&U$2&",Period:="&$B$1&",InputChoice1:=Close,InputChoice2::=Close)", "FG", "", "Close",$B$2,A83, "all","", "","True","T")/100,"") -> 0.1790288772 | W83: 0.58 | X83: 2 | AA83: =IFERROR(RTD("cqg.rtd",,"StudyData", "Correlation("&$B$3&","&AA$2&",Period:="&$B$1&",InputChoice1:=Close,InputChoice2::=Close)", "FG", "", "Close",$B$2,A83, "all","", "","True","T")/100,"") -> 0.4249617578 | AC83: 0.58 | AD83: 1 | AG83: =IFERROR(RTD("cqg.rtd",,"StudyData", "Correlation("&$B$3&","&AG$2&",Period:="&$B$1&",InputChoice1:=Close,InputChoice2::=Close)", "FG", "", "Close",$B$2,A83, "all","", "","True","T")/100,"") -> 0.332931439 | AI83: 0.58 | AJ83: 1 | AM83: =IFERROR(RTD("cqg.rtd",,"StudyData", "Correlation("&$B$3&","&AM$2&",Period:="&$B$1&",InputChoice1:=Close,InputChoice2::=Close)", "FG", "", "Close",$B$2,A83, "all","", "","True","T")/100,"") -> 0.4908626136 | AO83: 0.58 | AP83: 3 | AS83: =IFERROR(RTD("cqg.rtd",,"StudyData", "Correlation("&$B$3&","&AS$2&",Period:="&$B$1&",InputChoice1:=Close,InputChoice2::=Close)", "FG", "", "Close",$B$2,A83, "all","", "","True","T")/100,"") -> 0.3783113597 | AU83: 0.58 | AV83: 0 | AY83: =IFERROR(RTD("cqg.rtd",,"StudyData", "Correlation("&$B$3&","&AY$2&",Period:="&$B$1&",InputChoice1:=Close,InputChoice2::=Close)", "FG", "", "Close",$B$2,A83, "all","", "","True","T")/100,"") -> -0.8036827854 | BA83: 0.58 | BB83: 1 | BE83: =IFERROR(RTD("cqg.rtd",,"StudyData", "Correlation("&$B$3&","&BE$2&",Period:="&$B$1&",InputChoice1:=Close,InputChoice2::=Close)", "FG", "", "Close",$B$2,A83, "all","", "","True","T")/100,"") -> 0.0980068768 | BG83: 0.58 | BH83: 0
A84: -80 | C84: =IFERROR(RTD("cqg.rtd",,"StudyData", "Correlation("&$B$3&","&C$2&",Period:="&$B$1&",InputChoice1:=Close,InputChoice2:=Close)", "FG", "", "Close",$B$2,A84, "all","", "","True","T")/100,"") -> 0.9098633416 | E84: 0.6 | F84: 0 | I84: =IFERROR(RTD("cqg.rtd",,"StudyData", "Correlation("&$B$3&","&I$2&",Period:="&$B$1&",InputChoice1:=Close,InputChoice2::=Close)", "FG", "", "Close",$B$2,A84, "all","", "","True","T")/100,"") -> 0.8761233808 | K84: 0.6 | L84: 1 | O84: =IFERROR(RTD("cqg.rtd",,"StudyData", "Correlation("&$B$3&","&O$2&",Period:="&$B$1&",InputChoice1:=Close,InputChoice2::=Close)", "FG", "", "Close",$B$2,A84, "all","", "","True","T")/100,"") -> 0.9021425889 | Q84: 0.6 | R84: 0 | U84: =IFERROR(RTD("cqg.rtd",,"StudyData", "Correlation("&$B$3&","&U$2&",Period:="&$B$1&",InputChoice1:=Close,InputChoice2::=Close)", "FG", "", "Close",$B$2,A84, "all","", "","True","T")/100,"") -> 0.2583028813 | W84: 0.6 | X84: 2 | AA84: =IFERROR(RTD("cqg.rtd",,"StudyData", "Correlation("&$B$3&","&AA$2&",Period:="&$B$1&",InputChoice1:=Close,InputChoice2::=Close)", "FG", "", "Close",$B$2,A84, "all","", "","True","T")/100,"") -> 0.6415495855 | AC84: 0.6 | AD84: 1 | AG84: =IFERROR(RTD("cqg.rtd",,"StudyData", "Correlation("&$B$3&","&AG$2&",Period:="&$B$1&",InputChoice1:=Close,InputChoice2::=Close)", "FG", "", "Close",$B$2,A84, "all","", "","True","T")/100,"") -> 0.5766730454 | AI84: 0.6 | AJ84: 1 | AM84: =IFERROR(RTD("cqg.rtd",,"StudyData", "Correlation("&$B$3&","&AM$2&",Period:="&$B$1&",InputChoice1:=Close,InputChoice2::=Close)", "FG", "", "Close",$B$2,A84, "all","", "","True","T")/100,"") -> 0.6860909946 | AO84: 0.6 | AP84: 1 | AS84: =IFERROR(RTD("cqg.rtd",,"StudyData", "Correlation("&$B$3&","&AS$2&",Period:="&$B$1&",InputChoice1:=Close,InputChoice2::=Close)", "FG", "", "Close",$B$2,A84, "all","", "","True","T")/100,"") -> 0.3865616785 | AU84: 0.6 | AV84: 0 | AY84: =IFERROR(RTD("cqg.rtd",,"StudyData", "Correlation("&$B$3&","&AY$2&",Period:="&$B$1&",InputChoice1:=Close,InputChoice2::=Close)", "FG", "", "Close",$B$2,A84, "all","", "","True","T")/100,"") -> -0.8358034298 | BA84: 0.6 | BB84: 0 | BE84: =IFERROR(RTD("cqg.rtd",,"StudyData", "Correlation("&$B$3&","&BE$2&",Period:="&$B$1&",InputChoice1:=Close,InputChoice2::=Close)", "FG", "", "Close",$B$2,A84, "all","", "","True","T")/100,"") -> -0.07771502729 | BG84: 0.6 | BH84: 4
A85: -81 | C85: =IFERROR(RTD("cqg.rtd",,"StudyData", "Correlation("&$B$3&","&C$2&",Period:="&$B$1&",InputChoice1:=Close,InputChoice2:=Close)", "FG", "", "Close",$B$2,A85, "all","", "","True","T")/100,"") -> 0.9263571282 | E85: 0.62 | F85: 1 | I85: =IFERROR(RTD("cqg.rtd",,"StudyData", "Correlation("&$B$3&","&I$2&",Period:="&$B$1&",InputChoice1:=Close,InputChoice2::=Close)", "FG", "", "Close",$B$2,A85, "all","", "","True","T")/100,"") -> 0.9035866475 | K85: 0.62 | L85: 1 | O85: =IFERROR(RTD("cqg.rtd",,"StudyData", "Correlation("&$B$3&","&O$2&",Period:="&$B$1&",InputChoice1:=Close,InputChoice2::=Close)", "FG", "", "Close",$B$2,A85, "all","", "","True","T")/100,"") -> 0.892563044 | Q85: 0.62 | R85: 0 | U85: =IFERROR(RTD("cqg.rtd",,"StudyData", "Correlation("&$B$3&","&U$2&",Period:="&$B$1&",InputChoice1:=Close,InputChoice2::=Close)", "FG", "", "Close",$B$2,A85, "all","", "","True","T")/100,"") -> 0.3852844824 | W85: 0.62 | X85: 1 | AA85: =IFERROR(RTD("cqg.rtd",,"StudyData", "Correlation("&$B$3&","&AA$2&",Period:="&$B$1&",InputChoice1:=Close,InputChoice2::=Close)", "FG", "", "Close",$B$2,A85, "all","", "","True","T")/100,"") -> 0.7382393465 | AC85: 0.62 | AD85: 2 | AG85: =IFERROR(RTD("cqg.rtd",,"StudyData", "Correlation("&$B$3&","&AG$2&",Period:="&$B$1&",InputChoice1:=Close,InputChoice2::=Close)", "FG", "", "Close",$B$2,A85, "all","", "","True","T")/100,"") -> 0.6724604411 | AI85: 0.62 | AJ85: 3 | AM85: =IFERROR(RTD("cqg.rtd",,"StudyData", "Correlation("&$B$3&","&AM$2&",Period:="&$B$1&",InputChoice1:=Close,InputChoice2::=Close)", "FG", "", "Close",$B$2,A85, "all","", "","True","T")/100,"") -> 0.7956900762 | AO85: 0.62 | AP85: 2 | AS85: =IFERROR(RTD("cqg.rtd",,"StudyData", "Correlation("&$B$3&","&AS$2&",Period:="&$B$1&",InputChoice1:=Close,InputChoice2::=Close)", "FG", "", "Close",$B$2,A85, "all","", "","True","T")/100,"") -> 0.6946921638 | AU85: 0.62 | AV85: 0 | AY85: =IFERROR(RTD("cqg.rtd",,"StudyData", "Correlation("&$B$3&","&AY$2&",Period:="&$B$1&",InputChoice1:=Close,InputChoice2::=Close)", "FG", "", "Close",$B$2,A85, "all","", "","True","T")/100,"") -> -0.8809669945 | BA85: 0.62 | BB85: 0 | BE85: =IFERROR(RTD("cqg.rtd",,"StudyData", "Correlation("&$B$3&","&BE$2&",Period:="&$B$1&",InputChoice1:=Close,InputChoice2::=Close)", "FG", "", "Close",$B$2,A85, "all","", "","True","T")/100,"") -> -0.2472944493 | BG85: 0.62 | BH85: 1
A86: -82 | C86: =IFERROR(RTD("cqg.rtd",,"StudyData", "Correlation("&$B$3&","&C$2&",Period:="&$B$1&",InputChoice1:=Close,InputChoice2:=Close)", "FG", "", "Close",$B$2,A86, "all","", "","True","T")/100,"") -> 0.943290399 | E86: 0.64 | F86: 2 | I86: =IFERROR(RTD("cqg.rtd",,"StudyData", "Correlation("&$B$3&","&I$2&",Period:="&$B$1&",InputChoice1:=Close,InputChoice2::=Close)", "FG", "", "Close",$B$2,A86, "all","", "","True","T")/100,"") -> 0.9302702739 | K86: 0.64 | L86: 0 | O86: =IFERROR(RTD("cqg.rtd",,"StudyData", "Correlation("&$B$3&","&O$2&",Period:="&$B$1&",InputChoice1:=Close,InputChoice2::=Close)", "FG", "", "Close",$B$2,A86, "all","", "","True","T")/100,"") -> 0.9295414077 | Q86: 0.64 | R86: 0 | U86: =IFERROR(RTD("cqg.rtd",,"StudyData", "Correlation("&$B$3&","&U$2&",Period:="&$B$1&",InputChoice1:=Close,InputChoice2::=Close)", "FG", "", "Close",$B$2,A86, "all","", "","True","T")/100,"") -> 0.495753478 | W86: 0.64 | X86: 1 | AA86: =IFERROR(RTD("cqg.rtd",,"StudyData", "Correlation("&$B$3&","&AA$2&",Period:="&$B$1&",InputChoice1:=Close,InputChoice2::=Close)", "FG", "", "Close",$B$2,A86, "all","", "","True","T")/100,"") -> 0.8023395638 | AC86: 0.64 | AD86: 0 | AG86: =IFERROR(RTD("cqg.rtd",,"StudyData", "Correlation("&$B$3&","&AG$2&",Period:="&$B$1&",InputChoice1:=Close,InputChoice2::=Close)", "FG", "", "Close",$B$2,A86, "all","", "","True","T")/100,"") -> 0.755354899 | AI86: 0.64 | AJ86: 1 | AM86: =IFERROR(RTD("cqg.rtd",,"StudyData", "Correlation("&$B$3&","&AM$2&",Period:="&$B$1&",InputChoice1:=Close,InputChoice2::=Close)", "FG", "", "Close",$B$2,A86, "all","", "","True","T")/100,"") -> 0.8543835195 | AO86: 0.64 | AP86: 0 | AS86: =IFERROR(RTD("cqg.rtd",,"StudyData", "Correlation("&$B$3&","&AS$2&",Period:="&$B$1&",InputChoice1:=Close,InputChoice2::=Close)", "FG", "", "Close",$B$2,A86, "all","", "","True","T")/100,"") -> 0.4936874284 | AU86: 0.64 | AV86: 2 | AY86: =IFERROR(RTD("cqg.rtd",,"StudyData", "Correlation("&$B$3&","&AY$2&",Period:="&$B$1&",InputChoice1:=Close,InputChoice2::=Close)", "FG", "", "Close",$B$2,A86, "all","", "","True","T")/100,"") -> -0.8780365506 | BA86: 0.64 | BB86: 0 | BE86: =IFERROR(RTD("cqg.rtd",,"StudyData", "Correlation("&$B$3&","&BE$2&",Period:="&$B$1&",InputChoice1:=Close,InputChoice2::=Close)", "FG", "", "Close",$B$2,A86, "all","", "","True","T")/100,"") -> -0.3316034386 | BG86: 0.64 | BH86: 2
A87: -83 | C87: =IFERROR(RTD("cqg.rtd",,"StudyData", "Correlation("&$B$3&","&C$2&",Period:="&$B$1&",InputChoice1:=Close,InputChoice2:=Close)", "FG", "", "Close",$B$2,A87, "all","", "","True","T")/100,"") -> 0.9490391951 | E87: 0.66 | F87: 2 | I87: =IFERROR(RTD("cqg.rtd",,"StudyData", "Correlation("&$B$3&","&I$2&",Period:="&$B$1&",InputChoice1:=Close,InputChoice2::=Close)", "FG", "", "Close",$B$2,A87, "all","", "","True","T")/100,"") -> 0.9389694958 | K87: 0.66 | L87: 3 | O87: =IFERROR(RTD("cqg.rtd",,"StudyData", "Correlation("&$B$3&","&O$2&",Period:="&$B$1&",InputChoice1:=Close,InputChoice2::=Close)", "FG", "", "Close",$B$2,A87, "all","", "","True","T")/100,"") -> 0.9496927718 | Q87: 0.66 | R87: 0 | U87: =IFERROR(RTD("cqg.rtd",,"StudyData", "Correlation("&$B$3&","&U$2&",Period:="&$B$1&",InputChoice1:=Close,InputChoice2::=Close)", "FG", "", "Close",$B$2,A87, "all","", "","True","T")/100,"") -> 0.5565501304 | W87: 0.66 | X87: 0 | AA87: =IFERROR(RTD("cqg.rtd",,"StudyData", "Correlation("&$B$3&","&AA$2&",Period:="&$B$1&",InputChoice1:=Close,InputChoice2::=Close)", "FG", "", "Close",$B$2,A87, "all","", "","True","T")/100,"") -> 0.8711186489 | AC87: 0.66 | AD87: 3 | AG87: =IFERROR(RTD("cqg.rtd",,"StudyData", "Correlation("&$B$3&","&AG$2&",Period:="&$B$1&",InputChoice1:=Close,InputChoice2::=Close)", "FG", "", "Close",$B$2,A87, "all","", "","True","T")/100,"") -> 0.837655906 | AI87: 0.66 | AJ87: 4 | AM87: =IFERROR(RTD("cqg.rtd",,"StudyData", "Correlation("&$B$3&","&AM$2&",Period:="&$B$1&",InputChoice1:=Close,InputChoice2::=Close)", "FG", "", "Close",$B$2,A87, "all","", "","True","T")/100,"") -> 0.9198433376 | AO87: 0.66 | AP87: 0 | AS87: =IFERROR(RTD("cqg.rtd",,"StudyData", "Correlation("&$B$3&","&AS$2&",Period:="&$B$1&",InputChoice1:=Close,InputChoice2::=Close)", "FG", "", "Close",$B$2,A87, "all","", "","True","T")/100,"") -> 0.367432464 | AU87: 0.66 | AV87: 1 | AY87: =IFERROR(RTD("cqg.rtd",,"StudyData", "Correlation("&$B$3&","&AY$2&",Period:="&$B$1&",InputChoice1:=Close,InputChoice2::=Close)", "FG", "", "Close",$B$2,A87, "all","", "","True","T")/100,"") -> -0.8209104468 | BA87: 0.66 | BB87: 0 | BE87: =IFERROR(RTD("cqg.rtd",,"StudyData", "Correlation("&$B$3&","&BE$2&",Period:="&$B$1&",InputChoice1:=Close,InputChoice2::=Close)", "FG", "", "Close",$B$2,A87, "all","", "","True","T")/100,"") -> -0.4354262224 | BG87: 0.66 | BH87: 5
A88: -84 | C88: =IFERROR(RTD("cqg.rtd",,"StudyData", "Correlation("&$B$3&","&C$2&",Period:="&$B$1&",InputChoice1:=Close,InputChoice2:=Close)", "FG", "", "Close",$B$2,A88, "all","", "","True","T")/100,"") -> 0.9580049863 | E88: 0.68 | F88: 3 | I88: =IFERROR(RTD("cqg.rtd",,"StudyData", "Correlation("&$B$3&","&I$2&",Period:="&$B$1&",InputChoice1:=Close,InputChoice2::=Close)", "FG", "", "Close",$B$2,A88, "all","", "","True","T")/100,"") -> 0.9499798085 | K88: 0.68 | L88: 3 | O88: =IFERROR(RTD("cqg.rtd",,"StudyData", "Correlation("&$B$3&","&O$2&",Period:="&$B$1&",InputChoice1:=Close,InputChoice2::=Close)", "FG", "", "Close",$B$2,A88, "all","", "","True","T")/100,"") -> 0.9661379113 | Q88: 0.68 | R88: 0 | U88: =IFERROR(RTD("cqg.rtd",,"StudyData", "Correlation("&$B$3&","&U$2&",Period:="&$B$1&",InputChoice1:=Close,InputChoice2::=Close)", "FG", "", "Close",$B$2,A88, "all","", "","True","T")/100,"") -> 0.5820314042 | W88: 0.68 | X88: 1 | AA88: =IFERROR(RTD("cqg.rtd",,"StudyData", "Correlation("&$B$3&","&AA$2&",Period:="&$B$1&",InputChoice1:=Close,InputChoice2::=Close)", "FG", "", "Close",$B$2,A88, "all","", "","True","T")/100,"") -> 0.9020917999 | AC88: 0.68 | AD88: 1 | AG88: =IFERROR(RTD("cqg.rtd",,"StudyData", "Correlation("&$B$3&","&AG$2&",Period:="&$B$1&",InputChoice1:=Close,InputChoice2::=Close)", "FG", "", "Close",$B$2,A88, "all","", "","True","T")/100,"") -> 0.8663505086 | AI88: 0.68 | AJ88: 3 | AM88: =IFERROR(RTD("cqg.rtd",,"StudyData", "Correlation("&$B$3&","&AM$2&",Period:="&$B$1&",InputChoice1:=Close,InputChoice2::=Close)", "FG", "", "Close",$B$2,A88, "all","", "","True","T")/100,"") -> 0.9478327503 | AO88: 0.68 | AP88: 0 | AS88: =IFERROR(RTD("cqg.rtd",,"StudyData", "Correlation("&$B$3&","&AS$2&",Period:="&$B$1&",InputChoice1:=Close,InputChoice2::=Close)", "FG", "", "Close",$B$2,A88, "all","", "","True","T")/100,"") -> 0.3784177623 | AU88: 0.68 | AV88: 0 | AY88: =IFERROR(RTD("cqg.rtd",,"StudyData", "Correlation("&$B$3&","&AY$2&",Period:="&$B$1&",InputChoice1:=Close,InputChoice2::=Close)", "FG", "", "Close",$B$2,A88, "all","", "","True","T")/100,"") -> -0.5853327271 | BA88: 0.68 | BB88: 0 | BE88: =IFERROR(RTD("cqg.rtd",,"StudyData", "Correlation("&$B$3&","&BE$2&",Period:="&$B$1&",InputChoice1:=Close,InputChoice2::=Close)", "FG", "", "Close",$B$2,A88, "all","", "","True","T")/100,"") -> -0.355002784 | BG88: 0.68 | BH88: 1
A89: -85 | C89: =IFERROR(RTD("cqg.rtd",,"StudyData", "Correlation("&$B$3&","&C$2&",Period:="&$B$1&",InputChoice1:=Close,InputChoice2:=Close)", "FG", "", "Close",$B$2,A89, "all","", "","True","T")/100,"") -> 0.960175286 | E89: 0.7 | F89: 3 | I89: =IFERROR(RTD("cqg.rtd",,"StudyData", "Correlation("&$B$3&","&I$2&",Period:="&$B$1&",InputChoice1:=Close,InputChoice2::=Close)", "FG", "", "Close",$B$2,A89, "all","", "","True","T")/100,"") -> 0.9542616106 | K89: 0.7 | L89: 1 | O89: =IFERROR(RTD("cqg.rtd",,"StudyData", "Correlation("&$B$3&","&O$2&",Period:="&$B$1&",InputChoice1:=Close,InputChoice2::=Close)", "FG", "", "Close",$B$2,A89, "all","", "","True","T")/100,"") -> 0.9691372778 | Q89: 0.7 | R89: 0 | U89: =IFERROR(RTD("cqg.rtd",,"StudyData", "Correlation("&$B$3&","&U$2&",Period:="&$B$1&",InputChoice1:=Close,InputChoice2::=Close)", "FG", "", "Close",$B$2,A89, "all","", "","True","T")/100,"") -> 0.6115115001 | W89: 0.7 | X89: 1 | AA89: =IFERROR(RTD("cqg.rtd",,"StudyData", "Correlation("&$B$3&","&AA$2&",Period:="&$B$1&",InputChoice1:=Close,InputChoice2::=Close)", "FG", "", "Close",$B$2,A89, "all","", "","True","T")/100,"") -> 0.906319087 | AC89: 0.7 | AD89: 1 | AG89: =IFERROR(RTD("cqg.rtd",,"StudyData", "Correlation("&$B$3&","&AG$2&",Period:="&$B$1&",InputChoice1:=Close,InputChoice2::=Close)", "FG", "", "Close",$B$2,A89, "all","", "","True","T")/100,"") -> 0.8685205424 | AI89: 0.7 | AJ89: 2 | AM89: =IFERROR(RTD("cqg.rtd",,"StudyData", "Correlation("&$B$3&","&AM$2&",Period:="&$B$1&",InputChoice1:=Close,InputChoice2::=Close)", "FG", "", "Close",$B$2,A89, "all","", "","True","T")/100,"") -> 0.9515505343 | AO89: 0.7 | AP89: 2 | AS89: =IFERROR(RTD("cqg.rtd",,"StudyData", "Correlation("&$B$3&","&AS$2&",Period:="&$B$1&",InputChoice1:=Close,InputChoice2::=Close)", "FG", "", "Close",$B$2,A89, "all","", "","True","T")/100,"") -> 0.2275349104 | AU89: 0.7 | AV89: 2 | AY89: =IFERROR(RTD("cqg.rtd",,"StudyData", "Correlation("&$B$3&","&AY$2&",Period:="&$B$1&",InputChoice1:=Close,InputChoice2::=Close)", "FG", "", "Close",$B$2,A89, "all","", "","True","T")/100,"") -> -0.3613067602 | BA89: 0.7 | BB89: 0 | BE89: =IFERROR(RTD("cqg.rtd",,"StudyData", "Correlation("&$B$3&","&BE$2&",Period:="&$B$1&",InputChoice1:=Close,InputChoice2::=Close)", "FG", "", "Close",$B$2,A89, "all","", "","True","T")/100,"") -> -0.3118998035 | BG89: 0.7 | BH89: 0
A90: -86 | C90: =IFERROR(RTD("cqg.rtd",,"StudyData", "Correlation("&$B$3&","&C$2&",Period:="&$B$1&",InputChoice1:=Close,InputChoice2:=Close)", "FG", "", "Close",$B$2,A90, "all","", "","True","T")/100,"") -> 0.9737601842 | E90: 0.72 | F90: 0 | I90: =IFERROR(RTD("cqg.rtd",,"StudyData", "Correlation("&$B$3&","&I$2&",Period:="&$B$1&",InputChoice1:=Close,InputChoice2::=Close)", "FG", "", "Close",$B$2,A90, "all","", "","True","T")/100,"") -> 0.9659394069 | K90: 0.72 | L90: 2 | O90: =IFERROR(RTD("cqg.rtd",,"StudyData", "Correlation("&$B$3&","&O$2&",Period:="&$B$1&",InputChoice1:=Close,InputChoice2::=Close)", "FG", "", "Close",$B$2,A90, "all","", "","True","T")/100,"") -> 0.9708379335 | Q90: 0.72 | R90: 3 | U90: =IFERROR(RTD("cqg.rtd",,"StudyData", "Correlation("&$B$3&","&U$2&",Period:="&$B$1&",InputChoice1:=Close,InputChoice2::=Close)", "FG", "", "Close",$B$2,A90, "all","", "","True","T")/100,"") -> 0.6333162581 | W90: 0.72 | X90: 2 | AA90: =IFERROR(RTD("cqg.rtd",,"StudyData", "Correlation("&$B$3&","&AA$2&",Period:="&$B$1&",InputChoice1:=Close,InputChoice2::=Close)", "FG", "", "Close",$B$2,A90, "all","", "","True","T")/100,"") -> 0.9073000643 | AC90: 0.72 | AD90: 2 | AG90: =IFERROR(RTD("cqg.rtd",,"StudyData", "Correlation("&$B$3&","&AG$2&",Period:="&$B$1&",InputChoice1:=Close,InputChoice2::=Close)", "FG", "", "Close",$B$2,A90, "all","", "","True","T")/100,"") -> 0.8784176066 | AI90: 0.72 | AJ90: 1 | AM90: =IFERROR(RTD("cqg.rtd",,"StudyData", "Correlation("&$B$3&","&AM$2&",Period:="&$B$1&",InputChoice1:=Close,InputChoice2::=Close)", "FG", "", "Close",$B$2,A90, "all","", "","True","T")/100,"") -> 0.9566463755 | AO90: 0.72 | AP90: 1 | AS90: =IFERROR(RTD("cqg.rtd",,"StudyData", "Correlation("&$B$3&","&AS$2&",Period:="&$B$1&",InputChoice1:=Close,InputChoice2::=Close)", "FG", "", "Close",$B$2,A90, "all","", "","True","T")/100,"") -> -0.04642869884 | AU90: 0.72 | AV90: 2 | AW90: 2 | AY90: =IFERROR(RTD("cqg.rtd",,"StudyData", "Correlation("&$B$3&","&AY$2&",Period:="&$B$1&",InputChoice1:=Close,InputChoice2::=Close)", "FG", "", "Close",$B$2,A90, "all","", "","True","T")/100,"") -> -0.08821980172 | BA90: 0.72 | BB90: 0 | BE90: =IFERROR(RTD("cqg.rtd",,"StudyData", "Correlation("&$B$3&","&BE$2&",Period:="&$B$1&",InputChoice1:=Close,InputChoice2::=Close)", "FG", "", "Close",$B$2,A90, "all","", "","True","T")/100,"") -> -0.3305106953 | BG90: 0.72 | BH90: 2
A91: -87 | C91: =IFERROR(RTD("cqg.rtd",,"StudyData", "Correlation("&$B$3&","&C$2&",Period:="&$B$1&",InputChoice1:=Close,InputChoice2:=Close)", "FG", "", "Close",$B$2,A91, "all","", "","True","T")/100,"") -> 0.9657109704 | E91: 0.74 | F91: 6 | I91: =IFERROR(RTD("cqg.rtd",,"StudyData", "Correlation("&$B$3&","&I$2&",Period:="&$B$1&",InputChoice1:=Close,InputChoice2::=Close)", "FG", "", "Close",$B$2,A91, "all","", "","True","T")/100,"") -> 0.9633535381 | K91: 0.74 | L91: 4 | O91: =IFERROR(RTD("cqg.rtd",,"StudyData", "Correlation("&$B$3&","&O$2&",Period:="&$B$1&",InputChoice1:=Close,InputChoice2::=Close)", "FG", "", "Close",$B$2,A91, "all","", "","True","T")/100,"") -> 0.9745063786 | Q91: 0.74 | R91: 1 | U91: =IFERROR(RTD("cqg.rtd",,"StudyData", "Correlation("&$B$3&","&U$2&",Period:="&$B$1&",InputChoice1:=Close,InputChoice2::=Close)", "FG", "", "Close",$B$2,A91, "all","", "","True","T")/100,"") -> 0.6898362886 | W91: 0.74 | X91: 1 | AA91: =IFERROR(RTD("cqg.rtd",,"StudyData", "Correlation("&$B$3&","&AA$2&",Period:="&$B$1&",InputChoice1:=Close,InputChoice2::=Close)", "FG", "", "Close",$B$2,A91, "all","", "","True","T")/100,"") -> 0.8908389635 | AC91: 0.74 | AD91: 2 | AG91: =IFERROR(RTD("cqg.rtd",,"StudyData", "Correlation("&$B$3&","&AG$2&",Period:="&$B$1&",InputChoice1:=Close,InputChoice2::=Close)", "FG", "", "Close",$B$2,A91, "all","", "","True","T")/100,"") -> 0.8573513458 | AI91: 0.74 | AJ91: 1 | AM91: =IFERROR(RTD("cqg.rtd",,"StudyData", "Correlation("&$B$3&","&AM$2&",Period:="&$B$1&",InputChoice1:=Close,InputChoice2::=Close)", "FG", "", "Close",$B$2,A91, "all","", "","True","T")/100,"") -> 0.9520061014 | AO91: 0.74 | AP91: 2 | AS91: =IFERROR(RTD("cqg.rtd",,"StudyData", "Correlation("&$B$3&","&AS$2&",Period:="&$B$1&",InputChoice1:=Close,InputChoice2::=Close)", "FG", "", "Close",$B$2,A91, "all","", "","True","T")/100,"") -> -0.2541924741 | AU91: 0.74 | AV91: 1 | AY91: =IFERROR(RTD("cqg.rtd",,"StudyData", "Correlation("&$B$3&","&AY$2&",Period:="&$B$1&",InputChoice1:=Close,InputChoice2::=Close)", "FG", "", "Close",$B$2,A91, "all","", "","True","T")/100,"") -> 0.07996670645 | BA91: 0.74 | BB91: 0 | BE91: =IFERROR(RTD("cqg.rtd",,"StudyData", "Correlation("&$B$3&","&BE$2&",Period:="&$B$1&",InputChoice1:=Close,InputChoice2::=Close)", "FG", "", "Close",$B$2,A91, "all","", "","True","T")/100,"") -> -0.3932791682 | BG91: 0.74 | BH91: 2
A92: -88 | C92: =IFERROR(RTD("cqg.rtd",,"StudyData", "Correlation("&$B$3&","&C$2&",Period:="&$B$1&",InputChoice1:=Close,InputChoice2:=Close)", "FG", "", "Close",$B$2,A92, "all","", "","True","T")/100,"") -> 0.9621081118 | E92: 0.76 | F92: 3 | I92: =IFERROR(RTD("cqg.rtd",,"StudyData", "Correlation("&$B$3&","&I$2&",Period:="&$B$1&",InputChoice1:=Close,InputChoice2::=Close)", "FG", "", "Close",$B$2,A92, "all","", "","True","T")/100,"") -> 0.9573625575 | K92: 0.76 | L92: 3 | O92: =IFERROR(RTD("cqg.rtd",,"StudyData", "Correlation("&$B$3&","&O$2&",Period:="&$B$1&",InputChoice1:=Close,InputChoice2::=Close)", "FG", "", "Close",$B$2,A92, "all","", "","True","T")/100,"") -> 0.9786043765 | Q92: 0.76 | R92: 3 | U92: =IFERROR(RTD("cqg.rtd",,"StudyData", "Correlation("&$B$3&","&U$2&",Period:="&$B$1&",InputChoice1:=Close,InputChoice2::=Close)", "FG", "", "Close",$B$2,A92, "all","", "","True","T")/100,"") -> 0.7289400628 | W92: 0.76 | X92: 0 | AA92: =IFERROR(RTD("cqg.rtd",,"StudyData", "Correlation("&$B$3&","&AA$2&",Period:="&$B$1&",InputChoice1:=Close,InputChoice2::=Close)", "FG", "", "Close",$B$2,A92, "all","", "","True","T")/100,"") -> 0.8494394166 | AC92: 0.76 | AD92: 5 | AG92: =IFERROR(RTD("cqg.rtd",,"StudyData", "Correlation("&$B$3&","&AG$2&",Period:="&$B$1&",InputChoice1:=Close,InputChoice2::=Close)", "FG", "", "Close",$B$2,A92, "all","", "","True","T")/100,"") -> 0.7872482916 | AI92: 0.76 | AJ92: 2 | AM92: =IFERROR(RTD("cqg.rtd",,"StudyData", "Correlation("&$B$3&","&AM$2&",Period:="&$B$1&",InputChoice1:=Close,InputChoice2::=Close)", "FG", "", "Close",$B$2,A92, "all","", "","True","T")/100,"") -> 0.9422233839 | AO92: 0.76 | AP92: 0 | AS92: =IFERROR(RTD("cqg.rtd",,"StudyData", "Correlation("&$B$3&","&AS$2&",Period:="&$B$1&",InputChoice1:=Close,InputChoice2::=Close)", "FG", "", "Close",$B$2,A92, "all","", "","True","T")/100,"") -> -0.3403768352 | AU92: 0.76 | AV92: 0 | AY92: =IFERROR(RTD("cqg.rtd",,"StudyData", "Correlation("&$B$3&","&AY$2&",Period:="&$B$1&",InputChoice1:=Close,InputChoice2::=Close)", "FG", "", "Close",$B$2,A92, "all","", "","True","T")/100,"") -> 0.293841116 | BA92: 0.76 | BB92: 0 | BE92: =IFERROR(RTD("cqg.rtd",,"StudyData", "Correlation("&$B$3&","&BE$2&",Period:="&$B$1&",InputChoice1:=Close,InputChoice2::=Close)", "FG", "", "Close",$B$2,A92, "all","", "","True","T")/100,"") -> -0.4840273579 | BG92: 0.76 | BH92: 0 | BI92: 1
A93: -89 | C93: =IFERROR(RTD("cqg.rtd",,"StudyData", "Correlation("&$B$3&","&C$2&",Period:="&$B$1&",InputChoice1:=Close,InputChoice2:=Close)", "FG", "", "Close",$B$2,A93, "all","", "","True","T")/100,"") -> 0.9581372506 | E93: 0.78 | F93: 3 | I93: =IFERROR(RTD("cqg.rtd",,"StudyData", "Correlation("&$B$3&","&I$2&",Period:="&$B$1&",InputChoice1:=Close,InputChoice2::=Close)", "FG", "", "Close",$B$2,A93, "all","", "","True","T")/100,"") -> 0.9517466723 | K93: 0.78 | L93: 4 | O93: =IFERROR(RTD("cqg.rtd",,"StudyData", "Correlation("&$B$3&","&O$2&",Period:="&$B$1&",InputChoice1:=Close,InputChoice2::=Close)", "FG", "", "Close",$B$2,A93, "all","", "","True","T")/100,"") -> 0.9782076974 | Q93: 0.78 | R93: 0 | U93: =IFERROR(RTD("cqg.rtd",,"StudyData", "Correlation("&$B$3&","&U$2&",Period:="&$B$1&",InputChoice1:=Close,InputChoice2::=Close)", "FG", "", "Close",$B$2,A93, "all","", "","True","T")/100,"") -> 0.7182267547 | W93: 0.78 | X93: 0 | AA93: =IFERROR(RTD("cqg.rtd",,"StudyData", "Correlation("&$B$3&","&AA$2&",Period:="&$B$1&",InputChoice1:=Close,InputChoice2::=Close)", "FG", "", "Close",$B$2,A93, "all","", "","True","T")/100,"") -> 0.7799553351 | AC93: 0.78 | AD93: 2 | AG93: =IFERROR(RTD("cqg.rtd",,"StudyData", "Correlation("&$B$3&","&AG$2&",Period:="&$B$1&",InputChoice1:=Close,InputChoice2::=Close)", "FG", "", "Close",$B$2,A93, "all","", "","True","T")/100,"") -> 0.6555897883 | AI93: 0.78 | AJ93: 4 | AM93: =IFERROR(RTD("cqg.rtd",,"StudyData", "Correlation("&$B$3&","&AM$2&",Period:="&$B$1&",InputChoice1:=Close,InputChoice2::=Close)", "FG", "", "Close",$B$2,A93, "all","", "","True","T")/100,"") -> 0.9242293751 | AO93: 0.78 | AP93: 2 | AS93: =IFERROR(RTD("cqg.rtd",,"StudyData", "Correlation("&$B$3&","&AS$2&",Period:="&$B$1&",InputChoice1:=Close,InputChoice2::=Close)", "FG", "", "Close",$B$2,A93, "all","", "","True","T")/100,"") -> -0.4690851985 | AU93: 0.78 | AV93: 1 | AY93: =IFERROR(RTD("cqg.rtd",,"StudyData", "Correlation("&$B$3&","&AY$2&",Period:="&$B$1&",InputChoice1:=Close,InputChoice2::=Close)", "FG", "", "Close",$B$2,A93, "all","", "","True","T")/100,"") -> 0.3404272996 | BA93: 0.78 | BB93: 0 | BE93: =IFERROR(RTD("cqg.rtd",,"StudyData", "Correlation("&$B$3&","&BE$2&",Period:="&$B$1&",InputChoice1:=Close,InputChoice2::=Close)", "FG", "", "Close",$B$2,A93, "all","", "","True","T")/100,"") -> -0.5512022392 | BG93: 0.78 | BH93: 1
A94: -90 | C94: =IFERROR(RTD("cqg.rtd",,"StudyData", "Correlation("&$B$3&","&C$2&",Period:="&$B$1&",InputChoice1:=Close,InputChoice2:=Close)", "FG", "", "Close",$B$2,A94, "all","", "","True","T")/100,"") -> 0.9608863145 | E94: 0.8 | F94: 5 | I94: =IFERROR(RTD("cqg.rtd",,"StudyData", "Correlation("&$B$3&","&I$2&",Period:="&$B$1&",InputChoice1:=Close,InputChoice2::=Close)", "FG", "", "Close",$B$2,A94, "all","", "","True","T")/100,"") -> 0.9512968085 | K94: 0.8 | L94: 0 | O94: =IFERROR(RTD("cqg.rtd",,"StudyData", "Correlation("&$B$3&","&O$2&",Period:="&$B$1&",InputChoice1:=Close,InputChoice2::=Close)", "FG", "", "Close",$B$2,A94, "all","", "","True","T")/100,"") -> 0.9786974503 | Q94: 0.8 | R94: 1 | U94: =IFERROR(RTD("cqg.rtd",,"StudyData", "Correlation("&$B$3&","&U$2&",Period:="&$B$1&",InputChoice1:=Close,InputChoice2::=Close)", "FG", "", "Close",$B$2,A94, "all","", "","True","T")/100,"") -> 0.7033420592 | W94: 0.8 | X94: 0 | AA94: =IFERROR(RTD("cqg.rtd",,"StudyData", "Correlation("&$B$3&","&AA$2&",Period:="&$B$1&",InputChoice1:=Close,InputChoice2::=Close)", "FG", "", "Close",$B$2,A94, "all","", "","True","T")/100,"") -> 0.7396570887 | AC94: 0.8 | AD94: 2 | AG94: =IFERROR(RTD("cqg.rtd",,"StudyData", "Correlation("&$B$3&","&AG$2&",Period:="&$B$1&",InputChoice1:=Close,InputChoice2::=Close)", "FG", "", "Close",$B$2,A94, "all","", "","True","T")/100,"") -> 0.5290101436 | AI94: 0.8 | AJ94: 4 | AM94: =IFERROR(RTD("cqg.rtd",,"StudyData", "Correlation("&$B$3&","&AM$2&",Period:="&$B$1&",InputChoice1:=Close,InputChoice2::=Close)", "FG", "", "Close",$B$2,A94, "all","", "","True","T")/100,"") -> 0.9172635827 | AO94: 0.8 | AP94: 1 | AS94: =IFERROR(RTD("cqg.rtd",,"StudyData", "Correlation("&$B$3&","&AS$2&",Period:="&$B$1&",InputChoice1:=Close,InputChoice2::=Close)", "FG", "", "Close",$B$2,A94, "all","", "","True","T")/100,"") -> -0.502331585 | AU94: 0.8 | AV94: 1 | AY94: =IFERROR(RTD("cqg.rtd",,"StudyData", "Correlation("&$B$3&","&AY$2&",Period:="&$B$1&",InputChoice1:=Close,InputChoice2::=Close)", "FG", "", "Close",$B$2,A94, "all","", "","True","T")/100,"") -> 0.3508500945 | BA94: 0.8 | BB94: 0 | BE94: =IFERROR(RTD("cqg.rtd",,"StudyData", "Correlation("&$B$3&","&BE$2&",Period:="&$B$1&",InputChoice1:=Close,InputChoice2::=Close)", "FG", "", "Close",$B$2,A94, "all","", "","True","T")/100,"") -> -0.5595180624 | BG94: 0.8 | BH94: 0
A95: -91 | C95: =IFERROR(RTD("cqg.rtd",,"StudyData", "Correlation("&$B$3&","&C$2&",Period:="&$B$1&",InputChoice1:=Close,InputChoice2:=Close)", "FG", "", "Close",$B$2,A95, "all","", "","True","T")/100,"") -> 0.9594267347 | E95: 0.82 | F95: 12 | I95: =IFERROR(RTD("cqg.rtd",,"StudyData", "Correlation("&$B$3&","&I$2&",Period:="&$B$1&",InputChoice1:=Close,InputChoice2::=Close)", "FG", "", "Close",$B$2,A95, "all","", "","True","T")/100,"") -> 0.948714674 | K95: 0.82 | L95: 6 | O95: =IFERROR(RTD("cqg.rtd",,"StudyData", "Correlation("&$B$3&","&O$2&",Period:="&$B$1&",InputChoice1:=Close,InputChoice2::=Close)", "FG", "", "Close",$B$2,A95, "all","", "","True","T")/100,"") -> 0.9736032902 | Q95: 0.82 | R95: 0 | U95: =IFERROR(RTD("cqg.rtd",,"StudyData", "Correlation("&$B$3&","&U$2&",Period:="&$B$1&",InputChoice1:=Close,InputChoice2::=Close)", "FG", "", "Close",$B$2,A95, "all","", "","True","T")/100,"") -> 0.6713074919 | W95: 0.82 | X95: 0 | AA95: =IFERROR(RTD("cqg.rtd",,"StudyData", "Correlation("&$B$3&","&AA$2&",Period:="&$B$1&",InputChoice1:=Close,InputChoice2::=Close)", "FG", "", "Close",$B$2,A95, "all","", "","True","T")/100,"") -> 0.6788175518 | AC95: 0.82 | AD95: 2 | AG95: =IFERROR(RTD("cqg.rtd",,"StudyData", "Correlation("&$B$3&","&AG$2&",Period:="&$B$1&",InputChoice1:=Close,InputChoice2::=Close)", "FG", "", "Close",$B$2,A95, "all","", "","True","T")/100,"") -> 0.4032365984 | AI95: 0.82 | AJ95: 1 | AM95: =IFERROR(RTD("cqg.rtd",,"StudyData", "Correlation("&$B$3&","&AM$2&",Period:="&$B$1&",InputChoice1:=Close,InputChoice2::=Close)", "FG", "", "Close",$B$2,A95, "all","", "","True","T")/100,"") -> 0.8944531195 | AO95: 0.82 | AP95: 3 | AS95: =IFERROR(RTD("cqg.rtd",,"StudyData", "Correlation("&$B$3&","&AS$2&",Period:="&$B$1&",InputChoice1:=Close,InputChoice2::=Close)", "FG", "", "Close",$B$2,A95, "all","", "","True","T")/100,"") -> -0.5854604551 | AU95: 0.82 | AV95: 1 | AY95: =IFERROR(RTD("cqg.rtd",,"StudyData", "Correlation("&$B$3&","&AY$2&",Period:="&$B$1&",InputChoice1:=Close,InputChoice2::=Close)", "FG", "", "Close",$B$2,A95, "all","", "","True","T")/100,"") -> 0.3512405356 | BA95: 0.82 | BB95: 0 | BE95: =IFERROR(RTD("cqg.rtd",,"StudyData", "Correlation("&$B$3&","&BE$2&",Period:="&$B$1&",InputChoice1:=Close,InputChoice2::=Close)", "FG", "", "Close",$B$2,A95, "all","", "","True","T")/100,"") -> -0.6502516076 | BG95: 0.82 | BH95: 0
A96: -92 | C96: =IFERROR(RTD("cqg.rtd",,"StudyData", "Correlation("&$B$3&","&C$2&",Period:="&$B$1&",InputChoice1:=Close,InputChoice2:=Close)", "FG", "", "Close",$B$2,A96, "all","", "","True","T")/100,"") -> 0.9565750822 | E96: 0.84 | F96: 11 | I96: =IFERROR(RTD("cqg.rtd",,"StudyData", "Correlation("&$B$3&","&I$2&",Period:="&$B$1&",InputChoice1:=Close,InputChoice2::=Close)", "FG", "", "Close",$B$2,A96, "all","", "","True","T")/100,"") -> 0.9465484822 | K96: 0.84 | L96: 8 | O96: =IFERROR(RTD("cqg.rtd",,"StudyData", "Correlation("&$B$3&","&O$2&",Period:="&$B$1&",InputChoice1:=Close,InputChoice2::=Close)", "FG", "", "Close",$B$2,A96, "all","", "","True","T")/100,"") -> 0.9724584717 | Q96: 0.84 | R96: 2 | U96: =IFERROR(RTD("cqg.rtd",,"StudyData", "Correlation("&$B$3&","&U$2&",Period:="&$B$1&",InputChoice1:=Close,InputChoice2::=Close)", "FG", "", "Close",$B$2,A96, "all","", "","True","T")/100,"") -> 0.5845953496 | W96: 0.84 | X96: 0 | AA96: =IFERROR(RTD("cqg.rtd",,"StudyData", "Correlation("&$B$3&","&AA$2&",Period:="&$B$1&",InputChoice1:=Close,InputChoice2::=Close)", "FG", "", "Close",$B$2,A96, "all","", "","True","T")/100,"") -> 0.5572835256 | AC96: 0.84 | AD96: 2 | AE96: 2 | AG96: =IFERROR(RTD("cqg.rtd",,"StudyData", "Correlation("&$B$3&","&AG$2&",Period:="&$B$1&",InputChoice1:=Close,InputChoice2::=Close)", "FG", "", "Close",$B$2,A96, "all","", "","True","T")/100,"") -> 0.1835997353 | AI96: 0.84 | AJ96: 6 | AM96: =IFERROR(RTD("cqg.rtd",,"StudyData", "Correlation("&$B$3&","&AM$2&",Period:="&$B$1&",InputChoice1:=Close,InputChoice2::=Close)", "FG", "", "Close",$B$2,A96, "all","", "","True","T")/100,"") -> 0.8354918956 | AO96: 0.84 | AP96: 4 | AS96: =IFERROR(RTD("cqg.rtd",,"StudyData", "Correlation("&$B$3&","&AS$2&",Period:="&$B$1&",InputChoice1:=Close,InputChoice2::=Close)", "FG", "", "Close",$B$2,A96, "all","", "","True","T")/100,"") -> -0.5929278413 | AU96: 0.84 | AV96: 1 | AY96: =IFERROR(RTD("cqg.rtd",,"StudyData", "Correlation("&$B$3&","&AY$2&",Period:="&$B$1&",InputChoice1:=Close,InputChoice2::=Close)", "FG", "", "Close",$B$2,A96, "all","", "","True","T")/100,"") -> 0.3665331445 | BA96: 0.84 | BB96: 0 | BE96: =IFERROR(RTD("cqg.rtd",,"StudyData", "Correlation("&$B$3&","&BE$2&",Period:="&$B$1&",InputChoice1:=Close,InputChoice2::=Close)", "FG", "", "Close",$B$2,A96, "all","", "","True","T")/100,"") -> -0.6253395974 | BG96: 0.84 | BH96: 0
A97: -93 | C97: =IFERROR(RTD("cqg.rtd",,"StudyData", "Correlation("&$B$3&","&C$2&",Period:="&$B$1&",InputChoice1:=Close,InputChoice2:=Close)", "FG", "", "Close",$B$2,A97, "all","", "","True","T")/100,"") -> 0.9515740704 | E97: 0.86 | F97: 5 | G97: 5 | I97: =IFERROR(RTD("cqg.rtd",,"StudyData", "Correlation("&$B$3&","&I$2&",Period:="&$B$1&",InputChoice1:=Close,InputChoice2::=Close)", "FG", "", "Close",$B$2,A97, "all","", "","True","T")/100,"") -> 0.9402809404 | K97: 0.86 | L97: 10 | O97: =IFERROR(RTD("cqg.rtd",,"StudyData", "Correlation("&$B$3&","&O$2&",Period:="&$B$1&",InputChoice1:=Close,InputChoice2::=Close)", "FG", "", "Close",$B$2,A97, "all","", "","True","T")/100,"") -> 0.9709939205 | Q97: 0.86 | R97: 4 | U97: =IFERROR(RTD("cqg.rtd",,"StudyData", "Correlation("&$B$3&","&U$2&",Period:="&$B$1&",InputChoice1:=Close,InputChoice2::=Close)", "FG", "", "Close",$B$2,A97, "all","", "","True","T")/100,"") -> 0.5739515468 | W97: 0.86 | X97: 0 | AA97: =IFERROR(RTD("cqg.rtd",,"StudyData", "Correlation("&$B$3&","&AA$2&",Period:="&$B$1&",InputChoice1:=Close,InputChoice2::=Close)", "FG", "", "Close",$B$2,A97, "all","", "","True","T")/100,"") -> 0.3827332395 | AC97: 0.86 | AD97: 2 | AG97: =IFERROR(RTD("cqg.rtd",,"StudyData", "Correlation("&$B$3&","&AG$2&",Period:="&$B$1&",InputChoice1:=Close,InputChoice2::=Close)", "FG", "", "Close",$B$2,A97, "all","", "","True","T")/100,"") -> 0.002862908202 | AI97: 0.86 | AJ97: 6 | AM97: =IFERROR(RTD("cqg.rtd",,"StudyData", "Correlation("&$B$3&","&AM$2&",Period:="&$B$1&",InputChoice1:=Close,InputChoice2::=Close)", "FG", "", "Close",$B$2,A97, "all","", "","True","T")/100,"") -> 0.7616416756 | AO97: 0.86 | AP97: 6 | AS97: =IFERROR(RTD("cqg.rtd",,"StudyData", "Correlation("&$B$3&","&AS$2&",Period:="&$B$1&",InputChoice1:=Close,InputChoice2::=Close)", "FG", "", "Close",$B$2,A97, "all","", "","True","T")/100,"") -> -0.6221271939 | AU97: 0.86 | AV97: 4 | AY97: =IFERROR(RTD("cqg.rtd",,"StudyData", "Correlation("&$B$3&","&AY$2&",Period:="&$B$1&",InputChoice1:=Close,InputChoice2::=Close)", "FG", "", "Close",$B$2,A97, "all","", "","True","T")/100,"") -> 0.3565293766 | BA97: 0.86 | BB97: 0 | BE97: =IFERROR(RTD("cqg.rtd",,"StudyData", "Correlation("&$B$3&","&BE$2&",Period:="&$B$1&",InputChoice1:=Close,InputChoice2::=Close)", "FG", "", "Close",$B$2,A97, "all","", "","True","T")/100,"") -> -0.6027057415 | BG97: 0.86 | BH97: 0
A98: -94 | C98: =IFERROR(RTD("cqg.rtd",,"StudyData", "Correlation("&$B$3&","&C$2&",Period:="&$B$1&",InputChoice1:=Close,InputChoice2:=Close)", "FG", "", "Close",$B$2,A98, "all","", "","True","T")/100,"") -> 0.94760018 | E98: 0.88 | F98: 4 | I98: =IFERROR(RTD("cqg.rtd",,"StudyData", "Correlation("&$B$3&","&I$2&",Period:="&$B$1&",InputChoice1:=Close,InputChoice2::=Close)", "FG", "", "Close",$B$2,A98, "all","", "","True","T")/100,"") -> 0.936327732 | K98: 0.88 | L98: 13 | O98: =IFERROR(RTD("cqg.rtd",,"StudyData", "Correlation("&$B$3&","&O$2&",Period:="&$B$1&",InputChoice1:=Close,InputChoice2::=Close)", "FG", "", "Close",$B$2,A98, "all","", "","True","T")/100,"") -> 0.9693924577 | Q98: 0.88 | R98: 2 | U98: =IFERROR(RTD("cqg.rtd",,"StudyData", "Correlation("&$B$3&","&U$2&",Period:="&$B$1&",InputChoice1:=Close,InputChoice2::=Close)", "FG", "", "Close",$B$2,A98, "all","", "","True","T")/100,"") -> 0.5669431795 | W98: 0.88 | X98: 0 | AA98: =IFERROR(RTD("cqg.rtd",,"StudyData", "Correlation("&$B$3&","&AA$2&",Period:="&$B$1&",InputChoice1:=Close,InputChoice2::=Close)", "FG", "", "Close",$B$2,A98, "all","", "","True","T")/100,"") -> 0.2880514838 | AC98: 0.88 | AD98: 6 | AG98: =IFERROR(RTD("cqg.rtd",,"StudyData", "Correlation("&$B$3&","&AG$2&",Period:="&$B$1&",InputChoice1:=Close,InputChoice2::=Close)", "FG", "", "Close",$B$2,A98, "all","", "","True","T")/100,"") -> -0.06670778892 | AI98: 0.88 | AJ98: 10 | AK98: 10 | AM98: =IFERROR(RTD("cqg.rtd",,"StudyData", "Correlation("&$B$3&","&AM$2&",Period:="&$B$1&",InputChoice1:=Close,InputChoice2::=Close)", "FG", "", "Close",$B$2,A98, "all","", "","True","T")/100,"") -> 0.7312148294 | AO98: 0.88 | AP98: 4 | AQ98: 4 | AS98: =IFERROR(RTD("cqg.rtd",,"StudyData", "Correlation("&$B$3&","&AS$2&",Period:="&$B$1&",InputChoice1:=Close,InputChoice2::=Close)", "FG", "", "Close",$B$2,A98, "all","", "","True","T")/100,"") -> -0.5884069852 | AU98: 0.88 | AV98: 0 | AY98: =IFERROR(RTD("cqg.rtd",,"StudyData", "Correlation("&$B$3&","&AY$2&",Period:="&$B$1&",InputChoice1:=Close,InputChoice2::=Close)", "FG", "", "Close",$B$2,A98, "all","", "","True","T")/100,"") -> 0.3614865093 | BA98: 0.88 | BB98: 0 | BE98: =IFERROR(RTD("cqg.rtd",,"StudyData", "Correlation("&$B$3&","&BE$2&",Period:="&$B$1&",InputChoice1:=Close,InputChoice2::=Close)", "FG", "", "Close",$B$2,A98, "all","", "","True","T")/100,"") -> -0.5905629402 | BG98: 0.88 | BH98: 0
A99: -95 | C99: =IFERROR(RTD("cqg.rtd",,"StudyData", "Correlation("&$B$3&","&C$2&",Period:="&$B$1&",InputChoice1:=Close,InputChoice2:=Close)", "FG", "", "Close",$B$2,A99, "all","", "","True","T")/100,"") -> 0.9432585976 | E99: 0.9 | F99: 3 | I99: =IFERROR(RTD("cqg.rtd",,"StudyData", "Correlation("&$B$3&","&I$2&",Period:="&$B$1&",InputChoice1:=Close,InputChoice2::=Close)", "FG", "", "Close",$B$2,A99, "all","", "","True","T")/100,"") -> 0.9275645381 | K99: 0.9 | L99: 7 | O99: =IFERROR(RTD("cqg.rtd",,"StudyData", "Correlation("&$B$3&","&O$2&",Period:="&$B$1&",InputChoice1:=Close,InputChoice2::=Close)", "FG", "", "Close",$B$2,A99, "all","", "","True","T")/100,"") -> 0.9642216038 | Q99: 0.9 | R99: 5 | U99: =IFERROR(RTD("cqg.rtd",,"StudyData", "Correlation("&$B$3&","&U$2&",Period:="&$B$1&",InputChoice1:=Close,InputChoice2::=Close)", "FG", "", "Close",$B$2,A99, "all","", "","True","T")/100,"") -> 0.5575137817 | W99: 0.9 | X99: 0 | AA99: =IFERROR(RTD("cqg.rtd",,"StudyData", "Correlation("&$B$3&","&AA$2&",Period:="&$B$1&",InputChoice1:=Close,InputChoice2::=Close)", "FG", "", "Close",$B$2,A99, "all","", "","True","T")/100,"") -> 0.2119565467 | AC99: 0.9 | AD99: 5 | AG99: =IFERROR(RTD("cqg.rtd",,"StudyData", "Correlation("&$B$3&","&AG$2&",Period:="&$B$1&",InputChoice1:=Close,InputChoice2::=Close)", "FG", "", "Close",$B$2,A99, "all","", "","True","T")/100,"") -> -0.09887679332 | AI99: 0.9 | AJ99: 8 | AM99: =IFERROR(RTD("cqg.rtd",,"StudyData", "Correlation("&$B$3&","&AM$2&",Period:="&$B$1&",InputChoice1:=Close,InputChoice2::=Close)", "FG", "", "Close",$B$2,A99, "all","", "","True","T")/100,"") -> 0.6808689554 | AO99: 0.9 | AP99: 10 | AS99: =IFERROR(RTD("cqg.rtd",,"StudyData", "Correlation("&$B$3&","&AS$2&",Period:="&$B$1&",InputChoice1:=Close,InputChoice2::=Close)", "FG", "", "Close",$B$2,A99, "all","", "","True","T")/100,"") -> -0.5616564858 | AU99: 0.9 | AV99: 0 | AY99: =IFERROR(RTD("cqg.rtd",,"StudyData", "Correlation("&$B$3&","&AY$2&",Period:="&$B$1&",InputChoice1:=Close,InputChoice2::=Close)", "FG", "", "Close",$B$2,A99, "all","", "","True","T")/100,"") -> 0.3278341707 | BA99: 0.9 | BB99: 0 | BE99: =IFERROR(RTD("cqg.rtd",,"StudyData", "Correlation("&$B$3&","&BE$2&",Period:="&$B$1&",InputChoice1:=Close,InputChoice2::=Close)", "FG", "", "Close",$B$2,A99, "all","", "","True","T")/100,"") -> -0.5608759234 | BG99: 0.9 | BH99: 0
